Workbook

Sheet AER Changes
A2: Issue | B2: Location | C2: Comments
B5: Final Decision
A6: 1 | B6: Inputs|General'!B27:F27 | C6: Update for AER Draft Decision Real Pre Tax WACC
A8: =A6+1 -> 2 | B8: Inputs|General'!D38:D42 | C8: Update for AER Final Decision CPI Forecast
A10: =A8+1 -> 3 | B10: Inputs|General'!C38 | C10: CPI to escalate prices in 2021-22 is Forecast CPI
B11: WACC!C14
A14: =A10+1 -> 4 | B14: Inputs|General'!L89:P89 | C14: AER Final Decision Real Labour Escalator
A17: =A14+1 -> 5 | B17: Inputs|O & M'!E48:H48 | C17: Formulae errors corrected
B18: Inputs|O & M'!E79:H79
B19: Inputs|O & M'!E110:H110
B20: Inputs|O & M'!E166:H166
B21: Inputs|O & M'!E197:H197
B22: Inputs|O & M'!E277:H277
A25: =A17+1 -> 6 | B25: Calc|Total RAB'!L11:L17 | C25: Values referenced from sheet "'Inputs|General'!D7:D13"

Sheet Instructions
A1: Jemena | C1: color code | D1: input values | E1: AER FD | F1: formula | G1: JEN formula amendments
A3: Instructions
A5: This model is to be used for the setting of Public Lighting Tariffs for the Regulatory Period 2021-22 to 2025-26 based on forecast inflation rates, Real Pre Tax WACC and Nominal vanilla WACC.
A7: Distributor data input fields are shaded | C7: and located in tabs "Inputs|General" , "Inputs|O & M" and "Inputs|Capex"
A10: This model will also to be used for the annual Public Lighting Tariff Approvals in the Regulatory Period 2021-22 to 2025-26 based on actual inflation rates and Real Pre Tax WACC.

Sheet Inputs|General
D1: color code | E1: input values | F1: formula | G1: JEN formula amendments
A2: ='Inputs|O & M'!$A$3 -> Jemena | D2: RIN | E2: RIN | F2: RIN | G2: RIN | H2: RIN | I2: RIN | J2: AER allowance | K2: AER allowance
D3: ="CY"&RIGHT(E3,4)-1 -> CY2014 | E3: CY2015 | F3: CY2016 | G3: CY2017 | H3: CY2018 | I3: ="CY"&RIGHT(J3,4)-1 -> CY2019 | J3: CY2020 | K3: ="HY"&RIGHT(J3,4)+1 -> HY2021 | L3: ="FY"&RIGHT(K3,4)+1 -> FY2022 | M3: ="FY"&RIGHT(L3,4)+1 -> FY2023 | N3: FY2024 | O3: FY2025 | P3: FY2026
A4: Capital Expenditure | D4: Nominal $ - Actual/Estimate | K4: Real 2021 $ - Forecast
A5: (Net of customer contributions)
A7: Poles and Brackets | D7: 728309.1598 | E7: 478089.77 | F7: 489079.42 | G7: 546622.74 | H7: 816700.1 | I7: 401723.04 | J7: 494763.6418 | K7: =J7*(1+$C$37)/2 -> 250398.6724 | L7: ='Calc|Capex 2021-2026'!B27 -> 813243.7492 | M7: ='Calc|Capex 2021-2026'!C27 -> 852670.4761 | N7: ='Calc|Capex 2021-2026'!D27 -> 895176.6233 | O7: ='Calc|Capex 2021-2026'!E27 -> 941437.2766 | P7: ='Calc|Capex 2021-2026'!F27 -> 991548.9653
A9: Existing Lights
A10: Luminaires | D10: 459265.214 | E10: -1085707.86 | F10: 527205.07 | G10: 566810.17 | H10: 339456.79 | I10: 569684.98 | J10: 272974.0325 | K10: =J10*(1+$C$37)/2 -> 138151.4921 | L10: ='Calc|Capex 2021-2026'!B13 -> 0 | M10: ='Calc|Capex 2021-2026'!C13 -> 0 | N10: ='Calc|Capex 2021-2026'!D13 -> 0 | O10: ='Calc|Capex 2021-2026'!E13 -> 0 | P10: ='Calc|Capex 2021-2026'!F13 -> 0
A12: Energy Efficient Lights
A13: Luminaires and Ballasts | D13: 3240.069195 | E13: 124306.77 | F13: 472955.06 | G13: 416134.93 | H13: 407756.88 | I13: 606450.29 | J13: 210578.7097 | K13: =J13*(1+$C$37)/2 -> 106573.3714 | L13: ='Calc|Capex 2021-2026'!B21 -> 800366.3346 | M13: ='Calc|Capex 2021-2026'!C21 -> 806743.1811 | N13: ='Calc|Capex 2021-2026'!D21 -> 813833.1847 | O13: ='Calc|Capex 2021-2026'!E21 -> 821060.1186 | P13: ='Calc|Capex 2021-2026'!F21 -> 611553.2101
A15: Total Net Capex | D15: =SUM(D7,D10,D13) -> 1190814.443 | E15: =SUM(E7,E10,E13) -> -483311.32 | F15: 1489239.55 | G15: =SUM(G7,G10,G13) -> 1529567.84 | H15: 1563913.77 | I15: 1577858.31 | J15: 978316.384 | K15: 495123.5358 | L15: 1613610.084 | M15: 1659413.657 | N15: 1709009.808 | O15: 1762497.395 | P15: 1603102.175
F18: =F3 -> CY2016 | G18: =G3 -> CY2017 | H18: CY2018 | I18: CY2019 | J18: =J3 -> CY2020 | K18: =K3 -> HY2021 | L18: FY2022 | M18: FY2023 | N18: FY2024 | O18: FY2025 | P18: FY2026
A19: Operating and Maintenance Expenditure | F19: Nominal $ - Actual | K19: Real 2021 $ - Forecast
A21: Total O & M | F21: 2746321.453 | G21: 2701128.64 | H21: 3665969.8 | I21: 4186822.49 | J21: 3430073.535 | K21: =J21*(J21/I21)/2*(1+C37) -> 1422186.518 | L21: ='Output|Cashflow Summary'!K79 -> 4057634.469 | M21: ='Output|Cashflow Summary'!L79 -> 4037750.297 | N21: ='Output|Cashflow Summary'!M79 -> 4023147.63 | O21: ='Output|Cashflow Summary'!N79 -> 4015167.069 | P21: ='Output|Cashflow Summary'!O79 -> 4019300.512
A25: WACC
A26: Regulatory Period | B26: =L$3 -> FY2022 | C26: =M$3 -> FY2023 | D26: FY2024 | E26: FY2025 | F26: FY2026
A27: Real Pre Tax WACC | B27: 0.03112139178 | C27: 0.03112139178 | D27: 0.03112139178 | E27: 0.03112139178 | F27: 0.03112139178
A30: CPI Index | B30: CPI Index | C30: Actual CPI | D30: F'cast CPI | E30: Applied year | F30: Cumulative Index $2015
A31: 2014-06-30 | C31: 0.02307692308 | E31: =TRANSPOSE(E3:P3) -> CY2015 | F31: 1
A32: 2015-06-30 | C32: 0.01510859301 | E32: CY2016 | F32: =F31*(1+C32) -> 1.015108593
A33: 2016-06-30 | C33: 0.01023255814 | E33: CY2017 | F33: =F32*(1+C33) -> 1.025495751
A34: 2017-06-30 | C34: 0.01933701657 | E34: CY2018 | F34: 1.045325779
A35: 2018-06-30 | C35: 0.02077687444 | E35: CY2019 | F35: 1.067044381
A36: 2019-06-30 | C36: 0.01592920354 | E36: CY2020 | F36: 1.084041549
A37: 2019-12-31 | C37: =116.2/114.8-1 -> 0.01219512195 | E37: HY2021 | F37: =F36*(1+C37) -> 1.097261568
A38: 2020-12-31 | B38: 117.2 | C38: =D38 -> 0.0199938725 | D38: 0.0199938725 | E38: FY2022
A39: 2021-12-31 | C39: =IF(B39="","",B39/B38-1) ->  | D39: 0.0199938725 | E39: FY2023
A40: 2022-12-31 | C40: =IF(B40="","",B40/B39-1) ->  | D40: 0.0199938725 | E40: FY2024
A41: 2023-12-31 | C41: =IF(B41="","",B41/B40-1) ->  | D41: 0.0199938725 | E41: FY2025
A42: 2024-12-31 | C42: =IF(B42="","",B42/B41-1) ->  | D42: 0.0199938725 | E42: FY2026
A45: Number Of Lights | D45: CY2020/HY2021 | F45: =F$3 -> CY2016 | G45: CY2017 | H45: CY2018 | I45: CY2019 | J45: CY2020 | K45: HY2021 | L45: FY2022 | M45: FY2023 | N45: FY2024 | O45: FY2025 | P45: FY2026
D46: Actual Prices | F46: Actual Volumes | J46: Forecast Volumes for current period | L46: Forecast Volumes for Next period
A47: Existing Lights | B47: Reference Light | C47: Price Factor
A48: Mercury Vapour 80 watt | B48: =A$48 -> Mercury Vapour 80 watt | C48: 1 | D48: 55.40389986 | F48: 6764 | G48: 6622 | H48: 5936 | I48: 5865 | J48: 5715.41056 | K48: 5141.244687 | L48: 3992.912942 | M48: 2844.581196 | N48: 1696.249451 | O48: 561.0417889 | P48: 0
A49: Sodium High Pressure 150 watt | B49: =$A49 -> Sodium High Pressure 150 watt | C49: 1 | D49: 102.0694564 | F49: 15686 | G49: 16144 | H49: 15918 | I49: 15925 | J49: 16080.74151 | K49: 15941.42685 | L49: 15665.21142 | M49: 15393.78195 | N49: 15127.05552 | O49: 14864.95062 | P49: 14607.38718
A50: Sodium High Pressure 250 watt | B50: =A$50 -> Sodium High Pressure 250 watt | C50: 1 | D50: 103.30985 | F50: 5032 | G50: 5217 | H50: 5066 | I50: 5005 | J50: 5117.793471 | K50: 5073.455736 | L50: 4985.548503 | M50: 4899.164429 | N50: 4814.277123 | O50: 4730.86065 | P50: 4648.889526
A51: Fluorescent 20 watt | B51: =A$48 -> Mercury Vapour 80 watt | C51: 1.25 | D51: 69.25487482 | F51: 2 | G51: 2 | H51: 1 | I51: 1 | J51: 0 | K51: 0 | L51: 0 | M51: 0 | N51: 0 | O51: 0 | P51: 0
A52: Fluorescent 40 watt | B52: Mercury Vapour 80 watt | C52: 1.25 | D52: 69.25487482 | F52: 23 | G52: 17 | H52: 16 | I52: 16 | J52: 0 | K52: 0 | L52: 0 | M52: 0 | N52: 0 | O52: 0 | P52: 0
A53: Fluorescent 80 watt | B53: Mercury Vapour 80 watt | C53: 1.25 | D53: 69.25487482 | F53: 0 | G53: 0 | H53: 0 | I53: 0 | J53: 0 | K53: 0 | L53: 0 | M53: 0 | N53: 0 | O53: 0 | P53: 0
A54: Mercury Vapour 50 watt | B54: Mercury Vapour 80 watt | C54: 1.25 | D54: 69.25487482 | F54: 2 | G54: 2 | H54: 2 | I54: 1 | J54: 0 | K54: 0 | L54: 0 | M54: 0 | N54: 0 | O54: 0 | P54: 0
A55: Mercury Vapour 125 watt | B55: Mercury Vapour 80 watt | C55: 1.47 | D55: 81.44373279 | F55: 97 | G55: 87 | H55: 84.0855 | I55: 76 | J55: 80.96077403 | K55: 72.82751519 | L55: 56.5609975 | M55: 40.29447981 | N55: 24.02796213 | O55: 7.947351641 | P55: 0
A56: Mercury Vapour 250 watt | B56: =A$50 -> Sodium High Pressure 250 watt | C56: 0.96 | D56: 99.17745595 | F56: 105 | G56: 96 | H56: 79 | I56: 68 | J56: 76.06425779 | K56: 68.42289931 | L56: 53.14018234 | M56: 37.85746538 | N56: 22.57474842 | O56: 7.466694967 | P56: 0
A57: Mercury Vapour 400 watt | B57: =A$50 -> Sodium High Pressure 250 watt | C57: 1.08 | D57: 111.5746379 | F57: 149 | G57: 123 | H57: 102 | I57: 75 | J57: 100.209548 | K57: 90.34349025 | L57: 70.11137467 | M57: 49.8792591 | N57: 29.64714353 | O57: 9.640542869 | P57: 0
A58: Sodium Low Pressure 90 watt | B58: =A$49 -> Sodium High Pressure 150 watt | C58: 1.06 | D58: 108.1936238 | F58: 9 | G58: 5 | H58: 5 | I58: 0 | J58: 0 | K58: 0 | L58: 0 | M58: 0 | N58: 0 | O58: 0 | P58: 0
A59: Sodium High Pressure 100 watt | B59: =A$49 -> Sodium High Pressure 150 watt | C59: 1.37 | D59: 139.8351552 | F59: 1225 | G59: 1233 | H59: 1189 | I59: 1142 | J59: 1201.156028 | K59: 1190.749876 | L59: 1170.117878 | M59: 1149.843369 | N59: 1129.920154 | O59: 1110.342146 | P59: 1091.103365
A60: Sodium High Pressure 400 watt | B60: =A$50 -> Sodium High Pressure 250 watt | C60: 1.33 | D60: 137.4021004 | F60: 318 | G60: 335 | H60: 374 | I60: 364 | J60: 377.823679 | K60: 374.5504235 | L60: 368.0606277 | M60: 361.68328 | N60: 355.4164319 | O60: 349.2581688 | P60: 343.2066093
A61: Metal Halide 70 watt | B61: =A$48 -> Mercury Vapour 80 watt | C61: 2.57 | D61: 142.3880226 | F61: 12 | G61: 12 | H61: 12 | I61: 11 | J61: 12 | K61: 11.63588572 | L61: 10.9297537 | M61: 10.2664738 | N61: 9.643445517 | O61: 9.058226149 | P61: 8.508521235
A62: Metal Halide 150 watt | B62: =A$49 -> Sodium High Pressure 150 watt | C62: 2.22 | D62: 226.5941931 | F62: 42 | G62: 72 | H62: 73 | I62: 64 | J62: 73 | K62: 70.78497147 | L62: 66.489335 | M62: 62.45438229 | N62: 58.66429356 | O62: 55.10420907 | P62: 51.76017085
A63: Metal Halide 250 watt | B63: =A$50 -> Sodium High Pressure 250 watt | C63: 2.15 | D63: 222.1161774 | F63: 55 | G63: 50 | H63: 39 | I63: 37 | J63: 39 | K63: 37.81662859 | L63: 35.52169952 | M63: 33.36603985 | N63: 31.34119793 | O63: 29.43923498 | P63: 27.65269402
A64: Incandescent 100 watt | B64: =A$48 -> Mercury Vapour 80 watt | C64: 1.56 | D64: 86.43008378 | F64: 0 | G64: 0 | H64: 0 | I64: 0 | J64: 0 | K64: 0 | L64: 0 | M64: 0 | N64: 0 | O64: 0 | P64: 0
A65: Incandescent 150 watt | B65: =A$48 -> Mercury Vapour 80 watt | C65: 1.95 | D65: 108.0376047 | F65: 1 | G65: 0 | H65: 0 | I65: 0 | J65: 0 | K65: 0 | L65: 0 | M65: 0 | N65: 0 | O65: 0 | P65: 0
A68: Total Existing Lights | F68: =SUM(F48:F67) -> 29522 | G68: 30017 | H68: 28896.0855 | I68: 28650 | J68: 28874.15982 | K68: 28073.25896 | L68: 26474.60472 | M68: 24883.17233 | N68: 23298.81747 | O68: 21735.10963 | P68: 20778.50807
A70: Energy Efficient Lights | B70: Reference Light | C70: Price Factor
A71: T5 (2 x 14 W) | B71: =A71 -> T5 (2 x 14 W) | C71: 1 | D71: 38.35484104 | F71: 26850 | G71: 26683 | H71: 26359 | I71: 25958 | J71: 26359 | K71: 26145.56512 | L71: 25722.15181 | M71: 25305.59546 | N71: 24895.78501 | O71: 24492.61122 | P71: 24095.96661
A72: T5 (2 x 24 W) | B72: T5 2X14W | C72: 1.126245847 | D72: 43.19698044 | F72: 932 | G72: 948 | H72: 923 | I72: 894 | J72: 923 | K72: 915.5262568 | L72: 900.6998036 | M72: 886.1134568 | N72: 871.763328 | O72: 857.6455918 | P72: 843.7564847
A73: LED 18W (incl. other standard Category P LED variants) | B73: =A73 -> LED 18W (incl. other standard Category P LED variants) | C73: 1 | D73: 25.13494958 | F73: 12387 | G73: 13778 | H73: 15088 | I73: 16685 | J73: 17615.30943 | K73: 19108.65796 | L73: 22095.37922 | M73: 25302.97291 | N73: 28767.80241 | O73: 32307.01627 | P73: 35029.17995
A74: Compact Fluoro 32W | B74: T5 2X14W | C74: 0.9481557113 | D74: 33.08246466 | F74: 2514 | G74: 2582 | H74: 2567 | I74: 2555 | J74: 2567 | K74: 2558.799428 | L74: 2542.450679 | M74: 2526.206387 | N74: 2510.065882 | O74: 2494.028503 | P74: 2478.093591
A75: Compact Fluoro 42W | B75: T5 2X14W | C75: =C74 -> 0.9481557113 | D75: 37.30995832 | F75: 303 | G75: 322 | H75: 322 | I75: 333 | J75: 322 | K75: 320.9713346 | L75: 318.9205761 | M75: 316.8829203 | N75: 314.8582836 | O75: 312.8465828 | P75: 310.8477352
A76: L1 - LED 70W | B76: =A76 -> L1 - LED 70W | C76: 1 | D76: 60.94 | F76: 0 | G76: 17 | H76: 470 | I76: 625 | J76: 557.9536498 | K76: 612.4747145 | L76: 721.5168074 | M76: 837.8239192 | N76: 962.6940971 | O76: 1090.217515 | P76: 1188.381171
A77: L2 - LED 118W, 155W, 162W | B77: =A77 -> L2 - LED 118W, 155W, 162W | C77: 1 | D77: 62.04 | F77: 0 | G77: 0 | H77: 128 | I77: 169 | J77: 151.9533344 | K77: 166.8016244 | L77: 196.4981944 | M77: 228.1733227 | N77: 262.1805201 | O77: 296.9103019 | P77: 323.6442339
A78: L4 - LED 275W | B78: =A78 -> L4 - LED 275W | C78: 1 | D78: 82.52 | F78: 0 | G78: 0 | H78: 2 | I78: 2 | J78: 2.37427085 | K78: 2.606275381 | L78: 3.070284287 | M78: 3.565208167 | N78: 4.096570626 | O78: 4.639223468 | P78: 5.056941155
A79: Total Energy Efficient Lights | F79: =SUM(F71:F78) -> 42986 | G79: 44330 | H79: 45859 | I79: 47221 | J79: 48498.59069 | K79: 49831.40271 | L79: 52500.68738 | M79: 55407.33358 | N79: 58589.2461 | O79: 61855.91521 | P79: 64274.92672
A81: Total Number of Lights | F81: =SUM(F68,F79) -> 72508 | G81: 74347 | H81: 74755.0855 | I81: 75871 | J81: 77372.75051 | K81: =SUM(K68,K79) -> 77904.66167 | L81: 78975.2921 | M81: 80290.50591 | N81: 81888.06356 | O81: 83591.02484 | P81: 85053.43478
A86: Input | Cost escalators | I86: =I$3 -> CY2019 | J86: CY2020 | K86: HY2021 | L86: FY2022 | M86: FY2023 | N86: FY2024 | O86: FY2025 | P86: FY2026
A88: Annual rate of change
A89: Internal labour | I89: 0.01567215616 | J89: 0.01008401355 | K89: 0.001167243258 | L89: 0.0100352624 | M89: 0.006626862471 | N89: 0.006091269693 | O89: 0.007327727922 | P89: 0.009509468237
A90: External labour
A91: Aluminium | I91: 0 | J91: 0 | K91: 0 | L91: 0 | M91: 0 | N91: 0 | O91: 0 | P91: 0
A92: Copper | I92: 0 | J92: 0 | K92: 0 | L92: 0 | M92: 0 | N92: 0 | O92: 0 | P92: 0
A93: Steel | I93: 0 | J93: 0 | K93: 0 | L93: 0 | M93: 0 | N93: 0 | O93: 0 | P93: 0
A94: Oil | I94: 0 | J94: 0 | K94: 0 | L94: 0 | M94: 0 | N94: 0 | O94: 0 | P94: 0
A95: Concrete | I95: 0 | J95: 0 | K95: 0 | L95: 0 | M95: 0 | N95: 0 | O95: 0 | P95: 0
A96: Wood | I96: 0 | J96: 0 | K96: 0 | L96: 0 | M96: 0 | N96: 0 | O96: 0 | P96: 0
A97: General | I97: 0 | J97: 0 | K97: 0 | L97: 0 | M97: 0 | N97: 0 | O97: 0 | P97: 0
A98: Other | I98: 0 | J98: 0 | K98: 0 | L98: 0 | M98: 0 | N98: 0 | O98: 0 | P98: 0
A100: Annual rate of change
A101: Internal labour | J101: 1 | K101: =J101*(1+K89) -> 1.001167243 | L101: 1.011214219 | M101: 1.017915397 | N101: =M101*(1+N89) -> 1.024115794 | O101: 1.031620236 | P101: 1.041430396
A102: External labour | J102: 1 | K102: 1 | L102: 1 | M102: 1 | N102: =M102*(1+N90) -> 1 | O102: 1 | P102: 1
A103: Aluminium | J103: 1 | K103: 1 | L103: 1 | M103: 1 | N103: 1 | O103: 1 | P103: 1
A104: Copper | J104: 1 | K104: 1 | L104: 1 | M104: 1 | N104: 1 | O104: 1 | P104: 1
A105: Steel | J105: 1 | K105: 1 | L105: 1 | M105: 1 | N105: 1 | O105: 1 | P105: 1
A106: Oil | J106: 1 | K106: 1 | L106: 1 | M106: 1 | N106: 1 | O106: 1 | P106: 1
A107: Concrete | J107: 1 | K107: 1 | L107: 1 | M107: 1 | N107: 1 | O107: 1 | P107: 1
A108: Wood | J108: 1 | K108: 1 | L108: 1 | M108: 1 | N108: 1 | O108: 1 | P108: 1
A109: General | J109: 1 | K109: 1 | L109: 1 | M109: 1 | N109: 1 | O109: 1 | P109: 1
A110: Other | J110: 1 | K110: 1 | L110: 1 | M110: 1 | N110: 1 | O110: 1 | P110: 1
A111: Inflation | J111: 1 | K111: =J111*(1+C37) -> 1.012195122 | L111: =K111*(1+D38) -> 1.032432822 | M111: =L111*(1+D39) -> 1.053075152 | N111: =M111*(1+D40) -> 1.074130203 | O111: =N111*(1+D41) -> 1.095606225 | P111: =O111*(1+D42) -> 1.117511636

Sheet Inputs|O & M
A1: Public Lighting Cost Build-up Model | C1: color code | D1: input values | E1: AER FD | F1: formula | G1: JEN formula amendments
A3: Jemena | C3: O & M Data Inputs
C5: Real 2021 $
C7: AER FD | D7: JEN input
A8: Input parameters | C8: CY2020/HY2021 | D8: FY2022 | E8: FY2023 | F8: FY2024 | G8: FY2025 | H8: FY2026
A10: Inputs - all lamps
A12: Material premium for rural areas | B12: % | C12: 0.05 | D12: 0.05 | E12: =D12 -> 0.05 | F12: 0.05 | G12: 0.05 | H12: 0.05
A13: Labour rate (per hour) | B13: $/hr | C13: 101.8805782 | D13: 117.03 | E13: =D13*(1+'Inputs|General'!M$89) -> 117.8055417 | F13: =E13*(1+'Inputs|General'!N$89) -> 118.523127 | G13: =F13*(1+'Inputs|General'!O$89) -> 119.3916323 | H13: =G13*(1+'Inputs|General'!P$89) -> 120.5269832
A14: Labour rate for night patrols (per hour) | B14: $/hr | C14: 117.1626649 | D14: 140.18 | E14: =D14*(1+'Inputs|General'!M$89) -> 141.1089536 | F14: =E14*(1+'Inputs|General'!N$89) -> 141.9684863 | G14: =F14*(1+'Inputs|General'!O$89) -> 143.0087927 | H14: =G14*(1+'Inputs|General'!P$89) -> 144.3687303
A15: Elevated platform vehicle (per hour) - urban | B15: $/hr | C15: 43.16987711 | D15: 45.64429977 | E15: =D15*(1+'Inputs|General'!M$97) -> 45.64429977 | F15: =E15*(1+'Inputs|General'!N$97) -> 45.64429977 | G15: =F15*(1+'Inputs|General'!O$97) -> 45.64429977 | H15: =G15*(1+'Inputs|General'!P$97) -> 45.64429977
A16: Elevated platform vehicle (per hour) - rural | B16: $/hr | C16: 55.50412771 | D16: 58.68552827 | E16: =D16*(1+'Inputs|General'!M$97) -> 58.68552827 | F16: =E16*(1+'Inputs|General'!N$97) -> 58.68552827 | G16: =F16*(1+'Inputs|General'!O$97) -> 58.68552827 | H16: =G16*(1+'Inputs|General'!P$97) -> 58.68552827
A17: Patrol vehicle (per hour) | B17: $/hr | C17: 12.3342506 | D17: 14.04192009 | E17: =D17*(1+'Inputs|General'!M$97) -> 14.04192009 | F17: =E17*(1+'Inputs|General'!N$97) -> 14.04192009 | G17: =F17*(1+'Inputs|General'!O$97) -> 14.04192009 | H17: =G17*(1+'Inputs|General'!P$97) -> 14.04192009
A18: Number of hours in a day | B18: # of Hrs | C18: 8 | D18: 8 | E18: =D18 -> 8 | F18: 8 | G18: 8 | H18: 8
A19: Indirect overheads | B19: % | C19: 0.25 | D19: 0.25 | E19: =D19 -> 0.25 | F19: 0.25 | G19: 0.25 | H19: 0.25
A21: Inputs - MV80
A23: Depreciation period | B23: years | C23: 20 | D23: 20 | E23: =D23 -> 20 | F23: 20 | G23: 20 | H23: 20
A24: Lamps - bulk change | B24: years | C24: 4 | D24: 4 | E24: =D24 -> 4 | F24: 4 | G24: 4 | H24: 4
A25: PE cells - bulk change | B25: years | C25: 8 | D25: 8 | E25: =D25 -> 8 | F25: 8 | G25: 8 | H25: 8
A26: Proportion of luminaires that fail between bulk lamp change | B26: % | C26: 0.256 | D26: 0.17 | E26: =D26 -> 0.17 | F26: =E26 -> 0.17 | G26: 0.17 | H26: 0.17
A28: Unit cost - lamp | B28: $/unit | C28: 6.026915296 | D28: 6.095254664 | E28: =D28*(1+'Inputs|General'!M$97) -> 6.095254664 | F28: =E28*(1+'Inputs|General'!N$97) -> 6.095254664 | G28: =F28*(1+'Inputs|General'!O$97) -> 6.095254664 | H28: =G28*(1+'Inputs|General'!P$97) -> 6.095254664
A29: Unit cost - PE cell | B29: $/unit | C29: 24.33185716 | D29: 17.93056267 | E29: =D29*(1+'Inputs|General'!M$97) -> 17.93056267 | F29: =E29*(1+'Inputs|General'!N$97) -> 17.93056267 | G29: =F29*(1+'Inputs|General'!O$97) -> 17.93056267 | H29: =G29*(1+'Inputs|General'!P$97) -> 17.93056267
A30: Unit cost - MV80 | B30: $/unit | C30: 209.0957156 | D30: 234.0864945 | E30: =D30*(1+'Inputs|General'!M$97) -> 234.0864945 | F30: =E30*(1+'Inputs|General'!N$97) -> 234.0864945 | G30: =F30*(1+'Inputs|General'!O$97) -> 234.0864945 | H30: =G30*(1+'Inputs|General'!P$97) -> 234.0864945
A31: Unit cost - miscellaneous materials (bulk lamp) | B31: $/unit | C31: 1.318799846 | D31: 1.318227578 | E31: =D31*(1+'Inputs|General'!M$97) -> 1.318227578 | F31: =E31*(1+'Inputs|General'!N$97) -> 1.318227578 | G31: =F31*(1+'Inputs|General'!O$97) -> 1.318227578 | H31: =G31*(1+'Inputs|General'!P$97) -> 1.318227578
A32: Unit cost - miscellaneous materials (repair) | B32: $/unit | C32: 13.18799846 | D32: 13.18227578 | E32: =D32*(1+'Inputs|General'!M$97) -> 13.18227578 | F32: =E32*(1+'Inputs|General'!N$97) -> 13.18227578 | G32: =F32*(1+'Inputs|General'!O$97) -> 13.18227578 | H32: =G32*(1+'Inputs|General'!P$97) -> 13.18227578
A33: Number of men in crew | B33: # of men | C33: 2 | D33: 2 | E33: =D33 -> 2 | F33: 2 | G33: 2 | H33: 2
A34: Number of bulk lamp changes in 1 day - urban | B34: lamp changes/day | C34: 85 | D34: 85 | E34: 85 | F34: 85 | G34: 85 | H34: 85
A35: Number of bulk lamp changes in 1 day - rural | B35: lamp changes/day | C35: 70 | D35: 70 | E35: 70 | F35: 70 | G35: 70 | H35: 70
A36: Number of repairs in 1 day - urban | B36: Repairs/day | C36: 15 | D36: 20 | E36: =D36 -> 20 | F36: =E36 -> 20 | G36: =F36 -> 20 | H36: =G36 -> 20
A37: Number of repairs in 1 day - rural | B37: Repairs/day | C37: 12 | D37: 16 | E37: 16 | F37: 16 | G37: 16 | H37: 16
A38: % of repairs - lamps | B38: % | C38: 0.6 | D38: 0.6 | E38: =D38 -> 0.6 | F38: 0.6 | G38: 0.6 | H38: 0.6
A39: % of repairs - PE cells | B39: % | C39: 0.5 | D39: 0.5 | E39: =D39 -> 0.5 | F39: 0.5 | G39: 0.5 | H39: 0.5
A40: % of repairs - luminaires | B40: % | C40: 0.15 | D40: 0.15 | E40: 0.15 | F40: 0.15 | G40: 0.15 | H40: 0.15
A41: % of repairs - other | B41: % | C41: 0.1 | D41: 0.1 | E41: 0.1 | F41: 0.1 | G41: 0.1 | H41: 0.1
A43: Other Maintenance and Repair costs
A44: Traffic control costs | C44: 34677.61843 | D44: =D48*D47 -> 10928.17882 | E44: =E48*E47 -> 7836.908965 | F44: 4701.685415 | G44: 1566.498008 | H44: 0
A45: Other costs : Describe……………………………………. | C45: 0 | D45: 0 | E45: 0 | F45: 0 | G45: 0 | H45: 0
D46: =SUM(D44:D45) -> 10928.17882 | E46: 7836.908965 | F46: 4701.685415 | G46: 1566.498008 | H46: 0
A47: Number of Lights | C47: ='Inputs|General'!J48 -> 5715.41056 | D47: ='Inputs|General'!L48 -> 3992.912942 | E47: ='Inputs|General'!M48 -> 2844.581196 | F47: ='Inputs|General'!N48 -> 1696.249451 | G47: ='Inputs|General'!O48 -> 561.0417889 | H47: ='Inputs|General'!P48 -> 0
A48: Unit Cost | B48: $/light | C48: 2.737788572 | D48: 2.736893836 | E48: =D48*(1+'Inputs|General'!M$89) -> 2.755030855 | F48: =E48*(1+'Inputs|General'!N$89) -> 2.771812491 | G48: =F48*(1+'Inputs|General'!O$89) -> 2.792123579 | H48: =G48*(1+'Inputs|General'!P$89) -> 2.818675189
A50: Location of selected public lighting assets within distributors' areas (%)
A51: Urban | C51: 0.97 | D51: =C51 -> 0.97 | E51: =D51 -> 0.97 | F51: 0.97 | G51: 0.97 | H51: 0.97
A52: Rural | C52: 0.03 | D52: =C52 -> 0.03 | E52: =D52 -> 0.03 | F52: 0.03 | G52: 0.03 | H52: 0.03
A56: Inputs - S-HP150
A58: Depreciation period | B58: years | C58: 20 | D58: 20 | E58: =D58 -> 20 | F58: 20 | G58: 20 | H58: 20
A59: Number of patrols per year | C59: 3 | D59: 3 | E59: =D59 -> 3 | F59: 3 | G59: 3 | H59: 3
A60: Lamps - frequency of replacement | B60: years | C60: 5 | D60: 5 | E60: =D60 -> 5 | F60: 5 | G60: 5 | H60: 5
A61: PE cells - frequency of replacement | B61: years | C61: 10 | D61: 10 | E61: =D61 -> 10 | F61: 10 | G61: 10 | H61: 10
A64: Unit cost - lamp | B64: $/unit | C64: 43.58633491 | D64: 57.67048644 | E64: =D64*(1+'Inputs|General'!M$97) -> 57.67048644 | F64: =E64*(1+'Inputs|General'!N$97) -> 57.67048644 | G64: =F64*(1+'Inputs|General'!O$97) -> 57.67048644 | H64: =G64*(1+'Inputs|General'!P$97) -> 57.67048644
A65: Unit cost - PE cell | B65: $/unit | C65: 23.67245723 | D65: 22.70446842 | E65: =D65*(1+'Inputs|General'!M$97) -> 22.70446842 | F65: =E65*(1+'Inputs|General'!N$97) -> 22.70446842 | G65: =F65*(1+'Inputs|General'!O$97) -> 22.70446842 | H65: =G65*(1+'Inputs|General'!P$97) -> 22.70446842
A66: Unit cost - miscellaneous materials | B66: $/unit | C66: 2.637599692 | D66: 2.636455156 | E66: =D66*(1+'Inputs|General'!M$97) -> 2.636455156 | F66: =E66*(1+'Inputs|General'!N$97) -> 2.636455156 | G66: =F66*(1+'Inputs|General'!O$97) -> 2.636455156 | H66: =G66*(1+'Inputs|General'!P$97) -> 2.636455156
A67: Number of men in crew - road patrols | B67: # of men | C67: 2 | D67: 2 | E67: =D67 -> 2 | F67: 2 | G67: 2 | H67: 2
A68: Number of men in crew - repairs | B68: # of men | C68: 2 | D68: 2 | E68: =D68 -> 2 | F68: 2 | G68: 2 | H68: 2
A69: Number of lamps patrolled in 1 day - urban | B69: lamp patrolled/day | C69: 3000 | D69: 3000 | E69: =D69 -> 3000 | F69: 3000 | G69: 3000 | H69: 3000
A70: Number of lamps patrolled in 1 day - rural | B70: lamp patrolled/day | C70: 2000 | D70: 2000 | E70: =D70 -> 2000 | F70: 2000 | G70: 2000 | H70: 2000
A71: Number of repairs in 1 day - urban | B71: lamp repairs/day | C71: 15 | D71: 15 | E71: =D71 -> 15 | F71: 15 | G71: 15 | H71: 15
A72: Number of repairs in 1 day - rural | B72: lamp repairs/day | C72: 12 | D72: 12 | E72: =D72 -> 12 | F72: 12 | G72: 12 | H72: 12
A74: Other Maintenance and Repair costs
A75: Traffic control costs | B75: $ | C75: 102199.6772 | D75: =D78*D79 -> 96734.74519 | E75: =E78*E79 -> 95688.57293 | F75: 94603.35276 | G75: 93645.38658 | H75: 92897.89074
A76: Other costs : Describe……………………………………. | C76: 0 | D76: 0 | E76: 0 | F76: 0 | G76: 0 | H76: 0
C77: =SUM(C75:C76) -> 102199.6772 | D77: 96734.74519 | E77: 95688.57293 | F77: 94603.35276 | G77: 93645.38658 | H77: 92897.89074
A78: Number of Lights | C78: ='Inputs|General'!J49 -> 16080.74151 | D78: ='Inputs|General'!L49 -> 15665.21142 | E78: ='Inputs|General'!M49 -> 15393.78195 | F78: ='Inputs|General'!N49 -> 15127.05552 | G78: ='Inputs|General'!O49 -> 14864.95062 | H78: ='Inputs|General'!P49 -> 14607.38718
A79: Unit Cost | B79: $/light | C79: 6.177150551 | D79: 6.175131798 | E79: =D79*(1+'Inputs|General'!M$89) -> 6.216053547 | F79: =E79*(1+'Inputs|General'!N$89) -> 6.253917206 | G79: =F79*(1+'Inputs|General'!O$89) -> 6.29974421 | H79: =G79*(1+'Inputs|General'!P$89) -> 6.359651427
A81: Location of selected public lighting assets within distributors' areas (%)
A82: Urban | C82: 0.95 | D82: 0.95 | E82: =D82 -> 0.95 | F82: 0.95 | G82: 0.95 | H82: 0.95
A83: Rural | C83: 0.05 | D83: 0.05 | E83: 0.05 | F83: 0.05 | G83: 0.05 | H83: 0.05
A87: Inputs - S-HP250
A89: Depreciation period | B89: years | C89: =C58 -> 20 | D89: 20 | E89: 20 | F89: 20 | G89: 20 | H89: 20
A90: Number of patrols per year | C90: 3 | D90: 3 | E90: 3 | F90: 3 | G90: 3 | H90: 3
A91: Lamps - frequency of replacement | B91: years | C91: 5 | D91: 5 | E91: 5 | F91: 5 | G91: 5 | H91: 5
A92: PE cells - frequency of replacement | B92: years | C92: 10 | D92: 10 | E92: 10 | F92: 10 | G92: 10 | H92: 10
A95: Unit cost - lamp | B95: $/unit | C95: 43.79734288 | D95: 61.89027813 | E95: =D95*(1+'Inputs|General'!M$97) -> 61.89027813 | F95: =E95*(1+'Inputs|General'!N$97) -> 61.89027813 | G95: =F95*(1+'Inputs|General'!O$97) -> 61.89027813 | H95: =G95*(1+'Inputs|General'!P$97) -> 61.89027813
A96: Unit cost - PE cell | B96: $/unit | C96: 23.67245723 | D96: 22.70446842 | E96: =D96*(1+'Inputs|General'!M$97) -> 22.70446842 | F96: =E96*(1+'Inputs|General'!N$97) -> 22.70446842 | G96: =F96*(1+'Inputs|General'!O$97) -> 22.70446842 | H96: =G96*(1+'Inputs|General'!P$97) -> 22.70446842
A97: Unit cost - miscellaneous materials | B97: $/unit | C97: 2.637599692 | D97: 2.636455156 | E97: =D97*(1+'Inputs|General'!M$97) -> 2.636455156 | F97: =E97*(1+'Inputs|General'!N$97) -> 2.636455156 | G97: =F97*(1+'Inputs|General'!O$97) -> 2.636455156 | H97: =G97*(1+'Inputs|General'!P$97) -> 2.636455156
A98: Number of men in crew - road patrols | B98: # of men | C98: =C67 -> 2 | D98: 2 | E98: 2 | F98: 2 | G98: 2 | H98: 2
A99: Number of men in crew - repairs | B99: # of men | C99: 2 | D99: 2 | E99: 2 | F99: 2 | G99: 2 | H99: 2
A100: Number of lamps patrolled in 1 day - urban | B100: lamp patrolled/day | C100: 3000 | D100: 3000 | E100: 3000 | F100: 3000 | G100: 3000 | H100: 3000
A101: Number of lamps patrolled in 1 day - rural | B101: lamp patrolled/day | C101: 2000 | D101: 2000 | E101: 2000 | F101: 2000 | G101: 2000 | H101: 2000
A102: Number of repairs in 1 day - urban | B102: lamp repairs/day | C102: 15 | D102: 15 | E102: 15 | F102: 15 | G102: 15 | H102: 15
A103: Number of repairs in 1 day - rural | B103: lamp repairs/day | C103: 12 | D103: 12 | E103: 12 | F103: 12 | G103: 12 | H103: 12
A105: Other Maintenance and Repair costs
A106: Traffic control costs | B106: $ | C106: 28725.30966 | D106: =D109*D110 -> 29966.17702 | E106: =E109*E110 -> 29642.09716 | F106: 29305.92116 | G106: 29009.16549 | H106: 28777.60864
A107: Other costs : Describe……………………………………. | C107: 0 | D107: 0 | E107: 0 | F107: 0 | G107: 0 | H107: 0
C108: =SUM(C106:C107) -> 28725.30966 | D108: 29966.17702 | E108: 29642.09716 | F108: 29305.92116 | G108: 29009.16549 | H108: 28777.60864
A109: Number of Lights | C109: ='Inputs|General'!J50 -> 5117.793471 | D109: ='Inputs|General'!L50 -> 4985.548503 | E109: ='Inputs|General'!M50 -> 4899.164429 | F109: ='Inputs|General'!N50 -> 4814.277123 | G109: ='Inputs|General'!O50 -> 4730.86065 | H109: ='Inputs|General'!P50 -> 4648.889526
A110: Unit Cost | B110: $/light | C110: 6.012572827 | D110: 6.010607861 | E110: =D110*(1+'Inputs|General'!M$89) -> 6.050439332 | F110: =E110*(1+'Inputs|General'!N$89) -> 6.08729419 | G110: =F110*(1+'Inputs|General'!O$89) -> 6.131900226 | H110: =G110*(1+'Inputs|General'!P$89) -> 6.190211336
A112: Location of selected public lighting assets within distributors' areas (%)
A113: Urban | C113: 0.92 | D113: 0.92 | E113: =D113 -> 0.92 | F113: 0.92 | G113: 0.92 | H113: 0.92
A114: Rural | C114: 0.08 | D114: 0.08 | E114: 0.08 | F114: 0.08 | G114: 0.08 | H114: 0.08
A118: Dedicated street lighting poles
A120: Period of inspection | B120: years | C120: 5 | D120: 5 | E120: =D120 -> 5 | F120: 5 | G120: 5 | H120: 5
A121: Pole inspection rate | B121: per day | C121: 75 | D121: 37 | E121: =D121 -> 37 | F121: 37 | G121: 37 | H121: 37
A122: Depreciation of dedicated street lighting pole & bracket | B122: years | C122: 35 | D122: 35 | E122: =D122 -> 35 | F122: 35 | G122: 35 | H122: 35
A123: Proportion of lights on dedicated poles | B123: % | C123: 0.3383266143 | D123: 0.3362 | E123: =D123 -> 0.3362 | F123: =E123 -> 0.3362 | G123: 0.3362 | H123: 0.3362
A127: Other direct costs
A128: Call centre
A129: Number of calls | C129: 4222 | D129: 4309.44591 | E129: 4381.213201 | F129: 4468.387153 | G129: 4561.312666 | H129: 4641.11201
A130: Average cost per call $ | C130: 12.30156188 | D130: 12.48461175 | E130: 12.80495962 | F130: 13.27397776 | G130: 13.90836258 | H130: 14.73065024
C131: =C129*C130 -> 51937.19424 | D131: 53801.75903 | E131: 56101.25811 | F131: 59313.27168 | G131: 63440.39037 | H131: 68366.59774
A133: GIS and other | C133: 124467.4369 | D133: 128930.0026 | E133: 132417.8654 | F133: 136496.8691 | G133: 140836.0331 | H133: 144849.4955
A134: Complaints handling | C134: 37340.23107 | D134: 38679.00078 | E134: 39725.35961 | F134: 40949.06072 | G134: 42250.80994 | H134: 43454.84865
A137: ENERGY EFFICIENT LIGHTS
A139: Inputs - T5 (2 X 14W)
A141: Depreciation period | B141: years | C141: 20 | D141: 20 | E141: =D141 -> 20 | F141: 20 | G141: 20 | H141: 20
A142: Lamps - bulk change | B142: years | C142: 4 | D142: 4 | E142: =D142 -> 4 | F142: 4 | G142: 4 | H142: 4
A143: PE cells - bulk change | B143: years | C143: 8 | D143: 8 | E143: =D143 -> 8 | F143: 8 | G143: 8 | H143: 8
A144: Proportion of luminaires that fail between bulk lamp change | B144: % | C144: 0.114 | D144: 0.323 | E144: =D144 -> 0.323 | F144: =E144 -> 0.323 | G144: 0.323 | H144: 0.323
A146: Unit cost - lamp (unit cost of 2 lamps) | B146: $/unit | C146: 10.55039877 | D146: 26.22806552 | E146: =D146*(1+'Inputs|General'!M$97) -> 26.22806552 | F146: =E146*(1+'Inputs|General'!N$97) -> 26.22806552 | G146: =F146*(1+'Inputs|General'!O$97) -> 26.22806552 | H146: =G146*(1+'Inputs|General'!P$97) -> 26.22806552
A147: Unit cost - PE cell | B147: $/unit | C147: 17.80379792 | D147: 17.93056267 | E147: =D147*(1+'Inputs|General'!M$97) -> 17.93056267 | F147: =E147*(1+'Inputs|General'!N$97) -> 17.93056267 | G147: =F147*(1+'Inputs|General'!O$97) -> 17.93056267 | H147: =G147*(1+'Inputs|General'!P$97) -> 17.93056267
A148: Unit cost - luminaire | B148: $/unit | C148: 254.5283703 | D148: 284.9464814 | E148: =D148*(1+'Inputs|General'!M$97) -> 284.9464814 | F148: =E148*(1+'Inputs|General'!N$97) -> 284.9464814 | G148: =F148*(1+'Inputs|General'!O$97) -> 284.9464814 | H148: =G148*(1+'Inputs|General'!P$97) -> 284.9464814
A149: Unit cost - miscellaneous materials (bulk lamp) | B149: $/unit | C149: 1.318799846 | D149: 1.318227578 | E149: =D149*(1+'Inputs|General'!M$97) -> 1.318227578 | F149: =E149*(1+'Inputs|General'!N$97) -> 1.318227578 | G149: =F149*(1+'Inputs|General'!O$97) -> 1.318227578 | H149: =G149*(1+'Inputs|General'!P$97) -> 1.318227578
A150: Unit cost - miscellaneous materials (repair) | B150: $/unit | C150: 13.18799846 | D150: 13.18227578 | E150: =D150*(1+'Inputs|General'!M$97) -> 13.18227578 | F150: =E150*(1+'Inputs|General'!N$97) -> 13.18227578 | G150: =F150*(1+'Inputs|General'!O$97) -> 13.18227578 | H150: =G150*(1+'Inputs|General'!P$97) -> 13.18227578
A151: Number of men in crew | B151: # | C151: 2 | D151: 2 | E151: =D151 -> 2 | F151: 2 | G151: 2 | H151: 2
A152: Number of bulk lamp changes in 1 day - urban | B152: #/day | C152: 74 | D152: 74 | E152: =D152 -> 74 | F152: =E152 -> 74 | G152: 74 | H152: 74
A153: Number of bulk lamp changes in 1 day - rural | B153: #/day | C153: 61 | D153: 61 | E153: =D153 -> 61 | F153: 61 | G153: 61 | H153: 61
A154: Number of repairs in 1 day - urban | B154: repairs/day | C154: 20 | D154: =D36 -> 20 | E154: =D154 -> 20 | F154: =E154 -> 20 | G154: =F154 -> 20 | H154: =G154 -> 20
A155: Number of repairs in 1 day - rural | B155: repairs/day | C155: 15 | D155: =D37 -> 16 | E155: 16 | F155: 16 | G155: 16 | H155: 16
A156: % of repairs - lamps | B156: % | C156: 0.6 | D156: 0.6 | E156: =D156 -> 0.6 | F156: 0.6 | G156: 0.6 | H156: 0.6
A157: % of repairs - PE cells | B157: % | C157: 0.5 | D157: 0.5 | E157: =D157 -> 0.5 | F157: 0.5 | G157: 0.5 | H157: 0.5
A158: % of repairs - luminaires | B158: % | C158: 0.15 | D158: 0.15 | E158: 0.15 | F158: 0.15 | G158: 0.15 | H158: 0.15
A159: % of repairs - other | B159: % | C159: 0.1 | D159: 0.1 | E159: 0.1 | F159: 0.1 | G159: 0.1 | H159: 0.1
A161: Other Maintenance and Repair costs
A162: Traffic control costs | C162: 85419.45941 | D162: =D165*D166 -> 59363.2432 | E162: =E165*E166 -> 58788.90881 | F162: 58189.15407 | G162: 57666.30121 | H162: 57271.92182
A163: Other costs : Describe……………………………………. | C163: 0 | D163: 0 | E163: =D163*(1+'Inputs|General'!M$97) -> 0 | F163: =E163*(1+'Inputs|General'!N$97) -> 0 | G163: =F163*(1+'Inputs|General'!O$97) -> 0 | H163: =G163*(1+'Inputs|General'!P$97) -> 0
C164: =SUM(C162:C163) -> 85419.45941 | D164: 59363.2432 | E164: 58788.90881 | F164: 58189.15407 | G164: 57666.30121 | H164: 57271.92182
A165: Number of Lights | C165: ='Inputs|General'!J71 -> 26359 | D165: ='Inputs|General'!L71 -> 25722.15181 | E165: ='Inputs|General'!M71 -> 25305.59546 | F165: ='Inputs|General'!N71 -> 24895.78501 | G165: ='Inputs|General'!O71 -> 24492.61122 | H165: ='Inputs|General'!P71 -> 24095.96661
A166: Unit Cost | C166: 2.308619063 | D166: 2.307864584 | E166: =D166*(1+'Inputs|General'!M$89) -> 2.323158485 | F166: =E166*(1+'Inputs|General'!N$89) -> 2.33730947 | G166: =F166*(1+'Inputs|General'!O$89) -> 2.354436638 | H166: =G166*(1+'Inputs|General'!P$89) -> 2.376826079
A168: Location of selected public lighting assets within distributors' areas (%)
A169: Urban | C169: 0.97 | D169: 0.92 | E169: =D169 -> 0.92 | F169: 0.92 | G169: 0.92 | H169: 0.92
A170: Rural | C170: 0.03 | D170: 0.08 | E170: 0.08 | F170: 0.08 | G170: 0.08 | H170: 0.08
A174: Inputs - LED 18W, (incl. other standard Category P LED variants)
A176: Depreciation period | B176: years | C176: 20 | D176: 20 | E176: =D176 -> 20 | F176: 20 | G176: 20 | H176: 20
A177: PE cells - bulk change | B177: years | C177: 8 | D177: 8 | E177: 8 | F177: 8 | G177: 8 | H177: 8
A178: Ballast unit life | B178: years | C178: 20 | D178: 20 | E178: 20 | F178: 20 | G178: 20 | H178: 20
A179: Proportion of luminaires that fail between bulk change | B179: % | C179: 0.1 | D179: 0.099 | E179: =D179 -> 0.099 | F179: 0.099 | G179: 0.099 | H179: 0.099
A180: Unit cost - PE cell | B180: $/unit | C180: 16.83702892 | D180: 17.93056267 | E180: =D180*(1+'Inputs|General'!M$97) -> 17.93056267 | F180: =E180*(1+'Inputs|General'!N$97) -> 17.93056267 | G180: =F180*(1+'Inputs|General'!O$97) -> 17.93056267 | H180: =G180*(1+'Inputs|General'!P$97) -> 17.93056267
A181: Unit cost - luminaire | B181: $/unit | C181: 333.0520923 | D181: 205 | E181: =D181*(1+'Inputs|General'!M$97) -> 205 | F181: =E181*(1+'Inputs|General'!N$97) -> 205 | G181: =F181*(1+'Inputs|General'!O$97) -> 205 | H181: =G181*(1+'Inputs|General'!P$97) -> 205
A182: Unit cost - miscellaneous materials (repair) | B182: $/unit | C182: 13.18799846 | D182: =C182*(1+'Inputs|General'!L$97) -> 13.18799846 | E182: =D182*(1+'Inputs|General'!M$97) -> 13.18799846 | F182: =E182*(1+'Inputs|General'!N$97) -> 13.18799846 | G182: =F182*(1+'Inputs|General'!O$97) -> 13.18799846 | H182: =G182*(1+'Inputs|General'!P$97) -> 13.18799846
A183: Number of men in crew | B183: # | C183: 2 | D183: 2 | E183: =D183 -> 2 | F183: 2 | G183: 2 | H183: 2
A184: Number of bulk PE cells changes in 1 day - urban | B184: #/day | C184: 77 | D184: 77 | E184: 77 | F184: 77 | G184: 77 | H184: 77
A185: Number of bulk PE cells changes in 1 day - rural | B185: #/day | C185: 64 | D185: 64 | E185: 64 | F185: 64 | G185: 64 | H185: 64
A186: Number of repairs in 1 day - urban | B186: repairs/day | C186: 26 | D186: 20 | E186: =D186 -> 20 | F186: =E186 -> 20 | G186: =F186 -> 20 | H186: =G186 -> 20
A187: Number of repairs in 1 day - rural | B187: repairs/day | C187: 21 | D187: 16 | E187: 16 | F187: 16 | G187: 16 | H187: 16
A188: % of repairs - PE cells | B188: % | C188: 0.5 | D188: 0.5 | E188: 0.5 | F188: 0.5 | G188: 0.5 | H188: 0.5
A189: % of repairs - luminaires | B189: % | C189: 0.15 | D189: 0.15 | E189: 0.15 | F189: 0.15 | G189: 0.15 | H189: 0.15
A190: % of repairs - other | B190: % | C190: 0.1 | D190: 0.1 | E190: 0.1 | F190: 0.1 | G190: 0.1 | H190: 0.1
A192: Other Maintenance and Repair costs
A193: Traffic control costs | C193: 2176.03569 | D193: =D196*D197 -> 37039.67183 | E193: =E196*E197 -> 42697.8234 | F193: 48840.29221 | G193: 55250.88076 | H193: 60475.95317
A194: Other costs : Describe……………………………………. | C194: 0 | D194: 0 | E194: 0 | F194: 0 | G194: 0 | H194: 0
C195: =SUM(C193:C194) -> 2176.03569 | D195: 37039.67183 | E195: 42697.8234 | F195: 48840.29221 | G195: 55250.88076 | H195: 60475.95317
A196: Number of Lights | C196: ='Inputs|General'!J73 -> 17615.30943 | D196: ='Inputs|General'!L73 -> 22095.37922 | E196: ='Inputs|General'!M73 -> 25302.97291 | F196: ='Inputs|General'!N73 -> 28767.80241 | G196: ='Inputs|General'!O73 -> 32307.01627 | H196: ='Inputs|General'!P73 -> 35029.17995
A197: Unit Cost | C197: 1.676901778 | D197: 1.67635375 | E197: =D197*(1+'Inputs|General'!M$89) -> 1.687462716 | F197: =E197*(1+'Inputs|General'!N$89) -> 1.697741507 | G197: =F197*(1+'Inputs|General'!O$89) -> 1.710182095 | H197: =G197*(1+'Inputs|General'!P$89) -> 1.726445017
A199: Location of selected public lighting assets within distributors' areas (%)
A200: Urban | C200: 1 | D200: =D169 -> 0.92 | E200: =D200 -> 0.92 | F200: 0.92 | G200: 0.92 | H200: 0.92
A201: Rural | C201: 0 | D201: =D170 -> 0.08 | E201: 0.08 | F201: 0.08 | G201: 0.08 | H201: 0.08
A205: LED 70W (L1)
A207: Depreciation period | B207: years | C207: New | D207: 20 | E207: =D207 -> 20 | F207: 20 | G207: 20 | H207: 20
A208: PE cells - frequency of replacement | B208: years | D208: 10 | E208: =D208 -> 10 | F208: 10 | G208: 10 | H208: 10
A209: Number of patrols per year | D209: 3 | E209: =D209 -> 3 | F209: 3 | G209: 3 | H209: 3
A210: Unit cost - luminaire | D210: 402 | E210: =D210 -> 402 | F210: =E210 -> 402 | G210: =F210 -> 402 | H210: =G210 -> 402
A211: Unit cost - PE cell | B211: $/unit | D211: 22.70446842 | E211: =D211*(1+'Inputs|General'!M$97) -> 22.70446842 | F211: =E211*(1+'Inputs|General'!N$97) -> 22.70446842 | G211: =F211*(1+'Inputs|General'!O$97) -> 22.70446842 | H211: =G211*(1+'Inputs|General'!P$97) -> 22.70446842
A212: Unit cost - miscellaneous materials | B212: $/unit | D212: 2.772406227 | E212: =D212*(1+'Inputs|General'!M$97) -> 2.772406227 | F212: =E212*(1+'Inputs|General'!N$97) -> 2.772406227 | G212: =F212*(1+'Inputs|General'!O$97) -> 2.772406227 | H212: =G212*(1+'Inputs|General'!P$97) -> 2.772406227
A213: Number of men in crew - road patrols | B213: # | D213: 2 | E213: =D213 -> 2 | F213: =E213 -> 2 | G213: =F213 -> 2 | H213: =G213 -> 2
A214: Number of men in crew - repairs | B214: # | D214: 2 | E214: =D214 -> 2 | F214: 2 | G214: 2 | H214: 2
A215: Number of lamps patrolled in 1 day - urban | B215: #/day | D215: 3000 | E215: =D215 -> 3000 | F215: 3000 | G215: 3000 | H215: 3000
A216: Number of lamps patrolled in 1 day - rural | B216: #/day | D216: 2000 | E216: =D216 -> 2000 | F216: 2000 | G216: 2000 | H216: 2000
A217: Number of repairs in 1 day - urban | B217: repairs/day | D217: 15 | E217: =D217 -> 15 | F217: 15 | G217: 15 | H217: 15
A218: Number of repairs in 1 day - rural | B218: repairs/day | D218: 12 | E218: =D218 -> 12 | F218: 12 | G218: 12 | H218: 12
A220: Other Maintenance and Repair costs
A221: Traffic control costs | B221: $ | D221: =D224*D225 -> 4158.936312 | E221: =E224*E225 -> 4829.348789 | F221: 5549.120126 | G221: 6284.185155 | H221: 6850.015905
A222: Other costs : Describe……………………………………. | D222: 0 | E222: 0 | F222: 0 | G222: 0 | H222: 0
D223: =SUM(D221:D222) -> 4158.936312 | E223: 4829.348789 | F223: 5549.120126 | G223: 6284.185155 | H223: 6850.015905
A224: Number of Lights | D224: ='Inputs|General'!L76 -> 721.5168074 | E224: ='Inputs|General'!M76 -> 837.8239192 | F224: ='Inputs|General'!N76 -> 962.6940971 | G224: ='Inputs|General'!O76 -> 1090.217515 | H224: ='Inputs|General'!P76 -> 1188.381171
A225: Unit Cost | B225: $/light | D225: 5.764157216 | E225: =D225*(1+'Inputs|General'!M$90) -> 5.764157216 | F225: =E225*(1+'Inputs|General'!N$90) -> 5.764157216 | G225: =F225*(1+'Inputs|General'!O$90) -> 5.764157216 | H225: =G225*(1+'Inputs|General'!P$90) -> 5.764157216
A227: Location of selected public lighting assets within distributors' areas (%)
A228: Urban | D228: 0.95 | E228: =D228 -> 0.95 | F228: 0.95 | G228: 0.95 | H228: 0.95
A229: Rural | D229: 0.05 | E229: =D229 -> 0.05 | F229: 0.05 | G229: 0.05 | H229: 0.05
A231: LED 118W, 155W, 162W (L2)
A233: Depreciation period | B233: years | C233: New | D233: 20 | E233: =D233 -> 20 | F233: 20 | G233: 20 | H233: 20
A234: PE cells - frequency of replacement | B234: years | D234: 10 | E234: =D234 -> 10 | F234: 10 | G234: 10 | H234: 10
A235: Number of patrols per year | D235: 3 | E235: =D235 -> 3 | F235: 3 | G235: 3 | H235: 3
A236: Unit cost - luminaire | D236: 427 | E236: =D236*(1+'Inputs|General'!M$97) -> 427 | F236: =E236*(1+'Inputs|General'!N$97) -> 427 | G236: =F236*(1+'Inputs|General'!O$97) -> 427 | H236: =G236*(1+'Inputs|General'!P$97) -> 427
A237: Unit cost - PE cell | B237: $/unit | D237: 22.70446842 | E237: =D237*(1+'Inputs|General'!M$97) -> 22.70446842 | F237: =E237*(1+'Inputs|General'!N$97) -> 22.70446842 | G237: =F237*(1+'Inputs|General'!O$97) -> 22.70446842 | H237: =G237*(1+'Inputs|General'!P$97) -> 22.70446842
A238: Unit cost - miscellaneous materials | B238: $/unit | D238: 2.772406227 | E238: =D238*(1+'Inputs|General'!M$97) -> 2.772406227 | F238: =E238*(1+'Inputs|General'!N$97) -> 2.772406227 | G238: =F238*(1+'Inputs|General'!O$97) -> 2.772406227 | H238: =G238*(1+'Inputs|General'!P$97) -> 2.772406227
A239: Number of men in crew - road patrols | B239: # | D239: 2 | E239: =D239 -> 2 | F239: =E239 -> 2 | G239: =F239 -> 2 | H239: =G239 -> 2
A240: Number of men in crew - repairs | B240: # | D240: 2 | E240: 2 | F240: 2 | G240: 2 | H240: 2
A241: Number of lamps patrolled in 1 day - urban | B241: #/day | D241: 3000 | E241: 3000 | F241: 3000 | G241: 3000 | H241: 3000
A242: Number of lamps patrolled in 1 day - rural | B242: #/day | D242: 2000 | E242: 2000 | F242: 2000 | G242: 2000 | H242: 2000
A243: Number of repairs in 1 day - urban | B243: repairs/day | D243: 15 | E243: 15 | F243: 15 | G243: 15 | H243: 15
A244: Number of repairs in 1 day - rural | B244: repairs/day | D244: 12 | E244: 12 | F244: 12 | G244: 12 | H244: 12
A246: Other Maintenance and Repair costs
A247: Traffic control costs | D247: =D250*D251 -> 1132.646485 | E247: =E250*E251 -> 1315.226904 | F247: 1511.249737 | G247: 1711.437659 | H247: 1865.536246
A248: Other costs : Describe……………………………………. | D248: 0 | E248: 0 | F248: 0 | G248: 0 | H248: 0
D249: =SUM(D247:D248) -> 1132.646485 | E249: 1315.226904 | F249: 1511.249737 | G249: 1711.437659 | H249: 1865.536246
A250: Number of Lights | D250: ='Inputs|General'!L77 -> 196.4981944 | E250: ='Inputs|General'!M77 -> 228.1733227 | F250: ='Inputs|General'!N77 -> 262.1805201 | G250: ='Inputs|General'!O77 -> 296.9103019 | H250: ='Inputs|General'!P77 -> 323.6442339
A251: Unit Cost | B251: $/light | D251: =$D$225 -> 5.764157216 | E251: =D251*(1+'Inputs|General'!M$90) -> 5.764157216 | F251: =E251*(1+'Inputs|General'!N$90) -> 5.764157216 | G251: =F251*(1+'Inputs|General'!O$90) -> 5.764157216 | H251: =G251*(1+'Inputs|General'!P$90) -> 5.764157216
A253: Location of selected public lighting assets within distributors' areas (%)
A254: Urban | D254: 0.95 | E254: =D254 -> 0.95 | F254: 0.95 | G254: 0.95 | H254: 0.95
A255: Rural | D255: 0.05 | E255: =D255 -> 0.05 | F255: 0.05 | G255: 0.05 | H255: 0.05
A257: LED 275W (L4)
A259: Depreciation period | B259: years | C259: New | D259: 20 | E259: =D259 -> 20 | F259: 20 | G259: 20 | H259: 20
... 20 more rows

Sheet Inputs|Capex
A1: Public Lighting Cost Build-up Model | C1: color code | D1: input values | E1: AER FD | F1: formula | G1: JEN formula amendments
A3: ='Inputs|O & M'!$A$3 -> Jemena | C3: Capex Data Inputs
C5: Real 2021 $
C7: AER FD | D7: JEN input | E7: JEN input | F7: JEN input | G7: JEN input | H7: JEN input
A8: Input parameters | C8: CY2020/HY2021 | D8: FY2022 | E8: FY2023 | F8: FY2024 | G8: FY2025 | H8: FY2026
A10: Inputs - all lamps
A12: Material premium for rural areas | C12: ='Inputs|O & M'!C12 -> 0.05 | D12: ='Inputs|O & M'!D12 -> 0.05 | E12: ='Inputs|O & M'!E12 -> 0.05 | F12: ='Inputs|O & M'!F12 -> 0.05 | G12: ='Inputs|O & M'!G12 -> 0.05 | H12: ='Inputs|O & M'!H12 -> 0.05
A13: Labour rate (per hour) | C13: ='Inputs|O & M'!C13 -> 101.8805782 | D13: ='Inputs|O & M'!D13 -> 117.03 | E13: ='Inputs|O & M'!E13 -> 117.8055417 | F13: ='Inputs|O & M'!F13 -> 118.523127 | G13: ='Inputs|O & M'!G13 -> 119.3916323 | H13: ='Inputs|O & M'!H13 -> 120.5269832
A14: Elevated platform vehicle (per hour) - urban MV,urban T5 | C14: ='Inputs|O & M'!C15 -> 43.16987711 | D14: ='Inputs|O & M'!D15 -> 45.64429977 | E14: ='Inputs|O & M'!E15 -> 45.64429977 | F14: ='Inputs|O & M'!F15 -> 45.64429977 | G14: ='Inputs|O & M'!G15 -> 45.64429977 | H14: ='Inputs|O & M'!H15 -> 45.64429977
A15: Elevated platform vehicle (per hour) - rural MV, rural T5, S-HP | C15: ='Inputs|O & M'!C16 -> 55.50412771 | D15: ='Inputs|O & M'!D16 -> 58.68552827 | E15: ='Inputs|O & M'!E16 -> 58.68552827 | F15: ='Inputs|O & M'!F16 -> 58.68552827 | G15: ='Inputs|O & M'!G16 -> 58.68552827 | H15: ='Inputs|O & M'!H16 -> 58.68552827
A16: Number of hours in a day | C16: ='Inputs|O & M'!C18 -> 8 | D16: ='Inputs|O & M'!D18 -> 8 | E16: ='Inputs|O & M'!E18 -> 8 | F16: ='Inputs|O & M'!F18 -> 8 | G16: ='Inputs|O & M'!G18 -> 8 | H16: ='Inputs|O & M'!H18 -> 8
A17: Indirect overheads
A20: Inputs - MV80
A22: Unit cost - luminaire | C22: ='Inputs|O & M'!C30 -> 209.0957156 | D22: ='Inputs|O & M'!D30 -> 234.0864945 | E22: ='Inputs|O & M'!E30 -> 234.0864945 | F22: ='Inputs|O & M'!F30 -> 234.0864945 | G22: ='Inputs|O & M'!G30 -> 234.0864945 | H22: ='Inputs|O & M'!H30 -> 234.0864945
A23: Unit cost - miscellaneous materials (bulk lamp) | C23: ='Inputs|O & M'!C31 -> 1.318799846 | D23: ='Inputs|O & M'!D31 -> 1.318227578 | E23: ='Inputs|O & M'!E31 -> 1.318227578 | F23: ='Inputs|O & M'!F31 -> 1.318227578 | G23: ='Inputs|O & M'!G31 -> 1.318227578 | H23: ='Inputs|O & M'!H31 -> 1.318227578
A24: Number of men in crew | C24: ='Inputs|O & M'!C33 -> 2 | D24: ='Inputs|O & M'!D33 -> 2 | E24: ='Inputs|O & M'!E33 -> 2 | F24: ='Inputs|O & M'!F33 -> 2 | G24: ='Inputs|O & M'!G33 -> 2 | H24: ='Inputs|O & M'!H33 -> 2
A25: Number of luminaires replaced per day - urban | C25: 16 | D25: =C25 -> 16 | E25: =D25 -> 16 | F25: 16 | G25: 16 | H25: 16
A26: Number of luminaires replaced per day - rural | C26: 13 | D26: =C26 -> 13 | E26: =D26 -> 13 | F26: 13 | G26: 13 | H26: 13
A28: Other Capex unit costs Describe :……………………… | C28: 0 | D28: =C28*(1+'Inputs|General'!L$97) -> 0 | E28: =D28*(1+'Inputs|General'!M$97) -> 0 | F28: =E28*(1+'Inputs|General'!N$97) -> 0 | G28: =F28*(1+'Inputs|General'!O$97) -> 0 | H28: =G28*(1+'Inputs|General'!P$97) -> 0
A30: Forecast Quantities to be replaced
A31: Number of luminaires replaced per year - urban | C31: 178 | D31: 0 | E31: 0 | F31: 0 | G31: 0 | H31: 0
A32: Number of luminaires replaced per year - rural | C32: 6 | D32: 0 | E32: 0 | F32: 0 | G32: 0 | H32: 0
A34: MV80 Lights replaced with T5 Energy Efficient Lights
A35: Number of Lights MV80 replaced with T5 per year | C35: 185.059402
A39: Inputs - S-HP150
A41: Unit cost - luminaire | C41: 247.4596031 | D41: 277.0344277 | E41: =D41*(1+'Inputs|General'!M$97) -> 277.0344277 | F41: =E41*(1+'Inputs|General'!N$97) -> 277.0344277 | G41: =F41*(1+'Inputs|General'!O$97) -> 277.0344277 | H41: =G41*(1+'Inputs|General'!P$97) -> 277.0344277
A42: Unit cost - miscellaneous materials | C42: ='Inputs|O & M'!C66 -> 2.637599692 | D42: ='Inputs|O & M'!D66 -> 2.636455156 | E42: ='Inputs|O & M'!E66 -> 2.636455156 | F42: ='Inputs|O & M'!F66 -> 2.636455156 | G42: ='Inputs|O & M'!G66 -> 2.636455156 | H42: ='Inputs|O & M'!H66 -> 2.636455156
A43: Number of men in crew | C43: ='Inputs|O & M'!C68 -> 2 | D43: ='Inputs|O & M'!D68 -> 2 | E43: ='Inputs|O & M'!E68 -> 2 | F43: ='Inputs|O & M'!F68 -> 2 | G43: ='Inputs|O & M'!G68 -> 2 | H43: ='Inputs|O & M'!H68 -> 2
A44: Number of luminaires replaced per day - urban | C44: 16 | D44: =C44 -> 16 | E44: =D44 -> 16 | F44: 16 | G44: 16 | H44: 16
A45: Number of luminaires replaced per day - rural | C45: 13 | D45: =C45 -> 13 | E45: =D45 -> 13 | F45: 13 | G45: 13 | H45: 13
A47: Other Capex unit costs Describe :……………………… | C47: 0 | D47: =C47 -> 0 | E47: =D47 -> 0 | F47: 0 | G47: 0 | H47: 0
A49: Forecast Quantities to be replaced
A50: Number of luminaires replaced per year - urban | C50: 436 | D50: 0 | E50: 0 | F50: 0 | G50: 0 | H50: 0
A51: Number of luminaires replaced per year - rural | C51: 23 | D51: 0 | E51: 0 | F51: 0 | G51: 0 | H51: 0
A55: Inputs - S-HP250
A57: Unit cost - luminaire | C57: 251.1522427 | D57: 281.1649024 | E57: =D57*(1+'Inputs|General'!M$97) -> 281.1649024 | F57: =E57*(1+'Inputs|General'!N$97) -> 281.1649024 | G57: =F57*(1+'Inputs|General'!O$97) -> 281.1649024 | H57: =G57*(1+'Inputs|General'!P$97) -> 281.1649024
A58: Unit cost - miscellaneous materials | C58: ='Inputs|O & M'!C97 -> 2.637599692 | D58: ='Inputs|O & M'!D97 -> 2.636455156 | E58: ='Inputs|O & M'!E97 -> 2.636455156 | F58: ='Inputs|O & M'!F97 -> 2.636455156 | G58: ='Inputs|O & M'!G97 -> 2.636455156 | H58: ='Inputs|O & M'!H97 -> 2.636455156
A59: Number of men in crew | C59: ='Inputs|O & M'!C99 -> 2 | D59: ='Inputs|O & M'!D99 -> 2 | E59: ='Inputs|O & M'!E99 -> 2 | F59: ='Inputs|O & M'!F99 -> 2 | G59: ='Inputs|O & M'!G99 -> 2 | H59: ='Inputs|O & M'!H99 -> 2
A60: Number of luminaires replaced per day - urban | C60: 16 | D60: =C60 -> 16 | E60: =D60 -> 16 | F60: 16 | G60: 16 | H60: 16
A61: Number of luminaires replaced per day - rural | C61: 13 | D61: =C61 -> 13 | E61: =D61 -> 13 | F61: 13 | G61: 13 | H61: 13
A63: Other Capex unit costs Describe :……………………… | C63: 0 | D63: =C63 -> 0 | E63: =D63 -> 0 | F63: 0 | G63: 0 | H63: 0
A65: Forecast Quantities to be replaced
A66: Number of luminaires replaced per year - urban | C66: 121 | D66: 0 | E66: 0 | F66: 0 | G66: 0 | H66: 0
A67: Number of luminaires replaced per year - rural | C67: 11 | D67: 0 | E67: 0 | F67: 0 | G67: 0 | H67: 0
A71: Luminaire Replacements - Other Light types (excluding T5s)
A72: Number of luminaires replaced per year | D72: 0 | E72: 0 | F72: 0 | G72: 0 | H72: 0
A73: Forecast Capex | D73: 0 | E73: 0 | F73: 0 | G73: 0 | H73: 0
A77: ENERGY EFFICIENT LIGHTS
A79: ='Inputs|O & M'!A139 -> Inputs - T5 (2 X 14W)
A81: Unit cost - luminaire | C81: ='Inputs|O & M'!C148 -> 254.5283703 | D81: ='Inputs|O & M'!D148 -> 284.9464814 | E81: ='Inputs|O & M'!E148 -> 284.9464814 | F81: ='Inputs|O & M'!F148 -> 284.9464814 | G81: ='Inputs|O & M'!G148 -> 284.9464814 | H81: ='Inputs|O & M'!H148 -> 284.9464814
A82: Unit cost - miscellaneous materials (bulk lamp) | C82: ='Inputs|O & M'!C149 -> 1.318799846 | D82: ='Inputs|O & M'!D149 -> 1.318227578 | E82: ='Inputs|O & M'!E149 -> 1.318227578 | F82: ='Inputs|O & M'!F149 -> 1.318227578 | G82: ='Inputs|O & M'!G149 -> 1.318227578 | H82: ='Inputs|O & M'!H149 -> 1.318227578
A83: Number of men in crew | C83: ='Inputs|O & M'!C151 -> 2 | D83: ='Inputs|O & M'!D151 -> 2 | E83: ='Inputs|O & M'!E151 -> 2 | F83: ='Inputs|O & M'!F151 -> 2 | G83: ='Inputs|O & M'!G151 -> 2 | H83: ='Inputs|O & M'!H151 -> 2
A84: Number of luminaires replaced per day - urban | C84: 16 | D84: =C84 -> 16 | E84: =D84 -> 16 | F84: 16 | G84: 16 | H84: 16
A85: Number of luminaires replaced per day - rural | C85: 13 | D85: =C85 -> 13 | E85: =D85 -> 13 | F85: 13 | G85: 13 | H85: 13
A87: Other Capex unit costs Describe :……………………… | C87: 0 | D87: =C87 -> 0 | E87: =D87 -> 0 | F87: 0 | G87: 0 | H87: 0
A89: Forecast Quantities to be replaced
A90: Number of luminaires replaced per year - urban | C90: 521 | D90: 0 | E90: 0 | F90: 0 | G90: 0 | H90: 0
A91: Number of luminaires replaced per year - rural | C91: 16 | D91: 0 | E91: 0 | F91: 0 | G91: 0 | H91: 0
A95: Inputs - LED 18W, (incl. other standard Category P LED variants)
A97: Unit cost - luminaire | C97: ='Inputs|O & M'!C181 -> 333.0520923 | D97: ='Inputs|O & M'!D181 -> 205 | E97: ='Inputs|O & M'!E181 -> 205 | F97: ='Inputs|O & M'!F181 -> 205 | G97: ='Inputs|O & M'!G181 -> 205 | H97: ='Inputs|O & M'!H181 -> 205
A98: Number of men in crew | C98: ='Inputs|O & M'!C183 -> 2 | D98: ='Inputs|O & M'!D183 -> 2 | E98: ='Inputs|O & M'!E183 -> 2 | F98: ='Inputs|O & M'!F183 -> 2 | G98: ='Inputs|O & M'!G183 -> 2 | H98: ='Inputs|O & M'!H183 -> 2
A99: Number of luminaires replaced per day - urban | C99: 16 | D99: =C99 -> 16 | E99: =D99 -> 16 | F99: 16 | G99: 16 | H99: 16
A100: Number of luminaires replaced per day - rural | C100: 13 | D100: =C100 -> 13 | E100: =D100 -> 13 | F100: 13 | G100: 13 | H100: 13
A102: Other Capex unit costs Describe :……………………… | C102: 0 | D102: =C102 -> 0 | E102: =D102 -> 0 | F102: 0 | G102: 0 | H102: 0
A104: Forecast Quantities to be replaced
A105: Number of luminaires replaced per year - urban | C105: 19 | D105: 1947.266566 | E105: 1955.527452 | F105: 1966.072064 | G105: 1994.640219 | H105: 1484.630383
A106: Number of luminaires replaced per year - rural | C106: 0 | D106: 144.3928265 | E106: 148.1784567 | F106: 151.6760504 | G106: 138.6275926 | H106: 91.928698
A109: ='Inputs|O & M'!A205 -> LED 70W (L1)
A111: Unit cost - luminaire | C111: New | D111: ='Inputs|O & M'!D210 -> 402 | E111: ='Inputs|O & M'!E210 -> 402 | F111: ='Inputs|O & M'!F210 -> 402 | G111: ='Inputs|O & M'!G210 -> 402 | H111: ='Inputs|O & M'!H210 -> 402
A112: Number of men in crew | D112: ='Inputs|O & M'!D214 -> 2 | E112: ='Inputs|O & M'!E214 -> 2 | F112: ='Inputs|O & M'!F214 -> 2 | G112: ='Inputs|O & M'!G214 -> 2 | H112: ='Inputs|O & M'!H214 -> 2
A113: Number of luminaires replaced per day - urban | D113: 16 | E113: =D113 -> 16 | F113: =E113 -> 16 | G113: =F113 -> 16 | H113: =G113 -> 16
A114: Number of luminaires replaced per day - rural | D114: 13 | E114: =D114 -> 13 | F114: 13 | G114: 13 | H114: 13
A116: Other Capex unit costs Describe :……………………… | D116: 0 | E116: =$K116*'Inputs|General'!M$109 -> 0 | F116: =$K116*'Inputs|General'!N$109 -> 0 | G116: =$K116*'Inputs|General'!O$109 -> 0 | H116: =$K116*'Inputs|General'!P$109 -> 0
A118: Forecast Quantities to be replaced
A119: Number of luminaires replaced per year - urban | D119: 97.66750272 | E119: 97.98861304 | F119: 98.54296531 | G119: 99.25215481 | H119: 78.85439578
A120: Number of luminaires replaced per year - rural | D120: 4.795257163 | E120: 4.811022965 | F120: 4.838240429 | G120: 4.873060056 | H120: 3.871575454
A124: ='Inputs|O & M'!A231 -> LED 118W, 155W, 162W (L2)
A126: Unit cost - luminaire | C126: New | D126: ='Inputs|O & M'!D236 -> 427 | E126: ='Inputs|O & M'!E236 -> 427 | F126: ='Inputs|O & M'!F236 -> 427 | G126: ='Inputs|O & M'!G236 -> 427 | H126: ='Inputs|O & M'!H236 -> 427
A127: Number of men in crew | D127: ='Inputs|O & M'!D240 -> 2 | E127: ='Inputs|O & M'!E240 -> 2 | F127: ='Inputs|O & M'!F240 -> 2 | G127: ='Inputs|O & M'!G240 -> 2 | H127: ='Inputs|O & M'!H240 -> 2
A128: Number of luminaires replaced per day - urban | D128: 16 | E128: =D128 -> 16 | F128: =E128 -> 16 | G128: =F128 -> 16 | H128: =G128 -> 16
A129: Number of luminaires replaced per day - rural | D129: 13 | E129: =D129 -> 13 | F129: 13 | G129: 13 | H129: 13
A131: Other Capex unit costs Describe :……………………… | D131: 0 | E131: =$K131*'Inputs|General'!M$109 -> 0 | F131: =$K131*'Inputs|General'!N$109 -> 0 | G131: =$K131*'Inputs|General'!O$109 -> 0 | H131: =$K131*'Inputs|General'!P$109 -> 0
A133: Forecast Quantities to be replaced
A134: Number of luminaires replaced per year - urban | D134: 24.28282105 | E134: 24.42272823 | F134: 24.58580515 | G134: 24.76603597 | H134: 18.30298241
A135: Number of luminaires replaced per year - rural | D135: 2.21064813 | E135: 2.223325072 | F135: 2.238110163 | G135: 2.254455629 | H135: 1.666100312
A139: ='Inputs|O & M'!A257 -> LED 275W (L4)
A141: Unit cost - luminaire | C141: New | D141: ='Inputs|O & M'!D262 -> 650.88 | E141: ='Inputs|O & M'!E262 -> 650.88 | F141: ='Inputs|O & M'!F262 -> 650.88 | G141: ='Inputs|O & M'!G262 -> 650.88 | H141: ='Inputs|O & M'!H262 -> 650.88
A142: Number of men in crew | D142: ='Inputs|O & M'!D266 -> 2 | E142: ='Inputs|O & M'!E266 -> 2 | F142: ='Inputs|O & M'!F266 -> 2 | G142: ='Inputs|O & M'!G266 -> 2 | H142: ='Inputs|O & M'!H266 -> 2
A143: Number of luminaires replaced per day - urban | D143: 16 | E143: =D143 -> 16 | F143: =E143 -> 16 | G143: =F143 -> 16 | H143: =G143 -> 16
A144: Number of luminaires replaced per day - rural | D144: 13 | E144: =D144 -> 13 | F144: 13 | G144: 13 | H144: 13
A146: Other Capex unit costs Describe :……………………… | D146: 0 | E146: =$K146*'Inputs|General'!M$109 -> 0 | F146: =$K146*'Inputs|General'!N$109 -> 0 | G146: =$K146*'Inputs|General'!O$109 -> 0 | H146: =$K146*'Inputs|General'!P$109 -> 0
A148: Forecast Quantities to be replaced
A149: Number of luminaires replaced per year - urban | D149: 1 | E149: 1 | F149: 1 | G149: 1 | H149: 1
A150: Number of luminaires replaced per year - rural | D150: 0 | E150: 0 | F150: 0 | G150: 0 | H150: 0
A153: VICROADS FRANGIBLE POLES (on major roads)
A155: Unit cost - frangible pole | C155: 2112.73282 | D155: 1951.468648 | E155: =D155*(1+'Inputs|General'!M$97) -> 1951.468648 | F155: =E155*(1+'Inputs|General'!N$97) -> 1951.468648 | G155: =F155*(1+'Inputs|General'!O$97) -> 1951.468648 | H155: =G155*(1+'Inputs|General'!P$97) -> 1951.468648
A156: Number of poles frangible replaced per day | C156: 4 | D156: 3 | E156: =D156 -> 3 | F156: 3 | G156: 3 | H156: 3
A158: Other poles & brackets Capex unit costs Describe :…………………
A159: Truck mounted crane & auger | C159: New | D159: 95.88081231 | E159: =D159*(1+'Inputs|General'!M$97) -> 95.88081231 | F159: =E159*(1+'Inputs|General'!N$97) -> 95.88081231 | G159: =F159*(1+'Inputs|General'!O$97) -> 95.88081231 | H159: =G159*(1+'Inputs|General'!P$97) -> 95.88081231
A160: Tipper | D160: 19.03648398 | E160: =D160*(1+'Inputs|General'!M$97) -> 19.03648398 | F160: =E160*(1+'Inputs|General'!N$97) -> 19.03648398 | G160: =F160*(1+'Inputs|General'!O$97) -> 19.03648398 | H160: =G160*(1+'Inputs|General'!P$97) -> 19.03648398
A161: Traffic management per day | D161: 899.4447684 | E161: =D161*(1+'Inputs|General'!M$97) -> 899.4447684 | F161: =E161*(1+'Inputs|General'!N$97) -> 899.4447684 | G161: =F161*(1+'Inputs|General'!O$97) -> 899.4447684 | H161: =G161*(1+'Inputs|General'!P$97) -> 899.4447684
A162: Project management per day | D162: 277.4522568 | E162: =D162*(1+'Inputs|General'!M$97) -> 277.4522568 | F162: =E162*(1+'Inputs|General'!N$97) -> 277.4522568 | G162: =F162*(1+'Inputs|General'!O$97) -> 277.4522568 | H162: =G162*(1+'Inputs|General'!P$97) -> 277.4522568
A164: Forecast Quantities to be replaced
A165: Number of frangible poles replaced per year - urban | C165: 46 | D165: 20.84065529 | E165: 22.34686168 | F165: 24.00114645 | G165: 25.81806749 | H165: 27.81361393
A166: Number of frangible replaced per year - rural | C166: 4 | D166: 1.812230895 | E166: 1.943205364 | F166: 2.087056213 | G166: 2.245049347 | H166: 2.418575124
A170: Dedicated street lighting poles (on minor roads)
A172: Cost of pole & bracket | C172: 655.317038 | D172: 556.1919333 | E172: =D172*(1+'Inputs|General'!M$97) -> 556.1919333 | F172: =E172*(1+'Inputs|General'!N$97) -> 556.1919333 | G172: =F172*(1+'Inputs|General'!O$97) -> 556.1919333 | H172: =G172*(1+'Inputs|General'!P$97) -> 556.1919333
A173: Number of poles & brackets replaced per day | C173: 4 | D173: 3 | E173: =D173 -> 3 | F173: 3 | G173: 3 | H173: 3
A174: Cost of bracket on non-dedicated poles | C174: 52.03109876 | D174: 180.0801252 | E174: =D174*(1+'Inputs|General'!M$97) -> 180.0801252 | F174: =E174*(1+'Inputs|General'!N$97) -> 180.0801252 | G174: =F174*(1+'Inputs|General'!O$97) -> 180.0801252 | H174: =G174*(1+'Inputs|General'!P$97) -> 180.0801252
A175: Number of brackets replaced per day | C175: 20 | D175: =C175 -> 20 | E175: =D175 -> 20 | F175: 20 | G175: 20 | H175: 20
A177: Other poles & brackets Capex unit costs Describe :…………………
A178: Truck mounted crane & auger per hour | C178: New | D178: 95.88081231 | E178: =D178*(1+'Inputs|General'!M$97) -> 95.88081231 | F178: =E178*(1+'Inputs|General'!N$97) -> 95.88081231 | G178: =F178*(1+'Inputs|General'!O$97) -> 95.88081231 | H178: =G178*(1+'Inputs|General'!P$97) -> 95.88081231
A179: Tipper per hour | D179: 19.03648398 | E179: =D179*(1+'Inputs|General'!M$97) -> 19.03648398 | F179: =E179*(1+'Inputs|General'!N$97) -> 19.03648398 | G179: =F179*(1+'Inputs|General'!O$97) -> 19.03648398 | H179: =G179*(1+'Inputs|General'!P$97) -> 19.03648398
A180: Traffic management per day | D180: 899.4447684 | E180: =D180*(1+'Inputs|General'!M$97) -> 899.4447684 | F180: =E180*(1+'Inputs|General'!N$97) -> 899.4447684 | G180: =F180*(1+'Inputs|General'!O$97) -> 899.4447684 | H180: =G180*(1+'Inputs|General'!P$97) -> 899.4447684
A181: Project management per day | D181: 277.4522568 | E181: =D181*(1+'Inputs|General'!M$97) -> 277.4522568 | F181: =E181*(1+'Inputs|General'!N$97) -> 277.4522568 | G181: =F181*(1+'Inputs|General'!O$97) -> 277.4522568 | H181: =G181*(1+'Inputs|General'!P$97) -> 277.4522568
A183: Forecast Quantities to be replaced
A184: Number of poles & brackets replaced per year - urban | C184: 321 | D184: 208.2530896 | E184: 237.5272245 | F184: 256.1793465 | G184: 268.0666372 | H184: 283.1617615
A185: Number of poles & brackets replaced per year - rural | C185: 17 | D185: 62.74641638 | E185: 45.23931828 | F185: 38.97987779 | G185: 40.14853964 | H185: 38.81284849
A187: Brackets on non-dedicated poles :
A188: Number of brackets replaced per year - urban | C188: 33 | D188: 20.84065529 | E188: 22.34686168 | F188: 24.00114645 | G188: 25.81806749 | H188: 27.81361393
A189: Number of brackets replaced per year - rural | C189: 2 | D189: 1.812230895 | E189: 1.943205364 | F189: 2.087056213 | G189: 2.245049347 | H189: 2.418575124

Sheet Output|PL Tariffs
A1: ='Inputs|O & M'!$A$3 -> Jemena | E1: Global Check | F1: =IF(SUM('Calc|Total RAB'!F1,'Calc|Depn & WACC Post 2004'!F1,'Output|Cashflow Summary'!F1,'Output|PL Tariff Components'!W1)<1,"Ok","Error") -> Ok
V2: Average
A3: Public Lighting Tariffs | C3: Nominal Prices | J3: Nominal Price Movement | P3: Real Price Movement (Implied X Factor) | V3: Nubmer | W3: % of | Y3: Revised Submission Model | AE3: Difference
A4: Excluding Revenue Recovery | C4: Actual | V4: of Lights | W4: Total Lights
A5: ='Inputs|General'!A$47 -> Existing Lights | C5: HY2021 | D5: ='Inputs|General'!L$3 -> FY2022 | E5: ='Inputs|General'!M$3 -> FY2023 | F5: ='Inputs|General'!N$3 -> FY2024 | G5: ='Inputs|General'!O$3 -> FY2025 | H5: ='Inputs|General'!P$3 -> FY2026 | J5: =D5 -> FY2022 | K5: =E5 -> FY2023 | L5: FY2024 | M5: FY2025 | N5: FY2026 | P5: =J5 -> FY2022 | Q5: =K5 -> FY2023 | R5: FY2024 | S5: FY2025 | T5: FY2026 | V5: 2022-26 | W5: 2022-26 | Y5: =D5 -> FY2022 | Z5: =E5 -> FY2023 | AA5: FY2024 | AB5: FY2025 | AC5: FY2026 | AE5: =Y5 -> FY2022 | AF5: =Z5 -> FY2023 | AG5: FY2024 | AH5: FY2025 | AI5: FY2026
A6: ='Inputs|General'!A48 -> Mercury Vapour 80 watt | C6: ='Inputs|General'!D48 -> 55.40389986 | D6: ='Output|Charges Summary'!D$31 -> 57.87843585 | E6: ='Output|Charges Summary'!E$31 -> 57.08981528 | F6: ='Output|Charges Summary'!F$31 -> 56.22567508 | G6: ='Output|Charges Summary'!G$31 -> 58.09549156 | H6: ='Output|Charges Summary'!H$31 -> 58.94531126 | J6: =IF(C6=0,"",D6/C6-1) -> 0.04466357064 | K6: =IF(D6=0,"",E6/D6-1) -> -0.01362546445 | L6: =IF(E6=0,"",F6/E6-1) -> -0.01513650372 | M6: =IF(F6=0,"",G6/F6-1) -> 0.03325556294 | N6: =IF(G6=0,"",H6/G6-1) -> 0.01462798023 | P6: =IF(C6=0,"",(D6/'Output|Charges Summary'!D$4)/C6-1) -> 0.02418612386 | Q6: =IF(D6=0,"",(E6/'Output|Charges Summary'!E$4)/(D6/'Output|Charges Summary'!D$4)-1) -> -0.03296033228 | R6: =IF(E6=0,"",(F6/'Output|Charges Summary'!F$4)/(E6/'Output|Charges Summary'!E$4)-1) -> -0.03444175222 | S6: =IF(F6=0,"",(G6/'Output|Charges Summary'!G$4)/(F6/'Output|Charges Summary'!F$4)-1) -> 0.01300173539 | T6: =IF(G6=0,"",(H6/'Output|Charges Summary'!H$4)/(G6/'Output|Charges Summary'!G$4)-1) -> -0.005260710306 | V6: =SUM('Inputs|General'!L48:P48)/5 -> 1818.957076 | W6: =V6/V$35 -> 0.02219332024 | Y6: 57.42659529 | Z6: 56.77113465 | AA6: 56.10490206 | AB6: 58.25915404 | AC6: 59.48712981 | AE6: =D6-Y6 -> 0.4518405682 | AF6: =E6-Z6 -> 0.3186806373 | AG6: =F6-AA6 -> 0.1207730246 | AH6: =G6-AB6 -> -0.1636624783 | AI6: =H6-AC6 -> -0.5418185497
A7: ='Inputs|General'!A49 -> Sodium High Pressure 150 watt | C7: ='Inputs|General'!D49 -> 102.0694564 | D7: ='Output|Charges Summary'!D$47 -> 121.2068285 | E7: ='Output|Charges Summary'!E$47 -> 121.5191925 | F7: ='Output|Charges Summary'!F$47 -> 121.8998925 | G7: ='Output|Charges Summary'!G$47 -> 125.4265869 | H7: ='Output|Charges Summary'!H$47 -> 127.8642102 | J7: 0.1874936224 | K7: 0.00257711579 | L7: 0.00313283836 | M7: 0.02893107065 | N7: 0.01943466145 | P7: =IF(C7=0,"",(D7/'Output|Charges Summary'!D$4)/C7-1) -> 0.1642164276 | Q7: =IF(D7=0,"",(E7/'Output|Charges Summary'!E$4)/(D7/'Output|Charges Summary'!D$4)-1) -> -0.01707535426 | R7: =IF(E7=0,"",(F7/'Output|Charges Summary'!F$4)/(E7/'Output|Charges Summary'!E$4)-1) -> -0.01653052494 | S7: =IF(F7=0,"",(G7/'Output|Charges Summary'!G$4)/(F7/'Output|Charges Summary'!F$4)-1) -> 0.008762011606 | T7: =IF(G7=0,"",(H7/'Output|Charges Summary'!H$4)/(G7/'Output|Charges Summary'!G$4)-1) -> -0.0005482494292 | V7: =SUM('Inputs|General'!L49:P49)/5 -> 15131.67734 | W7: =V7/V$35 -> 0.1846234667 | Y7: 120.9181721 | Z7: 121.5691293 | AA7: 122.4760567 | AB7: 126.7709892 | AC7: 130.2036379 | AE7: =D7-Y7 -> 0.2886563622 | AF7: -0.04993683386 | AG7: -0.5761642218 | AH7: -1.344402272 | AI7: -2.339427775
A8: ='Inputs|General'!A50 -> Sodium High Pressure 250 watt | C8: ='Inputs|General'!D50 -> 103.30985 | D8: ='Output|Charges Summary'!D$63 -> 124.0506878 | E8: ='Output|Charges Summary'!E$63 -> 124.2339346 | F8: ='Output|Charges Summary'!F$63 -> 123.6883074 | G8: ='Output|Charges Summary'!G$63 -> 127.253467 | H8: ='Output|Charges Summary'!H$63 -> 129.710375 | J8: 0.2007634112 | K8: 0.001477192519 | L8: -0.004391933828 | M8: 0.02882373999 | N8: 0.01930719929 | P8: =IF(C8=0,"",(D8/'Output|Charges Summary'!D$4)/C8-1) -> 0.1772261026 | Q8: =IF(D8=0,"",(E8/'Output|Charges Summary'!E$4)/(D8/'Output|Charges Summary'!D$4)-1) -> -0.01815371688 | R8: =IF(E8=0,"",(F8/'Output|Charges Summary'!F$4)/(E8/'Output|Charges Summary'!E$4)-1) -> -0.02390779689 | S8: =IF(F8=0,"",(G8/'Output|Charges Summary'!G$4)/(F8/'Output|Charges Summary'!F$4)-1) -> 0.008656784836 | T8: =IF(G8=0,"",(H8/'Output|Charges Summary'!H$4)/(G8/'Output|Charges Summary'!G$4)-1) -> -0.0006732130739 | V8: =SUM('Inputs|General'!L50:P50)/5 -> 4815.748046 | W8: 0.05875753751 | Y8: 123.743494 | Z8: 124.2706292 | AA8: 124.2710109 | AB8: 128.6064131 | AC8: 132.0579793 | AE8: 0.3071938176 | AF8: -0.03669460034 | AG8: -0.5827035503 | AH8: -1.352946119 | AI8: -2.347604241
A9: ='Inputs|General'!A51 -> Fluorescent 20 watt | C9: ='Inputs|General'!D51 -> 69.25487482 | D9: =IF('Inputs|General'!$B51='Inputs|General'!$A$48,D$6,IF('Inputs|General'!$B51='Inputs|General'!$A$49,D$7,D$8))*'Inputs|General'!$C51 -> 72.34804482 | E9: =IF('Inputs|General'!$B51='Inputs|General'!$A$48,E$6,IF('Inputs|General'!$B51='Inputs|General'!$A$49,E$7,E$8))*'Inputs|General'!$C51 -> 71.36226911 | F9: =IF('Inputs|General'!$B51='Inputs|General'!$A$48,F$6,IF('Inputs|General'!$B51='Inputs|General'!$A$49,F$7,F$8))*'Inputs|General'!$C51 -> 70.28209385 | G9: =IF('Inputs|General'!$B51='Inputs|General'!$A$48,G$6,IF('Inputs|General'!$B51='Inputs|General'!$A$49,G$7,G$8))*'Inputs|General'!$C51 -> 72.61936445 | H9: =IF('Inputs|General'!$B51='Inputs|General'!$A$48,H$6,IF('Inputs|General'!$B51='Inputs|General'!$A$49,H$7,H$8))*'Inputs|General'!$C51 -> 73.68163908 | J9: 0.04466357064 | K9: -0.01362546445 | L9: -0.01513650372 | M9: 0.03325556294 | N9: 0.01462798023 | P9: =IF(C9=0,"",(D9/'Output|Charges Summary'!D$4)/C9-1) -> 0.02418612386 | Q9: =IF(D9=0,"",(E9/'Output|Charges Summary'!E$4)/(D9/'Output|Charges Summary'!D$4)-1) -> -0.03296033228 | R9: =IF(E9=0,"",(F9/'Output|Charges Summary'!F$4)/(E9/'Output|Charges Summary'!E$4)-1) -> -0.03444175222 | S9: =IF(F9=0,"",(G9/'Output|Charges Summary'!G$4)/(F9/'Output|Charges Summary'!F$4)-1) -> 0.01300173539 | T9: =IF(G9=0,"",(H9/'Output|Charges Summary'!H$4)/(G9/'Output|Charges Summary'!G$4)-1) -> -0.005260710306 | V9: =SUM('Inputs|General'!L51:P51)/5 -> 0 | W9: 0 | Y9: 71.78324411 | Z9: 70.96391831 | AA9: 70.13112757 | AB9: 72.82394255 | AC9: 74.35891226 | AE9: 0.5648007103 | AF9: 0.3983507967 | AG9: 0.1509662807 | AH9: -0.2045780979 | AI9: -0.6772731871
A10: ='Inputs|General'!A52 -> Fluorescent 40 watt | C10: ='Inputs|General'!D52 -> 69.25487482 | D10: =IF('Inputs|General'!$B52='Inputs|General'!$A$48,D$6,IF('Inputs|General'!$B52='Inputs|General'!$A$49,D$7,D$8))*'Inputs|General'!$C52 -> 72.34804482 | E10: =IF('Inputs|General'!$B52='Inputs|General'!$A$48,E$6,IF('Inputs|General'!$B52='Inputs|General'!$A$49,E$7,E$8))*'Inputs|General'!$C52 -> 71.36226911 | F10: =IF('Inputs|General'!$B52='Inputs|General'!$A$48,F$6,IF('Inputs|General'!$B52='Inputs|General'!$A$49,F$7,F$8))*'Inputs|General'!$C52 -> 70.28209385 | G10: =IF('Inputs|General'!$B52='Inputs|General'!$A$48,G$6,IF('Inputs|General'!$B52='Inputs|General'!$A$49,G$7,G$8))*'Inputs|General'!$C52 -> 72.61936445 | H10: =IF('Inputs|General'!$B52='Inputs|General'!$A$48,H$6,IF('Inputs|General'!$B52='Inputs|General'!$A$49,H$7,H$8))*'Inputs|General'!$C52 -> 73.68163908 | J10: 0.04466357064 | K10: -0.01362546445 | L10: -0.01513650372 | M10: 0.03325556294 | N10: 0.01462798023 | P10: =IF(C10=0,"",(D10/'Output|Charges Summary'!D$4)/C10-1) -> 0.02418612386 | Q10: =IF(D10=0,"",(E10/'Output|Charges Summary'!E$4)/(D10/'Output|Charges Summary'!D$4)-1) -> -0.03296033228 | R10: =IF(E10=0,"",(F10/'Output|Charges Summary'!F$4)/(E10/'Output|Charges Summary'!E$4)-1) -> -0.03444175222 | S10: =IF(F10=0,"",(G10/'Output|Charges Summary'!G$4)/(F10/'Output|Charges Summary'!F$4)-1) -> 0.01300173539 | T10: =IF(G10=0,"",(H10/'Output|Charges Summary'!H$4)/(G10/'Output|Charges Summary'!G$4)-1) -> -0.005260710306 | V10: =SUM('Inputs|General'!L52:P52)/5 -> 0 | W10: 0 | Y10: 71.78324411 | Z10: 70.96391831 | AA10: 70.13112757 | AB10: 72.82394255 | AC10: 74.35891226 | AE10: 0.5648007103 | AF10: 0.3983507967 | AG10: 0.1509662807 | AH10: -0.2045780979 | AI10: -0.6772731871
A11: ='Inputs|General'!A53 -> Fluorescent 80 watt | C11: ='Inputs|General'!D53 -> 69.25487482 | D11: =IF('Inputs|General'!$B53='Inputs|General'!$A$48,D$6,IF('Inputs|General'!$B53='Inputs|General'!$A$49,D$7,D$8))*'Inputs|General'!$C53 -> 72.34804482 | E11: =IF('Inputs|General'!$B53='Inputs|General'!$A$48,E$6,IF('Inputs|General'!$B53='Inputs|General'!$A$49,E$7,E$8))*'Inputs|General'!$C53 -> 71.36226911 | F11: =IF('Inputs|General'!$B53='Inputs|General'!$A$48,F$6,IF('Inputs|General'!$B53='Inputs|General'!$A$49,F$7,F$8))*'Inputs|General'!$C53 -> 70.28209385 | G11: =IF('Inputs|General'!$B53='Inputs|General'!$A$48,G$6,IF('Inputs|General'!$B53='Inputs|General'!$A$49,G$7,G$8))*'Inputs|General'!$C53 -> 72.61936445 | H11: =IF('Inputs|General'!$B53='Inputs|General'!$A$48,H$6,IF('Inputs|General'!$B53='Inputs|General'!$A$49,H$7,H$8))*'Inputs|General'!$C53 -> 73.68163908 | J11: 0.04466357064 | K11: -0.01362546445 | L11: -0.01513650372 | M11: 0.03325556294 | N11: 0.01462798023 | P11: =IF(C11=0,"",(D11/'Output|Charges Summary'!D$4)/C11-1) -> 0.02418612386 | Q11: =IF(D11=0,"",(E11/'Output|Charges Summary'!E$4)/(D11/'Output|Charges Summary'!D$4)-1) -> -0.03296033228 | R11: =IF(E11=0,"",(F11/'Output|Charges Summary'!F$4)/(E11/'Output|Charges Summary'!E$4)-1) -> -0.03444175222 | S11: =IF(F11=0,"",(G11/'Output|Charges Summary'!G$4)/(F11/'Output|Charges Summary'!F$4)-1) -> 0.01300173539 | T11: =IF(G11=0,"",(H11/'Output|Charges Summary'!H$4)/(G11/'Output|Charges Summary'!G$4)-1) -> -0.005260710306 | V11: =SUM('Inputs|General'!L53:P53)/5 -> 0 | W11: 0 | Y11: 71.78324411 | Z11: 70.96391831 | AA11: 70.13112757 | AB11: 72.82394255 | AC11: 74.35891226 | AE11: 0.5648007103 | AF11: 0.3983507967 | AG11: 0.1509662807 | AH11: -0.2045780979 | AI11: -0.6772731871
A12: ='Inputs|General'!A54 -> Mercury Vapour 50 watt | C12: ='Inputs|General'!D54 -> 69.25487482 | D12: =IF('Inputs|General'!$B54='Inputs|General'!$A$48,D$6,IF('Inputs|General'!$B54='Inputs|General'!$A$49,D$7,D$8))*'Inputs|General'!$C54 -> 72.34804482 | E12: =IF('Inputs|General'!$B54='Inputs|General'!$A$48,E$6,IF('Inputs|General'!$B54='Inputs|General'!$A$49,E$7,E$8))*'Inputs|General'!$C54 -> 71.36226911 | F12: =IF('Inputs|General'!$B54='Inputs|General'!$A$48,F$6,IF('Inputs|General'!$B54='Inputs|General'!$A$49,F$7,F$8))*'Inputs|General'!$C54 -> 70.28209385 | G12: =IF('Inputs|General'!$B54='Inputs|General'!$A$48,G$6,IF('Inputs|General'!$B54='Inputs|General'!$A$49,G$7,G$8))*'Inputs|General'!$C54 -> 72.61936445 | H12: =IF('Inputs|General'!$B54='Inputs|General'!$A$48,H$6,IF('Inputs|General'!$B54='Inputs|General'!$A$49,H$7,H$8))*'Inputs|General'!$C54 -> 73.68163908 | J12: 0.04466357064 | K12: -0.01362546445 | L12: -0.01513650372 | M12: 0.03325556294 | N12: 0.01462798023 | P12: =IF(C12=0,"",(D12/'Output|Charges Summary'!D$4)/C12-1) -> 0.02418612386 | Q12: =IF(D12=0,"",(E12/'Output|Charges Summary'!E$4)/(D12/'Output|Charges Summary'!D$4)-1) -> -0.03296033228 | R12: =IF(E12=0,"",(F12/'Output|Charges Summary'!F$4)/(E12/'Output|Charges Summary'!E$4)-1) -> -0.03444175222 | S12: =IF(F12=0,"",(G12/'Output|Charges Summary'!G$4)/(F12/'Output|Charges Summary'!F$4)-1) -> 0.01300173539 | T12: =IF(G12=0,"",(H12/'Output|Charges Summary'!H$4)/(G12/'Output|Charges Summary'!G$4)-1) -> -0.005260710306 | V12: =SUM('Inputs|General'!L54:P54)/5 -> 0 | W12: 0 | Y12: 71.78324411 | Z12: 70.96391831 | AA12: 70.13112757 | AB12: 72.82394255 | AC12: 74.35891226 | AE12: 0.5648007103 | AF12: 0.3983507967 | AG12: 0.1509662807 | AH12: -0.2045780979 | AI12: -0.6772731871
A13: ='Inputs|General'!A55 -> Mercury Vapour 125 watt | C13: ='Inputs|General'!D55 -> 81.44373279 | D13: =IF('Inputs|General'!$B55='Inputs|General'!$A$48,D$6,IF('Inputs|General'!$B55='Inputs|General'!$A$49,D$7,D$8))*'Inputs|General'!$C55 -> 85.08130071 | E13: =IF('Inputs|General'!$B55='Inputs|General'!$A$48,E$6,IF('Inputs|General'!$B55='Inputs|General'!$A$49,E$7,E$8))*'Inputs|General'!$C55 -> 83.92202847 | F13: =IF('Inputs|General'!$B55='Inputs|General'!$A$48,F$6,IF('Inputs|General'!$B55='Inputs|General'!$A$49,F$7,F$8))*'Inputs|General'!$C55 -> 82.65174237 | G13: =IF('Inputs|General'!$B55='Inputs|General'!$A$48,G$6,IF('Inputs|General'!$B55='Inputs|General'!$A$49,G$7,G$8))*'Inputs|General'!$C55 -> 85.40037259 | H13: =IF('Inputs|General'!$B55='Inputs|General'!$A$48,H$6,IF('Inputs|General'!$B55='Inputs|General'!$A$49,H$7,H$8))*'Inputs|General'!$C55 -> 86.64960755 | J13: 0.04466357064 | K13: -0.01362546445 | L13: -0.01513650372 | M13: 0.03325556294 | N13: 0.01462798023 | P13: =IF(C13=0,"",(D13/'Output|Charges Summary'!D$4)/C13-1) -> 0.02418612386 | Q13: =IF(D13=0,"",(E13/'Output|Charges Summary'!E$4)/(D13/'Output|Charges Summary'!D$4)-1) -> -0.03296033228 | R13: =IF(E13=0,"",(F13/'Output|Charges Summary'!F$4)/(E13/'Output|Charges Summary'!E$4)-1) -> -0.03444175222 | S13: =IF(F13=0,"",(G13/'Output|Charges Summary'!G$4)/(F13/'Output|Charges Summary'!F$4)-1) -> 0.01300173539 | T13: =IF(G13=0,"",(H13/'Output|Charges Summary'!H$4)/(G13/'Output|Charges Summary'!G$4)-1) -> -0.005260710306 | V13: =SUM('Inputs|General'!L55:P55)/5 -> 25.76615822 | W13: 0.0003143760831 | Y13: 84.41709507 | Z13: 83.45356793 | AA13: 82.47420603 | AB13: 85.64095644 | AC13: 87.44608082 | AE13: 0.6642056353 | AF13: 0.4684605369 | AG13: 0.1775363461 | AH13: -0.2405838432 | AI13: -0.7964732681
A14: ='Inputs|General'!A56 -> Mercury Vapour 250 watt | C14: ='Inputs|General'!D56 -> 99.17745595 | D14: =IF('Inputs|General'!$B56='Inputs|General'!$A$48,D$6,IF('Inputs|General'!$B56='Inputs|General'!$A$49,D$7,D$8))*'Inputs|General'!$C56 -> 119.0886603 | E14: =IF('Inputs|General'!$B56='Inputs|General'!$A$48,E$6,IF('Inputs|General'!$B56='Inputs|General'!$A$49,E$7,E$8))*'Inputs|General'!$C56 -> 119.2645772 | F14: =IF('Inputs|General'!$B56='Inputs|General'!$A$48,F$6,IF('Inputs|General'!$B56='Inputs|General'!$A$49,F$7,F$8))*'Inputs|General'!$C56 -> 118.7407751 | G14: =IF('Inputs|General'!$B56='Inputs|General'!$A$48,G$6,IF('Inputs|General'!$B56='Inputs|General'!$A$49,G$7,G$8))*'Inputs|General'!$C56 -> 122.1633283 | H14: =IF('Inputs|General'!$B56='Inputs|General'!$A$48,H$6,IF('Inputs|General'!$B56='Inputs|General'!$A$49,H$7,H$8))*'Inputs|General'!$C56 -> 124.52196 | J14: 0.2007634112 | K14: 0.001477192519 | L14: -0.004391933828 | M14: 0.02882373999 | N14: 0.01930719929 | P14: =IF(C14=0,"",(D14/'Output|Charges Summary'!D$4)/C14-1) -> 0.1772261026 | Q14: =IF(D14=0,"",(E14/'Output|Charges Summary'!E$4)/(D14/'Output|Charges Summary'!D$4)-1) -> -0.01815371688 | R14: =IF(E14=0,"",(F14/'Output|Charges Summary'!F$4)/(E14/'Output|Charges Summary'!E$4)-1) -> -0.02390779689 | S14: =IF(F14=0,"",(G14/'Output|Charges Summary'!G$4)/(F14/'Output|Charges Summary'!F$4)-1) -> 0.008656784836 | T14: =IF(G14=0,"",(H14/'Output|Charges Summary'!H$4)/(G14/'Output|Charges Summary'!G$4)-1) -> -0.0006732130739 | V14: =SUM('Inputs|General'!L56:P56)/5 -> 24.20781822 | W14: 0.0002953625841 | Y14: 118.7937543 | Z14: 119.299804 | AA14: 119.3001705 | AB14: 123.4621566 | AC14: 126.7756601 | AE14: 0.2949060648 | AF14: -0.03522681633 | AG14: -0.5593954083 | AH14: -1.298828274 | AI14: -2.253700072
A15: ='Inputs|General'!A57 -> Mercury Vapour 400 watt | C15: ='Inputs|General'!D57 -> 111.5746379 | D15: =IF('Inputs|General'!$B57='Inputs|General'!$A$48,D$6,IF('Inputs|General'!$B57='Inputs|General'!$A$49,D$7,D$8))*'Inputs|General'!$C57 -> 133.9747429 | E15: =IF('Inputs|General'!$B57='Inputs|General'!$A$48,E$6,IF('Inputs|General'!$B57='Inputs|General'!$A$49,E$7,E$8))*'Inputs|General'!$C57 -> 134.1726493 | F15: =IF('Inputs|General'!$B57='Inputs|General'!$A$48,F$6,IF('Inputs|General'!$B57='Inputs|General'!$A$49,F$7,F$8))*'Inputs|General'!$C57 -> 133.583372 | G15: =IF('Inputs|General'!$B57='Inputs|General'!$A$48,G$6,IF('Inputs|General'!$B57='Inputs|General'!$A$49,G$7,G$8))*'Inputs|General'!$C57 -> 137.4337443 | H15: =IF('Inputs|General'!$B57='Inputs|General'!$A$48,H$6,IF('Inputs|General'!$B57='Inputs|General'!$A$49,H$7,H$8))*'Inputs|General'!$C57 -> 140.087205 | J15: 0.2007634112 | K15: 0.001477192519 | L15: -0.004391933828 | M15: 0.02882373999 | N15: 0.01930719929 | P15: =IF(C15=0,"",(D15/'Output|Charges Summary'!D$4)/C15-1) -> 0.1772261026 | Q15: =IF(D15=0,"",(E15/'Output|Charges Summary'!E$4)/(D15/'Output|Charges Summary'!D$4)-1) -> -0.01815371688 | R15: =IF(E15=0,"",(F15/'Output|Charges Summary'!F$4)/(E15/'Output|Charges Summary'!E$4)-1) -> -0.02390779689 | S15: =IF(F15=0,"",(G15/'Output|Charges Summary'!G$4)/(F15/'Output|Charges Summary'!F$4)-1) -> 0.008656784836 | T15: =IF(G15=0,"",(H15/'Output|Charges Summary'!H$4)/(G15/'Output|Charges Summary'!G$4)-1) -> -0.0006732130739 | V15: =SUM('Inputs|General'!L57:P57)/5 -> 31.85566403 | W15: 0.0003886748967 | Y15: 133.6429735 | Z15: 134.2122795 | AA15: 134.2126918 | AB15: 138.8949261 | AC15: 142.6226176 | AE15: 0.331769323 | AF15: -0.03963016837 | AG15: -0.6293198343 | AH15: -1.461181809 | AI15: -2.535412581
A16: ='Inputs|General'!A58 -> Sodium Low Pressure 90 watt | C16: ='Inputs|General'!D58 -> 108.1936238 | D16: =IF('Inputs|General'!$B58='Inputs|General'!$A$48,D$6,IF('Inputs|General'!$B58='Inputs|General'!$A$49,D$7,D$8))*'Inputs|General'!$C58 -> 128.4792382 | E16: =IF('Inputs|General'!$B58='Inputs|General'!$A$48,E$6,IF('Inputs|General'!$B58='Inputs|General'!$A$49,E$7,E$8))*'Inputs|General'!$C58 -> 128.8103441 | F16: =IF('Inputs|General'!$B58='Inputs|General'!$A$48,F$6,IF('Inputs|General'!$B58='Inputs|General'!$A$49,F$7,F$8))*'Inputs|General'!$C58 -> 129.213886 | G16: =IF('Inputs|General'!$B58='Inputs|General'!$A$48,G$6,IF('Inputs|General'!$B58='Inputs|General'!$A$49,G$7,G$8))*'Inputs|General'!$C58 -> 132.9521821 | H16: =IF('Inputs|General'!$B58='Inputs|General'!$A$48,H$6,IF('Inputs|General'!$B58='Inputs|General'!$A$49,H$7,H$8))*'Inputs|General'!$C58 -> 135.5360628 | J16: 0.1874936224 | K16: 0.00257711579 | L16: 0.00313283836 | M16: 0.02893107065 | N16: 0.01943466145 | P16: =IF(C16=0,"",(D16/'Output|Charges Summary'!D$4)/C16-1) -> 0.1642164276 | Q16: =IF(D16=0,"",(E16/'Output|Charges Summary'!E$4)/(D16/'Output|Charges Summary'!D$4)-1) -> -0.01707535426 | R16: =IF(E16=0,"",(F16/'Output|Charges Summary'!F$4)/(E16/'Output|Charges Summary'!E$4)-1) -> -0.01653052494 | S16: =IF(F16=0,"",(G16/'Output|Charges Summary'!G$4)/(F16/'Output|Charges Summary'!F$4)-1) -> 0.008762011606 | T16: =IF(G16=0,"",(H16/'Output|Charges Summary'!H$4)/(G16/'Output|Charges Summary'!G$4)-1) -> -0.0005482494292 | V16: =SUM('Inputs|General'!L58:P58)/5 -> 0 | W16: 0 | Y16: 128.1732624 | Z16: 128.8632771 | AA16: 129.8246201 | AB16: 134.3772485 | AC16: 138.0158562 | AE16: 0.3059757439 | AF16: -0.05293304389 | AG16: -0.6107340751 | AH16: -1.425066408 | AI16: -2.479793442
A17: ='Inputs|General'!A59 -> Sodium High Pressure 100 watt | C17: ='Inputs|General'!D59 -> 139.8351552 | D17: =IF('Inputs|General'!$B59='Inputs|General'!$A$48,D$6,IF('Inputs|General'!$B59='Inputs|General'!$A$49,D$7,D$8))*'Inputs|General'!$C59 -> 166.053355 | E17: =IF('Inputs|General'!$B59='Inputs|General'!$A$48,E$6,IF('Inputs|General'!$B59='Inputs|General'!$A$49,E$7,E$8))*'Inputs|General'!$C59 -> 166.4812937 | F17: =IF('Inputs|General'!$B59='Inputs|General'!$A$48,F$6,IF('Inputs|General'!$B59='Inputs|General'!$A$49,F$7,F$8))*'Inputs|General'!$C59 -> 167.0028527 | G17: =IF('Inputs|General'!$B59='Inputs|General'!$A$48,G$6,IF('Inputs|General'!$B59='Inputs|General'!$A$49,G$7,G$8))*'Inputs|General'!$C59 -> 171.8344241 | H17: =IF('Inputs|General'!$B59='Inputs|General'!$A$48,H$6,IF('Inputs|General'!$B59='Inputs|General'!$A$49,H$7,H$8))*'Inputs|General'!$C59 -> 175.1739679 | J17: 0.1874936224 | K17: 0.00257711579 | L17: 0.00313283836 | M17: 0.02893107065 | N17: 0.01943466145 | P17: =IF(C17=0,"",(D17/'Output|Charges Summary'!D$4)/C17-1) -> 0.1642164276 | Q17: =IF(D17=0,"",(E17/'Output|Charges Summary'!E$4)/(D17/'Output|Charges Summary'!D$4)-1) -> -0.01707535426 | R17: =IF(E17=0,"",(F17/'Output|Charges Summary'!F$4)/(E17/'Output|Charges Summary'!E$4)-1) -> -0.01653052494 | S17: =IF(F17=0,"",(G17/'Output|Charges Summary'!G$4)/(F17/'Output|Charges Summary'!F$4)-1) -> 0.008762011606 | T17: =IF(G17=0,"",(H17/'Output|Charges Summary'!H$4)/(G17/'Output|Charges Summary'!G$4)-1) -> -0.0005482494292 | V17: =SUM('Inputs|General'!L59:P59)/5 -> 1130.265382 | W17: 0.01379050772 | Y17: 165.6578958 | Z17: 166.5497072 | AA17: 167.7921977 | AB17: 173.6762552 | AC17: 178.378984 | AE17: 0.3954592162 | AF17: -0.06841346239 | AG17: -0.7893449838 | AH17: -1.841831112 | AI17: -3.205016052
A18: ='Inputs|General'!A60 -> Sodium High Pressure 400 watt | C18: ='Inputs|General'!D60 -> 137.4021004 | D18: =IF('Inputs|General'!$B60='Inputs|General'!$A$48,D$6,IF('Inputs|General'!$B60='Inputs|General'!$A$49,D$7,D$8))*'Inputs|General'!$C60 -> 164.9874148 | E18: =IF('Inputs|General'!$B60='Inputs|General'!$A$48,E$6,IF('Inputs|General'!$B60='Inputs|General'!$A$49,E$7,E$8))*'Inputs|General'!$C60 -> 165.231133 | F18: =IF('Inputs|General'!$B60='Inputs|General'!$A$48,F$6,IF('Inputs|General'!$B60='Inputs|General'!$A$49,F$7,F$8))*'Inputs|General'!$C60 -> 164.5054488 | G18: =IF('Inputs|General'!$B60='Inputs|General'!$A$48,G$6,IF('Inputs|General'!$B60='Inputs|General'!$A$49,G$7,G$8))*'Inputs|General'!$C60 -> 169.2471111 | H18: =IF('Inputs|General'!$B60='Inputs|General'!$A$48,H$6,IF('Inputs|General'!$B60='Inputs|General'!$A$49,H$7,H$8))*'Inputs|General'!$C60 -> 172.5147988 | J18: 0.2007634112 | K18: 0.001477192519 | L18: -0.004391933828 | M18: 0.02882373999 | N18: 0.01930719929 | P18: =IF(C18=0,"",(D18/'Output|Charges Summary'!D$4)/C18-1) -> 0.1772261026 | Q18: =IF(D18=0,"",(E18/'Output|Charges Summary'!E$4)/(D18/'Output|Charges Summary'!D$4)-1) -> -0.01815371688 | R18: =IF(E18=0,"",(F18/'Output|Charges Summary'!F$4)/(E18/'Output|Charges Summary'!E$4)-1) -> -0.02390779689 | S18: =IF(F18=0,"",(G18/'Output|Charges Summary'!G$4)/(F18/'Output|Charges Summary'!F$4)-1) -> 0.008656784836 | T18: =IF(G18=0,"",(H18/'Output|Charges Summary'!H$4)/(G18/'Output|Charges Summary'!G$4)-1) -> -0.0006732130739 | V18: =SUM('Inputs|General'!L60:P60)/5 -> 355.5250235 | W18: 0.004337804783 | Y18: 164.578847 | Z18: 165.2799368 | AA18: 165.2804445 | AB18: 171.0465294 | AC18: 175.6371124 | AE18: 0.4085677773 | AF18: -0.04880381846 | AG18: -0.7749957219 | AH18: -1.799418338 | AI18: -3.122313641
A19: ='Inputs|General'!A61 -> Metal Halide 70 watt | C19: ='Inputs|General'!D61 -> 142.3880226 | D19: =IF('Inputs|General'!$B61='Inputs|General'!$A$48,D$6,IF('Inputs|General'!$B61='Inputs|General'!$A$49,D$7,D$8))*'Inputs|General'!$C61 -> 148.7475801 | E19: =IF('Inputs|General'!$B61='Inputs|General'!$A$48,E$6,IF('Inputs|General'!$B61='Inputs|General'!$A$49,E$7,E$8))*'Inputs|General'!$C61 -> 146.7208253 | F19: =IF('Inputs|General'!$B61='Inputs|General'!$A$48,F$6,IF('Inputs|General'!$B61='Inputs|General'!$A$49,F$7,F$8))*'Inputs|General'!$C61 -> 144.499985 | G19: =IF('Inputs|General'!$B61='Inputs|General'!$A$48,G$6,IF('Inputs|General'!$B61='Inputs|General'!$A$49,G$7,G$8))*'Inputs|General'!$C61 -> 149.3054133 | H19: =IF('Inputs|General'!$B61='Inputs|General'!$A$48,H$6,IF('Inputs|General'!$B61='Inputs|General'!$A$49,H$7,H$8))*'Inputs|General'!$C61 -> 151.4894499 | J19: 0.04466357064 | K19: -0.01362546445 | L19: -0.01513650372 | M19: 0.03325556294 | N19: 0.01462798023 | P19: =IF(C19=0,"",(D19/'Output|Charges Summary'!D$4)/C19-1) -> 0.02418612386 | Q19: =IF(D19=0,"",(E19/'Output|Charges Summary'!E$4)/(D19/'Output|Charges Summary'!D$4)-1) -> -0.03296033228 | R19: =IF(E19=0,"",(F19/'Output|Charges Summary'!F$4)/(E19/'Output|Charges Summary'!E$4)-1) -> -0.03444175222 | S19: =IF(F19=0,"",(G19/'Output|Charges Summary'!G$4)/(F19/'Output|Charges Summary'!F$4)-1) -> 0.01300173539 | T19: =IF(G19=0,"",(H19/'Output|Charges Summary'!H$4)/(G19/'Output|Charges Summary'!G$4)-1) -> -0.005260710306 | V19: =SUM('Inputs|General'!L61:P61)/5 -> 9.68128408 | W19: 0.0001181225444 | Y19: 147.5863499 | Z19: 145.901816 | AA19: 144.1895983 | AB19: 149.7260259 | AC19: 152.8819236 | AE19: 1.16123026 | AF19: 0.819009238 | AG19: 0.3103866731 | AH19: -0.4206125693 | AI19: -1.392473673
A20: ='Inputs|General'!A62 -> Metal Halide 150 watt | C20: ='Inputs|General'!D62 -> 226.5941931 | D20: =IF('Inputs|General'!$B62='Inputs|General'!$A$48,D$6,IF('Inputs|General'!$B62='Inputs|General'!$A$49,D$7,D$8))*'Inputs|General'!$C62 -> 269.0791592 | E20: =IF('Inputs|General'!$B62='Inputs|General'!$A$48,E$6,IF('Inputs|General'!$B62='Inputs|General'!$A$49,E$7,E$8))*'Inputs|General'!$C62 -> 269.7726074 | F20: =IF('Inputs|General'!$B62='Inputs|General'!$A$48,F$6,IF('Inputs|General'!$B62='Inputs|General'!$A$49,F$7,F$8))*'Inputs|General'!$C62 -> 270.6177613 | G20: =IF('Inputs|General'!$B62='Inputs|General'!$A$48,G$6,IF('Inputs|General'!$B62='Inputs|General'!$A$49,G$7,G$8))*'Inputs|General'!$C62 -> 278.4470229 | H20: =IF('Inputs|General'!$B62='Inputs|General'!$A$48,H$6,IF('Inputs|General'!$B62='Inputs|General'!$A$49,H$7,H$8))*'Inputs|General'!$C62 -> 283.8585465 | J20: 0.1874936224 | K20: 0.00257711579 | L20: 0.00313283836 | M20: 0.02893107065 | N20: 0.01943466145 | P20: =IF(C20=0,"",(D20/'Output|Charges Summary'!D$4)/C20-1) -> 0.1642164276 | Q20: =IF(D20=0,"",(E20/'Output|Charges Summary'!E$4)/(D20/'Output|Charges Summary'!D$4)-1) -> -0.01707535426 | R20: =IF(E20=0,"",(F20/'Output|Charges Summary'!F$4)/(E20/'Output|Charges Summary'!E$4)-1) -> -0.01653052494 | S20: =IF(F20=0,"",(G20/'Output|Charges Summary'!G$4)/(F20/'Output|Charges Summary'!F$4)-1) -> 0.008762011606 | T20: =IF(G20=0,"",(H20/'Output|Charges Summary'!H$4)/(G20/'Output|Charges Summary'!G$4)-1) -> -0.0005482494292 | V20: =SUM('Inputs|General'!L62:P62)/5 -> 58.89447815 | W20: 0.0007185788119 | Y20: 268.4383421 | Z20: 269.8834671 | AA20: 271.8968459 | AB20: 281.431596 | AC20: 289.0520762 | AE20: 0.6408171241 | AF20: -0.1108597712 | AG20: -1.279084572 | AH20: -2.984573043 | AI20: -5.193529661
A21: ='Inputs|General'!A63 -> Metal Halide 250 watt | C21: ='Inputs|General'!D63 -> 222.1161774 | D21: =IF('Inputs|General'!$B63='Inputs|General'!$A$48,D$6,IF('Inputs|General'!$B63='Inputs|General'!$A$49,D$7,D$8))*'Inputs|General'!$C63 -> 266.7089788 | E21: =IF('Inputs|General'!$B63='Inputs|General'!$A$48,E$6,IF('Inputs|General'!$B63='Inputs|General'!$A$49,E$7,E$8))*'Inputs|General'!$C63 -> 267.1029594 | F21: =IF('Inputs|General'!$B63='Inputs|General'!$A$48,F$6,IF('Inputs|General'!$B63='Inputs|General'!$A$49,F$7,F$8))*'Inputs|General'!$C63 -> 265.9298608 | G21: =IF('Inputs|General'!$B63='Inputs|General'!$A$48,G$6,IF('Inputs|General'!$B63='Inputs|General'!$A$49,G$7,G$8))*'Inputs|General'!$C63 -> 273.594954 | H21: =IF('Inputs|General'!$B63='Inputs|General'!$A$48,H$6,IF('Inputs|General'!$B63='Inputs|General'!$A$49,H$7,H$8))*'Inputs|General'!$C63 -> 278.8773063 | J21: 0.2007634112 | K21: 0.001477192519 | L21: -0.004391933828 | M21: 0.02882373999 | N21: 0.01930719929 | P21: =IF(C21=0,"",(D21/'Output|Charges Summary'!D$4)/C21-1) -> 0.1772261026 | Q21: =IF(D21=0,"",(E21/'Output|Charges Summary'!E$4)/(D21/'Output|Charges Summary'!D$4)-1) -> -0.01815371688 | R21: =IF(E21=0,"",(F21/'Output|Charges Summary'!F$4)/(E21/'Output|Charges Summary'!E$4)-1) -> -0.02390779689 | S21: =IF(F21=0,"",(G21/'Output|Charges Summary'!G$4)/(F21/'Output|Charges Summary'!F$4)-1) -> 0.008656784836 | T21: =IF(G21=0,"",(H21/'Output|Charges Summary'!H$4)/(G21/'Output|Charges Summary'!G$4)-1) -> -0.0006732130739 | V21: =SUM('Inputs|General'!L63:P63)/5 -> 31.46417326 | W21: 0.0003838982694 | Y21: 266.0485121 | Z21: 267.1818527 | AA21: 267.1826735 | AB21: 276.5037881 | AC21: 283.9246554 | AE21: 0.6604667077 | AF21: -0.07889339074 | AG21: -1.252812633 | AH21: -2.908834156 | AI21: -5.047349119
A22: ='Inputs|General'!A64 -> Incandescent 100 watt | C22: ='Inputs|General'!D64 -> 86.43008378 | D22: =IF('Inputs|General'!$B64='Inputs|General'!$A$48,D$6,IF('Inputs|General'!$B64='Inputs|General'!$A$49,D$7,D$8))*'Inputs|General'!$C64 -> 90.29035993 | E22: =IF('Inputs|General'!$B64='Inputs|General'!$A$48,E$6,IF('Inputs|General'!$B64='Inputs|General'!$A$49,E$7,E$8))*'Inputs|General'!$C64 -> 89.06011184 | F22: =IF('Inputs|General'!$B64='Inputs|General'!$A$48,F$6,IF('Inputs|General'!$B64='Inputs|General'!$A$49,F$7,F$8))*'Inputs|General'!$C64 -> 87.71205313 | G22: =IF('Inputs|General'!$B64='Inputs|General'!$A$48,G$6,IF('Inputs|General'!$B64='Inputs|General'!$A$49,G$7,G$8))*'Inputs|General'!$C64 -> 90.62896683 | H22: =IF('Inputs|General'!$B64='Inputs|General'!$A$48,H$6,IF('Inputs|General'!$B64='Inputs|General'!$A$49,H$7,H$8))*'Inputs|General'!$C64 -> 91.95468557 | J22: 0.04466357064 | K22: -0.01362546445 | L22: -0.01513650372 | M22: 0.03325556294 | N22: 0.01462798023 | P22: =IF(C22=0,"",(D22/'Output|Charges Summary'!D$4)/C22-1) -> 0.02418612386 | Q22: =IF(D22=0,"",(E22/'Output|Charges Summary'!E$4)/(D22/'Output|Charges Summary'!D$4)-1) -> -0.03296033228 | R22: =IF(E22=0,"",(F22/'Output|Charges Summary'!F$4)/(E22/'Output|Charges Summary'!E$4)-1) -> -0.03444175222 | S22: =IF(F22=0,"",(G22/'Output|Charges Summary'!G$4)/(F22/'Output|Charges Summary'!F$4)-1) -> 0.01300173539 | T22: =IF(G22=0,"",(H22/'Output|Charges Summary'!H$4)/(G22/'Output|Charges Summary'!G$4)-1) -> -0.005260710306 | V22: =SUM('Inputs|General'!L64:P64)/5 -> 0 | W22: 0 | Y22: 89.58548865 | Z22: 88.56297005 | AA22: 87.52364721 | AB22: 90.8842803 | AC22: 92.79992251 | AE22: 0.7048712864 | AF22: 0.4971417942 | AG22: 0.1884059183 | AH22: -0.2553134662 | AI22: -0.8452369375
A23: ='Inputs|General'!A65 -> Incandescent 150 watt | C23: ='Inputs|General'!D65 -> 108.0376047 | D23: =IF('Inputs|General'!$B65='Inputs|General'!$A$48,D$6,IF('Inputs|General'!$B65='Inputs|General'!$A$49,D$7,D$8))*'Inputs|General'!$C65 -> 112.8629499 | E23: =IF('Inputs|General'!$B65='Inputs|General'!$A$48,E$6,IF('Inputs|General'!$B65='Inputs|General'!$A$49,E$7,E$8))*'Inputs|General'!$C65 -> 111.3251398 | F23: =IF('Inputs|General'!$B65='Inputs|General'!$A$48,F$6,IF('Inputs|General'!$B65='Inputs|General'!$A$49,F$7,F$8))*'Inputs|General'!$C65 -> 109.6400664 | G23: =IF('Inputs|General'!$B65='Inputs|General'!$A$48,G$6,IF('Inputs|General'!$B65='Inputs|General'!$A$49,G$7,G$8))*'Inputs|General'!$C65 -> 113.2862085 | H23: =IF('Inputs|General'!$B65='Inputs|General'!$A$48,H$6,IF('Inputs|General'!$B65='Inputs|General'!$A$49,H$7,H$8))*'Inputs|General'!$C65 -> 114.943357 | J23: 0.04466357064 | K23: -0.01362546445 | L23: -0.01513650372 | M23: 0.03325556294 | N23: 0.01462798023 | P23: =IF(C23=0,"",(D23/'Output|Charges Summary'!D$4)/C23-1) -> 0.02418612386 | Q23: =IF(D23=0,"",(E23/'Output|Charges Summary'!E$4)/(D23/'Output|Charges Summary'!D$4)-1) -> -0.03296033228 | R23: =IF(E23=0,"",(F23/'Output|Charges Summary'!F$4)/(E23/'Output|Charges Summary'!E$4)-1) -> -0.03444175222 | S23: =IF(F23=0,"",(G23/'Output|Charges Summary'!G$4)/(F23/'Output|Charges Summary'!F$4)-1) -> 0.01300173539 | T23: =IF(G23=0,"",(H23/'Output|Charges Summary'!H$4)/(G23/'Output|Charges Summary'!G$4)-1) -> -0.005260710306 | V23: =SUM('Inputs|General'!L65:P65)/5 -> 0 | W23: 0 | Y23: 111.9818608 | Z23: 110.7037126 | AA23: 109.404559 | AB23: 113.6053504 | AC23: 115.9999031 | AE23: 0.8810891081 | AF23: 0.6214272428 | AG23: 0.2355073979 | AH23: -0.3191418328 | AI23: -1.056546172
A26: ='Inputs|General'!A$70 -> Energy Efficient Lights
A27: ='Inputs|General'!A71 -> T5 (2 x 14 W) | C27: ='Inputs|General'!D71 -> 38.35484104 | D27: ='Output|Charges Summary'!D$81 -> 61.60679794 | E27: ='Output|Charges Summary'!E$81 -> 64.66124948 | F27: ='Output|Charges Summary'!F$81 -> 67.60427493 | G27: ='Output|Charges Summary'!G$81 -> 70.52983558 | H27: ='Output|Charges Summary'!H$81 -> 73.43330048 | J27: =IF(C27=0,"",D27/C27-1) -> 0.6062326496 | K27: =IF(D27=0,"",E27/D27-1) -> 0.04957978088 | L27: =IF(E27=0,"",F27/E27-1) -> 0.04551451561 | M27: =IF(F27=0,"",G27/F27-1) -> 0.04327478765 | N27: =IF(G27=0,"",H27/G27-1) -> 0.04116647772 | P27: =IF(C27=0,"",(D27/'Output|Charges Summary'!D$4)/C27-1) -> 0.5747473518 | Q27: =IF(D27=0,"",(E27/'Output|Charges Summary'!E$4)/(D27/'Output|Charges Summary'!D$4)-1) -> 0.02900596678 | R27: =IF(E27=0,"",(F27/'Output|Charges Summary'!F$4)/(E27/'Output|Charges Summary'!E$4)-1) -> 0.02502038864 | S27: =IF(F27=0,"",(G27/'Output|Charges Summary'!G$4)/(F27/'Output|Charges Summary'!F$4)-1) -> 0.02282456373 | T27: =IF(G27=0,"",(H27/'Output|Charges Summary'!H$4)/(G27/'Output|Charges Summary'!G$4)-1) -> 0.02075758079 | V27: =SUM('Inputs|General'!L71:P71)/5 -> 24902.42202 | W27: =V27/V$35 -> 0.303837531 | Y27: 61.36477644 | Z27: 64.5464332 | AA27: 67.70968841 | AB27: 70.96494661 | AC27: 74.29709685 | AE27: =D27-Y27 -> 0.2420215036 | AF27: =E27-Z27 -> 0.1148162889 | AG27: =F27-AA27 -> -0.1054134803 | AH27: =G27-AB27 -> -0.4351110302 | AI27: =H27-AC27 -> -0.863796366
A28: ='Inputs|General'!A72 -> T5 (2 x 24 W) | C28: ='Inputs|General'!D72 -> 43.19698044 | D28: =D$27*'Inputs|General'!$C72 -> 69.38440034 | E28: =E$27*'Inputs|General'!$C72 -> 72.82446371 | F28: =F$27*'Inputs|General'!$C72 -> 76.1390339 | G28: =G$27*'Inputs|General'!$C72 -> 79.43393442 | H28: =H$27*'Inputs|General'!$C72 -> 82.70394971 | J28: =IF(C28=0,"",D28/C28-1) -> 0.6062326496 | K28: =IF(D28=0,"",E28/D28-1) -> 0.04957978088 | L28: =IF(E28=0,"",F28/E28-1) -> 0.04551451561 | M28: =IF(F28=0,"",G28/F28-1) -> 0.04327478765 | N28: =IF(G28=0,"",H28/G28-1) -> 0.04116647772 | P28: =IF(C28=0,"",(D28/'Output|Charges Summary'!D$4)/C28-1) -> 0.5747473518 | Q28: =IF(D28=0,"",(E28/'Output|Charges Summary'!E$4)/(D28/'Output|Charges Summary'!D$4)-1) -> 0.02900596678 | R28: =IF(E28=0,"",(F28/'Output|Charges Summary'!F$4)/(E28/'Output|Charges Summary'!E$4)-1) -> 0.02502038864 | S28: =IF(F28=0,"",(G28/'Output|Charges Summary'!G$4)/(F28/'Output|Charges Summary'!F$4)-1) -> 0.02282456373 | T28: =IF(G28=0,"",(H28/'Output|Charges Summary'!H$4)/(G28/'Output|Charges Summary'!G$4)-1) -> 0.02075758079 | V28: =SUM('Inputs|General'!L72:P72)/5 -> 871.995733 | W28: 0.01063932778 | Y28: 69.11182463 | Z28: 72.69515234 | AA28: 76.25775539 | AB28: 79.92397641 | AC28: 83.67679678 | AE28: 0.2725757134 | AF28: 0.1293113686 | AG28: -0.1187214944 | AH28: -0.4900419909 | AI28: -0.97284707
A29: ='Inputs|General'!A73 -> LED 18W (incl. other standard Category P LED variants) | C29: ='Inputs|General'!D73 -> 25.13494958 | D29: ='Output|Charges Summary'!D$99 -> 28.43422095 | E29: ='Output|Charges Summary'!E$99 -> 30.40445549 | F29: ='Output|Charges Summary'!F$99 -> 32.2920392 | G29: ='Output|Charges Summary'!G$99 -> 34.15391108 | H29: ='Output|Charges Summary'!H$99 -> 35.98815942 | J29: =IF(C29=0,"",D29/C29-1) -> 0.1312623033 | K29: 0.06929096243 | L29: 0.06208247034 | M29: 0.05765730285 | N29: 0.05370536737 | P29: =IF(C29=0,"",(D29/'Output|Charges Summary'!D$4)/C29-1) -> 0.1090873522 | Q29: =IF(D29=0,"",(E29/'Output|Charges Summary'!E$4)/(D29/'Output|Charges Summary'!D$4)-1) -> 0.04833077066 | R29: =IF(E29=0,"",(F29/'Output|Charges Summary'!F$4)/(E29/'Output|Charges Summary'!E$4)-1) -> 0.0412635791 | S29: =IF(F29=0,"",(G29/'Output|Charges Summary'!G$4)/(F29/'Output|Charges Summary'!F$4)-1) -> 0.03692515354 | T29: =IF(G29=0,"",(H29/'Output|Charges Summary'!H$4)/(G29/'Output|Charges Summary'!G$4)-1) -> 0.03305068371 | V29: =SUM('Inputs|General'!L73:P73)/5 -> 28700.47015 | W29: 0.350177986 | Y29: 28.12786266 | Z29: 30.13033634 | AA29: 32.09789415 | AB29: 34.09682198 | AC29: 36.12652354 | AE29: 0.3063582926 | AF29: 0.2741191523 | AG29: 0.1941450495 | AH29: 0.05708910329 | AI29: -0.138364113
A30: ='Inputs|General'!A74 -> Compact Fluoro 32W | C30: ='Inputs|General'!D74 -> 33.08246466 | D30: =D$27*'Inputs|General'!$C74 -> 58.41283733 | E30: =E$27*'Inputs|General'!$C74 -> 61.308933 | F30: =F$27*'Inputs|General'!$C74 -> 64.09937939 | G30: =G$27*'Inputs|General'!$C74 -> 66.87326642 | H30: =H$27*'Inputs|General'!$C74 -> 69.62620325 | J30: 0.7656736863 | K30: 0.04957978088 | L30: 0.04551451561 | M30: 0.04327478765 | N30: 0.04116647772 | P30: =IF(C30=0,"",(D30/'Output|Charges Summary'!D$4)/C30-1) -> 0.7310630327 | Q30: =IF(D30=0,"",(E30/'Output|Charges Summary'!E$4)/(D30/'Output|Charges Summary'!D$4)-1) -> 0.02900596678 | R30: =IF(E30=0,"",(F30/'Output|Charges Summary'!F$4)/(E30/'Output|Charges Summary'!E$4)-1) -> 0.02502038864 | S30: =IF(F30=0,"",(G30/'Output|Charges Summary'!G$4)/(F30/'Output|Charges Summary'!F$4)-1) -> 0.02282456373 | T30: =IF(G30=0,"",(H30/'Output|Charges Summary'!H$4)/(G30/'Output|Charges Summary'!G$4)-1) -> 0.02075758079 | V30: =SUM('Inputs|General'!L74:P74)/5 -> 2510.169008 | W30: 0.03062688252 | Y30: 58.18336325 | Z30: 61.20006928 | AA30: 64.19932778 | AB30: 67.28581943 | AC30: 70.44521671 | AE30: 0.2294740709 | AF30: 0.1088637201 | AG30: -0.09994839339 | AH30: -0.4125530084 | AI30: -0.8190134579
A31: ='Inputs|General'!A75 -> Compact Fluoro 42W | C31: ='Inputs|General'!D75 -> 37.30995832 | D31: =D$27*'Inputs|General'!$C75 -> 58.41283733 | E31: =E$27*'Inputs|General'!$C75 -> 61.308933 | F31: =F$27*'Inputs|General'!$C75 -> 64.09937939 | G31: =G$27*'Inputs|General'!$C75 -> 66.87326642 | H31: =H$27*'Inputs|General'!$C75 -> 69.62620325 | J31: 0.5656098251 | K31: 0.04957978088 | L31: 0.04551451561 | M31: 0.04327478765 | N31: 0.04116647772 | P31: =IF(C31=0,"",(D31/'Output|Charges Summary'!D$4)/C31-1) -> 0.534920814 | Q31: =IF(D31=0,"",(E31/'Output|Charges Summary'!E$4)/(D31/'Output|Charges Summary'!D$4)-1) -> 0.02900596678 | R31: =IF(E31=0,"",(F31/'Output|Charges Summary'!F$4)/(E31/'Output|Charges Summary'!E$4)-1) -> 0.02502038864 | S31: =IF(F31=0,"",(G31/'Output|Charges Summary'!G$4)/(F31/'Output|Charges Summary'!F$4)-1) -> 0.02282456373 | T31: =IF(G31=0,"",(H31/'Output|Charges Summary'!H$4)/(G31/'Output|Charges Summary'!G$4)-1) -> 0.02075758079 | V31: =SUM('Inputs|General'!L75:P75)/5 -> 314.8712196 | W31: 0.003841782693 | Y31: 58.18336325 | Z31: 61.20006928 | AA31: 64.19932778 | AB31: 67.28581943 | AC31: 70.44521671 | AE31: 0.2294740709 | AF31: 0.1088637201 | AG31: -0.09994839339 | AH31: -0.4125530084 | AI31: -0.8190134579
A32: ='Inputs|General'!A76 -> L1 - LED 70W | C32: ='Inputs|General'!D76 -> 60.94 | D32: ='Output|Charges Summary'!D$117 -> 53.61197664 | E32: ='Output|Charges Summary'!E$117 -> 56.94999671 | F32: ='Output|Charges Summary'!F$117 -> 60.11811446 | G32: ='Output|Charges Summary'!G$117 -> 63.21616815 | H32: ='Output|Charges Summary'!H$117 -> 66.20535394 | J32: =IF(C32=0,"",D32/C32-1) -> -0.120249809 | K32: =IF(D32=0,"",E32/D32-1) -> 0.06226258155 | L32: =IF(E32=0,"",F32/E32-1) -> 0.05562981441 | M32: =IF(F32=0,"",G32/F32-1) -> 0.05153278206 | N32: =IF(G32=0,"",H32/G32-1) -> 0.04728514676 | P32: =IF(C32=0,"",(D32/'Output|Charges Summary'!D$4)/C32-1) -> -0.1374946313 | Q32: =IF(D32=0,"",(E32/'Output|Charges Summary'!E$4)/(D32/'Output|Charges Summary'!D$4)-1) -> 0.04144015978 | R32: =IF(E32=0,"",(F32/'Output|Charges Summary'!F$4)/(E32/'Output|Charges Summary'!E$4)-1) -> 0.03493740783 | S32: =IF(F32=0,"",(G32/'Output|Charges Summary'!G$4)/(F32/'Output|Charges Summary'!F$4)-1) -> 0.03092068531 | T32: =IF(G32=0,"",(H32/'Output|Charges Summary'!H$4)/(G32/'Output|Charges Summary'!G$4)-1) -> 0.02675631197 | V32: =SUM('Inputs|General'!L76:P76)/5 -> 960.126702 | W32: 0.01171462464 | Y32: 53.25623872 | Z32: 56.64798404 | AA32: 59.93986901 | AB32: 63.23890859 | AC32: 66.48284819 | AE32: 0.3557379192 | AF32: 0.3020126735 | AG32: 0.1782454437 | AH32: -0.0227404438 | AI32: -0.277494258
A33: ='Inputs|General'!A77 -> L2 - LED 118W, 155W, 162W | C33: ='Inputs|General'!D77 -> 62.04 | D33: ='Output|Charges Summary'!D$135 -> 54.16704626 | E33: ='Output|Charges Summary'!E$135 -> 57.61602468 | F33: ='Output|Charges Summary'!F$135 -> 60.8833292 | G33: ='Output|Charges Summary'!G$135 -> 64.07149888 | H33: ='Output|Charges Summary'!H$135 -> 67.13533625 | J33: -0.126901253 | K33: 0.06367300156 | L33: 0.05670826007 | M33: 0.05236523245 | N33: 0.04781903684 | P33: =IF(C33=0,"",(D33/'Output|Charges Summary'!D$4)/C33-1) -> -0.1440156941 | Q33: =IF(D33=0,"",(E33/'Output|Charges Summary'!E$4)/(D33/'Output|Charges Summary'!D$4)-1) -> 0.0428229328 | R33: =IF(E33=0,"",(F33/'Output|Charges Summary'!F$4)/(E33/'Output|Charges Summary'!E$4)-1) -> 0.03599471385 | S33: =IF(F33=0,"",(G33/'Output|Charges Summary'!G$4)/(F33/'Output|Charges Summary'!F$4)-1) -> 0.03173681805 | T33: =IF(G33=0,"",(H33/'Output|Charges Summary'!H$4)/(G33/'Output|Charges Summary'!G$4)-1) -> 0.02727973676 | V33: =SUM('Inputs|General'!L77:P77)/5 -> 261.4813146 | W33: 0.003190365859 | Y33: 53.7953377 | Z33: 57.29556068 | AA33: 60.68504456 | AB33: 64.07347257 | AC33: 67.39217891 | AE33: 0.3717085595 | AF33: 0.3204640048 | AG33: 0.1982846342 | AH33: -0.001973684145 | AI33: -0.2568426641
A34: ='Inputs|General'!A78 -> L4 - LED 275W | C34: ='Inputs|General'!D78 -> 82.52 | D34: ='Output|Charges Summary'!D$153 -> 59.13780573 | E34: ='Output|Charges Summary'!E$153 -> 63.58043839 | F34: ='Output|Charges Summary'!F$153 -> 67.73598022 | G34: ='Output|Charges Summary'!G$153 -> 71.73115667 | H34: ='Output|Charges Summary'!H$153 -> 75.46351383 | J34: -0.2833518453 | K34: 0.07512339378 | L34: 0.0653588105 | M34: 0.05898159938 | N34: 0.05203258026 | P34: =IF(C34=0,"",(D34/'Output|Charges Summary'!D$4)/C34-1) -> -0.2973995491 | Q34: =IF(D34=0,"",(E34/'Output|Charges Summary'!E$4)/(D34/'Output|Charges Summary'!D$4)-1) -> 0.05404887496 | R34: =IF(E34=0,"",(F34/'Output|Charges Summary'!F$4)/(E34/'Output|Charges Summary'!E$4)-1) -> 0.04447569659 | S34: =IF(F34=0,"",(G34/'Output|Charges Summary'!G$4)/(F34/'Output|Charges Summary'!F$4)-1) -> 0.03822349126 | T34: =IF(G34=0,"",(H34/'Output|Charges Summary'!H$4)/(G34/'Output|Charges Summary'!G$4)-1) -> 0.03141068649 | V34: =SUM('Inputs|General'!L78:P78)/5 -> 4.085645541 | W34: 4.984946654e-05 | Y34: 58.62307689 | Z34: 59.74876544 | AA34: 63.93282329 | AB34: 68.04041255 | AC34: 71.94540903 | AE34: 0.5147288373 | AF34: 3.831672957 | AG34: 3.803156924 | AH34: 3.690744114 | AI34: 3.518104807
V35: =SUM(V6:V34) -> 81959.66424 | W35: =SUM(W6:W34) -> 1
A37: Revenue - Nominal ($,000) | D37: ='Output|Cashflow Summary'!D37/10^3 -> 5544.913569 | E37: ='Output|Cashflow Summary'!E37/10^3 -> 5640.263058 | F37: ='Output|Cashflow Summary'!F37/10^3 -> 5749.826191 | G37: ='Output|Cashflow Summary'!G37/10^3 -> 5951.622159 | H37: ='Output|Cashflow Summary'!H37/10^3 -> 6139.639813 | Y37: 5522.059817 | Z37: 5629.781499 | AA37: 5759.633872 | AB37: 5991.45133 | AC37: 6218.876255 | AE37: =D37-Y37 -> 22.85375217 | AF37: =E37-Z37 -> 10.48155875 | AG37: -9.807680826 | AH37: -39.8291713 | AI37: -79.23644127
AI39: =SUM(AE37:AI37)/SUM(Y37:AC37) -> -0.003280634211

Sheet Output|PL Tariff Components
A1: ='Inputs|O & M'!$A$3 -> Jemena | E1: Global Check | F1: =IF(SUM('Calc|Total RAB'!F1,'Calc|Depn & WACC Post 2004'!F1,'Output|Cashflow Summary'!F1,W1)<1,"Ok","Error") -> Ok | V1: Check | W1: =SUM(V6:Z34) -> 1.032063324e-12
A3: Public Lighting Tariffs | C3: Total Tariff | J3: Operations, maintenance and repair Tariff | P3: Replacement Tariff | V3: Check
A4: Excluding Revenue Recovery | C4: Actual
A5: ='Inputs|General'!A$47 -> Existing Lights | C5: ='Inputs|General'!D$45 -> CY2020/HY2021 | D5: ='Inputs|General'!L$3 -> FY2022 | E5: ='Inputs|General'!M$3 -> FY2023 | F5: ='Inputs|General'!N$3 -> FY2024 | G5: ='Inputs|General'!O$3 -> FY2025 | H5: ='Inputs|General'!P$3 -> FY2026 | J5: =D5 -> FY2022 | K5: =E5 -> FY2023 | L5: FY2024 | M5: FY2025 | N5: FY2026 | P5: =J5 -> FY2022 | Q5: =K5 -> FY2023 | R5: FY2024 | S5: FY2025 | T5: FY2026 | V5: =P5 -> FY2022 | W5: =Q5 -> FY2023 | X5: FY2024 | Y5: FY2025 | Z5: FY2026
A6: ='Inputs|General'!A48 -> Mercury Vapour 80 watt | C6: ='Inputs|General'!D48 -> 55.40389986 | D6: ='Output|Charges Summary'!D$31 -> 57.87843585 | E6: ='Output|Charges Summary'!E$31 -> 57.08981528 | F6: ='Output|Charges Summary'!F$31 -> 56.22567508 | G6: ='Output|Charges Summary'!G$31 -> 58.09549156 | H6: ='Output|Charges Summary'!H$31 -> 58.94531126 | J6: =SUM('Output|Charges Summary'!D25,'Output|Charges Summary'!D8) -> 32.46573982 | K6: =SUM('Output|Charges Summary'!E25,'Output|Charges Summary'!E8) -> 33.28574701 | L6: =SUM('Output|Charges Summary'!F25,'Output|Charges Summary'!F8) -> 34.12555136 | M6: =SUM('Output|Charges Summary'!G25,'Output|Charges Summary'!G8) -> 35.02218453 | N6: =SUM('Output|Charges Summary'!H25,'Output|Charges Summary'!H8) -> 36.00024524 | P6: =SUM('Output|Charges Summary'!D27,'Output|Charges Summary'!D11) -> 25.41269604 | Q6: =SUM('Output|Charges Summary'!E27,'Output|Charges Summary'!E11) -> 23.80406827 | R6: =SUM('Output|Charges Summary'!F27,'Output|Charges Summary'!F11) -> 22.10012372 | S6: =SUM('Output|Charges Summary'!G27,'Output|Charges Summary'!G11) -> 23.07330703 | T6: =SUM('Output|Charges Summary'!H27,'Output|Charges Summary'!H11) -> 22.94506602 | V6: =ABS(D6-J6-P6) -> 3.552713679e-15 | W6: =ABS(E6-K6-Q6) -> 7.105427358e-15 | X6: 3.552713679e-15 | Y6: 0 | Z6: 3.552713679e-15
A7: ='Inputs|General'!A49 -> Sodium High Pressure 150 watt | C7: ='Inputs|General'!D49 -> 102.0694564 | D7: ='Output|Charges Summary'!D$47 -> 121.2068285 | E7: ='Output|Charges Summary'!E$47 -> 121.5191925 | F7: ='Output|Charges Summary'!F$47 -> 121.8998925 | G7: ='Output|Charges Summary'!G$47 -> 125.4265869 | H7: ='Output|Charges Summary'!H$47 -> 127.8642102 | J7: =SUM('Output|Charges Summary'!D41,'Output|Charges Summary'!D8) -> 92.49790218 | K7: =SUM('Output|Charges Summary'!E41,'Output|Charges Summary'!E8) -> 94.80253837 | L7: =SUM('Output|Charges Summary'!F41,'Output|Charges Summary'!F8) -> 97.14066585 | M7: =SUM('Output|Charges Summary'!G41,'Output|Charges Summary'!G8) -> 99.62851495 | N7: =SUM('Output|Charges Summary'!H41,'Output|Charges Summary'!H8) -> 102.3400562 | P7: =SUM('Output|Charges Summary'!D43,'Output|Charges Summary'!D11) -> 28.7089263 | Q7: =SUM('Output|Charges Summary'!E43,'Output|Charges Summary'!E11) -> 26.71665414 | R7: =SUM('Output|Charges Summary'!F43,'Output|Charges Summary'!F11) -> 24.75922664 | S7: =SUM('Output|Charges Summary'!G43,'Output|Charges Summary'!G11) -> 25.79807195 | T7: =SUM('Output|Charges Summary'!H43,'Output|Charges Summary'!H11) -> 25.52415395 | V7: =ABS(D7-J7-P7) -> 3.552713679e-15 | W7: 0 | X7: 0 | Y7: 7.105427358e-15 | Z7: 7.105427358e-15
A8: ='Inputs|General'!A50 -> Sodium High Pressure 250 watt | C8: ='Inputs|General'!D50 -> 103.30985 | D8: ='Output|Charges Summary'!D$63 -> 124.0506878 | E8: ='Output|Charges Summary'!E$63 -> 124.2339346 | F8: ='Output|Charges Summary'!F$63 -> 123.6883074 | G8: ='Output|Charges Summary'!G$63 -> 127.253467 | H8: ='Output|Charges Summary'!H$63 -> 129.710375 | J8: =SUM('Output|Charges Summary'!D57,'Output|Charges Summary'!D8) -> 93.96864249 | K8: =SUM('Output|Charges Summary'!E57,'Output|Charges Summary'!E8) -> 96.30397713 | L8: =SUM('Output|Charges Summary'!F57,'Output|Charges Summary'!F8) -> 98.67334414 | M8: =SUM('Output|Charges Summary'!G57,'Output|Charges Summary'!G8) -> 101.1933435 | N8: =SUM('Output|Charges Summary'!H57,'Output|Charges Summary'!H8) -> 103.9381799 | P8: =SUM('Output|Charges Summary'!D59,'Output|Charges Summary'!D11) -> 30.08204534 | Q8: =SUM('Output|Charges Summary'!E59,'Output|Charges Summary'!E11) -> 27.92995746 | R8: =SUM('Output|Charges Summary'!F59,'Output|Charges Summary'!F11) -> 25.01496322 | S8: =SUM('Output|Charges Summary'!G59,'Output|Charges Summary'!G11) -> 26.0601235 | T8: =SUM('Output|Charges Summary'!H59,'Output|Charges Summary'!H11) -> 25.77219517 | V8: 3.552713679e-15 | W8: 0 | X8: 7.105427358e-15 | Y8: 7.105427358e-15 | Z8: 2.131628207e-14
A9: ='Inputs|General'!A51 -> Fluorescent 20 watt | C9: ='Inputs|General'!D51 -> 69.25487482 | D9: =IF('Inputs|General'!$B51='Inputs|General'!$A$48,D$6,IF('Inputs|General'!$B51='Inputs|General'!$A$49,D$7,D$8))*'Inputs|General'!$C51 -> 72.34804482 | E9: =IF('Inputs|General'!$B51='Inputs|General'!$A$48,E$6,IF('Inputs|General'!$B51='Inputs|General'!$A$49,E$7,E$8))*'Inputs|General'!$C51 -> 71.36226911 | F9: =IF('Inputs|General'!$B51='Inputs|General'!$A$48,F$6,IF('Inputs|General'!$B51='Inputs|General'!$A$49,F$7,F$8))*'Inputs|General'!$C51 -> 70.28209385 | G9: =IF('Inputs|General'!$B51='Inputs|General'!$A$48,G$6,IF('Inputs|General'!$B51='Inputs|General'!$A$49,G$7,G$8))*'Inputs|General'!$C51 -> 72.61936445 | H9: =IF('Inputs|General'!$B51='Inputs|General'!$A$48,H$6,IF('Inputs|General'!$B51='Inputs|General'!$A$49,H$7,H$8))*'Inputs|General'!$C51 -> 73.68163908 | J9: =IF('Inputs|General'!$B51='Inputs|General'!$A$48,J$6,IF('Inputs|General'!$B51='Inputs|General'!$A$49,J$7,J$8))*'Inputs|General'!$C51 -> 40.58217477 | K9: =IF('Inputs|General'!$B51='Inputs|General'!$A$48,K$6,IF('Inputs|General'!$B51='Inputs|General'!$A$49,K$7,K$8))*'Inputs|General'!$C51 -> 41.60718377 | L9: =IF('Inputs|General'!$B51='Inputs|General'!$A$48,L$6,IF('Inputs|General'!$B51='Inputs|General'!$A$49,L$7,L$8))*'Inputs|General'!$C51 -> 42.6569392 | M9: =IF('Inputs|General'!$B51='Inputs|General'!$A$48,M$6,IF('Inputs|General'!$B51='Inputs|General'!$A$49,M$7,M$8))*'Inputs|General'!$C51 -> 43.77773067 | N9: =IF('Inputs|General'!$B51='Inputs|General'!$A$48,N$6,IF('Inputs|General'!$B51='Inputs|General'!$A$49,N$7,N$8))*'Inputs|General'!$C51 -> 45.00030655 | P9: =IF('Inputs|General'!$B51='Inputs|General'!$A$48,P$6,IF('Inputs|General'!$B51='Inputs|General'!$A$49,P$7,P$8))*'Inputs|General'!$C51 -> 31.76587005 | Q9: =IF('Inputs|General'!$B51='Inputs|General'!$A$48,Q$6,IF('Inputs|General'!$B51='Inputs|General'!$A$49,Q$7,Q$8))*'Inputs|General'!$C51 -> 29.75508534 | R9: =IF('Inputs|General'!$B51='Inputs|General'!$A$48,R$6,IF('Inputs|General'!$B51='Inputs|General'!$A$49,R$7,R$8))*'Inputs|General'!$C51 -> 27.62515465 | S9: =IF('Inputs|General'!$B51='Inputs|General'!$A$48,S$6,IF('Inputs|General'!$B51='Inputs|General'!$A$49,S$7,S$8))*'Inputs|General'!$C51 -> 28.84163378 | T9: =IF('Inputs|General'!$B51='Inputs|General'!$A$48,T$6,IF('Inputs|General'!$B51='Inputs|General'!$A$49,T$7,T$8))*'Inputs|General'!$C51 -> 28.68133253 | V9: 0 | W9: 1.421085472e-14 | X9: 1.421085472e-14 | Y9: 0 | Z9: 3.552713679e-15
A10: ='Inputs|General'!A52 -> Fluorescent 40 watt | C10: ='Inputs|General'!D52 -> 69.25487482 | D10: =IF('Inputs|General'!$B52='Inputs|General'!$A$48,D$6,IF('Inputs|General'!$B52='Inputs|General'!$A$49,D$7,D$8))*'Inputs|General'!$C52 -> 72.34804482 | E10: =IF('Inputs|General'!$B52='Inputs|General'!$A$48,E$6,IF('Inputs|General'!$B52='Inputs|General'!$A$49,E$7,E$8))*'Inputs|General'!$C52 -> 71.36226911 | F10: =IF('Inputs|General'!$B52='Inputs|General'!$A$48,F$6,IF('Inputs|General'!$B52='Inputs|General'!$A$49,F$7,F$8))*'Inputs|General'!$C52 -> 70.28209385 | G10: =IF('Inputs|General'!$B52='Inputs|General'!$A$48,G$6,IF('Inputs|General'!$B52='Inputs|General'!$A$49,G$7,G$8))*'Inputs|General'!$C52 -> 72.61936445 | H10: =IF('Inputs|General'!$B52='Inputs|General'!$A$48,H$6,IF('Inputs|General'!$B52='Inputs|General'!$A$49,H$7,H$8))*'Inputs|General'!$C52 -> 73.68163908 | J10: =IF('Inputs|General'!$B52='Inputs|General'!$A$48,J$6,IF('Inputs|General'!$B52='Inputs|General'!$A$49,J$7,J$8))*'Inputs|General'!$C52 -> 40.58217477 | K10: =IF('Inputs|General'!$B52='Inputs|General'!$A$48,K$6,IF('Inputs|General'!$B52='Inputs|General'!$A$49,K$7,K$8))*'Inputs|General'!$C52 -> 41.60718377 | L10: =IF('Inputs|General'!$B52='Inputs|General'!$A$48,L$6,IF('Inputs|General'!$B52='Inputs|General'!$A$49,L$7,L$8))*'Inputs|General'!$C52 -> 42.6569392 | M10: =IF('Inputs|General'!$B52='Inputs|General'!$A$48,M$6,IF('Inputs|General'!$B52='Inputs|General'!$A$49,M$7,M$8))*'Inputs|General'!$C52 -> 43.77773067 | N10: =IF('Inputs|General'!$B52='Inputs|General'!$A$48,N$6,IF('Inputs|General'!$B52='Inputs|General'!$A$49,N$7,N$8))*'Inputs|General'!$C52 -> 45.00030655 | P10: =IF('Inputs|General'!$B52='Inputs|General'!$A$48,P$6,IF('Inputs|General'!$B52='Inputs|General'!$A$49,P$7,P$8))*'Inputs|General'!$C52 -> 31.76587005 | Q10: =IF('Inputs|General'!$B52='Inputs|General'!$A$48,Q$6,IF('Inputs|General'!$B52='Inputs|General'!$A$49,Q$7,Q$8))*'Inputs|General'!$C52 -> 29.75508534 | R10: =IF('Inputs|General'!$B52='Inputs|General'!$A$48,R$6,IF('Inputs|General'!$B52='Inputs|General'!$A$49,R$7,R$8))*'Inputs|General'!$C52 -> 27.62515465 | S10: =IF('Inputs|General'!$B52='Inputs|General'!$A$48,S$6,IF('Inputs|General'!$B52='Inputs|General'!$A$49,S$7,S$8))*'Inputs|General'!$C52 -> 28.84163378 | T10: =IF('Inputs|General'!$B52='Inputs|General'!$A$48,T$6,IF('Inputs|General'!$B52='Inputs|General'!$A$49,T$7,T$8))*'Inputs|General'!$C52 -> 28.68133253 | V10: 0 | W10: 1.421085472e-14 | X10: 1.421085472e-14 | Y10: 0 | Z10: 3.552713679e-15
A11: ='Inputs|General'!A53 -> Fluorescent 80 watt | C11: ='Inputs|General'!D53 -> 69.25487482 | D11: =IF('Inputs|General'!$B53='Inputs|General'!$A$48,D$6,IF('Inputs|General'!$B53='Inputs|General'!$A$49,D$7,D$8))*'Inputs|General'!$C53 -> 72.34804482 | E11: =IF('Inputs|General'!$B53='Inputs|General'!$A$48,E$6,IF('Inputs|General'!$B53='Inputs|General'!$A$49,E$7,E$8))*'Inputs|General'!$C53 -> 71.36226911 | F11: =IF('Inputs|General'!$B53='Inputs|General'!$A$48,F$6,IF('Inputs|General'!$B53='Inputs|General'!$A$49,F$7,F$8))*'Inputs|General'!$C53 -> 70.28209385 | G11: =IF('Inputs|General'!$B53='Inputs|General'!$A$48,G$6,IF('Inputs|General'!$B53='Inputs|General'!$A$49,G$7,G$8))*'Inputs|General'!$C53 -> 72.61936445 | H11: =IF('Inputs|General'!$B53='Inputs|General'!$A$48,H$6,IF('Inputs|General'!$B53='Inputs|General'!$A$49,H$7,H$8))*'Inputs|General'!$C53 -> 73.68163908 | J11: =IF('Inputs|General'!$B53='Inputs|General'!$A$48,J$6,IF('Inputs|General'!$B53='Inputs|General'!$A$49,J$7,J$8))*'Inputs|General'!$C53 -> 40.58217477 | K11: =IF('Inputs|General'!$B53='Inputs|General'!$A$48,K$6,IF('Inputs|General'!$B53='Inputs|General'!$A$49,K$7,K$8))*'Inputs|General'!$C53 -> 41.60718377 | L11: =IF('Inputs|General'!$B53='Inputs|General'!$A$48,L$6,IF('Inputs|General'!$B53='Inputs|General'!$A$49,L$7,L$8))*'Inputs|General'!$C53 -> 42.6569392 | M11: =IF('Inputs|General'!$B53='Inputs|General'!$A$48,M$6,IF('Inputs|General'!$B53='Inputs|General'!$A$49,M$7,M$8))*'Inputs|General'!$C53 -> 43.77773067 | N11: =IF('Inputs|General'!$B53='Inputs|General'!$A$48,N$6,IF('Inputs|General'!$B53='Inputs|General'!$A$49,N$7,N$8))*'Inputs|General'!$C53 -> 45.00030655 | P11: =IF('Inputs|General'!$B53='Inputs|General'!$A$48,P$6,IF('Inputs|General'!$B53='Inputs|General'!$A$49,P$7,P$8))*'Inputs|General'!$C53 -> 31.76587005 | Q11: =IF('Inputs|General'!$B53='Inputs|General'!$A$48,Q$6,IF('Inputs|General'!$B53='Inputs|General'!$A$49,Q$7,Q$8))*'Inputs|General'!$C53 -> 29.75508534 | R11: =IF('Inputs|General'!$B53='Inputs|General'!$A$48,R$6,IF('Inputs|General'!$B53='Inputs|General'!$A$49,R$7,R$8))*'Inputs|General'!$C53 -> 27.62515465 | S11: =IF('Inputs|General'!$B53='Inputs|General'!$A$48,S$6,IF('Inputs|General'!$B53='Inputs|General'!$A$49,S$7,S$8))*'Inputs|General'!$C53 -> 28.84163378 | T11: =IF('Inputs|General'!$B53='Inputs|General'!$A$48,T$6,IF('Inputs|General'!$B53='Inputs|General'!$A$49,T$7,T$8))*'Inputs|General'!$C53 -> 28.68133253 | V11: 0 | W11: 1.421085472e-14 | X11: 1.421085472e-14 | Y11: 0 | Z11: 3.552713679e-15
A12: ='Inputs|General'!A54 -> Mercury Vapour 50 watt | C12: ='Inputs|General'!D54 -> 69.25487482 | D12: =IF('Inputs|General'!$B54='Inputs|General'!$A$48,D$6,IF('Inputs|General'!$B54='Inputs|General'!$A$49,D$7,D$8))*'Inputs|General'!$C54 -> 72.34804482 | E12: =IF('Inputs|General'!$B54='Inputs|General'!$A$48,E$6,IF('Inputs|General'!$B54='Inputs|General'!$A$49,E$7,E$8))*'Inputs|General'!$C54 -> 71.36226911 | F12: =IF('Inputs|General'!$B54='Inputs|General'!$A$48,F$6,IF('Inputs|General'!$B54='Inputs|General'!$A$49,F$7,F$8))*'Inputs|General'!$C54 -> 70.28209385 | G12: =IF('Inputs|General'!$B54='Inputs|General'!$A$48,G$6,IF('Inputs|General'!$B54='Inputs|General'!$A$49,G$7,G$8))*'Inputs|General'!$C54 -> 72.61936445 | H12: =IF('Inputs|General'!$B54='Inputs|General'!$A$48,H$6,IF('Inputs|General'!$B54='Inputs|General'!$A$49,H$7,H$8))*'Inputs|General'!$C54 -> 73.68163908 | J12: =IF('Inputs|General'!$B54='Inputs|General'!$A$48,J$6,IF('Inputs|General'!$B54='Inputs|General'!$A$49,J$7,J$8))*'Inputs|General'!$C54 -> 40.58217477 | K12: =IF('Inputs|General'!$B54='Inputs|General'!$A$48,K$6,IF('Inputs|General'!$B54='Inputs|General'!$A$49,K$7,K$8))*'Inputs|General'!$C54 -> 41.60718377 | L12: =IF('Inputs|General'!$B54='Inputs|General'!$A$48,L$6,IF('Inputs|General'!$B54='Inputs|General'!$A$49,L$7,L$8))*'Inputs|General'!$C54 -> 42.6569392 | M12: =IF('Inputs|General'!$B54='Inputs|General'!$A$48,M$6,IF('Inputs|General'!$B54='Inputs|General'!$A$49,M$7,M$8))*'Inputs|General'!$C54 -> 43.77773067 | N12: =IF('Inputs|General'!$B54='Inputs|General'!$A$48,N$6,IF('Inputs|General'!$B54='Inputs|General'!$A$49,N$7,N$8))*'Inputs|General'!$C54 -> 45.00030655 | P12: =IF('Inputs|General'!$B54='Inputs|General'!$A$48,P$6,IF('Inputs|General'!$B54='Inputs|General'!$A$49,P$7,P$8))*'Inputs|General'!$C54 -> 31.76587005 | Q12: =IF('Inputs|General'!$B54='Inputs|General'!$A$48,Q$6,IF('Inputs|General'!$B54='Inputs|General'!$A$49,Q$7,Q$8))*'Inputs|General'!$C54 -> 29.75508534 | R12: =IF('Inputs|General'!$B54='Inputs|General'!$A$48,R$6,IF('Inputs|General'!$B54='Inputs|General'!$A$49,R$7,R$8))*'Inputs|General'!$C54 -> 27.62515465 | S12: =IF('Inputs|General'!$B54='Inputs|General'!$A$48,S$6,IF('Inputs|General'!$B54='Inputs|General'!$A$49,S$7,S$8))*'Inputs|General'!$C54 -> 28.84163378 | T12: =IF('Inputs|General'!$B54='Inputs|General'!$A$48,T$6,IF('Inputs|General'!$B54='Inputs|General'!$A$49,T$7,T$8))*'Inputs|General'!$C54 -> 28.68133253 | V12: 0 | W12: 1.421085472e-14 | X12: 1.421085472e-14 | Y12: 0 | Z12: 3.552713679e-15
A13: ='Inputs|General'!A55 -> Mercury Vapour 125 watt | C13: ='Inputs|General'!D55 -> 81.44373279 | D13: =IF('Inputs|General'!$B55='Inputs|General'!$A$48,D$6,IF('Inputs|General'!$B55='Inputs|General'!$A$49,D$7,D$8))*'Inputs|General'!$C55 -> 85.08130071 | E13: =IF('Inputs|General'!$B55='Inputs|General'!$A$48,E$6,IF('Inputs|General'!$B55='Inputs|General'!$A$49,E$7,E$8))*'Inputs|General'!$C55 -> 83.92202847 | F13: =IF('Inputs|General'!$B55='Inputs|General'!$A$48,F$6,IF('Inputs|General'!$B55='Inputs|General'!$A$49,F$7,F$8))*'Inputs|General'!$C55 -> 82.65174237 | G13: =IF('Inputs|General'!$B55='Inputs|General'!$A$48,G$6,IF('Inputs|General'!$B55='Inputs|General'!$A$49,G$7,G$8))*'Inputs|General'!$C55 -> 85.40037259 | H13: =IF('Inputs|General'!$B55='Inputs|General'!$A$48,H$6,IF('Inputs|General'!$B55='Inputs|General'!$A$49,H$7,H$8))*'Inputs|General'!$C55 -> 86.64960755 | J13: =IF('Inputs|General'!$B55='Inputs|General'!$A$48,J$6,IF('Inputs|General'!$B55='Inputs|General'!$A$49,J$7,J$8))*'Inputs|General'!$C55 -> 47.72463753 | K13: =IF('Inputs|General'!$B55='Inputs|General'!$A$48,K$6,IF('Inputs|General'!$B55='Inputs|General'!$A$49,K$7,K$8))*'Inputs|General'!$C55 -> 48.93004811 | L13: =IF('Inputs|General'!$B55='Inputs|General'!$A$48,L$6,IF('Inputs|General'!$B55='Inputs|General'!$A$49,L$7,L$8))*'Inputs|General'!$C55 -> 50.1645605 | M13: =IF('Inputs|General'!$B55='Inputs|General'!$A$48,M$6,IF('Inputs|General'!$B55='Inputs|General'!$A$49,M$7,M$8))*'Inputs|General'!$C55 -> 51.48261126 | N13: =IF('Inputs|General'!$B55='Inputs|General'!$A$48,N$6,IF('Inputs|General'!$B55='Inputs|General'!$A$49,N$7,N$8))*'Inputs|General'!$C55 -> 52.9203605 | P13: =IF('Inputs|General'!$B55='Inputs|General'!$A$48,P$6,IF('Inputs|General'!$B55='Inputs|General'!$A$49,P$7,P$8))*'Inputs|General'!$C55 -> 37.35666318 | Q13: =IF('Inputs|General'!$B55='Inputs|General'!$A$48,Q$6,IF('Inputs|General'!$B55='Inputs|General'!$A$49,Q$7,Q$8))*'Inputs|General'!$C55 -> 34.99198036 | R13: =IF('Inputs|General'!$B55='Inputs|General'!$A$48,R$6,IF('Inputs|General'!$B55='Inputs|General'!$A$49,R$7,R$8))*'Inputs|General'!$C55 -> 32.48718187 | S13: =IF('Inputs|General'!$B55='Inputs|General'!$A$48,S$6,IF('Inputs|General'!$B55='Inputs|General'!$A$49,S$7,S$8))*'Inputs|General'!$C55 -> 33.91776133 | T13: =IF('Inputs|General'!$B55='Inputs|General'!$A$48,T$6,IF('Inputs|General'!$B55='Inputs|General'!$A$49,T$7,T$8))*'Inputs|General'!$C55 -> 33.72924706 | V13: 7.105427358e-15 | W13: 1.421085472e-14 | X13: 0 | Y13: 0 | Z13: 0
A14: ='Inputs|General'!A56 -> Mercury Vapour 250 watt | C14: ='Inputs|General'!D56 -> 99.17745595 | D14: =IF('Inputs|General'!$B56='Inputs|General'!$A$48,D$6,IF('Inputs|General'!$B56='Inputs|General'!$A$49,D$7,D$8))*'Inputs|General'!$C56 -> 119.0886603 | E14: =IF('Inputs|General'!$B56='Inputs|General'!$A$48,E$6,IF('Inputs|General'!$B56='Inputs|General'!$A$49,E$7,E$8))*'Inputs|General'!$C56 -> 119.2645772 | F14: =IF('Inputs|General'!$B56='Inputs|General'!$A$48,F$6,IF('Inputs|General'!$B56='Inputs|General'!$A$49,F$7,F$8))*'Inputs|General'!$C56 -> 118.7407751 | G14: =IF('Inputs|General'!$B56='Inputs|General'!$A$48,G$6,IF('Inputs|General'!$B56='Inputs|General'!$A$49,G$7,G$8))*'Inputs|General'!$C56 -> 122.1633283 | H14: =IF('Inputs|General'!$B56='Inputs|General'!$A$48,H$6,IF('Inputs|General'!$B56='Inputs|General'!$A$49,H$7,H$8))*'Inputs|General'!$C56 -> 124.52196 | J14: =IF('Inputs|General'!$B56='Inputs|General'!$A$48,J$6,IF('Inputs|General'!$B56='Inputs|General'!$A$49,J$7,J$8))*'Inputs|General'!$C56 -> 90.2098968 | K14: =IF('Inputs|General'!$B56='Inputs|General'!$A$48,K$6,IF('Inputs|General'!$B56='Inputs|General'!$A$49,K$7,K$8))*'Inputs|General'!$C56 -> 92.45181804 | L14: =IF('Inputs|General'!$B56='Inputs|General'!$A$48,L$6,IF('Inputs|General'!$B56='Inputs|General'!$A$49,L$7,L$8))*'Inputs|General'!$C56 -> 94.72641038 | M14: =IF('Inputs|General'!$B56='Inputs|General'!$A$48,M$6,IF('Inputs|General'!$B56='Inputs|General'!$A$49,M$7,M$8))*'Inputs|General'!$C56 -> 97.14560974 | N14: =IF('Inputs|General'!$B56='Inputs|General'!$A$48,N$6,IF('Inputs|General'!$B56='Inputs|General'!$A$49,N$7,N$8))*'Inputs|General'!$C56 -> 99.78065266 | P14: =IF('Inputs|General'!$B56='Inputs|General'!$A$48,P$6,IF('Inputs|General'!$B56='Inputs|General'!$A$49,P$7,P$8))*'Inputs|General'!$C56 -> 28.87876353 | Q14: =IF('Inputs|General'!$B56='Inputs|General'!$A$48,Q$6,IF('Inputs|General'!$B56='Inputs|General'!$A$49,Q$7,Q$8))*'Inputs|General'!$C56 -> 26.81275916 | R14: =IF('Inputs|General'!$B56='Inputs|General'!$A$48,R$6,IF('Inputs|General'!$B56='Inputs|General'!$A$49,R$7,R$8))*'Inputs|General'!$C56 -> 24.01436469 | S14: =IF('Inputs|General'!$B56='Inputs|General'!$A$48,S$6,IF('Inputs|General'!$B56='Inputs|General'!$A$49,S$7,S$8))*'Inputs|General'!$C56 -> 25.01771856 | T14: =IF('Inputs|General'!$B56='Inputs|General'!$A$48,T$6,IF('Inputs|General'!$B56='Inputs|General'!$A$49,T$7,T$8))*'Inputs|General'!$C56 -> 24.74130736 | V14: 7.105427358e-15 | W14: 3.552713679e-15 | X14: 7.105427358e-15 | Y14: 1.065814104e-14 | Z14: 7.105427358e-15
A15: ='Inputs|General'!A57 -> Mercury Vapour 400 watt | C15: ='Inputs|General'!D57 -> 111.5746379 | D15: =IF('Inputs|General'!$B57='Inputs|General'!$A$48,D$6,IF('Inputs|General'!$B57='Inputs|General'!$A$49,D$7,D$8))*'Inputs|General'!$C57 -> 133.9747429 | E15: =IF('Inputs|General'!$B57='Inputs|General'!$A$48,E$6,IF('Inputs|General'!$B57='Inputs|General'!$A$49,E$7,E$8))*'Inputs|General'!$C57 -> 134.1726493 | F15: =IF('Inputs|General'!$B57='Inputs|General'!$A$48,F$6,IF('Inputs|General'!$B57='Inputs|General'!$A$49,F$7,F$8))*'Inputs|General'!$C57 -> 133.583372 | G15: =IF('Inputs|General'!$B57='Inputs|General'!$A$48,G$6,IF('Inputs|General'!$B57='Inputs|General'!$A$49,G$7,G$8))*'Inputs|General'!$C57 -> 137.4337443 | H15: =IF('Inputs|General'!$B57='Inputs|General'!$A$48,H$6,IF('Inputs|General'!$B57='Inputs|General'!$A$49,H$7,H$8))*'Inputs|General'!$C57 -> 140.087205 | J15: =IF('Inputs|General'!$B57='Inputs|General'!$A$48,J$6,IF('Inputs|General'!$B57='Inputs|General'!$A$49,J$7,J$8))*'Inputs|General'!$C57 -> 101.4861339 | K15: =IF('Inputs|General'!$B57='Inputs|General'!$A$48,K$6,IF('Inputs|General'!$B57='Inputs|General'!$A$49,K$7,K$8))*'Inputs|General'!$C57 -> 104.0082953 | L15: =IF('Inputs|General'!$B57='Inputs|General'!$A$48,L$6,IF('Inputs|General'!$B57='Inputs|General'!$A$49,L$7,L$8))*'Inputs|General'!$C57 -> 106.5672117 | M15: =IF('Inputs|General'!$B57='Inputs|General'!$A$48,M$6,IF('Inputs|General'!$B57='Inputs|General'!$A$49,M$7,M$8))*'Inputs|General'!$C57 -> 109.288811 | N15: =IF('Inputs|General'!$B57='Inputs|General'!$A$48,N$6,IF('Inputs|General'!$B57='Inputs|General'!$A$49,N$7,N$8))*'Inputs|General'!$C57 -> 112.2532342 | P15: =IF('Inputs|General'!$B57='Inputs|General'!$A$48,P$6,IF('Inputs|General'!$B57='Inputs|General'!$A$49,P$7,P$8))*'Inputs|General'!$C57 -> 32.48860897 | Q15: =IF('Inputs|General'!$B57='Inputs|General'!$A$48,Q$6,IF('Inputs|General'!$B57='Inputs|General'!$A$49,Q$7,Q$8))*'Inputs|General'!$C57 -> 30.16435405 | R15: =IF('Inputs|General'!$B57='Inputs|General'!$A$48,R$6,IF('Inputs|General'!$B57='Inputs|General'!$A$49,R$7,R$8))*'Inputs|General'!$C57 -> 27.01616027 | S15: =IF('Inputs|General'!$B57='Inputs|General'!$A$48,S$6,IF('Inputs|General'!$B57='Inputs|General'!$A$49,S$7,S$8))*'Inputs|General'!$C57 -> 28.14493338 | T15: =IF('Inputs|General'!$B57='Inputs|General'!$A$48,T$6,IF('Inputs|General'!$B57='Inputs|General'!$A$49,T$7,T$8))*'Inputs|General'!$C57 -> 27.83397078 | V15: 1.421085472e-14 | W15: 7.105427358e-15 | X15: 2.131628207e-14 | Y15: 1.421085472e-14 | Z15: 3.552713679e-14
A16: ='Inputs|General'!A58 -> Sodium Low Pressure 90 watt | C16: ='Inputs|General'!D58 -> 108.1936238 | D16: =IF('Inputs|General'!$B58='Inputs|General'!$A$48,D$6,IF('Inputs|General'!$B58='Inputs|General'!$A$49,D$7,D$8))*'Inputs|General'!$C58 -> 128.4792382 | E16: =IF('Inputs|General'!$B58='Inputs|General'!$A$48,E$6,IF('Inputs|General'!$B58='Inputs|General'!$A$49,E$7,E$8))*'Inputs|General'!$C58 -> 128.8103441 | F16: =IF('Inputs|General'!$B58='Inputs|General'!$A$48,F$6,IF('Inputs|General'!$B58='Inputs|General'!$A$49,F$7,F$8))*'Inputs|General'!$C58 -> 129.213886 | G16: =IF('Inputs|General'!$B58='Inputs|General'!$A$48,G$6,IF('Inputs|General'!$B58='Inputs|General'!$A$49,G$7,G$8))*'Inputs|General'!$C58 -> 132.9521821 | H16: =IF('Inputs|General'!$B58='Inputs|General'!$A$48,H$6,IF('Inputs|General'!$B58='Inputs|General'!$A$49,H$7,H$8))*'Inputs|General'!$C58 -> 135.5360628 | J16: =IF('Inputs|General'!$B58='Inputs|General'!$A$48,J$6,IF('Inputs|General'!$B58='Inputs|General'!$A$49,J$7,J$8))*'Inputs|General'!$C58 -> 98.04777631 | K16: =IF('Inputs|General'!$B58='Inputs|General'!$A$48,K$6,IF('Inputs|General'!$B58='Inputs|General'!$A$49,K$7,K$8))*'Inputs|General'!$C58 -> 100.4906907 | L16: =IF('Inputs|General'!$B58='Inputs|General'!$A$48,L$6,IF('Inputs|General'!$B58='Inputs|General'!$A$49,L$7,L$8))*'Inputs|General'!$C58 -> 102.9691058 | M16: =IF('Inputs|General'!$B58='Inputs|General'!$A$48,M$6,IF('Inputs|General'!$B58='Inputs|General'!$A$49,M$7,M$8))*'Inputs|General'!$C58 -> 105.6062259 | N16: =IF('Inputs|General'!$B58='Inputs|General'!$A$48,N$6,IF('Inputs|General'!$B58='Inputs|General'!$A$49,N$7,N$8))*'Inputs|General'!$C58 -> 108.4804596 | P16: =IF('Inputs|General'!$B58='Inputs|General'!$A$48,P$6,IF('Inputs|General'!$B58='Inputs|General'!$A$49,P$7,P$8))*'Inputs|General'!$C58 -> 30.43146188 | Q16: =IF('Inputs|General'!$B58='Inputs|General'!$A$48,Q$6,IF('Inputs|General'!$B58='Inputs|General'!$A$49,Q$7,Q$8))*'Inputs|General'!$C58 -> 28.31965339 | R16: =IF('Inputs|General'!$B58='Inputs|General'!$A$48,R$6,IF('Inputs|General'!$B58='Inputs|General'!$A$49,R$7,R$8))*'Inputs|General'!$C58 -> 26.24478024 | S16: =IF('Inputs|General'!$B58='Inputs|General'!$A$48,S$6,IF('Inputs|General'!$B58='Inputs|General'!$A$49,S$7,S$8))*'Inputs|General'!$C58 -> 27.34595626 | T16: =IF('Inputs|General'!$B58='Inputs|General'!$A$48,T$6,IF('Inputs|General'!$B58='Inputs|General'!$A$49,T$7,T$8))*'Inputs|General'!$C58 -> 27.05560319 | V16: 0 | W16: 1.421085472e-14 | X16: 1.065814104e-14 | Y16: 2.131628207e-14 | Z16: 1.421085472e-14
A17: ='Inputs|General'!A59 -> Sodium High Pressure 100 watt | C17: ='Inputs|General'!D59 -> 139.8351552 | D17: =IF('Inputs|General'!$B59='Inputs|General'!$A$48,D$6,IF('Inputs|General'!$B59='Inputs|General'!$A$49,D$7,D$8))*'Inputs|General'!$C59 -> 166.053355 | E17: =IF('Inputs|General'!$B59='Inputs|General'!$A$48,E$6,IF('Inputs|General'!$B59='Inputs|General'!$A$49,E$7,E$8))*'Inputs|General'!$C59 -> 166.4812937 | F17: =IF('Inputs|General'!$B59='Inputs|General'!$A$48,F$6,IF('Inputs|General'!$B59='Inputs|General'!$A$49,F$7,F$8))*'Inputs|General'!$C59 -> 167.0028527 | G17: =IF('Inputs|General'!$B59='Inputs|General'!$A$48,G$6,IF('Inputs|General'!$B59='Inputs|General'!$A$49,G$7,G$8))*'Inputs|General'!$C59 -> 171.8344241 | H17: =IF('Inputs|General'!$B59='Inputs|General'!$A$48,H$6,IF('Inputs|General'!$B59='Inputs|General'!$A$49,H$7,H$8))*'Inputs|General'!$C59 -> 175.1739679 | J17: =IF('Inputs|General'!$B59='Inputs|General'!$A$48,J$6,IF('Inputs|General'!$B59='Inputs|General'!$A$49,J$7,J$8))*'Inputs|General'!$C59 -> 126.722126 | K17: =IF('Inputs|General'!$B59='Inputs|General'!$A$48,K$6,IF('Inputs|General'!$B59='Inputs|General'!$A$49,K$7,K$8))*'Inputs|General'!$C59 -> 129.8794776 | L17: =IF('Inputs|General'!$B59='Inputs|General'!$A$48,L$6,IF('Inputs|General'!$B59='Inputs|General'!$A$49,L$7,L$8))*'Inputs|General'!$C59 -> 133.0827122 | M17: =IF('Inputs|General'!$B59='Inputs|General'!$A$48,M$6,IF('Inputs|General'!$B59='Inputs|General'!$A$49,M$7,M$8))*'Inputs|General'!$C59 -> 136.4910655 | N17: =IF('Inputs|General'!$B59='Inputs|General'!$A$48,N$6,IF('Inputs|General'!$B59='Inputs|General'!$A$49,N$7,N$8))*'Inputs|General'!$C59 -> 140.205877 | P17: =IF('Inputs|General'!$B59='Inputs|General'!$A$48,P$6,IF('Inputs|General'!$B59='Inputs|General'!$A$49,P$7,P$8))*'Inputs|General'!$C59 -> 39.33122903 | Q17: =IF('Inputs|General'!$B59='Inputs|General'!$A$48,Q$6,IF('Inputs|General'!$B59='Inputs|General'!$A$49,Q$7,Q$8))*'Inputs|General'!$C59 -> 36.60181617 | R17: =IF('Inputs|General'!$B59='Inputs|General'!$A$48,R$6,IF('Inputs|General'!$B59='Inputs|General'!$A$49,R$7,R$8))*'Inputs|General'!$C59 -> 33.9201405 | S17: =IF('Inputs|General'!$B59='Inputs|General'!$A$48,S$6,IF('Inputs|General'!$B59='Inputs|General'!$A$49,S$7,S$8))*'Inputs|General'!$C59 -> 35.34335857 | T17: =IF('Inputs|General'!$B59='Inputs|General'!$A$48,T$6,IF('Inputs|General'!$B59='Inputs|General'!$A$49,T$7,T$8))*'Inputs|General'!$C59 -> 34.96809092 | V17: 1.421085472e-14 | W17: 7.105427358e-15 | X17: 7.105427358e-15 | Y17: 2.842170943e-14 | Z17: 1.421085472e-14
A18: ='Inputs|General'!A60 -> Sodium High Pressure 400 watt | C18: ='Inputs|General'!D60 -> 137.4021004 | D18: =IF('Inputs|General'!$B60='Inputs|General'!$A$48,D$6,IF('Inputs|General'!$B60='Inputs|General'!$A$49,D$7,D$8))*'Inputs|General'!$C60 -> 164.9874148 | E18: =IF('Inputs|General'!$B60='Inputs|General'!$A$48,E$6,IF('Inputs|General'!$B60='Inputs|General'!$A$49,E$7,E$8))*'Inputs|General'!$C60 -> 165.231133 | F18: =IF('Inputs|General'!$B60='Inputs|General'!$A$48,F$6,IF('Inputs|General'!$B60='Inputs|General'!$A$49,F$7,F$8))*'Inputs|General'!$C60 -> 164.5054488 | G18: =IF('Inputs|General'!$B60='Inputs|General'!$A$48,G$6,IF('Inputs|General'!$B60='Inputs|General'!$A$49,G$7,G$8))*'Inputs|General'!$C60 -> 169.2471111 | H18: =IF('Inputs|General'!$B60='Inputs|General'!$A$48,H$6,IF('Inputs|General'!$B60='Inputs|General'!$A$49,H$7,H$8))*'Inputs|General'!$C60 -> 172.5147988 | J18: =IF('Inputs|General'!$B60='Inputs|General'!$A$48,J$6,IF('Inputs|General'!$B60='Inputs|General'!$A$49,J$7,J$8))*'Inputs|General'!$C60 -> 124.9782945 | K18: =IF('Inputs|General'!$B60='Inputs|General'!$A$48,K$6,IF('Inputs|General'!$B60='Inputs|General'!$A$49,K$7,K$8))*'Inputs|General'!$C60 -> 128.0842896 | L18: =IF('Inputs|General'!$B60='Inputs|General'!$A$48,L$6,IF('Inputs|General'!$B60='Inputs|General'!$A$49,L$7,L$8))*'Inputs|General'!$C60 -> 131.2355477 | M18: =IF('Inputs|General'!$B60='Inputs|General'!$A$48,M$6,IF('Inputs|General'!$B60='Inputs|General'!$A$49,M$7,M$8))*'Inputs|General'!$C60 -> 134.5871468 | N18: =IF('Inputs|General'!$B60='Inputs|General'!$A$48,N$6,IF('Inputs|General'!$B60='Inputs|General'!$A$49,N$7,N$8))*'Inputs|General'!$C60 -> 138.2377792 | P18: =IF('Inputs|General'!$B60='Inputs|General'!$A$48,P$6,IF('Inputs|General'!$B60='Inputs|General'!$A$49,P$7,P$8))*'Inputs|General'!$C60 -> 40.0091203 | Q18: =IF('Inputs|General'!$B60='Inputs|General'!$A$48,Q$6,IF('Inputs|General'!$B60='Inputs|General'!$A$49,Q$7,Q$8))*'Inputs|General'!$C60 -> 37.14684342 | R18: =IF('Inputs|General'!$B60='Inputs|General'!$A$48,R$6,IF('Inputs|General'!$B60='Inputs|General'!$A$49,R$7,R$8))*'Inputs|General'!$C60 -> 33.26990108 | S18: =IF('Inputs|General'!$B60='Inputs|General'!$A$48,S$6,IF('Inputs|General'!$B60='Inputs|General'!$A$49,S$7,S$8))*'Inputs|General'!$C60 -> 34.65996425 | T18: =IF('Inputs|General'!$B60='Inputs|General'!$A$48,T$6,IF('Inputs|General'!$B60='Inputs|General'!$A$49,T$7,T$8))*'Inputs|General'!$C60 -> 34.27701957 | V18: 2.842170943e-14 | W18: 7.105427358e-15 | X18: 0 | Y18: 0 | Z18: 1.421085472e-14
A19: ='Inputs|General'!A61 -> Metal Halide 70 watt | C19: ='Inputs|General'!D61 -> 142.3880226 | D19: =IF('Inputs|General'!$B61='Inputs|General'!$A$48,D$6,IF('Inputs|General'!$B61='Inputs|General'!$A$49,D$7,D$8))*'Inputs|General'!$C61 -> 148.7475801 | E19: =IF('Inputs|General'!$B61='Inputs|General'!$A$48,E$6,IF('Inputs|General'!$B61='Inputs|General'!$A$49,E$7,E$8))*'Inputs|General'!$C61 -> 146.7208253 | F19: =IF('Inputs|General'!$B61='Inputs|General'!$A$48,F$6,IF('Inputs|General'!$B61='Inputs|General'!$A$49,F$7,F$8))*'Inputs|General'!$C61 -> 144.499985 | G19: =IF('Inputs|General'!$B61='Inputs|General'!$A$48,G$6,IF('Inputs|General'!$B61='Inputs|General'!$A$49,G$7,G$8))*'Inputs|General'!$C61 -> 149.3054133 | H19: =IF('Inputs|General'!$B61='Inputs|General'!$A$48,H$6,IF('Inputs|General'!$B61='Inputs|General'!$A$49,H$7,H$8))*'Inputs|General'!$C61 -> 151.4894499 | J19: =IF('Inputs|General'!$B61='Inputs|General'!$A$48,J$6,IF('Inputs|General'!$B61='Inputs|General'!$A$49,J$7,J$8))*'Inputs|General'!$C61 -> 83.43695133 | K19: =IF('Inputs|General'!$B61='Inputs|General'!$A$48,K$6,IF('Inputs|General'!$B61='Inputs|General'!$A$49,K$7,K$8))*'Inputs|General'!$C61 -> 85.54436983 | L19: =IF('Inputs|General'!$B61='Inputs|General'!$A$48,L$6,IF('Inputs|General'!$B61='Inputs|General'!$A$49,L$7,L$8))*'Inputs|General'!$C61 -> 87.70266699 | M19: =IF('Inputs|General'!$B61='Inputs|General'!$A$48,M$6,IF('Inputs|General'!$B61='Inputs|General'!$A$49,M$7,M$8))*'Inputs|General'!$C61 -> 90.00701425 | N19: =IF('Inputs|General'!$B61='Inputs|General'!$A$48,N$6,IF('Inputs|General'!$B61='Inputs|General'!$A$49,N$7,N$8))*'Inputs|General'!$C61 -> 92.52063026 | P19: =IF('Inputs|General'!$B61='Inputs|General'!$A$48,P$6,IF('Inputs|General'!$B61='Inputs|General'!$A$49,P$7,P$8))*'Inputs|General'!$C61 -> 65.31062882 | Q19: =IF('Inputs|General'!$B61='Inputs|General'!$A$48,Q$6,IF('Inputs|General'!$B61='Inputs|General'!$A$49,Q$7,Q$8))*'Inputs|General'!$C61 -> 61.17645546 | R19: =IF('Inputs|General'!$B61='Inputs|General'!$A$48,R$6,IF('Inputs|General'!$B61='Inputs|General'!$A$49,R$7,R$8))*'Inputs|General'!$C61 -> 56.79731797 | S19: =IF('Inputs|General'!$B61='Inputs|General'!$A$48,S$6,IF('Inputs|General'!$B61='Inputs|General'!$A$49,S$7,S$8))*'Inputs|General'!$C61 -> 59.29839906 | T19: =IF('Inputs|General'!$B61='Inputs|General'!$A$48,T$6,IF('Inputs|General'!$B61='Inputs|General'!$A$49,T$7,T$8))*'Inputs|General'!$C61 -> 58.96881968 | V19: 1.421085472e-14 | W19: 0 | X19: 0 | Y19: 7.105427358e-15 | Z19: 7.105427358e-15
A20: ='Inputs|General'!A62 -> Metal Halide 150 watt | C20: ='Inputs|General'!D62 -> 226.5941931 | D20: =IF('Inputs|General'!$B62='Inputs|General'!$A$48,D$6,IF('Inputs|General'!$B62='Inputs|General'!$A$49,D$7,D$8))*'Inputs|General'!$C62 -> 269.0791592 | E20: =IF('Inputs|General'!$B62='Inputs|General'!$A$48,E$6,IF('Inputs|General'!$B62='Inputs|General'!$A$49,E$7,E$8))*'Inputs|General'!$C62 -> 269.7726074 | F20: =IF('Inputs|General'!$B62='Inputs|General'!$A$48,F$6,IF('Inputs|General'!$B62='Inputs|General'!$A$49,F$7,F$8))*'Inputs|General'!$C62 -> 270.6177613 | G20: =IF('Inputs|General'!$B62='Inputs|General'!$A$48,G$6,IF('Inputs|General'!$B62='Inputs|General'!$A$49,G$7,G$8))*'Inputs|General'!$C62 -> 278.4470229 | H20: =IF('Inputs|General'!$B62='Inputs|General'!$A$48,H$6,IF('Inputs|General'!$B62='Inputs|General'!$A$49,H$7,H$8))*'Inputs|General'!$C62 -> 283.8585465 | J20: =IF('Inputs|General'!$B62='Inputs|General'!$A$48,J$6,IF('Inputs|General'!$B62='Inputs|General'!$A$49,J$7,J$8))*'Inputs|General'!$C62 -> 205.3453428 | K20: =IF('Inputs|General'!$B62='Inputs|General'!$A$48,K$6,IF('Inputs|General'!$B62='Inputs|General'!$A$49,K$7,K$8))*'Inputs|General'!$C62 -> 210.4616352 | L20: =IF('Inputs|General'!$B62='Inputs|General'!$A$48,L$6,IF('Inputs|General'!$B62='Inputs|General'!$A$49,L$7,L$8))*'Inputs|General'!$C62 -> 215.6522782 | M20: =IF('Inputs|General'!$B62='Inputs|General'!$A$48,M$6,IF('Inputs|General'!$B62='Inputs|General'!$A$49,M$7,M$8))*'Inputs|General'!$C62 -> 221.1753032 | N20: =IF('Inputs|General'!$B62='Inputs|General'!$A$48,N$6,IF('Inputs|General'!$B62='Inputs|General'!$A$49,N$7,N$8))*'Inputs|General'!$C62 -> 227.1949248 | P20: =IF('Inputs|General'!$B62='Inputs|General'!$A$48,P$6,IF('Inputs|General'!$B62='Inputs|General'!$A$49,P$7,P$8))*'Inputs|General'!$C62 -> 63.73381639 | Q20: =IF('Inputs|General'!$B62='Inputs|General'!$A$48,Q$6,IF('Inputs|General'!$B62='Inputs|General'!$A$49,Q$7,Q$8))*'Inputs|General'!$C62 -> 59.31097219 | R20: =IF('Inputs|General'!$B62='Inputs|General'!$A$48,R$6,IF('Inputs|General'!$B62='Inputs|General'!$A$49,R$7,R$8))*'Inputs|General'!$C62 -> 54.96548315 | S20: =IF('Inputs|General'!$B62='Inputs|General'!$A$48,S$6,IF('Inputs|General'!$B62='Inputs|General'!$A$49,S$7,S$8))*'Inputs|General'!$C62 -> 57.27171972 | T20: =IF('Inputs|General'!$B62='Inputs|General'!$A$48,T$6,IF('Inputs|General'!$B62='Inputs|General'!$A$49,T$7,T$8))*'Inputs|General'!$C62 -> 56.66362177 | V20: 3.552713679e-14 | W20: 3.552713679e-14 | X20: 2.131628207e-14 | Y20: 0 | Z20: 2.131628207e-14
A21: ='Inputs|General'!A63 -> Metal Halide 250 watt | C21: ='Inputs|General'!D63 -> 222.1161774 | D21: =IF('Inputs|General'!$B63='Inputs|General'!$A$48,D$6,IF('Inputs|General'!$B63='Inputs|General'!$A$49,D$7,D$8))*'Inputs|General'!$C63 -> 266.7089788 | E21: =IF('Inputs|General'!$B63='Inputs|General'!$A$48,E$6,IF('Inputs|General'!$B63='Inputs|General'!$A$49,E$7,E$8))*'Inputs|General'!$C63 -> 267.1029594 | F21: =IF('Inputs|General'!$B63='Inputs|General'!$A$48,F$6,IF('Inputs|General'!$B63='Inputs|General'!$A$49,F$7,F$8))*'Inputs|General'!$C63 -> 265.9298608 | G21: =IF('Inputs|General'!$B63='Inputs|General'!$A$48,G$6,IF('Inputs|General'!$B63='Inputs|General'!$A$49,G$7,G$8))*'Inputs|General'!$C63 -> 273.594954 | H21: =IF('Inputs|General'!$B63='Inputs|General'!$A$48,H$6,IF('Inputs|General'!$B63='Inputs|General'!$A$49,H$7,H$8))*'Inputs|General'!$C63 -> 278.8773063 | J21: =IF('Inputs|General'!$B63='Inputs|General'!$A$48,J$6,IF('Inputs|General'!$B63='Inputs|General'!$A$49,J$7,J$8))*'Inputs|General'!$C63 -> 202.0325814 | K21: =IF('Inputs|General'!$B63='Inputs|General'!$A$48,K$6,IF('Inputs|General'!$B63='Inputs|General'!$A$49,K$7,K$8))*'Inputs|General'!$C63 -> 207.0535508 | L21: =IF('Inputs|General'!$B63='Inputs|General'!$A$48,L$6,IF('Inputs|General'!$B63='Inputs|General'!$A$49,L$7,L$8))*'Inputs|General'!$C63 -> 212.1476899 | M21: =IF('Inputs|General'!$B63='Inputs|General'!$A$48,M$6,IF('Inputs|General'!$B63='Inputs|General'!$A$49,M$7,M$8))*'Inputs|General'!$C63 -> 217.5656885 | N21: =IF('Inputs|General'!$B63='Inputs|General'!$A$48,N$6,IF('Inputs|General'!$B63='Inputs|General'!$A$49,N$7,N$8))*'Inputs|General'!$C63 -> 223.4670867 | P21: =IF('Inputs|General'!$B63='Inputs|General'!$A$48,P$6,IF('Inputs|General'!$B63='Inputs|General'!$A$49,P$7,P$8))*'Inputs|General'!$C63 -> 64.67639748 | Q21: =IF('Inputs|General'!$B63='Inputs|General'!$A$48,Q$6,IF('Inputs|General'!$B63='Inputs|General'!$A$49,Q$7,Q$8))*'Inputs|General'!$C63 -> 60.04940853 | R21: =IF('Inputs|General'!$B63='Inputs|General'!$A$48,R$6,IF('Inputs|General'!$B63='Inputs|General'!$A$49,R$7,R$8))*'Inputs|General'!$C63 -> 53.78217092 | S21: =IF('Inputs|General'!$B63='Inputs|General'!$A$48,S$6,IF('Inputs|General'!$B63='Inputs|General'!$A$49,S$7,S$8))*'Inputs|General'!$C63 -> 56.02926552 | T21: =IF('Inputs|General'!$B63='Inputs|General'!$A$48,T$6,IF('Inputs|General'!$B63='Inputs|General'!$A$49,T$7,T$8))*'Inputs|General'!$C63 -> 55.41021961 | V21: 1.421085472e-14 | W21: 2.842170943e-14 | X21: 1.421085472e-14 | Y21: 1.421085472e-14 | Z21: 7.105427358e-14
A22: ='Inputs|General'!A64 -> Incandescent 100 watt | C22: ='Inputs|General'!D64 -> 86.43008378 | D22: =IF('Inputs|General'!$B64='Inputs|General'!$A$48,D$6,IF('Inputs|General'!$B64='Inputs|General'!$A$49,D$7,D$8))*'Inputs|General'!$C64 -> 90.29035993 | E22: =IF('Inputs|General'!$B64='Inputs|General'!$A$48,E$6,IF('Inputs|General'!$B64='Inputs|General'!$A$49,E$7,E$8))*'Inputs|General'!$C64 -> 89.06011184 | F22: =IF('Inputs|General'!$B64='Inputs|General'!$A$48,F$6,IF('Inputs|General'!$B64='Inputs|General'!$A$49,F$7,F$8))*'Inputs|General'!$C64 -> 87.71205313 | G22: =IF('Inputs|General'!$B64='Inputs|General'!$A$48,G$6,IF('Inputs|General'!$B64='Inputs|General'!$A$49,G$7,G$8))*'Inputs|General'!$C64 -> 90.62896683 | H22: =IF('Inputs|General'!$B64='Inputs|General'!$A$48,H$6,IF('Inputs|General'!$B64='Inputs|General'!$A$49,H$7,H$8))*'Inputs|General'!$C64 -> 91.95468557 | J22: =IF('Inputs|General'!$B64='Inputs|General'!$A$48,J$6,IF('Inputs|General'!$B64='Inputs|General'!$A$49,J$7,J$8))*'Inputs|General'!$C64 -> 50.64655411 | K22: =IF('Inputs|General'!$B64='Inputs|General'!$A$48,K$6,IF('Inputs|General'!$B64='Inputs|General'!$A$49,K$7,K$8))*'Inputs|General'!$C64 -> 51.92576534 | L22: =IF('Inputs|General'!$B64='Inputs|General'!$A$48,L$6,IF('Inputs|General'!$B64='Inputs|General'!$A$49,L$7,L$8))*'Inputs|General'!$C64 -> 53.23586012 | M22: =IF('Inputs|General'!$B64='Inputs|General'!$A$48,M$6,IF('Inputs|General'!$B64='Inputs|General'!$A$49,M$7,M$8))*'Inputs|General'!$C64 -> 54.63460787 | N22: =IF('Inputs|General'!$B64='Inputs|General'!$A$48,N$6,IF('Inputs|General'!$B64='Inputs|General'!$A$49,N$7,N$8))*'Inputs|General'!$C64 -> 56.16038257 | P22: =IF('Inputs|General'!$B64='Inputs|General'!$A$48,P$6,IF('Inputs|General'!$B64='Inputs|General'!$A$49,P$7,P$8))*'Inputs|General'!$C64 -> 39.64380582 | Q22: =IF('Inputs|General'!$B64='Inputs|General'!$A$48,Q$6,IF('Inputs|General'!$B64='Inputs|General'!$A$49,Q$7,Q$8))*'Inputs|General'!$C64 -> 37.1343465 | R22: =IF('Inputs|General'!$B64='Inputs|General'!$A$48,R$6,IF('Inputs|General'!$B64='Inputs|General'!$A$49,R$7,R$8))*'Inputs|General'!$C64 -> 34.47619301 | S22: =IF('Inputs|General'!$B64='Inputs|General'!$A$48,S$6,IF('Inputs|General'!$B64='Inputs|General'!$A$49,S$7,S$8))*'Inputs|General'!$C64 -> 35.99435896 | T22: =IF('Inputs|General'!$B64='Inputs|General'!$A$48,T$6,IF('Inputs|General'!$B64='Inputs|General'!$A$49,T$7,T$8))*'Inputs|General'!$C64 -> 35.794303 | V22: =ABS(D22-J22-P22) -> 7.105427358e-15 | W22: =ABS(E22-K22-Q22) -> 1.421085472e-14 | X22: =ABS(F22-L22-R22) -> 0 | Y22: =ABS(G22-M22-S22) -> 0 | Z22: =ABS(H22-N22-T22) -> 7.105427358e-15
A23: ='Inputs|General'!A65 -> Incandescent 150 watt | C23: ='Inputs|General'!D65 -> 108.0376047 | D23: =IF('Inputs|General'!$B65='Inputs|General'!$A$48,D$6,IF('Inputs|General'!$B65='Inputs|General'!$A$49,D$7,D$8))*'Inputs|General'!$C65 -> 112.8629499 | E23: =IF('Inputs|General'!$B65='Inputs|General'!$A$48,E$6,IF('Inputs|General'!$B65='Inputs|General'!$A$49,E$7,E$8))*'Inputs|General'!$C65 -> 111.3251398 | F23: =IF('Inputs|General'!$B65='Inputs|General'!$A$48,F$6,IF('Inputs|General'!$B65='Inputs|General'!$A$49,F$7,F$8))*'Inputs|General'!$C65 -> 109.6400664 | G23: =IF('Inputs|General'!$B65='Inputs|General'!$A$48,G$6,IF('Inputs|General'!$B65='Inputs|General'!$A$49,G$7,G$8))*'Inputs|General'!$C65 -> 113.2862085 | H23: =IF('Inputs|General'!$B65='Inputs|General'!$A$48,H$6,IF('Inputs|General'!$B65='Inputs|General'!$A$49,H$7,H$8))*'Inputs|General'!$C65 -> 114.943357 | J23: =IF('Inputs|General'!$B65='Inputs|General'!$A$48,J$6,IF('Inputs|General'!$B65='Inputs|General'!$A$49,J$7,J$8))*'Inputs|General'!$C65 -> 63.30819264 | K23: =IF('Inputs|General'!$B65='Inputs|General'!$A$48,K$6,IF('Inputs|General'!$B65='Inputs|General'!$A$49,K$7,K$8))*'Inputs|General'!$C65 -> 64.90720668 | L23: =IF('Inputs|General'!$B65='Inputs|General'!$A$48,L$6,IF('Inputs|General'!$B65='Inputs|General'!$A$49,L$7,L$8))*'Inputs|General'!$C65 -> 66.54482515 | M23: =IF('Inputs|General'!$B65='Inputs|General'!$A$48,M$6,IF('Inputs|General'!$B65='Inputs|General'!$A$49,M$7,M$8))*'Inputs|General'!$C65 -> 68.29325984 | N23: =IF('Inputs|General'!$B65='Inputs|General'!$A$48,N$6,IF('Inputs|General'!$B65='Inputs|General'!$A$49,N$7,N$8))*'Inputs|General'!$C65 -> 70.20047821 | P23: =IF('Inputs|General'!$B65='Inputs|General'!$A$48,P$6,IF('Inputs|General'!$B65='Inputs|General'!$A$49,P$7,P$8))*'Inputs|General'!$C65 -> 49.55475728 | Q23: =IF('Inputs|General'!$B65='Inputs|General'!$A$48,Q$6,IF('Inputs|General'!$B65='Inputs|General'!$A$49,Q$7,Q$8))*'Inputs|General'!$C65 -> 46.41793313 | R23: =IF('Inputs|General'!$B65='Inputs|General'!$A$48,R$6,IF('Inputs|General'!$B65='Inputs|General'!$A$49,R$7,R$8))*'Inputs|General'!$C65 -> 43.09524126 | S23: =IF('Inputs|General'!$B65='Inputs|General'!$A$48,S$6,IF('Inputs|General'!$B65='Inputs|General'!$A$49,S$7,S$8))*'Inputs|General'!$C65 -> 44.9929487 | T23: =IF('Inputs|General'!$B65='Inputs|General'!$A$48,T$6,IF('Inputs|General'!$B65='Inputs|General'!$A$49,T$7,T$8))*'Inputs|General'!$C65 -> 44.74287875 | V23: 7.105427358e-15 | W23: 1.421085472e-14 | X23: 7.105427358e-15 | Y23: 7.105427358e-15 | Z23: 1.421085472e-14
A26: ='Inputs|General'!A$70 -> Energy Efficient Lights
A27: ='Inputs|General'!A71 -> T5 (2 x 14 W) | C27: ='Inputs|General'!D71 -> 38.35484104 | D27: ='Output|Charges Summary'!D$81 -> 61.60679794 | E27: ='Output|Charges Summary'!E$81 -> 64.66124948 | F27: ='Output|Charges Summary'!F$81 -> 67.60427493 | G27: ='Output|Charges Summary'!G$81 -> 70.52983558 | H27: ='Output|Charges Summary'!H$81 -> 73.43330048 | J27: =SUM('Output|Charges Summary'!D75,'Output|Charges Summary'!D8) -> 48.87948784 | K27: =SUM('Output|Charges Summary'!E75,'Output|Charges Summary'!E8) -> 50.06509597 | L27: =SUM('Output|Charges Summary'!F75,'Output|Charges Summary'!F8) -> 51.27570652 | M27: =SUM('Output|Charges Summary'!G75,'Output|Charges Summary'!G8) -> 52.55884331 | N27: =SUM('Output|Charges Summary'!H75,'Output|Charges Summary'!H8) -> 53.94567273 | P27: =SUM('Output|Charges Summary'!D77,'Output|Charges Summary'!D11) -> 12.7273101 | Q27: =SUM('Output|Charges Summary'!E77,'Output|Charges Summary'!E11) -> 14.59615351 | R27: =SUM('Output|Charges Summary'!F77,'Output|Charges Summary'!F11) -> 16.32856841 | S27: =SUM('Output|Charges Summary'!G77,'Output|Charges Summary'!G11) -> 17.97099227 | T27: =SUM('Output|Charges Summary'!H77,'Output|Charges Summary'!H11) -> 19.48762775 | V27: =ABS(D27-J27-P27) -> 3.552713679e-15 | W27: 5.329070518e-15 | X27: 0 | Y27: 7.105427358e-15 | Z27: 0
A28: ='Inputs|General'!A72 -> T5 (2 x 24 W) | C28: ='Inputs|General'!D72 -> 43.19698044 | D28: =D$27*'Inputs|General'!$C72 -> 69.38440034 | E28: =E$27*'Inputs|General'!$C72 -> 72.82446371 | F28: =F$27*'Inputs|General'!$C72 -> 76.1390339 | G28: =G$27*'Inputs|General'!$C72 -> 79.43393442 | H28: =H$27*'Inputs|General'!$C72 -> 82.70394971 | J28: =J$27*'Inputs|General'!$C72 -> 55.05032019 | K28: =K$27*'Inputs|General'!$C72 -> 56.38560643 | L28: =L$27*'Inputs|General'!$C72 -> 57.74905153 | M28: =M$27*'Inputs|General'!$C72 -> 59.19417901 | N28: =N$27*'Inputs|General'!$C72 -> 60.75608989 | P28: =P$27*'Inputs|General'!$C72 -> 14.33408015 | Q28: =Q$27*'Inputs|General'!$C72 -> 16.43885728 | R28: =R$27*'Inputs|General'!$C72 -> 18.38998236 | S28: =S$27*'Inputs|General'!$C72 -> 20.23975541 | T28: =T$27*'Inputs|General'!$C72 -> 21.94785982 | V28: 1.776356839e-15 | W28: 3.552713679e-15 | X28: 3.552713679e-15 | Y28: 7.105427358e-15 | Z28: 3.552713679e-15
A29: ='Inputs|General'!A73 -> LED 18W (incl. other standard Category P LED variants) | C29: ='Inputs|General'!D73 -> 25.13494958 | D29: ='Output|Charges Summary'!D$99 -> 28.43422095 | E29: ='Output|Charges Summary'!E$99 -> 30.40445549 | F29: ='Output|Charges Summary'!F$99 -> 32.2920392 | G29: ='Output|Charges Summary'!G$99 -> 34.15391108 | H29: ='Output|Charges Summary'!H$99 -> 35.98815942 | J29: =SUM('Output|Charges Summary'!D$93,'Output|Charges Summary'!D$8) -> 17.48194538 | K29: =SUM('Output|Charges Summary'!E$93,'Output|Charges Summary'!E$8) -> 17.9381657 | L29: =SUM('Output|Charges Summary'!F$93,'Output|Charges Summary'!F$8) -> 18.41051982 | M29: =SUM('Output|Charges Summary'!G$93,'Output|Charges Summary'!G$8) -> 18.91814611 | N29: =SUM('Output|Charges Summary'!H$93,'Output|Charges Summary'!H$8) -> 19.47448421 | P29: =SUM('Output|Charges Summary'!D$95,'Output|Charges Summary'!D$11) -> 10.95227558 | Q29: =SUM('Output|Charges Summary'!E$95,'Output|Charges Summary'!E$11) -> 12.46628979 | R29: =SUM('Output|Charges Summary'!F$95,'Output|Charges Summary'!F$11) -> 13.88151938 | S29: =SUM('Output|Charges Summary'!G$95,'Output|Charges Summary'!G$11) -> 15.23576497 | T29: =SUM('Output|Charges Summary'!H$95,'Output|Charges Summary'!H$11) -> 16.51367521 | V29: 1.776356839e-15 | W29: 0 | X29: 0 | Y29: 0 | Z29: 0
A30: ='Inputs|General'!A74 -> Compact Fluoro 32W | C30: ='Inputs|General'!D74 -> 33.08246466 | D30: =D$27*'Inputs|General'!$C74 -> 58.41283733 | E30: =E$27*'Inputs|General'!$C74 -> 61.308933 | F30: =F$27*'Inputs|General'!$C74 -> 64.09937939 | G30: =G$27*'Inputs|General'!$C74 -> 66.87326642 | H30: =H$27*'Inputs|General'!$C74 -> 69.62620325 | J30: =J$27*'Inputs|General'!$C74 -> 46.34536556 | K30: =K$27*'Inputs|General'!$C74 -> 47.46950669 | L30: =L$27*'Inputs|General'!$C74 -> 48.61735399 | M30: =M$27*'Inputs|General'!$C74 -> 49.83396746 | N30: =N$27*'Inputs|General'!$C74 -> 51.1488977 | P30: =P$27*'Inputs|General'!$C74 -> 12.06747176 | Q30: =Q$27*'Inputs|General'!$C74 -> 13.83942631 | R30: =R$27*'Inputs|General'!$C74 -> 15.4820254 | S30: =S$27*'Inputs|General'!$C74 -> 17.03929896 | T30: =T$27*'Inputs|General'!$C74 -> 18.47730555 | V30: 3.552713679e-15 | W30: 7.105427358e-15 | X30: 1.776356839e-15 | Y30: 1.065814104e-14 | Z30: 3.552713679e-15
A31: ='Inputs|General'!A75 -> Compact Fluoro 42W | C31: ='Inputs|General'!D75 -> 37.30995832 | D31: =D$27*'Inputs|General'!$C75 -> 58.41283733 | E31: =E$27*'Inputs|General'!$C75 -> 61.308933 | F31: =F$27*'Inputs|General'!$C75 -> 64.09937939 | G31: =G$27*'Inputs|General'!$C75 -> 66.87326642 | H31: =H$27*'Inputs|General'!$C75 -> 69.62620325 | J31: =J$27*'Inputs|General'!$C75 -> 46.34536556 | K31: =K$27*'Inputs|General'!$C75 -> 47.46950669 | L31: =L$27*'Inputs|General'!$C75 -> 48.61735399 | M31: =M$27*'Inputs|General'!$C75 -> 49.83396746 | N31: =N$27*'Inputs|General'!$C75 -> 51.1488977 | P31: =P$27*'Inputs|General'!$C75 -> 12.06747176 | Q31: =Q$27*'Inputs|General'!$C75 -> 13.83942631 | R31: =R$27*'Inputs|General'!$C75 -> 15.4820254 | S31: =S$27*'Inputs|General'!$C75 -> 17.03929896 | T31: =T$27*'Inputs|General'!$C75 -> 18.47730555 | V31: =ABS(D31-J31-P31) -> 3.552713679e-15 | W31: =ABS(E31-K31-Q31) -> 7.105427358e-15 | X31: =ABS(F31-L31-R31) -> 1.776356839e-15 | Y31: =ABS(G31-M31-S31) -> 1.065814104e-14 | Z31: =ABS(H31-N31-T31) -> 3.552713679e-15
A32: ='Inputs|General'!A76 -> L1 - LED 70W | C32: ='Inputs|General'!D76 -> 60.94 | D32: ='Output|Charges Summary'!D$117 -> 53.61197664 | E32: ='Output|Charges Summary'!E$117 -> 56.94999671 | F32: ='Output|Charges Summary'!F$117 -> 60.11811446 | G32: ='Output|Charges Summary'!G$117 -> 63.21616815 | H32: ='Output|Charges Summary'!H$117 -> 66.20535394 | J32: =SUM('Output|Charges Summary'!D$111,'Output|Charges Summary'!D$8) -> 38.28575245 | K32: =SUM('Output|Charges Summary'!E$111,'Output|Charges Summary'!E$8) -> 39.23540649 | L32: =SUM('Output|Charges Summary'!F$111,'Output|Charges Summary'!F$8) -> 40.20670294 | M32: =SUM('Output|Charges Summary'!G$111,'Output|Charges Summary'!G$8) -> 41.240397 | N32: =SUM('Output|Charges Summary'!H$111,'Output|Charges Summary'!H$8) -> 42.36341812 | P32: =SUM('Output|Charges Summary'!D$113,'Output|Charges Summary'!D$11) -> 15.32622419 | Q32: =SUM('Output|Charges Summary'!E$113,'Output|Charges Summary'!E$11) -> 17.71459022 | R32: =SUM('Output|Charges Summary'!F$113,'Output|Charges Summary'!F$11) -> 19.91141151 | S32: =SUM('Output|Charges Summary'!G$113,'Output|Charges Summary'!G$11) -> 21.97577115 | T32: =SUM('Output|Charges Summary'!H$113,'Output|Charges Summary'!H$11) -> 23.84193581 | V32: =ABS(D32-J32-P32) -> 3.552713679e-15 | W32: =ABS(E32-K32-Q32) -> 0 | X32: =ABS(F32-L32-R32) -> 7.105427358e-15 | Y32: =ABS(G32-M32-S32) -> 0 | Z32: =ABS(H32-N32-T32) -> 3.552713679e-15
A33: ='Inputs|General'!A77 -> L2 - LED 118W, 155W, 162W | C33: ='Inputs|General'!D77 -> 62.04 | D33: ='Output|Charges Summary'!D$135 -> 54.16704626 | E33: ='Output|Charges Summary'!E$135 -> 57.61602468 | F33: ='Output|Charges Summary'!F$135 -> 60.8833292 | G33: ='Output|Charges Summary'!G$135 -> 64.07149888 | H33: ='Output|Charges Summary'!H$135 -> 67.13533625 | J33: =SUM('Output|Charges Summary'!D$129,'Output|Charges Summary'!D$8) -> 38.28575245 | K33: =SUM('Output|Charges Summary'!E$129,'Output|Charges Summary'!E$8) -> 39.23540649 | L33: =SUM('Output|Charges Summary'!F$129,'Output|Charges Summary'!F$8) -> 40.20670294 | M33: =SUM('Output|Charges Summary'!G$129,'Output|Charges Summary'!G$8) -> 41.240397 | N33: =SUM('Output|Charges Summary'!H$129,'Output|Charges Summary'!H$8) -> 42.36341812 | P33: =SUM('Output|Charges Summary'!D$131,'Output|Charges Summary'!D$11) -> 15.88129381 | Q33: =SUM('Output|Charges Summary'!E$131,'Output|Charges Summary'!E$11) -> 18.3806182 | R33: =SUM('Output|Charges Summary'!F$131,'Output|Charges Summary'!F$11) -> 20.67662625 | S33: =SUM('Output|Charges Summary'!G$131,'Output|Charges Summary'!G$11) -> 22.83110188 | T33: =SUM('Output|Charges Summary'!H$131,'Output|Charges Summary'!H$11) -> 24.77191813 | V33: 3.552713679e-15 | W33: 3.552713679e-15 | X33: 7.105427358e-15 | Y33: 0 | Z33: 0
A34: ='Inputs|General'!A78 -> L4 - LED 275W | C34: ='Inputs|General'!D78 -> 82.52 | D34: ='Output|Charges Summary'!D$153 -> 59.13780573 | E34: ='Output|Charges Summary'!E$153 -> 63.58043839 | F34: ='Output|Charges Summary'!F$153 -> 67.73598022 | G34: ='Output|Charges Summary'!G$153 -> 71.73115667 | H34: ='Output|Charges Summary'!H$153 -> 75.46351383 | J34: =SUM('Output|Charges Summary'!D$147,'Output|Charges Summary'!D$8) -> 38.28575245 | K34: =SUM('Output|Charges Summary'!E$147,'Output|Charges Summary'!E$8) -> 39.23540649 | L34: =SUM('Output|Charges Summary'!F$147,'Output|Charges Summary'!F$8) -> 40.20670294 | M34: =SUM('Output|Charges Summary'!G$147,'Output|Charges Summary'!G$8) -> 41.240397 | N34: =SUM('Output|Charges Summary'!H$147,'Output|Charges Summary'!H$8) -> 42.36341812 | P34: =SUM('Output|Charges Summary'!D$149,'Output|Charges Summary'!D$11) -> 20.85205327 | Q34: =SUM('Output|Charges Summary'!E$149,'Output|Charges Summary'!E$11) -> 24.34503191 | R34: =SUM('Output|Charges Summary'!F$149,'Output|Charges Summary'!F$11) -> 27.52927728 | S34: =SUM('Output|Charges Summary'!G$149,'Output|Charges Summary'!G$11) -> 30.49075967 | T34: =SUM('Output|Charges Summary'!H$149,'Output|Charges Summary'!H$11) -> 33.10009571 | V34: 3.552713679e-15 | W34: 0 | X34: 7.105427358e-15 | Y34: 0 | Z34: 7.105427358e-15

Sheet Output|Cashflow Summary
A1: ='Inputs|O & M'!$A$3 -> Jemena | E1: Check | F1: =SUM(C126,C132,C155) -> 1.407205127e-05
C2: ='Inputs|General'!J$3 -> CY2020 | D2: ='Inputs|General'!L$3 -> FY2022 | E2: ='Inputs|General'!M$3 -> FY2023 | F2: ='Inputs|General'!N$3 -> FY2024 | G2: ='Inputs|General'!O$3 -> FY2025 | H2: ='Inputs|General'!P$3 -> FY2026 | J2: =C2 -> CY2020 | K2: =D2 -> FY2022 | L2: FY2023 | M2: FY2024 | N2: FY2025 | O2: FY2026
A4: Public Lighting - Revenue | D4: Revenue - Nominal | K4: Revenue - Real 2021 $
A5: Excluding Revenue Recovery | C5: =C$2 -> CY2020 | D5: =D$2 -> FY2022 | E5: FY2023 | F5: FY2024 | G5: FY2025 | H5: FY2026 | J5: =J$2 -> CY2020 | K5: FY2022 | L5: FY2023 | M5: FY2024 | N5: FY2025 | O5: FY2026
A6: ='Inputs|General'!A$47 -> Existing Lights
A7: ='Inputs|General'!A$48 -> Mercury Vapour 80 watt | C7: =IF('Output|PL Tariffs'!C6=0,"",'Inputs|General'!J48*'Output|PL Tariffs'!C6) -> 316656.0343 | D7: ='Inputs|General'!L48*'Output|PL Tariffs'!D6 -> 231103.5556 | E7: ='Inputs|General'!M48*'Output|PL Tariffs'!E6 -> 162396.6151 | F7: ='Inputs|General'!N48*'Output|PL Tariffs'!F6 -> 95372.77047 | G7: ='Inputs|General'!O48*'Output|PL Tariffs'!G6 -> 32593.99851 | H7: ='Inputs|General'!P48*'Output|PL Tariffs'!H6 -> 0 | J7: =C7 -> 316656.0343 | K7: =D7/'Output|Charges Summary'!D$4 -> 226573.4744 | L7: =E7/'Output|Charges Summary'!E$4 -> 156092.432 | M7: =F7/'Output|Charges Summary'!F$4 -> 89873.51142 | N7: =G7/'Output|Charges Summary'!G$4 -> 30112.54002 | O7: =H7/'Output|Charges Summary'!H$4 -> 0
A8: ='Inputs|General'!A$49 -> Sodium High Pressure 150 watt | C8: =IF('Output|PL Tariffs'!C7=0,"",'Inputs|General'!J49*'Output|PL Tariffs'!C7) -> 1641352.543 | D8: ='Inputs|General'!L49*'Output|PL Tariffs'!D7 -> 1898730.594 | E8: ='Inputs|General'!M49*'Output|PL Tariffs'!E7 -> 1870639.953 | F8: ='Inputs|General'!N49*'Output|PL Tariffs'!F7 -> 1843986.441 | G8: ='Inputs|General'!O49*'Output|PL Tariffs'!G7 -> 1864460.02 | H8: ='Inputs|General'!P49*'Output|PL Tariffs'!H7 -> 1867762.024 | J8: 1641352.543 | K8: =D8/'Output|Charges Summary'!D$4 -> 1861511.765 | L8: =E8/'Output|Charges Summary'!E$4 -> 1798022.326 | M8: =F8/'Output|Charges Summary'!F$4 -> 1737660.924 | N8: =G8/'Output|Charges Summary'!G$4 -> 1722514.252 | O8: =H8/'Output|Charges Summary'!H$4 -> 1691740.425
A9: ='Inputs|General'!A$50 -> Sodium High Pressure 250 watt | C9: =IF('Output|PL Tariffs'!C8=0,"",'Inputs|General'!J50*'Output|PL Tariffs'!C8) -> 528718.4755 | D9: ='Inputs|General'!L50*'Output|PL Tariffs'!D8 -> 618460.721 | E9: ='Inputs|General'!M50*'Output|PL Tariffs'!E8 -> 608642.4732 | F9: ='Inputs|General'!N50*'Output|PL Tariffs'!F8 -> 595469.7885 | G9: ='Inputs|General'!O50*'Output|PL Tariffs'!G8 -> 602018.4195 | H9: ='Inputs|General'!P50*'Output|PL Tariffs'!H8 -> 603009.2038 | J9: 528718.4755 | K9: =D9/'Output|Charges Summary'!D$4 -> 606337.6827 | L9: =E9/'Output|Charges Summary'!E$4 -> 585015.1729 | M9: =F9/'Output|Charges Summary'!F$4 -> 561134.594 | N9: =G9/'Output|Charges Summary'!G$4 -> 556185.3279 | O9: =H9/'Output|Charges Summary'!H$4 -> 546180.4198
A10: ='Inputs|General'!A$51 -> Fluorescent 20 watt | C10: =IF('Output|PL Tariffs'!C9=0,"",'Inputs|General'!J51*'Output|PL Tariffs'!C9) -> 0 | D10: ='Inputs|General'!L51*'Output|PL Tariffs'!D9 -> 0 | E10: ='Inputs|General'!M51*'Output|PL Tariffs'!E9 -> 0 | F10: ='Inputs|General'!N51*'Output|PL Tariffs'!F9 -> 0 | G10: ='Inputs|General'!O51*'Output|PL Tariffs'!G9 -> 0 | H10: ='Inputs|General'!P51*'Output|PL Tariffs'!H9 -> 0 | J10: 0 | K10: =D10/'Output|Charges Summary'!D$4 -> 0 | L10: =E10/'Output|Charges Summary'!E$4 -> 0 | M10: =F10/'Output|Charges Summary'!F$4 -> 0 | N10: =G10/'Output|Charges Summary'!G$4 -> 0 | O10: =H10/'Output|Charges Summary'!H$4 -> 0
A11: ='Inputs|General'!A$52 -> Fluorescent 40 watt | C11: =IF('Output|PL Tariffs'!C10=0,"",'Inputs|General'!J52*'Output|PL Tariffs'!C10) -> 0 | D11: ='Inputs|General'!L52*'Output|PL Tariffs'!D10 -> 0 | E11: ='Inputs|General'!M52*'Output|PL Tariffs'!E10 -> 0 | F11: ='Inputs|General'!N52*'Output|PL Tariffs'!F10 -> 0 | G11: ='Inputs|General'!O52*'Output|PL Tariffs'!G10 -> 0 | H11: ='Inputs|General'!P52*'Output|PL Tariffs'!H10 -> 0 | J11: 0 | K11: =D11/'Output|Charges Summary'!D$4 -> 0 | L11: =E11/'Output|Charges Summary'!E$4 -> 0 | M11: =F11/'Output|Charges Summary'!F$4 -> 0 | N11: =G11/'Output|Charges Summary'!G$4 -> 0 | O11: =H11/'Output|Charges Summary'!H$4 -> 0
A12: ='Inputs|General'!A$53 -> Fluorescent 80 watt | C12: =IF('Output|PL Tariffs'!C11=0,"",'Inputs|General'!J53*'Output|PL Tariffs'!C11) -> 0 | D12: ='Inputs|General'!L53*'Output|PL Tariffs'!D11 -> 0 | E12: ='Inputs|General'!M53*'Output|PL Tariffs'!E11 -> 0 | F12: ='Inputs|General'!N53*'Output|PL Tariffs'!F11 -> 0 | G12: ='Inputs|General'!O53*'Output|PL Tariffs'!G11 -> 0 | H12: ='Inputs|General'!P53*'Output|PL Tariffs'!H11 -> 0 | J12: 0 | K12: =D12/'Output|Charges Summary'!D$4 -> 0 | L12: =E12/'Output|Charges Summary'!E$4 -> 0 | M12: =F12/'Output|Charges Summary'!F$4 -> 0 | N12: =G12/'Output|Charges Summary'!G$4 -> 0 | O12: =H12/'Output|Charges Summary'!H$4 -> 0
A13: ='Inputs|General'!A$54 -> Mercury Vapour 50 watt | C13: =IF('Output|PL Tariffs'!C12=0,"",'Inputs|General'!J54*'Output|PL Tariffs'!C12) -> 0 | D13: ='Inputs|General'!L54*'Output|PL Tariffs'!D12 -> 0 | E13: ='Inputs|General'!M54*'Output|PL Tariffs'!E12 -> 0 | F13: ='Inputs|General'!N54*'Output|PL Tariffs'!F12 -> 0 | G13: ='Inputs|General'!O54*'Output|PL Tariffs'!G12 -> 0 | H13: ='Inputs|General'!P54*'Output|PL Tariffs'!H12 -> 0 | J13: 0 | K13: =D13/'Output|Charges Summary'!D$4 -> 0 | L13: =E13/'Output|Charges Summary'!E$4 -> 0 | M13: =F13/'Output|Charges Summary'!F$4 -> 0 | N13: =G13/'Output|Charges Summary'!G$4 -> 0 | O13: =H13/'Output|Charges Summary'!H$4 -> 0
A14: ='Inputs|General'!A$55 -> Mercury Vapour 125 watt | C14: =IF('Output|PL Tariffs'!C13=0,"",'Inputs|General'!J55*'Output|PL Tariffs'!C13) -> 6593.747647 | D14: ='Inputs|General'!L55*'Output|PL Tariffs'!D13 -> 4812.283237 | E14: ='Inputs|General'!M55*'Output|PL Tariffs'!E13 -> 3381.594482 | F14: ='Inputs|General'!N55*'Output|PL Tariffs'!F13 -> 1985.952935 | G14: ='Inputs|General'!O55*'Output|PL Tariffs'!G13 -> 678.7067913 | H14: ='Inputs|General'!P55*'Output|PL Tariffs'!H13 -> 0 | J14: 6593.747647 | K14: =D14/'Output|Charges Summary'!D$4 -> 4717.953084 | L14: =E14/'Output|Charges Summary'!E$4 -> 3250.322098 | M14: =F14/'Output|Charges Summary'!F$4 -> 1871.441533 | N14: =G14/'Output|Charges Summary'!G$4 -> 627.0352319 | O14: =H14/'Output|Charges Summary'!H$4 -> 0
A15: ='Inputs|General'!A$56 -> Mercury Vapour 250 watt | C15: =IF('Output|PL Tariffs'!C14=0,"",'Inputs|General'!J56*'Output|PL Tariffs'!C14) -> 7543.859577 | D15: ='Inputs|General'!L56*'Output|PL Tariffs'!D14 -> 6328.393125 | E15: ='Inputs|General'!M56*'Output|PL Tariffs'!E14 -> 4515.054602 | F15: ='Inputs|General'!N56*'Output|PL Tariffs'!F14 -> 2680.543124 | G15: ='Inputs|General'!O56*'Output|PL Tariffs'!G14 -> 912.1563086 | H15: ='Inputs|General'!P56*'Output|PL Tariffs'!H14 -> 0 | J15: 7543.859577 | K15: =D15/'Output|Charges Summary'!D$4 -> 6204.344257 | L15: =E15/'Output|Charges Summary'!E$4 -> 4339.78167 | M15: =F15/'Output|Charges Summary'!F$4 -> 2525.981177 | N15: =G15/'Output|Charges Summary'!G$4 -> 842.7116832 | O15: =H15/'Output|Charges Summary'!H$4 -> 0
A16: ='Inputs|General'!A$57 -> Mercury Vapour 400 watt | C16: =IF('Output|PL Tariffs'!C15=0,"",'Inputs|General'!J57*'Output|PL Tariffs'!C15) -> 11180.84404 | D16: ='Inputs|General'!L57*'Output|PL Tariffs'!D15 -> 9393.153393 | E16: ='Inputs|General'!M57*'Output|PL Tariffs'!E15 -> 6692.432341 | F16: ='Inputs|General'!N57*'Output|PL Tariffs'!F15 -> 3960.365401 | G16: ='Inputs|General'!O57*'Output|PL Tariffs'!G15 -> 1324.935904 | H16: ='Inputs|General'!P57*'Output|PL Tariffs'!H15 -> 0 | J16: 11180.84404 | K16: =D16/'Output|Charges Summary'!D$4 -> 9209.029237 | L16: =E16/'Output|Charges Summary'!E$4 -> 6432.634322 | M16: =F16/'Output|Charges Summary'!F$4 -> 3732.008028 | N16: =G16/'Output|Charges Summary'!G$4 -> 1224.065388 | O16: =H16/'Output|Charges Summary'!H$4 -> 0
A17: ='Inputs|General'!A$58 -> Sodium Low Pressure 90 watt | C17: =IF('Output|PL Tariffs'!C16=0,"",'Inputs|General'!J58*'Output|PL Tariffs'!C16) -> 0 | D17: ='Inputs|General'!L58*'Output|PL Tariffs'!D16 -> 0 | E17: ='Inputs|General'!M58*'Output|PL Tariffs'!E16 -> 0 | F17: ='Inputs|General'!N58*'Output|PL Tariffs'!F16 -> 0 | G17: ='Inputs|General'!O58*'Output|PL Tariffs'!G16 -> 0 | H17: ='Inputs|General'!P58*'Output|PL Tariffs'!H16 -> 0 | J17: 0 | K17: =D17/'Output|Charges Summary'!D$4 -> 0 | L17: =E17/'Output|Charges Summary'!E$4 -> 0 | M17: =F17/'Output|Charges Summary'!F$4 -> 0 | N17: =G17/'Output|Charges Summary'!G$4 -> 0 | O17: =H17/'Output|Charges Summary'!H$4 -> 0
A18: ='Inputs|General'!A$59 -> Sodium High Pressure 100 watt | C18: =IF('Output|PL Tariffs'!C17=0,"",'Inputs|General'!J59*'Output|PL Tariffs'!C17) -> 167963.8396 | D18: ='Inputs|General'!L59*'Output|PL Tariffs'!D17 -> 194301.9994 | E18: ='Inputs|General'!M59*'Output|PL Tariffs'!E17 -> 191427.4116 | F18: ='Inputs|General'!N59*'Output|PL Tariffs'!F17 -> 188699.889 | G18: ='Inputs|General'!O59*'Output|PL Tariffs'!G17 -> 190795.0032 | H18: ='Inputs|General'!P59*'Output|PL Tariffs'!H17 -> 191132.9058 | J18: 167963.8396 | K18: =D18/'Output|Charges Summary'!D$4 -> 190493.3006 | L18: =E18/'Output|Charges Summary'!E$4 -> 183996.2626 | M18: =F18/'Output|Charges Summary'!F$4 -> 177819.3246 | N18: =G18/'Output|Charges Summary'!G$4 -> 176269.3266 | O18: =H18/'Output|Charges Summary'!H$4 -> 173120.1615
A19: ='Inputs|General'!A$60 -> Sodium High Pressure 400 watt | C19: =IF('Output|PL Tariffs'!C18=0,"",'Inputs|General'!J60*'Output|PL Tariffs'!C18) -> 51913.76709 | D19: ='Inputs|General'!L60*'Output|PL Tariffs'!D18 -> 60725.37147 | E19: ='Inputs|General'!M60*'Output|PL Tariffs'!E18 -> 59761.33814 | F19: ='Inputs|General'!N60*'Output|PL Tariffs'!F18 -> 58467.93963 | G19: ='Inputs|General'!O60*'Output|PL Tariffs'!G18 -> 59110.93609 | H19: ='Inputs|General'!P60*'Output|PL Tariffs'!H18 -> 59208.21914 | J19: 51913.76709 | K19: =D19/'Output|Charges Summary'!D$4 -> 59535.03556 | L19: =E19/'Output|Charges Summary'!E$4 -> 57441.42268 | M19: =F19/'Output|Charges Summary'!F$4 -> 55096.63832 | N19: =G19/'Output|Charges Summary'!G$4 -> 54610.68018 | O19: =H19/'Output|Charges Summary'!H$4 -> 53628.31907
A20: ='Inputs|General'!A$61 -> Metal Halide 70 watt | C20: =IF('Output|PL Tariffs'!C19=0,"",'Inputs|General'!J61*'Output|PL Tariffs'!C19) -> 1708.656272 | D20: ='Inputs|General'!L61*'Output|PL Tariffs'!D19 -> 1625.774414 | E20: ='Inputs|General'!M61*'Output|PL Tariffs'!E19 -> 1506.305509 | F20: ='Inputs|General'!N61*'Output|PL Tariffs'!F19 -> 1393.477732 | G20: ='Inputs|General'!O61*'Output|PL Tariffs'!G19 -> 1352.442199 | H20: ='Inputs|General'!P61*'Output|PL Tariffs'!H19 -> 1288.951202 | J20: 1708.656272 | K20: =D20/'Output|Charges Summary'!D$4 -> 1593.90606 | L20: =E20/'Output|Charges Summary'!E$4 -> 1447.831225 | M20: =F20/'Output|Charges Summary'!F$4 -> 1313.128855 | N20: =G20/'Output|Charges Summary'!G$4 -> 1249.477563 | O20: =H20/'Output|Charges Summary'!H$4 -> 1167.477883
A21: ='Inputs|General'!A$62 -> Metal Halide 150 watt | C21: =IF('Output|PL Tariffs'!C20=0,"",'Inputs|General'!J62*'Output|PL Tariffs'!C20) -> 16541.3761 | D21: ='Inputs|General'!L62*'Output|PL Tariffs'!D20 -> 17890.89436 | E21: ='Inputs|General'!M62*'Output|PL Tariffs'!E20 -> 16848.48155 | F21: ='Inputs|General'!N62*'Output|PL Tariffs'!F20 -> 15875.59979 | G21: ='Inputs|General'!O62*'Output|PL Tariffs'!G20 -> 15343.60297 | H21: ='Inputs|General'!P62*'Output|PL Tariffs'!H20 -> 14692.56687 | J21: 16541.3761 | K21: =D21/'Output|Charges Summary'!D$4 -> 17540.19788 | L21: =E21/'Output|Charges Summary'!E$4 -> 16194.42905 | M21: =F21/'Output|Charges Summary'!F$4 -> 14960.20187 | N21: =G21/'Output|Charges Summary'!G$4 -> 14175.45804 | O21: =H21/'Output|Charges Summary'!H$4 -> 13307.91021
A22: ='Inputs|General'!A$63 -> Metal Halide 250 watt | C22: =IF('Output|PL Tariffs'!C21=0,"",'Inputs|General'!J63*'Output|PL Tariffs'!C21) -> 8662.530918 | D22: ='Inputs|General'!L63*'Output|PL Tariffs'!D21 -> 9473.956206 | E22: ='Inputs|General'!M63*'Output|PL Tariffs'!E21 -> 8912.167987 | F22: ='Inputs|General'!N63*'Output|PL Tariffs'!F21 -> 8334.560404 | G22: ='Inputs|General'!O63*'Output|PL Tariffs'!G21 -> 8054.426141 | H22: ='Inputs|General'!P63*'Output|PL Tariffs'!H21 -> 7711.708819 | J22: 8662.530918 | K22: =D22/'Output|Charges Summary'!D$4 -> 9288.248156 | L22: =E22/'Output|Charges Summary'!E$4 -> 8566.200562 | M22: =F22/'Output|Charges Summary'!F$4 -> 7853.983961 | N22: =G22/'Output|Charges Summary'!G$4 -> 7441.223556 | O22: =H22/'Output|Charges Summary'!H$4 -> 6984.942076
A23: ='Inputs|General'!A$64 -> Incandescent 100 watt | C23: =IF('Output|PL Tariffs'!C22=0,"",'Inputs|General'!J64*'Output|PL Tariffs'!C22) -> 0 | D23: ='Inputs|General'!L64*'Output|PL Tariffs'!D22 -> 0 | E23: ='Inputs|General'!M64*'Output|PL Tariffs'!E22 -> 0 | F23: ='Inputs|General'!N64*'Output|PL Tariffs'!F22 -> 0 | G23: ='Inputs|General'!O64*'Output|PL Tariffs'!G22 -> 0 | H23: ='Inputs|General'!P64*'Output|PL Tariffs'!H22 -> 0 | J23: 0 | K23: =D23/'Output|Charges Summary'!D$4 -> 0 | L23: =E23/'Output|Charges Summary'!E$4 -> 0 | M23: =F23/'Output|Charges Summary'!F$4 -> 0 | N23: =G23/'Output|Charges Summary'!G$4 -> 0 | O23: =H23/'Output|Charges Summary'!H$4 -> 0
A24: ='Inputs|General'!A$65 -> Incandescent 150 watt | C24: =IF('Output|PL Tariffs'!C23=0,"",'Inputs|General'!J65*'Output|PL Tariffs'!C23) -> 0 | D24: ='Inputs|General'!L65*'Output|PL Tariffs'!D23 -> 0 | E24: ='Inputs|General'!M65*'Output|PL Tariffs'!E23 -> 0 | F24: ='Inputs|General'!N65*'Output|PL Tariffs'!F23 -> 0 | G24: ='Inputs|General'!O65*'Output|PL Tariffs'!G23 -> 0 | H24: ='Inputs|General'!P65*'Output|PL Tariffs'!H23 -> 0 | J24: 0 | K24: =D24/'Output|Charges Summary'!D$4 -> 0 | L24: =E24/'Output|Charges Summary'!E$4 -> 0 | M24: =F24/'Output|Charges Summary'!F$4 -> 0 | N24: =G24/'Output|Charges Summary'!G$4 -> 0 | O24: =H24/'Output|Charges Summary'!H$4 -> 0
A27: ='Inputs|General'!A$70 -> Energy Efficient Lights
A28: ='Inputs|General'!A$71 -> T5 (2 x 14 W) | C28: =IF('Output|PL Tariffs'!C27=0,"",'Inputs|General'!J71*'Output|PL Tariffs'!C27) -> 1010995.255 | D28: ='Inputs|General'!L71*'Output|PL Tariffs'!D27 -> 1584659.409 | E28: ='Inputs|General'!M71*'Output|PL Tariffs'!E27 -> 1636291.421 | F28: ='Inputs|General'!N71*'Output|PL Tariffs'!F27 -> 1683061.494 | G28: ='Inputs|General'!O71*'Output|PL Tariffs'!G27 -> 1727459.842 | H28: ='Inputs|General'!P71*'Output|PL Tariffs'!H27 -> 1769446.356 | J28: =C28 -> 1010995.255 | K28: =D28/'Output|Charges Summary'!D$4 -> 1553596.989 | L28: =E28/'Output|Charges Summary'!E$4 -> 1572771.127 | M28: =F28/'Output|Charges Summary'!F$4 -> 1586015.02 | N28: =G28/'Output|Charges Summary'!G$4 -> 1595944.223 | O28: =H28/'Output|Charges Summary'!H$4 -> 1602690.22
A29: ='Inputs|General'!A$72 -> T5 (2 x 24 W) | C29: =IF('Output|PL Tariffs'!C28=0,"",'Inputs|General'!J72*'Output|PL Tariffs'!C28) -> 39870.81294 | D29: ='Inputs|General'!L72*'Output|PL Tariffs'!D28 -> 62494.51576 | E29: ='Inputs|General'!M72*'Output|PL Tariffs'!E28 -> 64530.73727 | F29: ='Inputs|General'!N72*'Output|PL Tariffs'!F28 -> 66375.21758 | G29: ='Inputs|General'!O72*'Output|PL Tariffs'!G28 -> 68126.16369 | H29: ='Inputs|General'!P72*'Output|PL Tariffs'!H28 -> 69781.99388 | J29: =C29 -> 39870.81294 | K29: =D29/'Output|Charges Summary'!D$4 -> 61269.50116 | L29: =E29/'Output|Charges Summary'!E$4 -> 62025.67531 | M29: =F29/'Output|Charges Summary'!F$4 -> 62547.97722 | N29: =G29/'Output|Charges Summary'!G$4 -> 62939.55711 | O29: =H29/'Output|Charges Summary'!H$4 -> 63205.60029
A30: ='Inputs|General'!A$73 -> LED 18W (incl. other standard Category P LED variants) | C30: =IF('Output|PL Tariffs'!C29=0,"",'Inputs|General'!J73*'Output|PL Tariffs'!C29) -> 442759.9144 | D30: ='Inputs|General'!L73*'Output|PL Tariffs'!D29 -> 628264.8949 | E30: ='Inputs|General'!M73*'Output|PL Tariffs'!E29 -> 769323.1137 | F30: ='Inputs|General'!N73*'Output|PL Tariffs'!F29 -> 928971.003 | G30: ='Inputs|General'!O73*'Output|PL Tariffs'!G29 -> 1103410.961 | H30: ='Inputs|General'!P73*'Output|PL Tariffs'!H29 -> 1260635.712 | J30: 442759.9144 | K30: =D30/'Output|Charges Summary'!D$4 -> 615949.6756 | L30: =E30/'Output|Charges Summary'!E$4 -> 739458.2439 | M30: =F30/'Output|Charges Summary'!F$4 -> 875405.9008 | N30: =G30/'Output|Charges Summary'!G$4 -> 1019405.665 | O30: =H30/'Output|Charges Summary'!H$4 -> 1141830.901
A31: ='Inputs|General'!A74 -> Compact Fluoro 32W | C31: =IF('Output|PL Tariffs'!C30=0,"",'Inputs|General'!J74*'Output|PL Tariffs'!C30) -> 84922.68678 | D31: ='Inputs|General'!L74*'Output|PL Tariffs'!D30 -> 148511.7579 | E31: ='Inputs|General'!M74*'Output|PL Tariffs'!E30 -> 154879.0181 | F31: ='Inputs|General'!N74*'Output|PL Tariffs'!F30 -> 160893.6653 | G31: ='Inputs|General'!O74*'Output|PL Tariffs'!G30 -> 166783.8325 | H31: ='Inputs|General'!P74*'Output|PL Tariffs'!H30 -> 172540.248 | J31: 84922.68678 | K31: =D31/'Output|Charges Summary'!D$4 -> 145600.6374 | L31: =E31/'Output|Charges Summary'!E$4 -> 148866.6656 | M31: =F31/'Output|Charges Summary'!F$4 -> 151616.4267 | N31: =G31/'Output|Charges Summary'!G$4 -> 154086.1834 | O31: =H31/'Output|Charges Summary'!H$4 -> 156279.7126
A32: ='Inputs|General'!A75 -> Compact Fluoro 42W | C32: =IF('Output|PL Tariffs'!C31=0,"",'Inputs|General'!J75*'Output|PL Tariffs'!C31) -> 12013.80658 | D32: ='Inputs|General'!L75*'Output|PL Tariffs'!D31 -> 18629.05573 | E32: ='Inputs|General'!M75*'Output|PL Tariffs'!E31 -> 19427.75373 | F32: ='Inputs|General'!N75*'Output|PL Tariffs'!F31 -> 20182.22058 | G32: ='Inputs|General'!O75*'Output|PL Tariffs'!G31 -> 20921.07288 | H32: ='Inputs|General'!P75*'Output|PL Tariffs'!H31 -> 21643.14759 | J32: =C32 -> 12013.80658 | K32: =D32/'Output|Charges Summary'!D$4 -> 18263.88984 | L32: =E32/'Output|Charges Summary'!E$4 -> 18673.57473 | M32: =F32/'Output|Charges Summary'!F$4 -> 19018.49996 | N32: =G32/'Output|Charges Summary'!G$4 -> 19328.30193 | O32: =H32/'Output|Charges Summary'!H$4 -> 19603.45441
A33: ='Inputs|General'!A76 -> L1 - LED 70W | C33: =IF('Output|PL Tariffs'!C32=0,"",'Inputs|General'!J76*'Output|PL Tariffs'!C32) -> 34001.69542 | D33: ='Inputs|General'!L76*'Output|PL Tariffs'!D32 -> 38681.94223 | E33: ='Inputs|General'!M76*'Output|PL Tariffs'!E32 -> 47714.06944 | F33: ='Inputs|General'!N76*'Output|PL Tariffs'!F32 -> 57875.35392 | G33: ='Inputs|General'!O76*'Output|PL Tariffs'!G32 -> 68919.37374 | H33: ='Inputs|General'!P76*'Output|PL Tariffs'!H32 -> 78677.19607 | J33: 34001.69542 | K33: =D33/'Output|Charges Summary'!D$4 -> 37923.70059 | L33: =E33/'Output|Charges Summary'!E$4 -> 45861.82499 | M33: =F33/'Output|Charges Summary'!F$4 -> 54538.2215 | N33: =G33/'Output|Charges Summary'!G$4 -> 63672.37819 | O33: =H33/'Output|Charges Summary'!H$4 -> 71262.50098
A34: ='Inputs|General'!A77 -> L2 - LED 118W, 155W, 162W | C34: =IF('Output|PL Tariffs'!C33=0,"",'Inputs|General'!J77*'Output|PL Tariffs'!C33) -> 9427.184868 | D34: ='Inputs|General'!L77*'Output|PL Tariffs'!D33 -> 10643.72678 | E34: ='Inputs|General'!M77*'Output|PL Tariffs'!E33 -> 13146.43979 | F34: ='Inputs|General'!N77*'Output|PL Tariffs'!F33 -> 15962.42291 | G34: ='Inputs|General'!O77*'Output|PL Tariffs'!G33 -> 19023.48808 | H34: ='Inputs|General'!P77*'Output|PL Tariffs'!H33 -> 21727.96447 | J34: 9427.184868 | K34: =D34/'Output|Charges Summary'!D$4 -> 10435.08895 | L34: =E34/'Output|Charges Summary'!E$4 -> 12636.09933 | M34: =F34/'Output|Charges Summary'!F$4 -> 15042.01871 | N34: =G34/'Output|Charges Summary'!G$4 -> 17575.18477 | O34: =H34/'Output|Charges Summary'!H$4 -> 19680.27798
A35: ='Inputs|General'!A78 -> L4 - LED 275W | C35: =IF('Output|PL Tariffs'!C34=0,"",'Inputs|General'!J78*'Output|PL Tariffs'!C34) -> 195.9248306 | D35: ='Inputs|General'!L78*'Output|PL Tariffs'!D34 -> 181.5698757 | E35: ='Inputs|General'!M78*'Output|PL Tariffs'!E34 -> 226.6774982 | F35: ='Inputs|General'!N78*'Output|PL Tariffs'!F34 -> 277.4852269 | G35: ='Inputs|General'!O78*'Output|PL Tariffs'!G34 -> 332.7768654 | H35: ='Inputs|General'!P78*'Output|PL Tariffs'!H34 -> 381.6145488 | J35: =C35 -> 195.9248306 | K35: =D35/'Output|Charges Summary'!D$4 -> 178.0107514 | L35: =E35/'Output|Charges Summary'!E$4 -> 217.8779524 | M35: =F35/'Output|Charges Summary'!F$4 -> 261.4852393 | N35: =G35/'Output|Charges Summary'!G$4 -> 307.4417725 | O35: =H35/'Output|Charges Summary'!H$4 -> 345.6504364
A37: Total Revenue | C37: =IF(SUM(C7:C35)=0,"",SUM(C7:C35)) -> 4393022.955 | D37: =SUM(D7:D35) -> 5544913.569 | E37: =SUM(E7:E35) -> 5640263.058 | F37: =SUM(F7:F35) -> 5749826.191 | G37: =SUM(G7:G35) -> 5951622.159 | H37: =SUM(H7:H35) -> 6139639.813 | J37: =IF(SUM(J7:J35)=0,"",SUM(J7:J35)) -> 4393022.955 | K37: =SUM(K7:K35) -> 5436222.431 | L37: =SUM(L7:L35) -> 5421309.904 | M37: =SUM(M7:M35) -> 5418287.288 | N37: =SUM(N7:N35) -> 5498511.033 | O37: =SUM(O7:O35) -> 5561027.973
A38: % Increase \ (Decrease) in Total Revenue | D38: =D37/C37-1 -> 0.2622091041 | E38: =E37/D37-1 -> 0.01719584769 | F38: 0.01942518139 | G38: 0.03509601179 | H38: 0.03159099313 | K38: =K37/J37-1 -> 0.2374673399 | L38: -0.002743178059 | M38: -0.0005575436623 | N38: 0.01480610786 | O38: 0.0113697944
A40: Public Lighting - O & M | D40: Forecast O & M - Nominal | K40: Forecast O & M - Real 2021 $
A41: Excluding Revenue Recovery | D41: =D$2 -> FY2022 | E41: FY2023 | F41: FY2024 | G41: FY2025 | H41: FY2026 | K41: =K$2 -> FY2022 | L41: FY2023 | M41: FY2024 | N41: FY2025 | O41: FY2026
A43: Unit cost
A44: ='Inputs|General'!A$48 -> Mercury Vapour 80 watt | D44: =SUM('Output|Charges Summary'!D25,'Output|Charges Summary'!D8) -> 32.46573982 | E44: =SUM('Output|Charges Summary'!E25,'Output|Charges Summary'!E8) -> 33.28574701 | F44: =SUM('Output|Charges Summary'!F25,'Output|Charges Summary'!F8) -> 34.12555136 | G44: =SUM('Output|Charges Summary'!G25,'Output|Charges Summary'!G8) -> 35.02218453 | H44: =SUM('Output|Charges Summary'!H25,'Output|Charges Summary'!H8) -> 36.00024524 | K44: =D44/'Output|Charges Summary'!D$4 -> 31.82934789 | L44: =E44/'Output|Charges Summary'!E$4 -> 31.99360528 | M44: =F44/'Output|Charges Summary'!F$4 -> 32.15784877 | N44: =G44/'Output|Charges Summary'!G$4 -> 32.35586247 | O44: =H44/'Output|Charges Summary'!H$4 -> 32.60751068
A45: ='Inputs|General'!A$49 -> Sodium High Pressure 150 watt | D45: =SUM('Output|Charges Summary'!D41,'Output|Charges Summary'!D8) -> 92.49790218 | E45: =SUM('Output|Charges Summary'!E41,'Output|Charges Summary'!E8) -> 94.80253837 | F45: =SUM('Output|Charges Summary'!F41,'Output|Charges Summary'!F8) -> 97.14066585 | G45: =SUM('Output|Charges Summary'!G41,'Output|Charges Summary'!G8) -> 99.62851495 | H45: =SUM('Output|Charges Summary'!H41,'Output|Charges Summary'!H8) -> 102.3400562 | K45: =D45/'Output|Charges Summary'!D$4 -> 90.6847626 | L45: =E45/'Output|Charges Summary'!E$4 -> 91.12233507 | M45: =F45/'Output|Charges Summary'!F$4 -> 91.53946875 | N45: =G45/'Output|Charges Summary'!G$4 -> 92.04355957 | O45: =H45/'Output|Charges Summary'!H$4 -> 92.69532621
A46: ='Inputs|General'!A$50 -> Sodium High Pressure 250 watt | D46: =SUM('Output|Charges Summary'!D57,'Output|Charges Summary'!D8) -> 93.96864249 | E46: =SUM('Output|Charges Summary'!E57,'Output|Charges Summary'!E8) -> 96.30397713 | F46: =SUM('Output|Charges Summary'!F57,'Output|Charges Summary'!F8) -> 98.67334414 | G46: =SUM('Output|Charges Summary'!G57,'Output|Charges Summary'!G8) -> 101.1933435 | H46: =SUM('Output|Charges Summary'!H57,'Output|Charges Summary'!H8) -> 103.9381799 | K46: =D46/'Output|Charges Summary'!D$4 -> 92.12667353 | L46: =E46/'Output|Charges Summary'!E$4 -> 92.56548847 | M46: =F46/'Output|Charges Summary'!F$4 -> 92.98377176 | N46: =G46/'Output|Charges Summary'!G$4 -> 93.48925398 | O46: =H46/'Output|Charges Summary'!H$4 -> 94.14283952
A48: ='Inputs|General'!A$47 -> Existing Lights
A49: ='Inputs|General'!A$48 -> Mercury Vapour 80 watt | D49: =D44*'Inputs|General'!L48 -> 129632.8727 | E49: =E44*'Inputs|General'!M48 -> 94684.01006 | F49: =F44*'Inputs|General'!N48 -> 57885.44775 | G49: =G44*'Inputs|General'!O48 -> 19648.90906 | H49: =H44*'Inputs|General'!P48 -> 0 | K49: =D49/'Output|Charges Summary'!D$4 -> 127091.8151 | L49: =E49/'Output|Charges Summary'!E$4 -> 91008.40798 | M49: =F49/'Output|Charges Summary'!F$4 -> 54547.73331 | N49: =G49/'Output|Charges Summary'!G$4 -> 18152.99097 | O49: =H49/'Output|Charges Summary'!H$4 -> 0
A50: ='Inputs|General'!A$49 -> Sodium High Pressure 150 watt | D50: =D45*'Inputs|General'!L49 -> 1448999.194 | E50: =E45*'Inputs|General'!M49 -> 1459369.604 | F50: =F45*'Inputs|General'!N49 -> 1469452.245 | G50: =G45*'Inputs|General'!O49 -> 1480972.955 | H50: =H45*'Inputs|General'!P49 -> 1494920.825 | K50: =D50/'Output|Charges Summary'!D$4 -> 1420595.979 | L50: =E50/'Output|Charges Summary'!E$4 -> 1402717.357 | M50: =F50/'Output|Charges Summary'!F$4 -> 1384722.626 | N50: =G50/'Output|Charges Summary'!G$4 -> 1368222.968 | O50: =H50/'Output|Charges Summary'!H$4 -> 1354036.52
A51: ='Inputs|General'!A$50 -> Sodium High Pressure 250 watt | D51: =D46*'Inputs|General'!L50 -> 468485.2249 | E51: =E46*'Inputs|General'!M50 -> 471809.0191 | F51: =F46*'Inputs|General'!N50 -> 475040.8233 | G51: =G46*'Inputs|General'!O50 -> 478731.6067 | H51: =H46*'Inputs|General'!P50 -> 483197.1156 | K51: =D51/'Output|Charges Summary'!D$4 -> 459301.9993 | L51: =E51/'Output|Charges Summary'!E$4 -> 453493.5484 | M51: =F51/'Output|Charges Summary'!F$4 -> 447649.6452 | N51: =G51/'Output|Charges Summary'!G$4 -> 442284.6329 | O51: =H51/'Output|Charges Summary'!H$4 -> 437659.6606
A52: ='Inputs|General'!A$51 -> Fluorescent 20 watt | D52: =IF('Inputs|General'!$B51='Inputs|General'!$A$48,D$44,IF('Inputs|General'!$B51='Inputs|General'!$A$49,D$45,D$46))*'Inputs|General'!$C51*'Inputs|General'!L51 -> 0 | E52: =IF('Inputs|General'!$B51='Inputs|General'!$A$48,E$44,IF('Inputs|General'!$B51='Inputs|General'!$A$49,E$45,E$46))*'Inputs|General'!$C51*'Inputs|General'!M51 -> 0 | F52: =IF('Inputs|General'!$B51='Inputs|General'!$A$48,F$44,IF('Inputs|General'!$B51='Inputs|General'!$A$49,F$45,F$46))*'Inputs|General'!$C51*'Inputs|General'!N51 -> 0 | G52: =IF('Inputs|General'!$B51='Inputs|General'!$A$48,G$44,IF('Inputs|General'!$B51='Inputs|General'!$A$49,G$45,G$46))*'Inputs|General'!$C51*'Inputs|General'!O51 -> 0 | H52: =IF('Inputs|General'!$B51='Inputs|General'!$A$48,H$44,IF('Inputs|General'!$B51='Inputs|General'!$A$49,H$45,H$46))*'Inputs|General'!$C51*'Inputs|General'!P51 -> 0 | K52: =D52/'Output|Charges Summary'!D$4 -> 0 | L52: =E52/'Output|Charges Summary'!E$4 -> 0 | M52: =F52/'Output|Charges Summary'!F$4 -> 0 | N52: =G52/'Output|Charges Summary'!G$4 -> 0 | O52: =H52/'Output|Charges Summary'!H$4 -> 0
A53: ='Inputs|General'!A$52 -> Fluorescent 40 watt | D53: =IF('Inputs|General'!$B52='Inputs|General'!$A$48,D$44,IF('Inputs|General'!$B52='Inputs|General'!$A$49,D$45,D$46))*'Inputs|General'!$C52*'Inputs|General'!L52 -> 0 | E53: =IF('Inputs|General'!$B52='Inputs|General'!$A$48,E$44,IF('Inputs|General'!$B52='Inputs|General'!$A$49,E$45,E$46))*'Inputs|General'!$C52*'Inputs|General'!M52 -> 0 | F53: =IF('Inputs|General'!$B52='Inputs|General'!$A$48,F$44,IF('Inputs|General'!$B52='Inputs|General'!$A$49,F$45,F$46))*'Inputs|General'!$C52*'Inputs|General'!N52 -> 0 | G53: =IF('Inputs|General'!$B52='Inputs|General'!$A$48,G$44,IF('Inputs|General'!$B52='Inputs|General'!$A$49,G$45,G$46))*'Inputs|General'!$C52*'Inputs|General'!O52 -> 0 | H53: =IF('Inputs|General'!$B52='Inputs|General'!$A$48,H$44,IF('Inputs|General'!$B52='Inputs|General'!$A$49,H$45,H$46))*'Inputs|General'!$C52*'Inputs|General'!P52 -> 0 | K53: =D53/'Output|Charges Summary'!D$4 -> 0 | L53: =E53/'Output|Charges Summary'!E$4 -> 0 | M53: =F53/'Output|Charges Summary'!F$4 -> 0 | N53: =G53/'Output|Charges Summary'!G$4 -> 0 | O53: =H53/'Output|Charges Summary'!H$4 -> 0
A54: ='Inputs|General'!A$53 -> Fluorescent 80 watt | D54: =IF('Inputs|General'!$B53='Inputs|General'!$A$48,D$44,IF('Inputs|General'!$B53='Inputs|General'!$A$49,D$45,D$46))*'Inputs|General'!$C53*'Inputs|General'!L53 -> 0 | E54: =IF('Inputs|General'!$B53='Inputs|General'!$A$48,E$44,IF('Inputs|General'!$B53='Inputs|General'!$A$49,E$45,E$46))*'Inputs|General'!$C53*'Inputs|General'!M53 -> 0 | F54: =IF('Inputs|General'!$B53='Inputs|General'!$A$48,F$44,IF('Inputs|General'!$B53='Inputs|General'!$A$49,F$45,F$46))*'Inputs|General'!$C53*'Inputs|General'!N53 -> 0 | G54: =IF('Inputs|General'!$B53='Inputs|General'!$A$48,G$44,IF('Inputs|General'!$B53='Inputs|General'!$A$49,G$45,G$46))*'Inputs|General'!$C53*'Inputs|General'!O53 -> 0 | H54: =IF('Inputs|General'!$B53='Inputs|General'!$A$48,H$44,IF('Inputs|General'!$B53='Inputs|General'!$A$49,H$45,H$46))*'Inputs|General'!$C53*'Inputs|General'!P53 -> 0 | K54: =D54/'Output|Charges Summary'!D$4 -> 0 | L54: =E54/'Output|Charges Summary'!E$4 -> 0 | M54: =F54/'Output|Charges Summary'!F$4 -> 0 | N54: =G54/'Output|Charges Summary'!G$4 -> 0 | O54: =H54/'Output|Charges Summary'!H$4 -> 0
A55: ='Inputs|General'!A$54 -> Mercury Vapour 50 watt | D55: =IF('Inputs|General'!$B54='Inputs|General'!$A$48,D$44,IF('Inputs|General'!$B54='Inputs|General'!$A$49,D$45,D$46))*'Inputs|General'!$C54*'Inputs|General'!L54 -> 0 | E55: =IF('Inputs|General'!$B54='Inputs|General'!$A$48,E$44,IF('Inputs|General'!$B54='Inputs|General'!$A$49,E$45,E$46))*'Inputs|General'!$C54*'Inputs|General'!M54 -> 0 | F55: =IF('Inputs|General'!$B54='Inputs|General'!$A$48,F$44,IF('Inputs|General'!$B54='Inputs|General'!$A$49,F$45,F$46))*'Inputs|General'!$C54*'Inputs|General'!N54 -> 0 | G55: =IF('Inputs|General'!$B54='Inputs|General'!$A$48,G$44,IF('Inputs|General'!$B54='Inputs|General'!$A$49,G$45,G$46))*'Inputs|General'!$C54*'Inputs|General'!O54 -> 0 | H55: =IF('Inputs|General'!$B54='Inputs|General'!$A$48,H$44,IF('Inputs|General'!$B54='Inputs|General'!$A$49,H$45,H$46))*'Inputs|General'!$C54*'Inputs|General'!P54 -> 0 | K55: =D55/'Output|Charges Summary'!D$4 -> 0 | L55: =E55/'Output|Charges Summary'!E$4 -> 0 | M55: =F55/'Output|Charges Summary'!F$4 -> 0 | N55: =G55/'Output|Charges Summary'!G$4 -> 0 | O55: =H55/'Output|Charges Summary'!H$4 -> 0
A56: ='Inputs|General'!A$55 -> Mercury Vapour 125 watt | D56: =IF('Inputs|General'!$B55='Inputs|General'!$A$48,D$44,IF('Inputs|General'!$B55='Inputs|General'!$A$49,D$45,D$46))*'Inputs|General'!$C55*'Inputs|General'!L55 -> 2699.353104 | E56: =IF('Inputs|General'!$B55='Inputs|General'!$A$48,E$44,IF('Inputs|General'!$B55='Inputs|General'!$A$49,E$45,E$46))*'Inputs|General'!$C55*'Inputs|General'!M55 -> 1971.610836 | F56: =IF('Inputs|General'!$B55='Inputs|General'!$A$48,F$44,IF('Inputs|General'!$B55='Inputs|General'!$A$49,F$45,F$46))*'Inputs|General'!$C55*'Inputs|General'!N55 -> 1205.35216 | G56: =IF('Inputs|General'!$B55='Inputs|General'!$A$48,G$44,IF('Inputs|General'!$B55='Inputs|General'!$A$49,G$45,G$46))*'Inputs|General'!$C55*'Inputs|General'!O55 -> 409.1504151 | H56: =IF('Inputs|General'!$B55='Inputs|General'!$A$48,H$44,IF('Inputs|General'!$B55='Inputs|General'!$A$49,H$45,H$46))*'Inputs|General'!$C55*'Inputs|General'!P55 -> 0 | K56: =D56/'Output|Charges Summary'!D$4 -> 2646.44051 | L56: =E56/'Output|Charges Summary'!E$4 -> 1895.073553 | M56: =F56/'Output|Charges Summary'!F$4 -> 1135.850731 | N56: =G56/'Output|Charges Summary'!G$4 -> 378.0008226 | O56: =H56/'Output|Charges Summary'!H$4 -> 0
A57: ='Inputs|General'!A$56 -> Mercury Vapour 250 watt | D57: =IF('Inputs|General'!$B56='Inputs|General'!$A$48,D$44,IF('Inputs|General'!$B56='Inputs|General'!$A$49,D$45,D$46))*'Inputs|General'!$C56*'Inputs|General'!L56 -> 4793.770365 | E57: =IF('Inputs|General'!$B56='Inputs|General'!$A$48,E$44,IF('Inputs|General'!$B56='Inputs|General'!$A$49,E$45,E$46))*'Inputs|General'!$C56*'Inputs|General'!M56 -> 3499.991501 | F57: =IF('Inputs|General'!$B56='Inputs|General'!$A$48,F$44,IF('Inputs|General'!$B56='Inputs|General'!$A$49,F$45,F$46))*'Inputs|General'!$C56*'Inputs|General'!N56 -> 2138.424883 | G57: =IF('Inputs|General'!$B56='Inputs|General'!$A$48,G$44,IF('Inputs|General'!$B56='Inputs|General'!$A$49,G$45,G$46))*'Inputs|General'!$C56*'Inputs|General'!O56 -> 725.3566353 | H57: =IF('Inputs|General'!$B56='Inputs|General'!$A$48,H$44,IF('Inputs|General'!$B56='Inputs|General'!$A$49,H$45,H$46))*'Inputs|General'!$C56*'Inputs|General'!P56 -> 0 | K57: =D57/'Output|Charges Summary'!D$4 -> 4699.803101 | L57: =E57/'Output|Charges Summary'!E$4 -> 3364.122984 | M57: =F57/'Output|Charges Summary'!F$4 -> 2015.121844 | N57: =G57/'Output|Charges Summary'!G$4 -> 670.1335125 | O57: =H57/'Output|Charges Summary'!H$4 -> 0
A58: ='Inputs|General'!A$57 -> Mercury Vapour 400 watt | D58: =IF('Inputs|General'!$B57='Inputs|General'!$A$48,D$44,IF('Inputs|General'!$B57='Inputs|General'!$A$49,D$45,D$46))*'Inputs|General'!$C57*'Inputs|General'!L57 -> 7115.332358 | E58: =IF('Inputs|General'!$B57='Inputs|General'!$A$48,E$44,IF('Inputs|General'!$B57='Inputs|General'!$A$49,E$45,E$46))*'Inputs|General'!$C57*'Inputs|General'!M57 -> 5187.85671 | F58: =IF('Inputs|General'!$B57='Inputs|General'!$A$48,F$44,IF('Inputs|General'!$B57='Inputs|General'!$A$49,F$45,F$46))*'Inputs|General'!$C57*'Inputs|General'!N57 -> 3159.41342 | G58: =IF('Inputs|General'!$B57='Inputs|General'!$A$48,G$44,IF('Inputs|General'!$B57='Inputs|General'!$A$49,G$45,G$46))*'Inputs|General'!$C57*'Inputs|General'!O57 -> 1053.603467 | H58: =IF('Inputs|General'!$B57='Inputs|General'!$A$48,H$44,IF('Inputs|General'!$B57='Inputs|General'!$A$49,H$45,H$46))*'Inputs|General'!$C57*'Inputs|General'!P57 -> 0 | K58: =D58/'Output|Charges Summary'!D$4 -> 6975.857943 | L58: =E58/'Output|Charges Summary'!E$4 -> 4986.465821 | M58: =F58/'Output|Charges Summary'!F$4 -> 2977.239485 | N58: =G58/'Output|Charges Summary'!G$4 -> 973.3901337 | O58: =H58/'Output|Charges Summary'!H$4 -> 0
A59: ='Inputs|General'!A$58 -> Sodium Low Pressure 90 watt | D59: =IF('Inputs|General'!$B58='Inputs|General'!$A$48,D$44,IF('Inputs|General'!$B58='Inputs|General'!$A$49,D$45,D$46))*'Inputs|General'!$C58*'Inputs|General'!L58 -> 0 | E59: =IF('Inputs|General'!$B58='Inputs|General'!$A$48,E$44,IF('Inputs|General'!$B58='Inputs|General'!$A$49,E$45,E$46))*'Inputs|General'!$C58*'Inputs|General'!M58 -> 0 | F59: =IF('Inputs|General'!$B58='Inputs|General'!$A$48,F$44,IF('Inputs|General'!$B58='Inputs|General'!$A$49,F$45,F$46))*'Inputs|General'!$C58*'Inputs|General'!N58 -> 0 | G59: =IF('Inputs|General'!$B58='Inputs|General'!$A$48,G$44,IF('Inputs|General'!$B58='Inputs|General'!$A$49,G$45,G$46))*'Inputs|General'!$C58*'Inputs|General'!O58 -> 0 | H59: =IF('Inputs|General'!$B58='Inputs|General'!$A$48,H$44,IF('Inputs|General'!$B58='Inputs|General'!$A$49,H$45,H$46))*'Inputs|General'!$C58*'Inputs|General'!P58 -> 0 | K59: =D59/'Output|Charges Summary'!D$4 -> 0 | L59: =E59/'Output|Charges Summary'!E$4 -> 0 | M59: =F59/'Output|Charges Summary'!F$4 -> 0 | N59: =G59/'Output|Charges Summary'!G$4 -> 0 | O59: =H59/'Output|Charges Summary'!H$4 -> 0
A60: ='Inputs|General'!A$59 -> Sodium High Pressure 100 watt | D60: =IF('Inputs|General'!$B59='Inputs|General'!$A$48,D$44,IF('Inputs|General'!$B59='Inputs|General'!$A$49,D$45,D$46))*'Inputs|General'!$C59*'Inputs|General'!L59 -> 148279.8252 | E60: =IF('Inputs|General'!$B59='Inputs|General'!$A$48,E$44,IF('Inputs|General'!$B59='Inputs|General'!$A$49,E$45,E$46))*'Inputs|General'!$C59*'Inputs|General'!M59 -> 149341.056 | F60: =IF('Inputs|General'!$B59='Inputs|General'!$A$48,F$44,IF('Inputs|General'!$B59='Inputs|General'!$A$49,F$45,F$46))*'Inputs|General'!$C59*'Inputs|General'!N59 -> 150372.8387 | G60: =IF('Inputs|General'!$B59='Inputs|General'!$A$48,G$44,IF('Inputs|General'!$B59='Inputs|General'!$A$49,G$45,G$46))*'Inputs|General'!$C59*'Inputs|General'!O59 -> 151551.7826 | H60: =IF('Inputs|General'!$B59='Inputs|General'!$A$48,H$44,IF('Inputs|General'!$B59='Inputs|General'!$A$49,H$45,H$46))*'Inputs|General'!$C59*'Inputs|General'!P59 -> 152979.1041 | K60: =D60/'Output|Charges Summary'!D$4 -> 145373.2509 | L60: =E60/'Output|Charges Summary'!E$4 -> 143543.6854 | M60: =F60/'Output|Charges Summary'!F$4 -> 141702.2381 | N60: =G60/'Output|Charges Summary'!G$4 -> 140013.7856 | O60: =H60/'Output|Charges Summary'!H$4 -> 138562.0498
A61: ='Inputs|General'!A$60 -> Sodium High Pressure 400 watt | D61: =IF('Inputs|General'!$B60='Inputs|General'!$A$48,D$44,IF('Inputs|General'!$B60='Inputs|General'!$A$49,D$45,D$46))*'Inputs|General'!$C60*'Inputs|General'!L60 -> 45999.58953 | E61: =IF('Inputs|General'!$B60='Inputs|General'!$A$48,E$44,IF('Inputs|General'!$B60='Inputs|General'!$A$49,E$45,E$46))*'Inputs|General'!$C60*'Inputs|General'!M60 -> 46325.94597 | F61: =IF('Inputs|General'!$B60='Inputs|General'!$A$48,F$44,IF('Inputs|General'!$B60='Inputs|General'!$A$49,F$45,F$46))*'Inputs|General'!$C60*'Inputs|General'!N60 -> 46643.2701 | G61: =IF('Inputs|General'!$B60='Inputs|General'!$A$48,G$44,IF('Inputs|General'!$B60='Inputs|General'!$A$49,G$45,G$46))*'Inputs|General'!$C60*'Inputs|General'!O60 -> 47005.66044 | H61: =IF('Inputs|General'!$B60='Inputs|General'!$A$48,H$44,IF('Inputs|General'!$B60='Inputs|General'!$A$49,H$45,H$46))*'Inputs|General'!$C60*'Inputs|General'!P60 -> 47444.11947 | K61: =D61/'Output|Charges Summary'!D$4 -> 45097.90772 | L61: =E61/'Output|Charges Summary'!E$4 -> 44527.58801 | M61: =F61/'Output|Charges Summary'!F$4 -> 43953.78731 | N61: =G61/'Output|Charges Summary'!G$4 -> 43427.00791 | O61: =H61/'Output|Charges Summary'!H$4 -> 42972.8915
A62: ='Inputs|General'!A$61 -> Metal Halide 70 watt | D62: =IF('Inputs|General'!$B61='Inputs|General'!$A$48,D$44,IF('Inputs|General'!$B61='Inputs|General'!$A$49,D$45,D$46))*'Inputs|General'!$C61*'Inputs|General'!L61 -> 911.9453273 | E62: =IF('Inputs|General'!$B61='Inputs|General'!$A$48,E$44,IF('Inputs|General'!$B61='Inputs|General'!$A$49,E$45,E$46))*'Inputs|General'!$C61*'Inputs|General'!M61 -> 878.2390316 | F62: =IF('Inputs|General'!$B61='Inputs|General'!$A$48,F$44,IF('Inputs|General'!$B61='Inputs|General'!$A$49,F$45,F$46))*'Inputs|General'!$C61*'Inputs|General'!N61 -> 845.7558909 | G62: =IF('Inputs|General'!$B61='Inputs|General'!$A$48,G$44,IF('Inputs|General'!$B61='Inputs|General'!$A$49,G$45,G$46))*'Inputs|General'!$C61*'Inputs|General'!O61 -> 815.3038901 | H62: =IF('Inputs|General'!$B61='Inputs|General'!$A$48,H$44,IF('Inputs|General'!$B61='Inputs|General'!$A$49,H$45,H$46))*'Inputs|General'!$C61*'Inputs|General'!P61 -> 787.2137473 | K62: =D62/'Output|Charges Summary'!D$4 -> 894.0694174 | L62: =E62/'Output|Charges Summary'!E$4 -> 844.1460818 | M62: =F62/'Output|Charges Summary'!F$4 -> 796.9890288 | N62: =G62/'Output|Charges Summary'!G$4 -> 753.2328692 | O62: =H62/'Output|Charges Summary'!H$4 -> 713.0251615
A63: ='Inputs|General'!A$62 -> Metal Halide 150 watt | D63: =IF('Inputs|General'!$B62='Inputs|General'!$A$48,D$44,IF('Inputs|General'!$B62='Inputs|General'!$A$49,D$45,D$46))*'Inputs|General'!$C62*'Inputs|General'!L62 -> 13653.27529 | E63: =IF('Inputs|General'!$B62='Inputs|General'!$A$48,E$44,IF('Inputs|General'!$B62='Inputs|General'!$A$49,E$45,E$46))*'Inputs|General'!$C62*'Inputs|General'!M62 -> 13144.25142 | F63: =IF('Inputs|General'!$B62='Inputs|General'!$A$48,F$44,IF('Inputs|General'!$B62='Inputs|General'!$A$49,F$45,F$46))*'Inputs|General'!$C62*'Inputs|General'!N62 -> 12651.08856 | G63: =IF('Inputs|General'!$B62='Inputs|General'!$A$48,G$44,IF('Inputs|General'!$B62='Inputs|General'!$A$49,G$45,G$46))*'Inputs|General'!$C62*'Inputs|General'!O62 -> 12187.69015 | H63: =IF('Inputs|General'!$B62='Inputs|General'!$A$48,H$44,IF('Inputs|General'!$B62='Inputs|General'!$A$49,H$45,H$46))*'Inputs|General'!$C62*'Inputs|General'!P62 -> 11759.64812 | K63: =D63/'Output|Charges Summary'!D$4 -> 13385.64442 | L63: =E63/'Output|Charges Summary'!E$4 -> 12633.99591 | M63: =F63/'Output|Charges Summary'!F$4 -> 11921.61815 | N63: =G63/'Output|Charges Summary'!G$4 -> 11259.81236 | O63: =H63/'Output|Charges Summary'!H$4 -> 10651.39555
A64: ='Inputs|General'!A$63 -> Metal Halide 250 watt | D64: =IF('Inputs|General'!$B63='Inputs|General'!$A$48,D$44,IF('Inputs|General'!$B63='Inputs|General'!$A$49,D$45,D$46))*'Inputs|General'!$C63*'Inputs|General'!L63 -> 7176.540648 | E64: =IF('Inputs|General'!$B63='Inputs|General'!$A$48,E$44,IF('Inputs|General'!$B63='Inputs|General'!$A$49,E$45,E$46))*'Inputs|General'!$C63*'Inputs|General'!M63 -> 6908.557028 | F64: =IF('Inputs|General'!$B63='Inputs|General'!$A$48,F$44,IF('Inputs|General'!$B63='Inputs|General'!$A$49,F$45,F$46))*'Inputs|General'!$C63*'Inputs|General'!N63 -> 6648.96274 | G64: =IF('Inputs|General'!$B63='Inputs|General'!$A$48,G$44,IF('Inputs|General'!$B63='Inputs|General'!$A$49,G$45,G$46))*'Inputs|General'!$C63*'Inputs|General'!O63 -> 6404.967427 | H64: =IF('Inputs|General'!$B63='Inputs|General'!$A$48,H$44,IF('Inputs|General'!$B63='Inputs|General'!$A$49,H$45,H$46))*'Inputs|General'!$C63*'Inputs|General'!P63 -> 6179.466971 | K64: =D64/'Output|Charges Summary'!D$4 -> 7035.866432 | L64: =E64/'Output|Charges Summary'!E$4 -> 6640.369121 | M64: =F64/'Output|Charges Summary'!F$4 -> 6265.579009 | N64: =G64/'Output|Charges Summary'!G$4 -> 5917.34205 | O64: =H64/'Output|Charges Summary'!H$4 -> 5597.10174
A65: ='Inputs|General'!A$64 -> Incandescent 100 watt | D65: =IF('Inputs|General'!$B64='Inputs|General'!$A$48,D$44,IF('Inputs|General'!$B64='Inputs|General'!$A$49,D$45,D$46))*'Inputs|General'!$C64*'Inputs|General'!L64 -> 0 | E65: =IF('Inputs|General'!$B64='Inputs|General'!$A$48,E$44,IF('Inputs|General'!$B64='Inputs|General'!$A$49,E$45,E$46))*'Inputs|General'!$C64*'Inputs|General'!M64 -> 0 | F65: =IF('Inputs|General'!$B64='Inputs|General'!$A$48,F$44,IF('Inputs|General'!$B64='Inputs|General'!$A$49,F$45,F$46))*'Inputs|General'!$C64*'Inputs|General'!N64 -> 0 | G65: =IF('Inputs|General'!$B64='Inputs|General'!$A$48,G$44,IF('Inputs|General'!$B64='Inputs|General'!$A$49,G$45,G$46))*'Inputs|General'!$C64*'Inputs|General'!O64 -> 0 | H65: =IF('Inputs|General'!$B64='Inputs|General'!$A$48,H$44,IF('Inputs|General'!$B64='Inputs|General'!$A$49,H$45,H$46))*'Inputs|General'!$C64*'Inputs|General'!P64 -> 0 | K65: =D65/'Output|Charges Summary'!D$4 -> 0 | L65: =E65/'Output|Charges Summary'!E$4 -> 0 | M65: =F65/'Output|Charges Summary'!F$4 -> 0 | N65: =G65/'Output|Charges Summary'!G$4 -> 0 | O65: =H65/'Output|Charges Summary'!H$4 -> 0
A66: ='Inputs|General'!A$65 -> Incandescent 150 watt | D66: =IF('Inputs|General'!$B65='Inputs|General'!$A$48,D$44,IF('Inputs|General'!$B65='Inputs|General'!$A$49,D$45,D$46))*'Inputs|General'!$C65*'Inputs|General'!L65 -> 0 | E66: =IF('Inputs|General'!$B65='Inputs|General'!$A$48,E$44,IF('Inputs|General'!$B65='Inputs|General'!$A$49,E$45,E$46))*'Inputs|General'!$C65*'Inputs|General'!M65 -> 0 | F66: =IF('Inputs|General'!$B65='Inputs|General'!$A$48,F$44,IF('Inputs|General'!$B65='Inputs|General'!$A$49,F$45,F$46))*'Inputs|General'!$C65*'Inputs|General'!N65 -> 0 | G66: =IF('Inputs|General'!$B65='Inputs|General'!$A$48,G$44,IF('Inputs|General'!$B65='Inputs|General'!$A$49,G$45,G$46))*'Inputs|General'!$C65*'Inputs|General'!O65 -> 0 | H66: =IF('Inputs|General'!$B65='Inputs|General'!$A$48,H$44,IF('Inputs|General'!$B65='Inputs|General'!$A$49,H$45,H$46))*'Inputs|General'!$C65*'Inputs|General'!P65 -> 0 | K66: =D66/'Output|Charges Summary'!D$4 -> 0 | L66: =E66/'Output|Charges Summary'!E$4 -> 0 | M66: =F66/'Output|Charges Summary'!F$4 -> 0 | N66: =G66/'Output|Charges Summary'!G$4 -> 0 | O66: =H66/'Output|Charges Summary'!H$4 -> 0
A69: ='Inputs|General'!A$70 -> Energy Efficient Lights
A70: ='Inputs|General'!A$71 -> T5 (2 x 14 W) | D70: =SUM('Output|Charges Summary'!D75,'Output|Charges Summary'!D8)*'Inputs|General'!$C71*'Inputs|General'!L71 -> 1257285.607 | E70: =SUM('Output|Charges Summary'!E75,'Output|Charges Summary'!E8)*'Inputs|General'!$C71*'Inputs|General'!M71 -> 1266927.065 | F70: =SUM('Output|Charges Summary'!F75,'Output|Charges Summary'!F8)*'Inputs|General'!$C71*'Inputs|General'!N71 -> 1276548.966 | G70: =SUM('Output|Charges Summary'!G75,'Output|Charges Summary'!G8)*'Inputs|General'!$C71*'Inputs|General'!O71 -> 1287303.315 | H70: =SUM('Output|Charges Summary'!H75,'Output|Charges Summary'!H8)*'Inputs|General'!$C71*'Inputs|General'!P71 -> 1299873.129 | K70: =D70/'Output|Charges Summary'!D$4 -> 1232640.353 | L70: =E70/'Output|Charges Summary'!E$4 -> 1217745.374 | M70: =F70/'Output|Charges Summary'!F$4 -> 1202942.281 | N70: =G70/'Output|Charges Summary'!G$4 -> 1189297.857 | O70: =H70/'Output|Charges Summary'!H$4 -> 1177370.506
A71: ='Inputs|General'!A$72 -> T5 (2 x 24 W) | D71: =SUM('Output|Charges Summary'!D$75,'Output|Charges Summary'!D$8)*'Inputs|General'!$C72*'Inputs|General'!L72 -> 49583.81258 | E71: =SUM('Output|Charges Summary'!E$75,'Output|Charges Summary'!E$8)*'Inputs|General'!$C72*'Inputs|General'!M72 -> 49964.04463 | F71: =SUM('Output|Charges Summary'!F$75,'Output|Charges Summary'!F$8)*'Inputs|General'!$C72*'Inputs|General'!N72 -> 50343.50535 | G71: =SUM('Output|Charges Summary'!G$75,'Output|Charges Summary'!G$8)*'Inputs|General'!$C72*'Inputs|General'!O72 -> 50767.62668 | H71: =SUM('Output|Charges Summary'!H$75,'Output|Charges Summary'!H$8)*'Inputs|General'!$C72*'Inputs|General'!P72 -> 51263.34483 | K71: =D71/'Output|Charges Summary'!D$4 -> 48611.87299 | L71: =E71/'Output|Charges Summary'!E$4 -> 48024.45688 | M71: =F71/'Output|Charges Summary'!F$4 -> 47440.66446 | N71: =G71/'Output|Charges Summary'!G$4 -> 46902.56673 | O71: =H71/'Output|Charges Summary'!H$4 -> 46432.18548
A72: ='Inputs|General'!A$73 -> LED 18W (incl. other standard Category P LED variants) | D72: =SUM('Output|Charges Summary'!D$93,'Output|Charges Summary'!D$8)*'Inputs|General'!$C73*'Inputs|General'!L73 -> 386270.2127 | E72: =SUM('Output|Charges Summary'!E$93,'Output|Charges Summary'!E$8)*'Inputs|General'!$C73*'Inputs|General'!M73 -> 453888.9209 | F72: =SUM('Output|Charges Summary'!F$93,'Output|Charges Summary'!F$8)*'Inputs|General'!$C73*'Inputs|General'!N73 -> 529630.1964 | G72: =SUM('Output|Charges Summary'!G$93,'Output|Charges Summary'!G$8)*'Inputs|General'!$C73*'Inputs|General'!O73 -> 611188.8544 | H72: =SUM('Output|Charges Summary'!H$93,'Output|Charges Summary'!H$8)*'Inputs|General'!$C73*'Inputs|General'!P73 -> 682175.212 | K72: =D72/'Output|Charges Summary'!D$4 -> 378698.5619 | L72: =E72/'Output|Charges Summary'!E$4 -> 436269.1025 | M72: =F72/'Output|Charges Summary'!F$4 -> 499091.3577 | N72: =G72/'Output|Charges Summary'!G$4 -> 564657.5958 | O72: =H72/'Output|Charges Summary'!H$4 -> 617885.6662
A73: ='Inputs|General'!A74 -> Compact Fluoro 32W | D73: =SUM('Output|Charges Summary'!D$75,'Output|Charges Summary'!D$8)*'Inputs|General'!$C74*'Inputs|General'!L74 -> 117830.8062 | E73: =SUM('Output|Charges Summary'!E$75,'Output|Charges Summary'!E$8)*'Inputs|General'!$C74*'Inputs|General'!M74 -> 119917.771 | F73: =SUM('Output|Charges Summary'!F$75,'Output|Charges Summary'!F$8)*'Inputs|General'!$C74*'Inputs|General'!N74 -> 122032.7615 | G73: =SUM('Output|Charges Summary'!G$75,'Output|Charges Summary'!G$8)*'Inputs|General'!$C74*'Inputs|General'!O74 -> 124287.3353 | H73: =SUM('Output|Charges Summary'!H$75,'Output|Charges Summary'!H$8)*'Inputs|General'!$C74*'Inputs|General'!P74 -> 126751.7556 | K73: =D73/'Output|Charges Summary'!D$4 -> 115521.0922 | L73: =E73/'Output|Charges Summary'!E$4 -> 115262.6026 | M73: =F73/'Output|Charges Summary'!F$4 -> 114996.2692 | N73: =G73/'Output|Charges Summary'!G$4 -> 114825.0454 | O73: =H73/'Output|Charges Summary'!H$4 -> 114806.4186
A74: ='Inputs|General'!A75 -> Compact Fluoro 42W | D74: =SUM('Output|Charges Summary'!D$75,'Output|Charges Summary'!D$8)*'Inputs|General'!$C75*'Inputs|General'!L75 -> 14780.49068 | E74: =SUM('Output|Charges Summary'!E$75,'Output|Charges Summary'!E$8)*'Inputs|General'!$C75*'Inputs|General'!M75 -> 15042.2759 | F74: =SUM('Output|Charges Summary'!F$75,'Output|Charges Summary'!F$8)*'Inputs|General'!$C75*'Inputs|General'!N75 -> 15307.57663 | G74: =SUM('Output|Charges Summary'!G$75,'Output|Charges Summary'!G$8)*'Inputs|General'!$C75*'Inputs|General'!O75 -> 15590.38643 | H74: =SUM('Output|Charges Summary'!H$75,'Output|Charges Summary'!H$8)*'Inputs|General'!$C75*'Inputs|General'!P75 -> 15899.51901 | K74: =D74/'Output|Charges Summary'!D$4 -> 14490.76419 | L74: =E74/'Output|Charges Summary'!E$4 -> 14458.33971 | M74: =F74/'Output|Charges Summary'!F$4 -> 14424.93131 | N74: =G74/'Output|Charges Summary'!G$4 -> 14403.45329 | O74: =H74/'Output|Charges Summary'!H$4 -> 14401.11678
A75: ='Inputs|General'!A76 -> L1 - LED 70W | D75: =SUM('Output|Charges Summary'!D$111,'Output|Charges Summary'!D$8)*'Inputs|General'!$C76*'Inputs|General'!L76 -> 27623.81388 | E75: =SUM('Output|Charges Summary'!E$111,'Output|Charges Summary'!E$8)*'Inputs|General'!$C76*'Inputs|General'!M76 -> 32872.36203 | F75: =SUM('Output|Charges Summary'!F$111,'Output|Charges Summary'!F$8)*'Inputs|General'!$C76*'Inputs|General'!N76 -> 38706.75559 | G75: =SUM('Output|Charges Summary'!G$111,'Output|Charges Summary'!G$8)*'Inputs|General'!$C76*'Inputs|General'!O76 -> 44961.00313 | H75: =SUM('Output|Charges Summary'!H$111,'Output|Charges Summary'!H$8)*'Inputs|General'!$C76*'Inputs|General'!P76 -> 50343.88845 | K75: =D75/'Output|Charges Summary'!D$4 -> 27082.33316 | L75: =E75/'Output|Charges Summary'!E$4 -> 31596.26777 | M75: =F75/'Output|Charges Summary'!F$4 -> 36474.89764 | N75: =G75/'Output|Charges Summary'!G$4 -> 41538.01522 | O75: =H75/'Output|Charges Summary'!H$4 -> 45599.3805
A76: ='Inputs|General'!A77 -> L2 - LED 118W, 155W, 162W | D76: =SUM('Output|Charges Summary'!D$129,'Output|Charges Summary'!D$8)*'Inputs|General'!$C77*'Inputs|General'!L77 -> 7523.081227 | E76: =SUM('Output|Charges Summary'!E$129,'Output|Charges Summary'!E$8)*'Inputs|General'!$C77*'Inputs|General'!M77 -> 8952.473065 | F76: =SUM('Output|Charges Summary'!F$129,'Output|Charges Summary'!F$8)*'Inputs|General'!$C77*'Inputs|General'!N77 -> 10541.41429 | G76: =SUM('Output|Charges Summary'!G$129,'Output|Charges Summary'!G$8)*'Inputs|General'!$C77*'Inputs|General'!O77 -> 12244.69873 | H76: =SUM('Output|Charges Summary'!H$129,'Output|Charges Summary'!H$8)*'Inputs|General'!$C77*'Inputs|General'!P77 -> 13710.676 | K76: =D76/'Output|Charges Summary'!D$4 -> 7375.614139 | L76: =E76/'Output|Charges Summary'!E$4 -> 8604.94101 | M76: =F76/'Output|Charges Summary'!F$4 -> 9933.589143 | N76: =G76/'Output|Charges Summary'!G$4 -> 11312.48074 | O76: =H76/'Output|Charges Summary'!H$4 -> 12418.55469
A77: ='Inputs|General'!A78 -> L4 - LED 275W | D77: =SUM('Output|Charges Summary'!D$147,'Output|Charges Summary'!D$8)*'Inputs|General'!$C78*'Inputs|General'!L78 -> 117.5481442 | E77: =SUM('Output|Charges Summary'!E$147,'Output|Charges Summary'!E$8)*'Inputs|General'!$C78*'Inputs|General'!M78 -> 139.8823916 | F77: =SUM('Output|Charges Summary'!F$147,'Output|Charges Summary'!F$8)*'Inputs|General'!$C78*'Inputs|General'!N78 -> 164.7095982 | G77: =SUM('Output|Charges Summary'!G$147,'Output|Charges Summary'!G$8)*'Inputs|General'!$C78*'Inputs|General'!O78 -> 191.3234176 | H77: =SUM('Output|Charges Summary'!H$147,'Output|Charges Summary'!H$8)*'Inputs|General'!$C78*'Inputs|General'!P78 -> 214.2293126 | K77: =D77/'Output|Charges Summary'!D$4 -> 115.2439709 | L77: =E77/'Output|Charges Summary'!E$4 -> 134.4522033 | M77: =F77/'Output|Charges Summary'!F$4 -> 155.2123304 | N77: =G77/'Output|Charges Summary'!G$4 -> 176.7575116 | O77: =H77/'Output|Charges Summary'!H$4 -> 194.039917
A79: Total O & M | D79: =SUM(D49:D77) -> 4138762.295 | E79: =SUM(E49:E77) -> 4200824.937 | F79: =SUM(F49:F77) -> 4269319.508 | G79: =SUM(G49:G77) -> 4346041.529 | H79: =SUM(H49:H77) -> 4437499.247 | K79: =SUM(K49:K77) -> 4057634.469 | L79: =SUM(L49:L77) -> 4037750.297 | M79: =SUM(M49:M77) -> 4023147.63 | N79: =SUM(N49:N77) -> 4015167.069 | O79: =SUM(O49:O77) -> 4019300.512
A81: O&M - Direct costs not attracting overheads | D81: =('Output|Charges Summary'!D8+'Output|Charges Summary'!D24)*SUMPRODUCT('Inputs|General'!$C$48:$C$78,'Inputs|General'!L48:L78) -> 421359.3412 | E81: =('Output|Charges Summary'!E8+'Output|Charges Summary'!E24)*SUMPRODUCT('Inputs|General'!$C$48:$C$78,'Inputs|General'!M48:M78) -> 441218.0812 | F81: =('Output|Charges Summary'!F8+'Output|Charges Summary'!F24)*SUMPRODUCT('Inputs|General'!$C$48:$C$78,'Inputs|General'!N48:N78) -> 464162.6893 | G81: =('Output|Charges Summary'!G8+'Output|Charges Summary'!G24)*SUMPRODUCT('Inputs|General'!$C$48:$C$78,'Inputs|General'!O48:O78) -> 489783.4933 | H81: =('Output|Charges Summary'!H8+'Output|Charges Summary'!H24)*SUMPRODUCT('Inputs|General'!$C$48:$C$78,'Inputs|General'!P48:P78) -> 516560.2852 | K81: =D81/'Output|Charges Summary'!D$4 -> 413099.8749 | L81: =E81/'Output|Charges Summary'!E$4 -> 424090.1406 | M81: =F81/'Output|Charges Summary'!F$4 -> 437398.7518 | N81: =G81/'Output|Charges Summary'!G$4 -> 452495.1132 | O81: =H81/'Output|Charges Summary'!H$4 -> 467878.6188
A82: O&M - Direct costs attracting overheads | D82: =(D79-D81)/(1+'Inputs|O & M'!D19) -> 2973922.363 | E82: =(E79-E81)/(1+'Inputs|O & M'!E19) -> 3007685.485 | F82: =(F79-F81)/(1+'Inputs|O & M'!F19) -> 3044125.455 | G82: =(G79-G81)/(1+'Inputs|O & M'!G19) -> 3085006.428 | H82: =(H79-H81)/(1+'Inputs|O & M'!H19) -> 3136751.17 | K82: =D82/'Output|Charges Summary'!D$4 -> 2915627.675 | L82: =E82/'Output|Charges Summary'!E$4 -> 2890928.125 | M82: =F82/'Output|Charges Summary'!F$4 -> 2868599.103 | N82: =G82/'Output|Charges Summary'!G$4 -> 2850137.565 | O82: =H82/'Output|Charges Summary'!H$4 -> 2841137.515
A83: O&M - Overheads | D83: =D79-SUM(D81:D82) -> 743480.5908 | E83: =E79-SUM(E81:E82) -> 751921.3712 | F83: 761031.3637 | G83: 771251.6071 | H83: 784187.7924 | K83: =D83/'Output|Charges Summary'!D$4 -> 728906.9188 | L83: =E83/'Output|Charges Summary'!E$4 -> 722732.0313 | M83: =F83/'Output|Charges Summary'!F$4 -> 717149.7757 | N83: =G83/'Output|Charges Summary'!G$4 -> 712534.3911 | O83: =H83/'Output|Charges Summary'!H$4 -> 710284.3787
A85: Public Lighting - Capital Charge | D85: Capital Charge - Nominal | K85: Capital Charge - Real 2021 $
A86: Excluding Revenue Recovery | D86: =D$2 -> FY2022 | E86: FY2023 | F86: FY2024 | G86: FY2025 | H86: FY2026 | K86: =K$2 -> FY2022 | L86: FY2023 | M86: FY2024 | N86: FY2025 | O86: FY2026
A88: Unit cost
A89: ='Inputs|General'!A$48 -> Mercury Vapour 80 watt | D89: =SUM('Output|Charges Summary'!D27,'Output|Charges Summary'!D11) -> 25.41269604 | E89: =SUM('Output|Charges Summary'!E27,'Output|Charges Summary'!E11) -> 23.80406827 | F89: =SUM('Output|Charges Summary'!F27,'Output|Charges Summary'!F11) -> 22.10012372 | G89: =SUM('Output|Charges Summary'!G27,'Output|Charges Summary'!G11) -> 23.07330703 | H89: =SUM('Output|Charges Summary'!H27,'Output|Charges Summary'!H11) -> 22.94506602 | K89: =D89/'Output|Charges Summary'!D$4 -> 24.91455755 | L89: =E89/'Output|Charges Summary'!E$4 -> 22.88000218 | M89: =F89/'Output|Charges Summary'!F$4 -> 20.8258155 | N89: =G89/'Output|Charges Summary'!G$4 -> 21.31668138 | O89: =H89/'Output|Charges Summary'!H$4 -> 20.78267747
A90: ='Inputs|General'!A$49 -> Sodium High Pressure 150 watt | D90: =SUM('Output|Charges Summary'!D43,'Output|Charges Summary'!D11) -> 28.7089263 | E90: =SUM('Output|Charges Summary'!E43,'Output|Charges Summary'!E11) -> 26.71665414 | F90: =SUM('Output|Charges Summary'!F43,'Output|Charges Summary'!F11) -> 24.75922664 | G90: =SUM('Output|Charges Summary'!G43,'Output|Charges Summary'!G11) -> 25.79807195 | H90: =SUM('Output|Charges Summary'!H43,'Output|Charges Summary'!H11) -> 25.52415395 | K90: =D90/'Output|Charges Summary'!D$4 -> 28.14617526 | L90: =E90/'Output|Charges Summary'!E$4 -> 25.67952243 | M90: =F90/'Output|Charges Summary'!F$4 -> 23.33159273 | N90: =G90/'Output|Charges Summary'!G$4 -> 23.83400348 | O90: =H90/'Output|Charges Summary'!H$4 -> 23.11870703
A91: ='Inputs|General'!A$50 -> Sodium High Pressure 250 watt | D91: =SUM('Output|Charges Summary'!D59,'Output|Charges Summary'!D11) -> 30.08204534 | E91: =SUM('Output|Charges Summary'!E59,'Output|Charges Summary'!E11) -> 27.92995746 | F91: =SUM('Output|Charges Summary'!F59,'Output|Charges Summary'!F11) -> 25.01496322 | G91: =SUM('Output|Charges Summary'!G59,'Output|Charges Summary'!G11) -> 26.0601235 | H91: =SUM('Output|Charges Summary'!H59,'Output|Charges Summary'!H11) -> 25.77219517 | K91: =D91/'Output|Charges Summary'!D$4 -> 29.49237848 | L91: =E91/'Output|Charges Summary'!E$4 -> 26.84572571 | M91: =F91/'Output|Charges Summary'!F$4 -> 23.57258336 | N91: =G91/'Output|Charges Summary'!G$4 -> 24.07610442 | O91: =H91/'Output|Charges Summary'!H$4 -> 23.34337235
A93: ='Inputs|General'!A$47 -> Existing Lights
A94: ='Inputs|General'!A$48 -> Mercury Vapour 80 watt | D94: =D89*'Inputs|General'!L48 -> 101470.6829 | E94: =E89*'Inputs|General'!M48 -> 67712.605 | F94: =F89*'Inputs|General'!N48 -> 37487.32273 | G94: =G89*'Inputs|General'!O48 -> 12945.08945 | H94: =H89*'Inputs|General'!P48 -> 0 | K94: =D94/'Output|Charges Summary'!D$4 -> 99481.65929 | L94: =E94/'Output|Charges Summary'!E$4 -> 65084.02398 | M94: =F94/'Output|Charges Summary'!F$4 -> 35325.77811 | N94: =G94/'Output|Charges Summary'!G$4 -> 11959.54906 | O94: =H94/'Output|Charges Summary'!H$4 -> 0
A95: ='Inputs|General'!A$49 -> Sodium High Pressure 150 watt | D95: =D90*'Inputs|General'!L49 -> 449731.4002 | E95: =E90*'Inputs|General'!M49 -> 411270.3484 | F95: =F90*'Inputs|General'!N49 -> 374534.1959 | G95: =G90*'Inputs|General'!O49 -> 383487.0655 | H95: =H90*'Inputs|General'!P49 -> 372841.1993 | K95: =D95/'Output|Charges Summary'!D$4 -> 440915.7862 | L95: =E95/'Output|Charges Summary'!E$4 -> 395304.969 | M95: =F95/'Output|Charges Summary'!F$4 -> 352938.2985 | N95: =G95/'Output|Charges Summary'!G$4 -> 354291.2847 | O95: =H95/'Output|Charges Summary'!H$4 -> 337703.9048
A96: ='Inputs|General'!A$50 -> Sodium High Pressure 250 watt | D96: =D91*'Inputs|General'!L50 -> 149975.4961 | E96: =E91*'Inputs|General'!M50 -> 136833.4541 | F96: =F91*'Inputs|General'!N50 -> 120428.9651 | G96: =G91*'Inputs|General'!O50 -> 123286.8128 | H96: =H91*'Inputs|General'!P50 -> 119812.0882 | K96: =D96/'Output|Charges Summary'!D$4 -> 147035.6834 | L96: =E96/'Output|Charges Summary'!E$4 -> 131521.6245 | M96: =F96/'Output|Charges Summary'!F$4 -> 113484.9488 | N96: =G96/'Output|Charges Summary'!G$4 -> 113900.695 | O96: =H96/'Output|Charges Summary'!H$4 -> 108520.7592
A97: ='Inputs|General'!A$51 -> Fluorescent 20 watt | D97: =IF('Inputs|General'!$B51='Inputs|General'!$A$48,D$89,IF('Inputs|General'!$B51='Inputs|General'!$A$49,D$90,D$91))*'Inputs|General'!$C51*'Inputs|General'!L51 -> 0 | E97: =IF('Inputs|General'!$B51='Inputs|General'!$A$48,E$89,IF('Inputs|General'!$B51='Inputs|General'!$A$49,E$90,E$91))*'Inputs|General'!$C51*'Inputs|General'!M51 -> 0 | F97: =IF('Inputs|General'!$B51='Inputs|General'!$A$48,F$89,IF('Inputs|General'!$B51='Inputs|General'!$A$49,F$90,F$91))*'Inputs|General'!$C51*'Inputs|General'!N51 -> 0 | G97: =IF('Inputs|General'!$B51='Inputs|General'!$A$48,G$89,IF('Inputs|General'!$B51='Inputs|General'!$A$49,G$90,G$91))*'Inputs|General'!$C51*'Inputs|General'!O51 -> 0 | H97: =IF('Inputs|General'!$B51='Inputs|General'!$A$48,H$89,IF('Inputs|General'!$B51='Inputs|General'!$A$49,H$90,H$91))*'Inputs|General'!$C51*'Inputs|General'!P51 -> 0 | K97: =D97/'Output|Charges Summary'!D$4 -> 0 | L97: =E97/'Output|Charges Summary'!E$4 -> 0 | M97: =F97/'Output|Charges Summary'!F$4 -> 0 | N97: =G97/'Output|Charges Summary'!G$4 -> 0 | O97: =H97/'Output|Charges Summary'!H$4 -> 0
A98: ='Inputs|General'!A$52 -> Fluorescent 40 watt | D98: =IF('Inputs|General'!$B52='Inputs|General'!$A$48,D$89,IF('Inputs|General'!$B52='Inputs|General'!$A$49,D$90,D$91))*'Inputs|General'!$C52*'Inputs|General'!L52 -> 0 | E98: =IF('Inputs|General'!$B52='Inputs|General'!$A$48,E$89,IF('Inputs|General'!$B52='Inputs|General'!$A$49,E$90,E$91))*'Inputs|General'!$C52*'Inputs|General'!M52 -> 0 | F98: =IF('Inputs|General'!$B52='Inputs|General'!$A$48,F$89,IF('Inputs|General'!$B52='Inputs|General'!$A$49,F$90,F$91))*'Inputs|General'!$C52*'Inputs|General'!N52 -> 0 | G98: =IF('Inputs|General'!$B52='Inputs|General'!$A$48,G$89,IF('Inputs|General'!$B52='Inputs|General'!$A$49,G$90,G$91))*'Inputs|General'!$C52*'Inputs|General'!O52 -> 0 | H98: =IF('Inputs|General'!$B52='Inputs|General'!$A$48,H$89,IF('Inputs|General'!$B52='Inputs|General'!$A$49,H$90,H$91))*'Inputs|General'!$C52*'Inputs|General'!P52 -> 0 | K98: =D98/'Output|Charges Summary'!D$4 -> 0 | L98: =E98/'Output|Charges Summary'!E$4 -> 0 | M98: =F98/'Output|Charges Summary'!F$4 -> 0 | N98: =G98/'Output|Charges Summary'!G$4 -> 0 | O98: =H98/'Output|Charges Summary'!H$4 -> 0
A99: ='Inputs|General'!A$53 -> Fluorescent 80 watt | D99: =IF('Inputs|General'!$B53='Inputs|General'!$A$48,D$89,IF('Inputs|General'!$B53='Inputs|General'!$A$49,D$90,D$91))*'Inputs|General'!$C53*'Inputs|General'!L53 -> 0 | E99: =IF('Inputs|General'!$B53='Inputs|General'!$A$48,E$89,IF('Inputs|General'!$B53='Inputs|General'!$A$49,E$90,E$91))*'Inputs|General'!$C53*'Inputs|General'!M53 -> 0 | F99: =IF('Inputs|General'!$B53='Inputs|General'!$A$48,F$89,IF('Inputs|General'!$B53='Inputs|General'!$A$49,F$90,F$91))*'Inputs|General'!$C53*'Inputs|General'!N53 -> 0 | G99: =IF('Inputs|General'!$B53='Inputs|General'!$A$48,G$89,IF('Inputs|General'!$B53='Inputs|General'!$A$49,G$90,G$91))*'Inputs|General'!$C53*'Inputs|General'!O53 -> 0 | H99: =IF('Inputs|General'!$B53='Inputs|General'!$A$48,H$89,IF('Inputs|General'!$B53='Inputs|General'!$A$49,H$90,H$91))*'Inputs|General'!$C53*'Inputs|General'!P53 -> 0 | K99: =D99/'Output|Charges Summary'!D$4 -> 0 | L99: =E99/'Output|Charges Summary'!E$4 -> 0 | M99: =F99/'Output|Charges Summary'!F$4 -> 0 | N99: =G99/'Output|Charges Summary'!G$4 -> 0 | O99: =H99/'Output|Charges Summary'!H$4 -> 0
A100: ='Inputs|General'!A$54 -> Mercury Vapour 50 watt | D100: =IF('Inputs|General'!$B54='Inputs|General'!$A$48,D$89,IF('Inputs|General'!$B54='Inputs|General'!$A$49,D$90,D$91))*'Inputs|General'!$C54*'Inputs|General'!L54 -> 0 | E100: =IF('Inputs|General'!$B54='Inputs|General'!$A$48,E$89,IF('Inputs|General'!$B54='Inputs|General'!$A$49,E$90,E$91))*'Inputs|General'!$C54*'Inputs|General'!M54 -> 0 | F100: =IF('Inputs|General'!$B54='Inputs|General'!$A$48,F$89,IF('Inputs|General'!$B54='Inputs|General'!$A$49,F$90,F$91))*'Inputs|General'!$C54*'Inputs|General'!N54 -> 0 | G100: =IF('Inputs|General'!$B54='Inputs|General'!$A$48,G$89,IF('Inputs|General'!$B54='Inputs|General'!$A$49,G$90,G$91))*'Inputs|General'!$C54*'Inputs|General'!O54 -> 0 | H100: =IF('Inputs|General'!$B54='Inputs|General'!$A$48,H$89,IF('Inputs|General'!$B54='Inputs|General'!$A$49,H$90,H$91))*'Inputs|General'!$C54*'Inputs|General'!P54 -> 0 | K100: =D100/'Output|Charges Summary'!D$4 -> 0 | L100: =E100/'Output|Charges Summary'!E$4 -> 0 | M100: =F100/'Output|Charges Summary'!F$4 -> 0 | N100: =G100/'Output|Charges Summary'!G$4 -> 0 | O100: =H100/'Output|Charges Summary'!H$4 -> 0
A101: ='Inputs|General'!A$55 -> Mercury Vapour 125 watt | D101: =IF('Inputs|General'!$B55='Inputs|General'!$A$48,D$89,IF('Inputs|General'!$B55='Inputs|General'!$A$49,D$90,D$91))*'Inputs|General'!$C55*'Inputs|General'!L55 -> 2112.930133 | E101: =IF('Inputs|General'!$B55='Inputs|General'!$A$48,E$89,IF('Inputs|General'!$B55='Inputs|General'!$A$49,E$90,E$91))*'Inputs|General'!$C55*'Inputs|General'!M55 -> 1409.983646 | F101: =IF('Inputs|General'!$B55='Inputs|General'!$A$48,F$89,IF('Inputs|General'!$B55='Inputs|General'!$A$49,F$90,F$91))*'Inputs|General'!$C55*'Inputs|General'!N55 -> 780.6007757 | G101: =IF('Inputs|General'!$B55='Inputs|General'!$A$48,G$89,IF('Inputs|General'!$B55='Inputs|General'!$A$49,G$90,G$91))*'Inputs|General'!$C55*'Inputs|General'!O55 -> 269.5563762 | H101: =IF('Inputs|General'!$B55='Inputs|General'!$A$48,H$89,IF('Inputs|General'!$B55='Inputs|General'!$A$49,H$90,H$91))*'Inputs|General'!$C55*'Inputs|General'!P55 -> 0 | K101: =D101/'Output|Charges Summary'!D$4 -> 2071.512574 | L101: =E101/'Output|Charges Summary'!E$4 -> 1355.248546 | M101: =F101/'Output|Charges Summary'!F$4 -> 735.590802 | N101: =G101/'Output|Charges Summary'!G$4 -> 249.0344093 | O101: =H101/'Output|Charges Summary'!H$4 -> 0
A102: ='Inputs|General'!A$56 -> Mercury Vapour 250 watt | D102: =IF('Inputs|General'!$B56='Inputs|General'!$A$48,D$89,IF('Inputs|General'!$B56='Inputs|General'!$A$49,D$90,D$91))*'Inputs|General'!$C56*'Inputs|General'!L56 -> 1534.62276 | E102: =IF('Inputs|General'!$B56='Inputs|General'!$A$48,E$89,IF('Inputs|General'!$B56='Inputs|General'!$A$49,E$90,E$91))*'Inputs|General'!$C56*'Inputs|General'!M56 -> 1015.063102 | F102: =IF('Inputs|General'!$B56='Inputs|General'!$A$48,F$89,IF('Inputs|General'!$B56='Inputs|General'!$A$49,F$90,F$91))*'Inputs|General'!$C56*'Inputs|General'!N56 -> 542.1182412 | G102: =IF('Inputs|General'!$B56='Inputs|General'!$A$48,G$89,IF('Inputs|General'!$B56='Inputs|General'!$A$49,G$90,G$91))*'Inputs|General'!$C56*'Inputs|General'!O56 -> 186.7996733 | H102: =IF('Inputs|General'!$B56='Inputs|General'!$A$48,H$89,IF('Inputs|General'!$B56='Inputs|General'!$A$49,H$90,H$91))*'Inputs|General'!$C56*'Inputs|General'!P56 -> 0 | K102: =D102/'Output|Charges Summary'!D$4 -> 1504.541156 | L102: =E102/'Output|Charges Summary'!E$4 -> 975.6586864 | M102: =F102/'Output|Charges Summary'!F$4 -> 510.8593334 | N102: =G102/'Output|Charges Summary'!G$4 -> 172.5781706 | O102: =H102/'Output|Charges Summary'!H$4 -> 0
A103: ='Inputs|General'!A$57 -> Mercury Vapour 400 watt | D103: =IF('Inputs|General'!$B57='Inputs|General'!$A$48,D$89,IF('Inputs|General'!$B57='Inputs|General'!$A$49,D$90,D$91))*'Inputs|General'!$C57*'Inputs|General'!L57 -> 2277.821036 | E103: =IF('Inputs|General'!$B57='Inputs|General'!$A$48,E$89,IF('Inputs|General'!$B57='Inputs|General'!$A$49,E$90,E$91))*'Inputs|General'!$C57*'Inputs|General'!M57 -> 1504.575631 | F103: =IF('Inputs|General'!$B57='Inputs|General'!$A$48,F$89,IF('Inputs|General'!$B57='Inputs|General'!$A$49,F$90,F$91))*'Inputs|General'!$C57*'Inputs|General'!N57 -> 800.9519812 | G103: =IF('Inputs|General'!$B57='Inputs|General'!$A$48,G$89,IF('Inputs|General'!$B57='Inputs|General'!$A$49,G$90,G$91))*'Inputs|General'!$C57*'Inputs|General'!O57 -> 271.3324368 | H103: =IF('Inputs|General'!$B57='Inputs|General'!$A$48,H$89,IF('Inputs|General'!$B57='Inputs|General'!$A$49,H$90,H$91))*'Inputs|General'!$C57*'Inputs|General'!P57 -> 0 | K103: =D103/'Output|Charges Summary'!D$4 -> 2233.171294 | L103: =E103/'Output|Charges Summary'!E$4 -> 1446.168501 | M103: =F103/'Output|Charges Summary'!F$4 -> 754.7685431 | N103: =G103/'Output|Charges Summary'!G$4 -> 250.6752542 | O103: =H103/'Output|Charges Summary'!H$4 -> 0
A104: ='Inputs|General'!A$58 -> Sodium Low Pressure 90 watt | D104: =IF('Inputs|General'!$B58='Inputs|General'!$A$48,D$89,IF('Inputs|General'!$B58='Inputs|General'!$A$49,D$90,D$91))*'Inputs|General'!$C58*'Inputs|General'!L58 -> 0 | E104: =IF('Inputs|General'!$B58='Inputs|General'!$A$48,E$89,IF('Inputs|General'!$B58='Inputs|General'!$A$49,E$90,E$91))*'Inputs|General'!$C58*'Inputs|General'!M58 -> 0 | F104: =IF('Inputs|General'!$B58='Inputs|General'!$A$48,F$89,IF('Inputs|General'!$B58='Inputs|General'!$A$49,F$90,F$91))*'Inputs|General'!$C58*'Inputs|General'!N58 -> 0 | G104: =IF('Inputs|General'!$B58='Inputs|General'!$A$48,G$89,IF('Inputs|General'!$B58='Inputs|General'!$A$49,G$90,G$91))*'Inputs|General'!$C58*'Inputs|General'!O58 -> 0 | H104: =IF('Inputs|General'!$B58='Inputs|General'!$A$48,H$89,IF('Inputs|General'!$B58='Inputs|General'!$A$49,H$90,H$91))*'Inputs|General'!$C58*'Inputs|General'!P58 -> 0 | K104: =D104/'Output|Charges Summary'!D$4 -> 0 | L104: =E104/'Output|Charges Summary'!E$4 -> 0 | M104: =F104/'Output|Charges Summary'!F$4 -> 0 | N104: =G104/'Output|Charges Summary'!G$4 -> 0 | O104: =H104/'Output|Charges Summary'!H$4 -> 0
A105: ='Inputs|General'!A$59 -> Sodium High Pressure 100 watt | D105: =IF('Inputs|General'!$B59='Inputs|General'!$A$48,D$89,IF('Inputs|General'!$B59='Inputs|General'!$A$49,D$90,D$91))*'Inputs|General'!$C59*'Inputs|General'!L59 -> 46022.17425 | E105: =IF('Inputs|General'!$B59='Inputs|General'!$A$48,E$89,IF('Inputs|General'!$B59='Inputs|General'!$A$49,E$90,E$91))*'Inputs|General'!$C59*'Inputs|General'!M59 -> 42086.35561 | F105: =IF('Inputs|General'!$B59='Inputs|General'!$A$48,F$89,IF('Inputs|General'!$B59='Inputs|General'!$A$49,F$90,F$91))*'Inputs|General'!$C59*'Inputs|General'!N59 -> 38327.05037 | G105: =IF('Inputs|General'!$B59='Inputs|General'!$A$48,G$89,IF('Inputs|General'!$B59='Inputs|General'!$A$49,G$90,G$91))*'Inputs|General'!$C59*'Inputs|General'!O59 -> 39243.2206 | H105: =IF('Inputs|General'!$B59='Inputs|General'!$A$48,H$89,IF('Inputs|General'!$B59='Inputs|General'!$A$49,H$90,H$91))*'Inputs|General'!$C59*'Inputs|General'!P59 -> 38153.80166 | K105: =D105/'Output|Charges Summary'!D$4 -> 45120.04973 | L105: =E105/'Output|Charges Summary'!E$4 -> 40452.57715 | M105: =F105/'Output|Charges Summary'!F$4 -> 36117.08648 | N105: =G105/'Output|Charges Summary'!G$4 -> 36255.54105 | O105: =H105/'Output|Charges Summary'!H$4 -> 34558.11167
A106: ='Inputs|General'!A$60 -> Sodium High Pressure 400 watt | D106: =IF('Inputs|General'!$B60='Inputs|General'!$A$48,D$89,IF('Inputs|General'!$B60='Inputs|General'!$A$49,D$90,D$91))*'Inputs|General'!$C60*'Inputs|General'!L60 -> 14725.78193 | E106: =IF('Inputs|General'!$B60='Inputs|General'!$A$48,E$89,IF('Inputs|General'!$B60='Inputs|General'!$A$49,E$90,E$91))*'Inputs|General'!$C60*'Inputs|General'!M60 -> 13435.39217 | F106: =IF('Inputs|General'!$B60='Inputs|General'!$A$48,F$89,IF('Inputs|General'!$B60='Inputs|General'!$A$49,F$90,F$91))*'Inputs|General'!$C60*'Inputs|General'!N60 -> 11824.66953 | G106: =IF('Inputs|General'!$B60='Inputs|General'!$A$48,G$89,IF('Inputs|General'!$B60='Inputs|General'!$A$49,G$90,G$91))*'Inputs|General'!$C60*'Inputs|General'!O60 -> 12105.27565 | H106: =IF('Inputs|General'!$B60='Inputs|General'!$A$48,H$89,IF('Inputs|General'!$B60='Inputs|General'!$A$49,H$90,H$91))*'Inputs|General'!$C60*'Inputs|General'!P60 -> 11764.09966 | K106: =D106/'Output|Charges Summary'!D$4 -> 14437.12784 | L106: =E106/'Output|Charges Summary'!E$4 -> 12913.83467 | M106: =F106/'Output|Charges Summary'!F$4 -> 11142.85101 | N106: =G106/'Output|Charges Summary'!G$4 -> 11183.67227 | O106: =H106/'Output|Charges Summary'!H$4 -> 10655.42756
A107: ='Inputs|General'!A$61 -> Metal Halide 70 watt | D107: =IF('Inputs|General'!$B61='Inputs|General'!$A$48,D$89,IF('Inputs|General'!$B61='Inputs|General'!$A$49,D$90,D$91))*'Inputs|General'!$C61*'Inputs|General'!L61 -> 713.8290869 | E107: =IF('Inputs|General'!$B61='Inputs|General'!$A$48,E$89,IF('Inputs|General'!$B61='Inputs|General'!$A$49,E$90,E$91))*'Inputs|General'!$C61*'Inputs|General'!M61 -> 628.0664772 | F107: =IF('Inputs|General'!$B61='Inputs|General'!$A$48,F$89,IF('Inputs|General'!$B61='Inputs|General'!$A$49,F$90,F$91))*'Inputs|General'!$C61*'Inputs|General'!N61 -> 547.7218414 | G107: =IF('Inputs|General'!$B61='Inputs|General'!$A$48,G$89,IF('Inputs|General'!$B61='Inputs|General'!$A$49,G$90,G$91))*'Inputs|General'!$C61*'Inputs|General'!O61 -> 537.1383089 | H107: =IF('Inputs|General'!$B61='Inputs|General'!$A$48,H$89,IF('Inputs|General'!$B61='Inputs|General'!$A$49,H$90,H$91))*'Inputs|General'!$C61*'Inputs|General'!P61 -> 501.7374545 | K107: =D107/'Output|Charges Summary'!D$4 -> 699.8366423 | L107: =E107/'Output|Charges Summary'!E$4 -> 603.6851435 | M107: =F107/'Output|Charges Summary'!F$4 -> 516.1398261 | N107: =G107/'Output|Charges Summary'!G$4 -> 496.2446942 | O107: =H107/'Output|Charges Summary'!H$4 -> 454.4527211
A108: ='Inputs|General'!A$62 -> Metal Halide 150 watt | D108: =IF('Inputs|General'!$B62='Inputs|General'!$A$48,D$89,IF('Inputs|General'!$B62='Inputs|General'!$A$49,D$90,D$91))*'Inputs|General'!$C62*'Inputs|General'!L62 -> 4237.619069 | E108: =IF('Inputs|General'!$B62='Inputs|General'!$A$48,E$89,IF('Inputs|General'!$B62='Inputs|General'!$A$49,E$90,E$91))*'Inputs|General'!$C62*'Inputs|General'!M62 -> 3704.230131 | F108: =IF('Inputs|General'!$B62='Inputs|General'!$A$48,F$89,IF('Inputs|General'!$B62='Inputs|General'!$A$49,F$90,F$91))*'Inputs|General'!$C62*'Inputs|General'!N62 -> 3224.511239 | G108: =IF('Inputs|General'!$B62='Inputs|General'!$A$48,G$89,IF('Inputs|General'!$B62='Inputs|General'!$A$49,G$90,G$91))*'Inputs|General'!$C62*'Inputs|General'!O62 -> 3155.912817 | H108: =IF('Inputs|General'!$B62='Inputs|General'!$A$48,H$89,IF('Inputs|General'!$B62='Inputs|General'!$A$49,H$90,H$91))*'Inputs|General'!$C62*'Inputs|General'!P62 -> 2932.918744 | K108: =D108/'Output|Charges Summary'!D$4 -> 4154.553456 | L108: =E108/'Output|Charges Summary'!E$4 -> 3560.433138 | M108: =F108/'Output|Charges Summary'!F$4 -> 3038.58372 | N108: =G108/'Output|Charges Summary'!G$4 -> 2915.645682 | O108: =H108/'Output|Charges Summary'!H$4 -> 2656.514661
A109: ='Inputs|General'!A$63 -> Metal Halide 250 watt | D109: =IF('Inputs|General'!$B63='Inputs|General'!$A$48,D$89,IF('Inputs|General'!$B63='Inputs|General'!$A$49,D$90,D$91))*'Inputs|General'!$C63*'Inputs|General'!L63 -> 2297.415557 | E109: =IF('Inputs|General'!$B63='Inputs|General'!$A$48,E$89,IF('Inputs|General'!$B63='Inputs|General'!$A$49,E$90,E$91))*'Inputs|General'!$C63*'Inputs|General'!M63 -> 2003.610958 | F109: =IF('Inputs|General'!$B63='Inputs|General'!$A$48,F$89,IF('Inputs|General'!$B63='Inputs|General'!$A$49,F$90,F$91))*'Inputs|General'!$C63*'Inputs|General'!N63 -> 1685.597664 | G109: =IF('Inputs|General'!$B63='Inputs|General'!$A$48,G$89,IF('Inputs|General'!$B63='Inputs|General'!$A$49,G$90,G$91))*'Inputs|General'!$C63*'Inputs|General'!O63 -> 1649.458714 | H109: =IF('Inputs|General'!$B63='Inputs|General'!$A$48,H$89,IF('Inputs|General'!$B63='Inputs|General'!$A$49,H$90,H$91))*'Inputs|General'!$C63*'Inputs|General'!P63 -> 1532.241848 | K109: =D109/'Output|Charges Summary'!D$4 -> 2252.381724 | L109: =E109/'Output|Charges Summary'!E$4 -> 1925.831441 | M109: =F109/'Output|Charges Summary'!F$4 -> 1588.404952 | N109: =G109/'Output|Charges Summary'!G$4 -> 1523.881506 | O109: =H109/'Output|Charges Summary'!H$4 -> 1387.840336
A110: ='Inputs|General'!A$64 -> Incandescent 100 watt | D110: =IF('Inputs|General'!$B64='Inputs|General'!$A$48,D$89,IF('Inputs|General'!$B64='Inputs|General'!$A$49,D$90,D$91))*'Inputs|General'!$C64*'Inputs|General'!L64 -> 0 | E110: =IF('Inputs|General'!$B64='Inputs|General'!$A$48,E$89,IF('Inputs|General'!$B64='Inputs|General'!$A$49,E$90,E$91))*'Inputs|General'!$C64*'Inputs|General'!M64 -> 0 | F110: =IF('Inputs|General'!$B64='Inputs|General'!$A$48,F$89,IF('Inputs|General'!$B64='Inputs|General'!$A$49,F$90,F$91))*'Inputs|General'!$C64*'Inputs|General'!N64 -> 0 | G110: =IF('Inputs|General'!$B64='Inputs|General'!$A$48,G$89,IF('Inputs|General'!$B64='Inputs|General'!$A$49,G$90,G$91))*'Inputs|General'!$C64*'Inputs|General'!O64 -> 0 | H110: =IF('Inputs|General'!$B64='Inputs|General'!$A$48,H$89,IF('Inputs|General'!$B64='Inputs|General'!$A$49,H$90,H$91))*'Inputs|General'!$C64*'Inputs|General'!P64 -> 0 | K110: =D110/'Output|Charges Summary'!D$4 -> 0 | L110: =E110/'Output|Charges Summary'!E$4 -> 0 | M110: =F110/'Output|Charges Summary'!F$4 -> 0 | N110: =G110/'Output|Charges Summary'!G$4 -> 0 | O110: =H110/'Output|Charges Summary'!H$4 -> 0
A111: ='Inputs|General'!A$65 -> Incandescent 150 watt | D111: =IF('Inputs|General'!$B65='Inputs|General'!$A$48,D$89,IF('Inputs|General'!$B65='Inputs|General'!$A$49,D$90,D$91))*'Inputs|General'!$C65*'Inputs|General'!L65 -> 0 | E111: =IF('Inputs|General'!$B65='Inputs|General'!$A$48,E$89,IF('Inputs|General'!$B65='Inputs|General'!$A$49,E$90,E$91))*'Inputs|General'!$C65*'Inputs|General'!M65 -> 0 | F111: =IF('Inputs|General'!$B65='Inputs|General'!$A$48,F$89,IF('Inputs|General'!$B65='Inputs|General'!$A$49,F$90,F$91))*'Inputs|General'!$C65*'Inputs|General'!N65 -> 0 | G111: =IF('Inputs|General'!$B65='Inputs|General'!$A$48,G$89,IF('Inputs|General'!$B65='Inputs|General'!$A$49,G$90,G$91))*'Inputs|General'!$C65*'Inputs|General'!O65 -> 0 | H111: =IF('Inputs|General'!$B65='Inputs|General'!$A$48,H$89,IF('Inputs|General'!$B65='Inputs|General'!$A$49,H$90,H$91))*'Inputs|General'!$C65*'Inputs|General'!P65 -> 0 | K111: =D111/'Output|Charges Summary'!D$4 -> 0 | L111: =E111/'Output|Charges Summary'!E$4 -> 0 | M111: =F111/'Output|Charges Summary'!F$4 -> 0 | N111: =G111/'Output|Charges Summary'!G$4 -> 0 | O111: =H111/'Output|Charges Summary'!H$4 -> 0
A114: ='Inputs|General'!A$70 -> Energy Efficient Lights
A115: ='Inputs|General'!A$71 -> T5 (2 x 14 W) | D115: =SUM('Output|Charges Summary'!D77,'Output|Charges Summary'!D11)*'Inputs|General'!$C71*'Inputs|General'!L71 -> 327373.8026 | E115: =SUM('Output|Charges Summary'!E77,'Output|Charges Summary'!E11)*'Inputs|General'!$C71*'Inputs|General'!M71 -> 369364.356 | F115: =SUM('Output|Charges Summary'!F77,'Output|Charges Summary'!F11)*'Inputs|General'!$C71*'Inputs|General'!N71 -> 406512.5287 | G115: =SUM('Output|Charges Summary'!G77,'Output|Charges Summary'!G11)*'Inputs|General'!$C71*'Inputs|General'!O71 -> 440156.5269 | H115: =SUM('Output|Charges Summary'!H77,'Output|Charges Summary'!H11)*'Inputs|General'!$C71*'Inputs|General'!P71 -> 469573.2275 | K115: =D115/'Output|Charges Summary'!D$4 -> 320956.6365 | L115: =E115/'Output|Charges Summary'!E$4 -> 355025.7534 | M115: =F115/'Output|Charges Summary'!F$4 -> 383072.7387 | N115: =G115/'Output|Charges Summary'!G$4 -> 406646.3655 | O115: =H115/'Output|Charges Summary'!H$4 -> 425319.7147
A116: ='Inputs|General'!A$72 -> T5 (2 x 24 W) | D116: =SUM('Output|Charges Summary'!D$77,'Output|Charges Summary'!D$11)*'Inputs|General'!$C72*'Inputs|General'!L72 -> 12910.70317 | E116: =SUM('Output|Charges Summary'!E$77,'Output|Charges Summary'!E$11)*'Inputs|General'!$C72*'Inputs|General'!M72 -> 14566.69265 | F116: =SUM('Output|Charges Summary'!F$77,'Output|Charges Summary'!F$11)*'Inputs|General'!$C72*'Inputs|General'!N72 -> 16031.71223 | G116: =SUM('Output|Charges Summary'!G$77,'Output|Charges Summary'!G$11)*'Inputs|General'!$C72*'Inputs|General'!O72 -> 17358.53701 | H116: =SUM('Output|Charges Summary'!H$77,'Output|Charges Summary'!H$11)*'Inputs|General'!$C72*'Inputs|General'!P72 -> 18518.64905 | K116: =D116/'Output|Charges Summary'!D$4 -> 12657.62817 | L116: =E116/'Output|Charges Summary'!E$4 -> 14001.21844 | M116: =F116/'Output|Charges Summary'!F$4 -> 15107.31276 | N116: =G116/'Output|Charges Summary'!G$4 -> 16036.99037 | O116: =H116/'Output|Charges Summary'!H$4 -> 16773.41481
A117: ='Inputs|General'!A$73 -> LED 18W (incl. other standard Category P LED variants) | D117: =SUM('Output|Charges Summary'!D$95,'Output|Charges Summary'!D$11)*'Inputs|General'!$C73*'Inputs|General'!L73 -> 241994.6823 | E117: =SUM('Output|Charges Summary'!E$95,'Output|Charges Summary'!E$11)*'Inputs|General'!$C73*'Inputs|General'!M73 -> 315434.1929 | F117: =SUM('Output|Charges Summary'!F$95,'Output|Charges Summary'!F$11)*'Inputs|General'!$C73*'Inputs|General'!N73 -> 399340.8066 | G117: =SUM('Output|Charges Summary'!G$95,'Output|Charges Summary'!G$11)*'Inputs|General'!$C73*'Inputs|General'!O73 -> 492222.1067 | H117: =SUM('Output|Charges Summary'!H$95,'Output|Charges Summary'!H$11)*'Inputs|General'!$C73*'Inputs|General'!P73 -> 578460.5005 | K117: =D117/'Output|Charges Summary'!D$4 -> 237251.1137 | L117: =E117/'Output|Charges Summary'!E$4 -> 303189.1414 | M117: =F117/'Output|Charges Summary'!F$4 -> 376314.5431 | N117: =G117/'Output|Charges Summary'!G$4 -> 454748.0691 | O117: =H117/'Output|Charges Summary'!H$4 -> 523945.235
A118: ='Inputs|General'!A74 -> Compact Fluoro 32W | D118: =SUM('Output|Charges Summary'!D$77,'Output|Charges Summary'!D$11)*'Inputs|General'!$C74*'Inputs|General'!L74 -> 30680.95178 | E118: =SUM('Output|Charges Summary'!E$77,'Output|Charges Summary'!E$11)*'Inputs|General'!$C74*'Inputs|General'!M74 -> 34961.24714 | F118: =SUM('Output|Charges Summary'!F$77,'Output|Charges Summary'!F$11)*'Inputs|General'!$C74*'Inputs|General'!N74 -> 38860.90374 | G118: =SUM('Output|Charges Summary'!G$77,'Output|Charges Summary'!G$11)*'Inputs|General'!$C74*'Inputs|General'!O74 -> 42496.49728 | H118: =SUM('Output|Charges Summary'!H$77,'Output|Charges Summary'!H$11)*'Inputs|General'!$C74*'Inputs|General'!P74 -> 45788.49245 | K118: =D118/'Output|Charges Summary'!D$4 -> 30079.54519 | L118: =E118/'Output|Charges Summary'!E$4 -> 33604.06305 | M118: =F118/'Output|Charges Summary'!F$4 -> 36620.1575 | N118: =G118/'Output|Charges Summary'!G$4 -> 39261.13804 | O118: =H118/'Output|Charges Summary'!H$4 -> 41473.29406
A119: ='Inputs|General'!A75 -> Compact Fluoro 42W | D119: =SUM('Output|Charges Summary'!D$77,'Output|Charges Summary'!D$11)*'Inputs|General'!$C75*'Inputs|General'!L75 -> 3848.565046 | E119: =SUM('Output|Charges Summary'!E$77,'Output|Charges Summary'!E$11)*'Inputs|General'!$C75*'Inputs|General'!M75 -> 4385.477826 | F119: =SUM('Output|Charges Summary'!F$77,'Output|Charges Summary'!F$11)*'Inputs|General'!$C75*'Inputs|General'!N75 -> 4874.643943 | G119: =SUM('Output|Charges Summary'!G$77,'Output|Charges Summary'!G$11)*'Inputs|General'!$C75*'Inputs|General'!O75 -> 5330.686452 | H119: =SUM('Output|Charges Summary'!H$77,'Output|Charges Summary'!H$11)*'Inputs|General'!$C75*'Inputs|General'!P75 -> 5743.628582 | K119: =D119/'Output|Charges Summary'!D$4 -> 3773.125653 | L119: =E119/'Output|Charges Summary'!E$4 -> 4215.235022 | M119: =F119/'Output|Charges Summary'!F$4 -> 4593.568646 | N119: =G119/'Output|Charges Summary'!G$4 -> 4924.848637 | O119: =H119/'Output|Charges Summary'!H$4 -> 5202.337626
A120: ='Inputs|General'!A76 -> L1 - LED 70W | D120: =SUM('Output|Charges Summary'!D$113,'Output|Charges Summary'!D$11)*'Inputs|General'!$C76*'Inputs|General'!L76 -> 11058.12835 | E120: =SUM('Output|Charges Summary'!E$113,'Output|Charges Summary'!E$11)*'Inputs|General'!$C76*'Inputs|General'!M76 -> 14841.70741 | F120: =SUM('Output|Charges Summary'!F$113,'Output|Charges Summary'!F$11)*'Inputs|General'!$C76*'Inputs|General'!N76 -> 19168.59833 | G120: =SUM('Output|Charges Summary'!G$113,'Output|Charges Summary'!G$11)*'Inputs|General'!$C76*'Inputs|General'!O76 -> 23958.37061 | H120: =SUM('Output|Charges Summary'!H$113,'Output|Charges Summary'!H$11)*'Inputs|General'!$C76*'Inputs|General'!P76 -> 28333.30761 | K120: =D120/'Output|Charges Summary'!D$4 -> 10841.36743 | L120: =E120/'Output|Charges Summary'!E$4 -> 14265.55722 | M120: =F120/'Output|Charges Summary'!F$4 -> 18063.32386 | N120: =G120/'Output|Charges Summary'!G$4 -> 22134.36297 | O120: =H120/'Output|Charges Summary'!H$4 -> 25663.12048
A121: ='Inputs|General'!A77 -> L2 - LED 118W, 155W, 162W | D121: =SUM('Output|Charges Summary'!D$131,'Output|Charges Summary'!D$11)*'Inputs|General'!$C77*'Inputs|General'!L77 -> 3120.645557 | E121: =SUM('Output|Charges Summary'!E$131,'Output|Charges Summary'!E$11)*'Inputs|General'!$C77*'Inputs|General'!M77 -> 4193.966727 | F121: =SUM('Output|Charges Summary'!F$131,'Output|Charges Summary'!F$11)*'Inputs|General'!$C77*'Inputs|General'!N77 -> 5421.008624 | G121: =SUM('Output|Charges Summary'!G$131,'Output|Charges Summary'!G$11)*'Inputs|General'!$C77*'Inputs|General'!O77 -> 6778.789353 | H121: =SUM('Output|Charges Summary'!H$131,'Output|Charges Summary'!H$11)*'Inputs|General'!$C77*'Inputs|General'!P77 -> 8017.288464 | K121: =D121/'Output|Charges Summary'!D$4 -> 3059.474808 | L121: =E121/'Output|Charges Summary'!E$4 -> 4031.15832 | M121: =F121/'Output|Charges Summary'!F$4 -> 5108.429566 | N121: =G121/'Output|Charges Summary'!G$4 -> 6262.704025 | O121: =H121/'Output|Charges Summary'!H$4 -> 7261.723289
A122: ='Inputs|General'!A78 -> L4 - LED 275W | D122: =SUM('Output|Charges Summary'!D$149,'Output|Charges Summary'!D$11)*'Inputs|General'!$C78*'Inputs|General'!L78 -> 64.02173152 | E122: =SUM('Output|Charges Summary'!E$149,'Output|Charges Summary'!E$11)*'Inputs|General'!$C78*'Inputs|General'!M78 -> 86.79510657 | F122: =SUM('Output|Charges Summary'!F$149,'Output|Charges Summary'!F$11)*'Inputs|General'!$C78*'Inputs|General'!N78 -> 112.7756286 | G122: =SUM('Output|Charges Summary'!G$149,'Output|Charges Summary'!G$11)*'Inputs|General'!$C78*'Inputs|General'!O78 -> 141.4534478 | H122: =SUM('Output|Charges Summary'!H$149,'Output|Charges Summary'!H$11)*'Inputs|General'!$C78*'Inputs|General'!P78 -> 167.3852362 | K122: =D122/'Output|Charges Summary'!D$4 -> 62.76678051 | L122: =E122/'Output|Charges Summary'!E$4 -> 83.42574914 | M122: =F122/'Output|Charges Summary'!F$4 -> 106.2729089 | N122: =G122/'Output|Charges Summary'!G$4 -> 130.684261 | O122: =H122/'Output|Charges Summary'!H$4 -> 151.6105194
A124: Total Capital Charge | D124: =SUM(D94:D122) -> 1406151.274 | E124: =SUM(E94:E122) -> 1439438.121 | F124: =SUM(F94:F122) -> 1480506.683 | G124: =SUM(G94:G122) -> 1605580.63 | H124: =SUM(H94:H122) -> 1702140.566 | K124: =SUM(K94:K122) -> 1378587.962 | L124: =SUM(L94:L122) -> 1383559.607 | M124: =SUM(M94:M122) -> 1395139.657 | N124: =SUM(N94:N122) -> 1483343.965 | O124: =SUM(O94:O122) -> 1541727.461
A126: Check | C126: =SUM(D126:O126) -> 1.396983862e-08 | D126: =ABS(D37-SUM(D79,D124)) -> 2.793967724e-09 | E126: =ABS(E37-SUM(E79,E124)) -> 1.862645149e-09 | F126: =ABS(F37-SUM(F79,F124)) -> 0 | G126: =ABS(G37-SUM(G79,G124)) -> 9.313225746e-10 | H126: =ABS(H37-SUM(H79,H124)) -> 1.862645149e-09 | K126: =ABS(K37-SUM(K79,K124)) -> 1.862645149e-09 | L126: =ABS(L37-SUM(L79,L124)) -> 1.862645149e-09 | M126: =ABS(M37-SUM(M79,M124)) -> 9.313225746e-10 | N126: =ABS(N37-SUM(N79,N124)) -> 9.313225746e-10 | O126: =ABS(O37-SUM(O79,O124)) -> 9.313225746e-10
A128: Public Lighting - Capital Expenditure | D128: Forecast Capital Expenditure - Nominal | K128: Forecast Capital Expenditure - Real 2021 $
D129: =D$2 -> FY2022 | E129: FY2023 | F129: FY2024 | G129: FY2025 | H129: FY2026 | K129: =K$2 -> FY2022 | L129: FY2023 | M129: FY2024 | N129: FY2025 | O129: FY2026
A131: Total Capital Expenditure | D131: =K131*'Output|Charges Summary'!D$4 -> 1645872.398 | E131: =L131*'Output|Charges Summary'!E$4 -> 1726433.226 | F131: =M131*'Output|Charges Summary'!F$4 -> 1813582.196 | G131: =N131*'Output|Charges Summary'!G$4 -> 1907738.02 | H131: =O131*'Output|Charges Summary'!H$4 -> 1769901.174 | K131: ='Inputs|General'!L15 -> 1613610.084 | L131: ='Inputs|General'!M15 -> 1659413.657 | M131: ='Inputs|General'!N15 -> 1709009.808 | N131: ='Inputs|General'!O15 -> 1762497.395 | O131: ='Inputs|General'!P15 -> 1603102.175
A132: Check | C132: =SUM(D132:H132) -> 6.98491931e-10 | D132: =ABS(D131-D139) -> 0 | E132: =ABS(E131-E139) -> 2.328306437e-10 | F132: =ABS(F131-F139) -> 2.328306437e-10 | G132: =ABS(G131-G139) -> 2.328306437e-10 | H132: =ABS(H131-H139) -> 0
A135: Public Lighting - RAB | D135: RAB - Historical Cost ($)
D136: =D$2 -> FY2022 | E136: FY2023 | F136: FY2024 | G136: FY2025 | H136: FY2026
A138: Opening RAB | D138: ='Calc|Total RAB'!T157 -> 10943587.68 | E138: ='Calc|Total RAB'!U157 -> 11770904.33 | F138: ='Calc|Total RAB'!V157 -> 12690690.33 | G138: ='Calc|Total RAB'!W157 -> 13706631.58 | H138: ='Calc|Total RAB'!X157 -> 14744791.75
A139: Capex | D139: ='Calc|Total RAB'!T158 -> 1645872.398 | E139: ='Calc|Total RAB'!U158 -> 1726433.226 | F139: ='Calc|Total RAB'!V158 -> 1813582.196 | G139: ='Calc|Total RAB'!W158 -> 1907738.02 | H139: ='Calc|Total RAB'!X158 -> 1769901.174
A140: Depreciation | D140: ='Calc|Total RAB'!T159 -> 818555.7423 | E140: ='Calc|Total RAB'!U159 -> 806647.2265 | F140: ='Calc|Total RAB'!V159 -> 797640.9431 | G140: ='Calc|Total RAB'!W159 -> 869577.8524 | H140: ='Calc|Total RAB'!X159 -> 917224.1937
A141: Closing RAB | D141: =D138+D139-D140 -> 11770904.33 | E141: =E138+E139-E140 -> 12690690.33 | F141: =F138+F139-F140 -> 13706631.58 | G141: =G138+G139-G140 -> 14744791.75 | H141: =H138+H139-H140 -> 15597468.73
A143: Average RAB | D143: =SUM(D138,D141)/2 -> 11357246 | E143: =SUM(E138,E141)/2 -> 12230797.33 | F143: =SUM(F138,F141)/2 -> 13198660.96 | G143: =SUM(G138,G141)/2 -> 14225711.67 | H143: =SUM(H138,H141)/2 -> 15171130.24
A145: ='Calc|WACC'!A$8 -> Nominal Pre Tax WACC | D145: ='Calc|WACC'!E$8 -> 0.05173750142 | E145: ='Calc|WACC'!F$8 -> 0.05173750142 | F145: ='Calc|WACC'!G$8 -> 0.05173750142 | G145: ='Calc|WACC'!H$8 -> 0.05173750142 | H145: ='Calc|WACC'!I$8 -> 0.05173750142
A147: Capital Charge | D147: Capital Charge - Nominal
D148: =D$2 -> FY2022 | E148: FY2023 | F148: FY2024 | G148: FY2025 | H148: FY2026
A150: Depreciation | D150: =D140 -> 818555.7423 | E150: =E140 -> 806647.2265 | F150: =F140 -> 797640.9431 | G150: =G140 -> 869577.8524 | H150: =H140 -> 917224.1937
A151: Return | D151: =D145*D143 -> 587595.5313 | E151: =E145*E143 -> 632790.8943 | F151: =F145*F143 -> 682865.7401 | G151: =G145*G143 -> 736002.7776 | H151: =H145*H143 -> 784916.3725
D153: =SUM(D150:D152) -> 1406151.274 | E153: =SUM(E150:E152) -> 1439438.121 | F153: =SUM(F150:F152) -> 1480506.683 | G153: =SUM(G150:G152) -> 1605580.63 | H153: =SUM(H150:H152) -> 1702140.566
A155: Check | C155: =SUM(D155:H155) -> 1.405738294e-05 | D155: =D153-D124 -> 0 | E155: =E153-E124 -> 0 | F155: 0 | G155: 0 | H155: 1.405738294e-05

Sheet Output|Charges Summary
A1: ='Inputs|O & M'!$A$3 -> Jemena | D1: ='Inputs|General'!L$3 -> FY2022 | E1: ='Inputs|General'!M$3 -> FY2023 | F1: ='Inputs|General'!N$3 -> FY2024 | G1: ='Inputs|General'!O$3 -> FY2025 | H1: ='Inputs|General'!P$3 -> FY2026
A2: Nominal $
A4: ='Calc|Total RAB'!A20 -> CPI Index | D4: ='Inputs|General'!L111/'Inputs|General'!$K$111 -> 1.019993873 | E4: ='Inputs|General'!M111/'Inputs|General'!$K$111 -> 1.0403875 | F4: ='Inputs|General'!N111/'Inputs|General'!$K$111 -> 1.061188875 | G4: ='Inputs|General'!O111/'Inputs|General'!$K$111 -> 1.08240615 | H4: ='Inputs|General'!P111/'Inputs|General'!$K$111 -> 1.104047641
A6: ='Inputs|General'!$A$7 -> Poles and Brackets | D6: ='Inputs|General'!L$3 -> FY2022 | E6: ='Inputs|General'!M$3 -> FY2023 | F6: ='Inputs|General'!N$3 -> FY2024 | G6: ='Inputs|General'!O$3 -> FY2025 | H6: ='Inputs|General'!P$3 -> FY2026
A7: O & M
A8: ='Calc|O & M 2021-2026'!A$10 -> Dedicated poles - inspection | D8: ='Calc|O & M 2021-2026'!$B$10*D$4 -> 2.429591195 | E8: ='Calc|O & M 2021-2026'!$Q$10*E$4 -> 2.492831248 | F8: ='Calc|O & M 2021-2026'!$AF$10*F$4 -> 2.5565112 | G8: ='Calc|O & M 2021-2026'!$AU$10*G$4 -> 2.624709724 | H8: ='Calc|O & M 2021-2026'!$BJ$10*H$4 -> 2.699967321
A10: Capital Charge
A11: Depreciation and Return | D11: ='Calc|Depn & WACC Post 2004'!H$74 -> 6.400704691 | E11: ='Calc|Depn & WACC Post 2004'!H$121 -> 7.004860404 | F11: ='Calc|Depn & WACC Post 2004'!H$168 -> 7.606758525 | G11: ='Calc|Depn & WACC Post 2004'!H$215 -> 8.22205295 | H11: ='Calc|Depn & WACC Post 2004'!H$262 -> 8.887820262
A13: Total Charge | D13: =SUM(D8,D11) -> 8.830295886 | E13: =SUM(E8,E11) -> 9.497691652 | F13: =SUM(F8,F11) -> 10.16326972 | G13: =SUM(G8,G11) -> 10.84676267 | H13: =SUM(H8,H11) -> 11.58778758
A18: ='Inputs|General'!$A$9 -> Existing Lights
A20: ='Calc|O & M 2021-2026'!$A$8 -> MV80 | D20: =D$1 -> FY2022 | E20: =E$1 -> FY2023 | F20: FY2024 | G20: FY2025 | H20: FY2026
A22: O & M Charge
A23: ='Calc|O & M 2021-2026'!A$9 -> Bulk change & repairs | D23: ='Calc|O & M 2021-2026'!$B$9*D$4 -> 27.17655019 | E23: ='Calc|O & M 2021-2026'!$Q$9*E$4 -> 27.83537173 | F23: ='Calc|O & M 2021-2026'!$AF$9*F$4 -> 28.50087345 | G23: ='Calc|O & M 2021-2026'!$AU$9*G$4 -> 29.20523504 | H23: ='Calc|O & M 2021-2026'!$BJ$9*H$4 -> 29.96852596
A24: ='Calc|O & M 2021-2026'!A$11 -> Other costs | D24: ='Calc|O & M 2021-2026'!$B$11*D$4 -> 2.859598426 | E24: ='Calc|O & M 2021-2026'!$Q$11*E$4 -> 2.957544039 | F24: ='Calc|O & M 2021-2026'!$AF$11*F$4 -> 3.068166711 | G24: ='Calc|O & M 2021-2026'!$AU$11*G$4 -> 3.192239767 | H24: ='Calc|O & M 2021-2026'!$BJ$11*H$4 -> 3.331751957
D25: =SUM(D23:D24) -> 30.03614862 | E25: =SUM(E23:E24) -> 30.79291577 | F25: =SUM(F23:F24) -> 31.56904016 | G25: =SUM(G23:G24) -> 32.39747481 | H25: =SUM(H23:H24) -> 33.30027792
A26: Capital Charge
A27: Depreciation and Return | D27: ='Calc|Depn & WACC Post 2004'!H$36 -> 19.01199135 | E27: ='Calc|Depn & WACC Post 2004'!H$83 -> 16.79920787 | F27: ='Calc|Depn & WACC Post 2004'!H$130 -> 14.4933652 | G27: ='Calc|Depn & WACC Post 2004'!H$177 -> 14.85125408 | H27: ='Calc|Depn & WACC Post 2004'!H$224 -> 14.05724576
A29: Poles & Brackets Charge | D29: =D$13 -> 8.830295886 | E29: =E$13 -> 9.497691652 | F29: =F$13 -> 10.16326972 | G29: =G$13 -> 10.84676267 | H29: =H$13 -> 11.58778758
A31: Total Charge | D31: =SUM(D25,D27,D29) -> 57.87843585 | E31: =SUM(E25,E27,E29) -> 57.08981528 | F31: =SUM(F25,F27,F29) -> 56.22567508 | G31: =SUM(G25,G27,G29) -> 58.09549156 | H31: =SUM(H25,H27,H29) -> 58.94531126
A36: ='Calc|O & M 2021-2026'!$A$14 -> S-HP 150 | D36: =D$1 -> FY2022 | E36: =E$1 -> FY2023 | F36: FY2024 | G36: FY2025 | H36: FY2026
A38: O & M Charge
A39: ='Calc|O & M 2021-2026'!A$15 -> Patrols and repairs | D39: ='Calc|O & M 2021-2026'!$B$15*D$4 -> 87.20871256 | E39: ='Calc|O & M 2021-2026'!$Q$15*E$4 -> 89.35216308 | F39: ='Calc|O & M 2021-2026'!$AF$15*F$4 -> 91.51598794 | G39: ='Calc|O & M 2021-2026'!$AU$15*G$4 -> 93.81156546 | H39: ='Calc|O & M 2021-2026'!$BJ$15*H$4 -> 96.30833692
A40: ='Calc|O & M 2021-2026'!A$17 -> Other costs | D40: ='Calc|O & M 2021-2026'!$B$17*D$4 -> 2.859598426 | E40: ='Calc|O & M 2021-2026'!$Q$17*E$4 -> 2.957544039 | F40: ='Calc|O & M 2021-2026'!$AF$17*F$4 -> 3.068166711 | G40: ='Calc|O & M 2021-2026'!$AU$17*G$4 -> 3.192239767 | H40: ='Calc|O & M 2021-2026'!$BJ$17*H$4 -> 3.331751957
D41: =SUM(D39:D40) -> 90.06831098 | E41: =SUM(E39:E40) -> 92.30970712 | F41: =SUM(F39:F40) -> 94.58415465 | G41: =SUM(G39:G40) -> 97.00380523 | H41: =SUM(H39:H40) -> 99.64008888
A42: Capital Charge
A43: Depreciation and Return | D43: ='Calc|Depn & WACC Post 2004'!H$37 -> 22.30822161 | E43: ='Calc|Depn & WACC Post 2004'!H$84 -> 19.71179373 | F43: ='Calc|Depn & WACC Post 2004'!H$131 -> 17.15246812 | G43: ='Calc|Depn & WACC Post 2004'!H$178 -> 17.576019 | H43: ='Calc|Depn & WACC Post 2004'!H$225 -> 16.63633369
A45: Poles & Brackets Charge | D45: =D$13 -> 8.830295886 | E45: =E$13 -> 9.497691652 | F45: =F$13 -> 10.16326972 | G45: =G$13 -> 10.84676267 | H45: =H$13 -> 11.58778758
A47: Total Charge | D47: =SUM(D41,D43,D45) -> 121.2068285 | E47: =SUM(E41,E43,E45) -> 121.5191925 | F47: =SUM(F41,F43,F45) -> 121.8998925 | G47: =SUM(G41,G43,G45) -> 125.4265869 | H47: =SUM(H41,H43,H45) -> 127.8642102
A52: ='Calc|O & M 2021-2026'!$A$20 -> S-HP 250 | D52: =D$1 -> FY2022 | E52: =E$1 -> FY2023 | F52: FY2024 | G52: FY2025 | H52: FY2026
A54: O & M Charge
A55: ='Calc|O & M 2021-2026'!A$21 -> Patrols and repairs | D55: ='Calc|O & M 2021-2026'!$B$21*D$4 -> 88.67945287 | E55: ='Calc|O & M 2021-2026'!$Q$21*E$4 -> 90.85360184 | F55: ='Calc|O & M 2021-2026'!$AF$21*F$4 -> 93.04866623 | G55: ='Calc|O & M 2021-2026'!$AU$21*G$4 -> 95.37639398 | H55: ='Calc|O & M 2021-2026'!$BJ$21*H$4 -> 97.90646058
A56: ='Calc|O & M 2021-2026'!A$23 -> Other costs | D56: ='Calc|O & M 2021-2026'!$B$23*D$4 -> 2.859598426 | E56: ='Calc|O & M 2021-2026'!$Q$23*E$4 -> 2.957544039 | F56: ='Calc|O & M 2021-2026'!$AF$23*F$4 -> 3.068166711 | G56: ='Calc|O & M 2021-2026'!$AU$23*G$4 -> 3.192239767 | H56: ='Calc|O & M 2021-2026'!$BJ$23*H$4 -> 3.331751957
D57: =SUM(D55:D56) -> 91.5390513 | E57: =SUM(E55:E56) -> 93.81114588 | F57: =SUM(F55:F56) -> 96.11683295 | G57: =SUM(G55:G56) -> 98.56863375 | H57: =SUM(H55:H56) -> 101.2382125
A58: Capital Charge
A59: Depreciation and Return | D59: ='Calc|Depn & WACC Post 2004'!H$38 -> 23.68134065 | E59: ='Calc|Depn & WACC Post 2004'!H$85 -> 20.92509705 | F59: ='Calc|Depn & WACC Post 2004'!H$132 -> 17.40820469 | G59: ='Calc|Depn & WACC Post 2004'!H$179 -> 17.83807055 | H59: ='Calc|Depn & WACC Post 2004'!H$226 -> 16.8843749
A61: Poles & Brackets Charge | D61: =D$13 -> 8.830295886 | E61: =E$13 -> 9.497691652 | F61: =F$13 -> 10.16326972 | G61: =G$13 -> 10.84676267 | H61: =H$13 -> 11.58778758
A63: Total Charge | D63: =SUM(D57,D59,D61) -> 124.0506878 | E63: =SUM(E57,E59,E61) -> 124.2339346 | F63: =SUM(F57,F59,F61) -> 123.6883074 | G63: =SUM(G57,G59,G61) -> 127.253467 | H63: =SUM(H57,H59,H61) -> 129.710375
A68: ='Inputs|General'!$A$12 -> Energy Efficient Lights
A70: ='Calc|O & M 2021-2026'!$A$26 -> T5 (2 X 14W) | D70: =D$1 -> FY2022 | E70: =E$1 -> FY2023 | F70: FY2024 | G70: FY2025 | H70: FY2026
A72: O & M Charge
A73: ='Calc|O & M 2021-2026'!A$27 -> Bulk change & repairs | D73: ='Calc|O & M 2021-2026'!$B$27*D$4 -> 43.59029822 | E73: ='Calc|O & M 2021-2026'!$Q$27*E$4 -> 44.61472069 | F73: ='Calc|O & M 2021-2026'!$AF$27*F$4 -> 45.65102861 | G73: ='Calc|O & M 2021-2026'!$AU$27*G$4 -> 46.74189382 | H73: ='Calc|O & M 2021-2026'!$BJ$27*H$4 -> 47.91395345
A74: ='Calc|O & M 2021-2026'!A$29 -> Other costs | D74: ='Calc|O & M 2021-2026'!$B$29*D$4 -> 2.859598426 | E74: ='Calc|O & M 2021-2026'!$Q$29*E$4 -> 2.957544039 | F74: ='Calc|O & M 2021-2026'!$AF$29*F$4 -> 3.068166711 | G74: ='Calc|O & M 2021-2026'!$AU$29*G$4 -> 3.192239767 | H74: ='Calc|O & M 2021-2026'!$BJ$29*H$4 -> 3.331751957
D75: =SUM(D73:D74) -> 46.44989664 | E75: =SUM(E73:E74) -> 47.57226473 | F75: =SUM(F73:F74) -> 48.71919532 | G75: =SUM(G73:G74) -> 49.93413358 | H75: =SUM(H73:H74) -> 51.24570541
A76: Capital Charge
A77: Depreciation and Return | D77: ='Calc|Depn & WACC Post 2004'!$H$61 -> 6.326605411 | E77: ='Calc|Depn & WACC Post 2004'!$H$108 -> 7.591293105 | F77: ='Calc|Depn & WACC Post 2004'!$H$155 -> 8.721809886 | G77: ='Calc|Depn & WACC Post 2004'!$H$202 -> 9.74893932 | H77: ='Calc|Depn & WACC Post 2004'!$H$249 -> 10.59980749
A79: Poles & Brackets Charge | D79: =D$13 -> 8.830295886 | E79: =E$13 -> 9.497691652 | F79: =F$13 -> 10.16326972 | G79: =G$13 -> 10.84676267 | H79: =H$13 -> 11.58778758
A81: Total Charge | D81: =SUM(D75,D77,D79) -> 61.60679794 | E81: =SUM(E75,E77,E79) -> 64.66124948 | F81: =SUM(F75,F77,F79) -> 67.60427493 | G81: =SUM(G75,G77,G79) -> 70.52983558 | H81: =SUM(H75,H77,H79) -> 73.43330048
A86: ='Inputs|General'!$A$12 -> Energy Efficient Lights
A88: ='Calc|O & M 2021-2026'!A32 -> LED 18W (incl. other standard Category P LED variants) | D88: =D$1 -> FY2022 | E88: =E$1 -> FY2023 | F88: FY2024 | G88: FY2025 | H88: FY2026
A90: O & M Charge
A91: ='Calc|O & M 2021-2026'!A$33 -> Bulk change & repairs | D91: ='Calc|O & M 2021-2026'!$B$33*D$4 -> 12.19275576 | E91: ='Calc|O & M 2021-2026'!$Q$33*E$4 -> 12.48779042 | F91: ='Calc|O & M 2021-2026'!$AF$33*F$4 -> 12.78584191 | G91: ='Calc|O & M 2021-2026'!$AU$33*G$4 -> 13.10119662 | H91: ='Calc|O & M 2021-2026'!$BJ$33*H$4 -> 13.44276494
A92: ='Calc|O & M 2021-2026'!A$35 -> Other costs | D92: ='Calc|O & M 2021-2026'!$B$35*D$4 -> 2.859598426 | E92: ='Calc|O & M 2021-2026'!$Q$35*E$4 -> 2.957544039 | F92: ='Calc|O & M 2021-2026'!$AF$35*F$4 -> 3.068166711 | G92: ='Calc|O & M 2021-2026'!$AU$35*G$4 -> 3.192239767 | H92: ='Calc|O & M 2021-2026'!$BJ$35*H$4 -> 3.331751957
D93: =SUM(D91:D92) -> 15.05235418 | E93: =SUM(E91:E92) -> 15.44533445 | F93: =SUM(F91:F92) -> 15.85400862 | G93: =SUM(G91:G92) -> 16.29343639 | H93: =SUM(H91:H92) -> 16.77451689
A94: Capital Charge
A95: Depreciation and Return | D95: ='Calc|Depn & WACC Post 2004'!$H$63 -> 4.551570888 | E95: ='Calc|Depn & WACC Post 2004'!$H$110 -> 5.461429385 | F95: ='Calc|Depn & WACC Post 2004'!$H$157 -> 6.274760853 | G95: ='Calc|Depn & WACC Post 2004'!$H$204 -> 7.013712016 | H95: ='Calc|Depn & WACC Post 2004'!$H$251 -> 7.625854946
A97: Poles & Brackets Charge | D97: =D$13 -> 8.830295886 | E97: =E$13 -> 9.497691652 | F97: =F$13 -> 10.16326972 | G97: =G$13 -> 10.84676267 | H97: =H$13 -> 11.58778758
A99: Total Charge | D99: =SUM(D93,D95,D97) -> 28.43422095 | E99: =SUM(E93,E95,E97) -> 30.40445549 | F99: =SUM(F93,F95,F97) -> 32.2920392 | G99: =SUM(G93,G95,G97) -> 34.15391108 | H99: =SUM(H93,H95,H97) -> 35.98815942
A104: ='Inputs|General'!$A$12 -> Energy Efficient Lights
A106: ='Calc|O & M 2021-2026'!A38 -> LED 70W (L1) | D106: =D$1 -> FY2022 | E106: =E$1 -> FY2023 | F106: FY2024 | G106: FY2025 | H106: FY2026
A108: O & M Charge
A109: ='Calc|O & M 2021-2026'!A$21 -> Patrols and repairs | D109: ='Calc|O & M 2021-2026'!$B$39*D$4 -> 32.99656283 | E109: ='Calc|O & M 2021-2026'!$Q$39*E$4 -> 33.7850312 | F109: ='Calc|O & M 2021-2026'!$AF$39*F$4 -> 34.58202503 | G109: ='Calc|O & M 2021-2026'!$AU$39*G$4 -> 35.42344751 | H109: ='Calc|O & M 2021-2026'!$BJ$39*H$4 -> 36.33169884
A110: ='Calc|O & M 2021-2026'!A$35 -> Other costs | D110: ='Calc|O & M 2021-2026'!$B$41*D$4 -> 2.859598426 | E110: ='Calc|O & M 2021-2026'!$Q$41*E$4 -> 2.957544039 | F110: ='Calc|O & M 2021-2026'!$AF$41*F$4 -> 3.068166711 | G110: ='Calc|O & M 2021-2026'!$AU$41*G$4 -> 3.192239767 | H110: ='Calc|O & M 2021-2026'!$BJ$41*H$4 -> 3.331751957
D111: =SUM(D109:D110) -> 35.85616126 | E111: =SUM(E109:E110) -> 36.74257524 | F111: =SUM(F109:F110) -> 37.65019174 | G111: =SUM(G109:G110) -> 38.61568728 | H111: =SUM(H109:H110) -> 39.6634508
A112: Capital Charge
A113: Depreciation and Return | D113: ='Calc|Depn & WACC Post 2004'!$H$66 -> 8.925519497 | E113: ='Calc|Depn & WACC Post 2004'!$H$113 -> 10.70972982 | F113: ='Calc|Depn & WACC Post 2004'!$H$160 -> 12.30465299 | G113: ='Calc|Depn & WACC Post 2004'!$H$207 -> 13.7537182 | H113: ='Calc|Depn & WACC Post 2004'!$H$254 -> 14.95411555
A115: Poles & Brackets Charge | D115: =D$13 -> 8.830295886 | E115: =E$13 -> 9.497691652 | F115: =F$13 -> 10.16326972 | G115: =G$13 -> 10.84676267 | H115: =H$13 -> 11.58778758
A117: Total Charge | D117: =SUM(D111,D113,D115) -> 53.61197664 | E117: =SUM(E111,E113,E115) -> 56.94999671 | F117: =SUM(F111,F113,F115) -> 60.11811446 | G117: =SUM(G111,G113,G115) -> 63.21616815 | H117: =SUM(H111,H113,H115) -> 66.20535394
A122: ='Inputs|General'!$A$12 -> Energy Efficient Lights
A124: ='Calc|O & M 2021-2026'!A44 -> LED 118W, 155W, 162W (L2) | D124: =D$1 -> FY2022 | E124: =E$1 -> FY2023 | F124: FY2024 | G124: FY2025 | H124: FY2026
A126: O & M Charge
A127: ='Calc|O & M 2021-2026'!A$21 -> Patrols and repairs | D127: ='Calc|O & M 2021-2026'!$B$45*D$4 -> 32.99656283 | E127: ='Calc|O & M 2021-2026'!$Q$45*E$4 -> 33.7850312 | F127: ='Calc|O & M 2021-2026'!$AF$45*F$4 -> 34.58202503 | G127: ='Calc|O & M 2021-2026'!$AU$45*G$4 -> 35.42344751 | H127: ='Calc|O & M 2021-2026'!$BJ$45*H$4 -> 36.33169884
A128: ='Calc|O & M 2021-2026'!A$35 -> Other costs | D128: ='Calc|O & M 2021-2026'!$B$47*D$4 -> 2.859598426 | E128: ='Calc|O & M 2021-2026'!$Q$47*E$4 -> 2.957544039 | F128: ='Calc|O & M 2021-2026'!$AF$47*F$4 -> 3.068166711 | G128: ='Calc|O & M 2021-2026'!$AU$47*G$4 -> 3.192239767 | H128: ='Calc|O & M 2021-2026'!$BJ$47*H$4 -> 3.331751957
D129: =SUM(D127:D128) -> 35.85616126 | E129: =SUM(E127:E128) -> 36.74257524 | F129: =SUM(F127:F128) -> 37.65019174 | G129: =SUM(G127:G128) -> 38.61568728 | H129: =SUM(H127:H128) -> 39.6634508
A130: Capital Charge
A131: Depreciation and Return | D131: ='Calc|Depn & WACC Post 2004'!$H$67 -> 9.480589117 | E131: ='Calc|Depn & WACC Post 2004'!$H$114 -> 11.37575779 | F131: ='Calc|Depn & WACC Post 2004'!$H$161 -> 13.06986773 | G131: ='Calc|Depn & WACC Post 2004'!$H$208 -> 14.60904893 | H131: ='Calc|Depn & WACC Post 2004'!$H$255 -> 15.88409786
A133: Poles & Brackets Charge | D133: =D$13 -> 8.830295886 | E133: =E$13 -> 9.497691652 | F133: =F$13 -> 10.16326972 | G133: =G$13 -> 10.84676267 | H133: =H$13 -> 11.58778758
A135: Total Charge | D135: =SUM(D129,D131,D133) -> 54.16704626 | E135: =SUM(E129,E131,E133) -> 57.61602468 | F135: =SUM(F129,F131,F133) -> 60.8833292 | G135: =SUM(G129,G131,G133) -> 64.07149888 | H135: =SUM(H129,H131,H133) -> 67.13533625
A140: ='Inputs|General'!$A$12 -> Energy Efficient Lights
A142: ='Calc|O & M 2021-2026'!A50 -> LED 275W (L4) | D142: =D$1 -> FY2022 | E142: =E$1 -> FY2023 | F142: FY2024 | G142: FY2025 | H142: FY2026
A144: O & M Charge
A145: ='Calc|O & M 2021-2026'!A$21 -> Patrols and repairs | D145: ='Calc|O & M 2021-2026'!$B$51*D$4 -> 32.99656283 | E145: ='Calc|O & M 2021-2026'!$Q$51*E$4 -> 33.7850312 | F145: ='Calc|O & M 2021-2026'!$AF$51*F$4 -> 34.58202503 | G145: ='Calc|O & M 2021-2026'!$AU$51*G$4 -> 35.42344751 | H145: ='Calc|O & M 2021-2026'!$BJ$51*H$4 -> 36.33169884
A146: ='Calc|O & M 2021-2026'!A$35 -> Other costs | D146: ='Calc|O & M 2021-2026'!$B$53*D$4 -> 2.859598426 | E146: ='Calc|O & M 2021-2026'!$Q$53*E$4 -> 2.957544039 | F146: ='Calc|O & M 2021-2026'!$AF$53*F$4 -> 3.068166711 | G146: ='Calc|O & M 2021-2026'!$AU$53*G$4 -> 3.192239767 | H146: ='Calc|O & M 2021-2026'!$BJ$53*H$4 -> 3.331751957
D147: =SUM(D145:D146) -> 35.85616126 | E147: =SUM(E145:E146) -> 36.74257524 | F147: =SUM(F145:F146) -> 37.65019174 | G147: =SUM(G145:G146) -> 38.61568728 | H147: =SUM(H145:H146) -> 39.6634508
A148: Capital Charge
A149: Depreciation and Return | D149: ='Calc|Depn & WACC Post 2004'!$H$68 -> 14.45134858 | E149: ='Calc|Depn & WACC Post 2004'!$H$115 -> 17.3401715 | F149: ='Calc|Depn & WACC Post 2004'!$H$162 -> 19.92251875 | G149: ='Calc|Depn & WACC Post 2004'!$H$209 -> 22.26870672 | H149: ='Calc|Depn & WACC Post 2004'!$H$256 -> 24.21227545
A151: Poles & Brackets Charge | D151: =D$13 -> 8.830295886 | E151: =E$13 -> 9.497691652 | F151: =F$13 -> 10.16326972 | G151: =G$13 -> 10.84676267 | H151: =H$13 -> 11.58778758
A153: Total Charge | D153: =SUM(D147,D149,D151) -> 59.13780573 | E153: =SUM(E147,E149,E151) -> 63.58043839 | F153: =SUM(F147,F149,F151) -> 67.73598022 | G153: =SUM(G147,G149,G151) -> 71.73115667 | H153: =SUM(H147,H149,H151) -> 75.46351383

Sheet Output|WDV & Avoided Costs
A1: ='Inputs|O & M'!$A$3 -> Jemena | D1: ='Inputs|General'!L$3 -> FY2022 | E1: ='Inputs|General'!M$3 -> FY2023 | F1: ='Inputs|General'!N$3 -> FY2024 | G1: ='Inputs|General'!O$3 -> FY2025 | H1: ='Inputs|General'!P$3 -> FY2026
A2: Nominal $
A4: ='Calc|Total RAB'!A20 -> CPI Index | D4: ='Inputs|General'!L111/'Inputs|General'!$K$111 -> 1.019993873 | E4: ='Inputs|General'!M111/'Inputs|General'!$K$111 -> 1.0403875 | F4: ='Inputs|General'!N111/'Inputs|General'!$K$111 -> 1.061188875 | G4: ='Inputs|General'!O111/'Inputs|General'!$K$111 -> 1.08240615 | H4: ='Inputs|General'!P111/'Inputs|General'!$K$111 -> 1.104047641
A8: WDV RAB - MV 80 Luminaire | J8: <- Replicate AER approach in Powercor's decision
A9: RAB WDV | D9: =MAX(0,'Calc|Depn & WACC Post 2004'!$I$8) -> 99.78580361 | E9: =MAX(0,'Calc|Depn & WACC Post 2004'!$I$36) -> 91.26773277 | F9: =MAX(0,'Calc|Depn & WACC Post 2004'!$I$83) -> 84.34914468 | G9: =MAX(0,'Calc|Depn & WACC Post 2004'!$I$130) -> 79.52756505 | H9: =MAX(0,'Calc|Depn & WACC Post 2004'!$I$177) -> 73.78937634
A11: Avoided Costs - MV 80 O & M
A12: Materials & labour - bulk lamp change | D12: ='Calc|O & M 2021-2026'!$G$9*D$4 -> -23.85014885 | E12: ='Calc|O & M 2021-2026'!$V$9*E$4 -> -24.41871966 | F12: ='Calc|O & M 2021-2026'!$AK$9*F$4 -> -24.99350129 | G12: ='Calc|O & M 2021-2026'!$AZ$9*G$4 -> -25.60007394 | H12: ='Calc|O & M 2021-2026'!$BO$9*H$4 -> -26.25439832
A13: Materials & Labour - repair of faults | D13: ='Calc|O & M 2021-2026'!$G$10*D$4 -> -4.908082866 | E13: ='Calc|O & M 2021-2026'!$V$10*E$4 -> -5.029468775 | F13: ='Calc|O & M 2021-2026'!$AK$10*F$4 -> -5.151974056 | G13: ='Calc|O & M 2021-2026'!$AZ$10*G$4 -> -5.282075533 | H13: ='Calc|O & M 2021-2026'!$BO$10*H$4 -> -5.423810804
D14: =SUM(D12:D13) -> -28.75823171 | E14: =SUM(E12:E13) -> -29.44818844 | F14: =SUM(F12:F13) -> -30.14547535 | G14: =SUM(G12:G13) -> -30.88214947 | H14: =SUM(H12:H13) -> -31.67820912
A17: WDV RAB - S-HP 150 Luminaire | J17: <- Replicate AER approach in Powercor's decision
A18: RAB WDV | D18: =MAX(0,'Calc|Depn & WACC Post 2004'!$I$9) -> 117.0863051 | E18: =MAX(0,'Calc|Depn & WACC Post 2004'!$I$37) -> 107.091402 | F18: =MAX(0,'Calc|Depn & WACC Post 2004'!$I$84) -> 98.97329415 | G18: =MAX(0,'Calc|Depn & WACC Post 2004'!$I$131) -> 94.11851597 | H18: =MAX(0,'Calc|Depn & WACC Post 2004'!$I$178) -> 87.32753972
A20: Avoided Costs - S-HP 150 O & M
A21: Materials & labour - bulk lamp change | D21: ='Calc|O & M 2021-2026'!$G$15*D$4 -> 0 | E21: ='Calc|O & M 2021-2026'!$V$15*E$4 -> 0 | F21: ='Calc|O & M 2021-2026'!$AK$15*F$4 -> 0 | G21: ='Calc|O & M 2021-2026'!$AZ$15*G$4 -> 0 | H21: ='Calc|O & M 2021-2026'!$BO$15*H$4 -> 0
A22: Materials & Labour - repair of faults | D22: ='Calc|O & M 2021-2026'!$G$16*D$4 -> -33.65230359 | E22: ='Calc|O & M 2021-2026'!$V$16*E$4 -> -34.47714265 | F22: ='Calc|O & M 2021-2026'!$AK$16*F$4 -> -35.30992645 | G22: ='Calc|O & M 2021-2026'!$AZ$16*G$4 -> -36.19300254 | H22: ='Calc|O & M 2021-2026'!$BO$16*H$4 -> -37.15277504
D23: =SUM(D21:D22) -> -33.65230359 | E23: =SUM(E21:E22) -> -34.47714265 | F23: =SUM(F21:F22) -> -35.30992645 | G23: =SUM(G21:G22) -> -36.19300254 | H23: =SUM(H21:H22) -> -37.15277504
A26: WDV RAB - S-HP 250 Luminaire | J26: <- Replicate AER approach in Powercor's decision
A27: RAB WDV | D27: =MAX(0,'Calc|Depn & WACC Post 2004'!$I$10) -> 124.2932191 | E27: =MAX(0,'Calc|Depn & WACC Post 2004'!$I$38) -> 113.6831082 | F27: =MAX(0,'Calc|Depn & WACC Post 2004'!$I$85) -> 105.0653134 | G27: =MAX(0,'Calc|Depn & WACC Post 2004'!$I$132) -> 95.52178615 | H27: =MAX(0,'Calc|Depn & WACC Post 2004'!$I$179) -> 88.6295591
A29: Avoided Costs - S-HP 250 O & M
A30: Materials & labour - bulk lamp change | D30: ='Calc|O & M 2021-2026'!$G$21*D$4 -> 0 | E30: ='Calc|O & M 2021-2026'!$V$21*E$4 -> 0 | F30: ='Calc|O & M 2021-2026'!$AK$21*F$4 -> 0 | G30: ='Calc|O & M 2021-2026'!$AZ$21*G$4 -> 0 | H30: ='Calc|O & M 2021-2026'!$BO$21*H$4 -> 0
A31: Materials & Labour - repair of faults | D31: ='Calc|O & M 2021-2026'!$G$22*D$4 -> -34.22258243 | E31: ='Calc|O & M 2021-2026'!$V$22*E$4 -> -35.05922465 | F31: ='Calc|O & M 2021-2026'!$AK$22*F$4 -> -35.90402505 | G31: ='Calc|O & M 2021-2026'!$AZ$22*G$4 -> -36.79944678 | H31: ='Calc|O & M 2021-2026'!$BO$22*H$4 -> -37.77196753
D32: =SUM(D30:D31) -> -34.22258243 | E32: =SUM(E30:E31) -> -35.05922465 | F32: =SUM(F30:F31) -> -35.90402505 | G32: =SUM(G30:G31) -> -36.79944678 | H32: =SUM(H30:H31) -> -37.77196753
A35: WDV RAB - Sodium High Pressure 400 watt | J35: <- Calculated by multiplying the price factor to the corresponding reference light
A36: RAB WDV | D36: ='Inputs|General'!$C$60*D27 -> 165.3099815 | E36: ='Inputs|General'!$C$60*E27 -> 151.1985339 | F36: ='Inputs|General'!$C$60*F27 -> 139.7368668 | G36: ='Inputs|General'!$C$60*G27 -> 127.0439756 | H36: ='Inputs|General'!$C$60*H27 -> 117.8773136
A38: Avoided Costs - Sodium High Pressure 400 watt
A39: Materials & labour - bulk lamp change | D39: ='Inputs|General'!$C$60*D30 -> 0 | E39: ='Inputs|General'!$C$60*E30 -> 0 | F39: ='Inputs|General'!$C$60*F30 -> 0 | G39: ='Inputs|General'!$C$60*G30 -> 0 | H39: ='Inputs|General'!$C$60*H30 -> 0
A40: Materials & Labour - repair of faults | D40: ='Inputs|General'!$C$60*D31 -> -45.51603463 | E40: ='Inputs|General'!$C$60*E31 -> -46.62876878 | F40: ='Inputs|General'!$C$60*F31 -> -47.75235331 | G40: ='Inputs|General'!$C$60*G31 -> -48.94326421 | H40: ='Inputs|General'!$C$60*H31 -> -50.23671681
D41: =SUM(D39:D40) -> -45.51603463 | E41: =SUM(E39:E40) -> -46.62876878 | F41: =SUM(F39:F40) -> -47.75235331 | G41: =SUM(G39:G40) -> -48.94326421 | H41: =SUM(H39:H40) -> -50.23671681

Sheet Output|Light Prices & Volume
C1: JEN – ACS Public Lighting Model | F1: Overall Check: | G1: ='Output|PL Tariffs'!F1 -> Ok
C2: Output|Light Prices & Volume
B5: Copyright Jemena Limited. All rights reserved. Jemena is not liable for any loss caused by reliance on this document.
B7: Output | Forecast Prices and Volumes
C9: Forecast Prices
F11: Nominal Prices | L11: Real $2021 Prices
C13: Public Lighting Prices | F13: FY2022 | G13: FY2023 | H13: FY2024 | I13: FY2025 | J13: FY2026 | L13: =F13 -> FY2022 | M13: FY2023 | N13: FY2024 | O13: FY2025 | P13: FY2026
C14: ='Output|PL Tariffs'!A6 -> Mercury Vapour 80 watt | F14: ='Output|PL Tariffs'!D6 -> 57.87843585 | G14: ='Output|PL Tariffs'!E6 -> 57.08981528 | H14: ='Output|PL Tariffs'!F6 -> 56.22567508 | I14: ='Output|PL Tariffs'!G6 -> 58.09549156 | J14: ='Output|PL Tariffs'!H6 -> 58.94531126 | L14: =F14/'Inputs|General'!L$111*'Inputs|General'!$K$111 -> 56.74390544 | M14: =G14/'Inputs|General'!M$111*'Inputs|General'!$K$111 -> 54.87360747 | N14: =H14/'Inputs|General'!N$111*'Inputs|General'!$K$111 -> 52.98366427 | O14: =I14/'Inputs|General'!O$111*'Inputs|General'!$K$111 -> 53.67254386 | P14: =J14/'Inputs|General'!P$111*'Inputs|General'!$K$111 -> 53.39018815
C15: ='Output|PL Tariffs'!A13 -> Mercury Vapour 125 watt | F15: ='Output|PL Tariffs'!D13 -> 85.08130071 | G15: ='Output|PL Tariffs'!E13 -> 83.92202847 | H15: ='Output|PL Tariffs'!F13 -> 82.65174237 | I15: ='Output|PL Tariffs'!G13 -> 85.40037259 | J15: ='Output|PL Tariffs'!H13 -> 86.64960755 | L15: =F15/'Inputs|General'!L$111*'Inputs|General'!$K$111 -> 83.413541 | M15: =G15/'Inputs|General'!M$111*'Inputs|General'!$K$111 -> 80.66420298 | N15: =H15/'Inputs|General'!N$111*'Inputs|General'!$K$111 -> 77.88598648 | O15: =I15/'Inputs|General'!O$111*'Inputs|General'!$K$111 -> 78.89863947 | P15: =J15/'Inputs|General'!P$111*'Inputs|General'!$K$111 -> 78.48357658
C16: ='Output|PL Tariffs'!A14 -> Mercury Vapour 250 watt | F16: ='Output|PL Tariffs'!D14 -> 119.0886603 | G16: ='Output|PL Tariffs'!E14 -> 119.2645772 | H16: ='Output|PL Tariffs'!F14 -> 118.7407751 | I16: ='Output|PL Tariffs'!G14 -> 122.1633283 | J16: ='Output|PL Tariffs'!H14 -> 124.52196 | L16: =F16/'Inputs|General'!L$111*'Inputs|General'!$K$111 -> 116.7542899 | M16: =G16/'Inputs|General'!M$111*'Inputs|General'!$K$111 -> 114.6347656 | N16: =H16/'Inputs|General'!N$111*'Inputs|General'!$K$111 -> 111.8941009 | O16: =I16/'Inputs|General'!O$111*'Inputs|General'!$K$111 -> 112.8627441 | P16: =J16/'Inputs|General'!P$111*'Inputs|General'!$K$111 -> 112.7867634
C17: ='Output|PL Tariffs'!A15 -> Mercury Vapour 400 watt | F17: ='Output|PL Tariffs'!D15 -> 133.9747429 | G17: ='Output|PL Tariffs'!E15 -> 134.1726493 | H17: ='Output|PL Tariffs'!F15 -> 133.583372 | I17: ='Output|PL Tariffs'!G15 -> 137.4337443 | J17: ='Output|PL Tariffs'!H15 -> 140.087205 | L17: =F17/'Inputs|General'!L$111*'Inputs|General'!$K$111 -> 131.3485762 | M17: =G17/'Inputs|General'!M$111*'Inputs|General'!$K$111 -> 128.9641113 | N17: =H17/'Inputs|General'!N$111*'Inputs|General'!$K$111 -> 125.8808635 | O17: =I17/'Inputs|General'!O$111*'Inputs|General'!$K$111 -> 126.9705871 | P17: =J17/'Inputs|General'!P$111*'Inputs|General'!$K$111 -> 126.8851088
C18: ='Output|PL Tariffs'!A17 -> Sodium High Pressure 100 watt | F18: ='Output|PL Tariffs'!D17 -> 166.053355 | G18: ='Output|PL Tariffs'!E17 -> 166.4812937 | H18: ='Output|PL Tariffs'!F17 -> 167.0028527 | I18: ='Output|PL Tariffs'!G17 -> 171.8344241 | J18: ='Output|PL Tariffs'!H17 -> 175.1739679 | L18: =F18/'Inputs|General'!L$111*'Inputs|General'!$K$111 -> 162.7983849 | M18: =G18/'Inputs|General'!M$111*'Inputs|General'!$K$111 -> 160.0185448 | N18: =H18/'Inputs|General'!N$111*'Inputs|General'!$K$111 -> 157.3733542 | O18: =I18/'Inputs|General'!O$111*'Inputs|General'!$K$111 -> 158.7522614 | P18: =J18/'Inputs|General'!P$111*'Inputs|General'!$K$111 -> 158.6652255
C19: ='Output|PL Tariffs'!A7 -> Sodium High Pressure 150 watt | F19: ='Output|PL Tariffs'!D7 -> 121.2068285 | G19: ='Output|PL Tariffs'!E7 -> 121.5191925 | H19: ='Output|PL Tariffs'!F7 -> 121.8998925 | I19: ='Output|PL Tariffs'!G7 -> 125.4265869 | J19: ='Output|PL Tariffs'!H7 -> 127.8642102 | L19: =F19/'Inputs|General'!L$111*'Inputs|General'!$K$111 -> 118.8309379 | M19: =G19/'Inputs|General'!M$111*'Inputs|General'!$K$111 -> 116.8018575 | N19: =H19/'Inputs|General'!N$111*'Inputs|General'!$K$111 -> 114.8710615 | O19: =I19/'Inputs|General'!O$111*'Inputs|General'!$K$111 -> 115.8775631 | P19: =J19/'Inputs|General'!P$111*'Inputs|General'!$K$111 -> 115.8140332
C20: ='Output|PL Tariffs'!A8 -> Sodium High Pressure 250 watt | F20: ='Output|PL Tariffs'!D8 -> 124.0506878 | G20: ='Output|PL Tariffs'!E8 -> 124.2339346 | H20: ='Output|PL Tariffs'!F8 -> 123.6883074 | I20: ='Output|PL Tariffs'!G8 -> 127.253467 | J20: ='Output|PL Tariffs'!H8 -> 129.710375 | L20: =F20/'Inputs|General'!L$111*'Inputs|General'!$K$111 -> 121.619052 | M20: =G20/'Inputs|General'!M$111*'Inputs|General'!$K$111 -> 119.4112142 | N20: =H20/'Inputs|General'!N$111*'Inputs|General'!$K$111 -> 116.5563551 | O20: =I20/'Inputs|General'!O$111*'Inputs|General'!$K$111 -> 117.5653584 | P20: =J20/'Inputs|General'!P$111*'Inputs|General'!$K$111 -> 117.4862119
C21: ='Output|PL Tariffs'!A18 -> Sodium High Pressure 400 watt | F21: ='Output|PL Tariffs'!D18 -> 164.9874148 | G21: ='Output|PL Tariffs'!E18 -> 165.231133 | H21: ='Output|PL Tariffs'!F18 -> 164.5054488 | I21: ='Output|PL Tariffs'!G18 -> 169.2471111 | J21: ='Output|PL Tariffs'!H18 -> 172.5147988 | L21: =F21/'Inputs|General'!L$111*'Inputs|General'!$K$111 -> 161.7533392 | M21: =G21/'Inputs|General'!M$111*'Inputs|General'!$K$111 -> 158.8169149 | N21: =H21/'Inputs|General'!N$111*'Inputs|General'!$K$111 -> 155.0199523 | O21: =I21/'Inputs|General'!O$111*'Inputs|General'!$K$111 -> 156.3619267 | P21: =J21/'Inputs|General'!P$111*'Inputs|General'!$K$111 -> 156.2566618
C22: ='Output|PL Tariffs'!A19 -> Metal Halide 70 watt | F22: ='Output|PL Tariffs'!D19 -> 148.7475801 | G22: ='Output|PL Tariffs'!E19 -> 146.7208253 | H22: ='Output|PL Tariffs'!F19 -> 144.499985 | I22: ='Output|PL Tariffs'!G19 -> 149.3054133 | J22: ='Output|PL Tariffs'!H19 -> 151.4894499 | L22: =F22/'Inputs|General'!L$111*'Inputs|General'!$K$111 -> 145.831837 | M22: =G22/'Inputs|General'!M$111*'Inputs|General'!$K$111 -> 141.0251712 | N22: =H22/'Inputs|General'!N$111*'Inputs|General'!$K$111 -> 136.1680172 | O22: =I22/'Inputs|General'!O$111*'Inputs|General'!$K$111 -> 137.9384377 | P22: =J22/'Inputs|General'!P$111*'Inputs|General'!$K$111 -> 137.2127836
C23: ='Output|PL Tariffs'!A20 -> Metal Halide 150 watt | F23: ='Output|PL Tariffs'!D20 -> 269.0791592 | G23: ='Output|PL Tariffs'!E20 -> 269.7726074 | H23: ='Output|PL Tariffs'!F20 -> 270.6177613 | I23: ='Output|PL Tariffs'!G20 -> 278.4470229 | J23: ='Output|PL Tariffs'!H20 -> 283.8585465 | L23: =F23/'Inputs|General'!L$111*'Inputs|General'!$K$111 -> 263.804682 | M23: =G23/'Inputs|General'!M$111*'Inputs|General'!$K$111 -> 259.3001236 | N23: =H23/'Inputs|General'!N$111*'Inputs|General'!$K$111 -> 255.0137565 | O23: =I23/'Inputs|General'!O$111*'Inputs|General'!$K$111 -> 257.24819 | P23: =J23/'Inputs|General'!P$111*'Inputs|General'!$K$111 -> 257.1071538
C24: ='Output|PL Tariffs'!A21 -> Metal Halide 250 watt | F24: ='Output|PL Tariffs'!D21 -> 266.7089788 | G24: ='Output|PL Tariffs'!E21 -> 267.1029594 | H24: ='Output|PL Tariffs'!F21 -> 265.9298608 | I24: ='Output|PL Tariffs'!G21 -> 273.594954 | J24: ='Output|PL Tariffs'!H21 -> 278.8773063 | L24: =F24/'Inputs|General'!L$111*'Inputs|General'!$K$111 -> 261.4809618 | M24: =G24/'Inputs|General'!M$111*'Inputs|General'!$K$111 -> 256.7341105 | N24: =H24/'Inputs|General'!N$111*'Inputs|General'!$K$111 -> 250.5961635 | O24: =I24/'Inputs|General'!O$111*'Inputs|General'!$K$111 -> 252.7655206 | P24: =J24/'Inputs|General'!P$111*'Inputs|General'!$K$111 -> 252.5953555
C25: ='Output|PL Tariffs'!A27 -> T5 (2 x 14 W) | F25: ='Output|PL Tariffs'!D27 -> 61.60679794 | G25: ='Output|PL Tariffs'!E27 -> 64.66124948 | H25: ='Output|PL Tariffs'!F27 -> 67.60427493 | I25: ='Output|PL Tariffs'!G27 -> 70.52983558 | J25: ='Output|PL Tariffs'!H27 -> 73.43330048 | L25: =F25/'Inputs|General'!L$111*'Inputs|General'!$K$111 -> 60.39918435 | M25: =G25/'Inputs|General'!M$111*'Inputs|General'!$K$111 -> 62.15112109 | N25: =H25/'Inputs|General'!N$111*'Inputs|General'!$K$111 -> 63.70616629 | O25: =I25/'Inputs|General'!O$111*'Inputs|General'!$K$111 -> 65.16023174 | P25: =J25/'Inputs|General'!P$111*'Inputs|General'!$K$111 -> 66.51280052
C26: ='Output|PL Tariffs'!A28 -> T5 (2 x 24 W) | F26: ='Output|PL Tariffs'!D28 -> 69.38440034 | G26: ='Output|PL Tariffs'!E28 -> 72.82446371 | H26: ='Output|PL Tariffs'!F28 -> 76.1390339 | I26: ='Output|PL Tariffs'!G28 -> 79.43393442 | J26: ='Output|PL Tariffs'!H28 -> 82.70394971 | L26: =F26/'Inputs|General'!L$111*'Inputs|General'!$K$111 -> 68.02433055 | M26: =G26/'Inputs|General'!M$111*'Inputs|General'!$K$111 -> 69.99744202 | N26: =H26/'Inputs|General'!N$111*'Inputs|General'!$K$111 -> 71.74880522 | O26: =I26/'Inputs|General'!O$111*'Inputs|General'!$K$111 -> 73.3864404 | P26: =J26/'Inputs|General'!P$111*'Inputs|General'!$K$111 -> 74.90976537
C27: ='Output|PL Tariffs'!A30 -> Compact Fluoro 32W | F27: ='Output|PL Tariffs'!D30 -> 58.41283733 | G27: ='Output|PL Tariffs'!E30 -> 61.308933 | H27: ='Output|PL Tariffs'!F30 -> 64.09937939 | I27: ='Output|PL Tariffs'!G30 -> 66.87326642 | J27: ='Output|PL Tariffs'!H30 -> 69.62620325 | L27: =F27/'Inputs|General'!L$111*'Inputs|General'!$K$111 -> 57.2678316 | M27: =G27/'Inputs|General'!M$111*'Inputs|General'!$K$111 -> 58.92894042 | N27: =H27/'Inputs|General'!N$111*'Inputs|General'!$K$111 -> 60.40336541 | O27: =I27/'Inputs|General'!O$111*'Inputs|General'!$K$111 -> 61.78204588 | P27: =J27/'Inputs|General'!P$111*'Inputs|General'!$K$111 -> 63.06449169
C28: ='Output|PL Tariffs'!A31 -> Compact Fluoro 42W | F28: ='Output|PL Tariffs'!D31 -> 58.41283733 | G28: ='Output|PL Tariffs'!E31 -> 61.308933 | H28: ='Output|PL Tariffs'!F31 -> 64.09937939 | I28: ='Output|PL Tariffs'!G31 -> 66.87326642 | J28: ='Output|PL Tariffs'!H31 -> 69.62620325 | L28: =F28/'Inputs|General'!L$111*'Inputs|General'!$K$111 -> 57.2678316 | M28: =G28/'Inputs|General'!M$111*'Inputs|General'!$K$111 -> 58.92894042 | N28: =H28/'Inputs|General'!N$111*'Inputs|General'!$K$111 -> 60.40336541 | O28: =I28/'Inputs|General'!O$111*'Inputs|General'!$K$111 -> 61.78204588 | P28: =J28/'Inputs|General'!P$111*'Inputs|General'!$K$111 -> 63.06449169
C29: ='Output|PL Tariffs'!A29 -> LED 18W (incl. other standard Category P LED variants) | F29: ='Output|PL Tariffs'!D29 -> 28.43422095 | G29: ='Output|PL Tariffs'!E29 -> 30.40445549 | H29: ='Output|PL Tariffs'!F29 -> 32.2920392 | I29: ='Output|PL Tariffs'!G29 -> 34.15391108 | J29: ='Output|PL Tariffs'!H29 -> 35.98815942 | L29: =F29/'Inputs|General'!L$111*'Inputs|General'!$K$111 -> 27.87685468 | M29: =G29/'Inputs|General'!M$111*'Inputs|General'!$K$111 -> 29.22416455 | N29: =H29/'Inputs|General'!N$111*'Inputs|General'!$K$111 -> 30.43005817 | O29: =I29/'Inputs|General'!O$111*'Inputs|General'!$K$111 -> 31.55369274 | P29: =J29/'Inputs|General'!P$111*'Inputs|General'!$K$111 -> 32.59656386
C30: L1 – LED light for major roads (Cat V) 70W (replacement of 150 HPS) | F30: ='Output|PL Tariffs'!D32 -> 53.61197664 | G30: ='Output|PL Tariffs'!E32 -> 56.94999671 | H30: ='Output|PL Tariffs'!F32 -> 60.11811446 | I30: ='Output|PL Tariffs'!G32 -> 63.21616815 | J30: ='Output|PL Tariffs'!H32 -> 66.20535394 | L30: =F30/'Inputs|General'!L$111*'Inputs|General'!$K$111 -> 52.56107717 | M30: =G30/'Inputs|General'!M$111*'Inputs|General'!$K$111 -> 54.7392166 | N30: =H30/'Inputs|General'!N$111*'Inputs|General'!$K$111 -> 56.65166294 | O30: =I30/'Inputs|General'!O$111*'Inputs|General'!$K$111 -> 58.40337118 | P30: =J30/'Inputs|General'!P$111*'Inputs|General'!$K$111 -> 59.96603
C31: L2 – LED light for major roads (Cat V) 155W-162W (replacement of 250 HPS) | F31: ='Output|PL Tariffs'!D33 -> 54.16704626 | G31: ='Output|PL Tariffs'!E33 -> 57.61602468 | H31: ='Output|PL Tariffs'!F33 -> 60.8833292 | I31: ='Output|PL Tariffs'!G33 -> 64.07149888 | J31: ='Output|PL Tariffs'!H33 -> 67.13533625 | L31: =F31/'Inputs|General'!L$111*'Inputs|General'!$K$111 -> 53.10526634 | M31: =G31/'Inputs|General'!M$111*'Inputs|General'!$K$111 -> 55.37938959 | N31: =H31/'Inputs|General'!N$111*'Inputs|General'!$K$111 -> 57.37275487 | O31: =I31/'Inputs|General'!O$111*'Inputs|General'!$K$111 -> 59.19358355 | P31: =J31/'Inputs|General'!P$111*'Inputs|General'!$K$111 -> 60.80836893
C32: L4 – LED light for major roads (Cat V) 275W (replacement of 400 HPS) | F32: ='Output|PL Tariffs'!D34 -> 59.13780573 | G32: ='Output|PL Tariffs'!E34 -> 63.58043839 | H32: ='Output|PL Tariffs'!F34 -> 67.73598022 | I32: ='Output|PL Tariffs'!G34 -> 71.73115667 | J32: ='Output|PL Tariffs'!H34 -> 75.46351383 | L32: =F32/'Inputs|General'!L$111*'Inputs|General'!$K$111 -> 57.97858921 | M32: =G32/'Inputs|General'!M$111*'Inputs|General'!$K$111 -> 61.11226672 | N32: =H32/'Inputs|General'!N$111*'Inputs|General'!$K$111 -> 63.83027736 | O32: =I32/'Inputs|General'!O$111*'Inputs|General'!$K$111 -> 66.27009341 | P32: =J32/'Inputs|General'!P$111*'Inputs|General'!$K$111 -> 68.35168253
C34: Forecast Volumes
C36: Public Lighting Volumes | F36: =F13 -> FY2022 | G36: =G13 -> FY2023 | H36: FY2024 | I36: FY2025 | J36: FY2026
C37: Minor road lights (Category P)
C38: =C14 -> Mercury Vapour 80 watt | F38: ='Inputs|General'!L48 -> 3992.912942 | G38: ='Inputs|General'!M48 -> 2844.581196 | H38: ='Inputs|General'!N48 -> 1696.249451 | I38: ='Inputs|General'!O48 -> 561.0417889 | J38: ='Inputs|General'!P48 -> 0
C39: =C15 -> Mercury Vapour 125 watt | F39: ='Inputs|General'!L55 -> 56.5609975 | G39: ='Inputs|General'!M55 -> 40.29447981 | H39: ='Inputs|General'!N55 -> 24.02796213 | I39: ='Inputs|General'!O55 -> 7.947351641 | J39: ='Inputs|General'!P55 -> 0
C40: =C18 -> Sodium High Pressure 100 watt | F40: ='Inputs|General'!L59 -> 1170.117878 | G40: ='Inputs|General'!M59 -> 1149.843369 | H40: ='Inputs|General'!N59 -> 1129.920154 | I40: ='Inputs|General'!O59 -> 1110.342146 | J40: ='Inputs|General'!P59 -> 1091.103365
C41: =C22 -> Metal Halide 70 watt | F41: ='Inputs|General'!L61 -> 10.9297537 | G41: ='Inputs|General'!M61 -> 10.2664738 | H41: ='Inputs|General'!N61 -> 9.643445517 | I41: ='Inputs|General'!O61 -> 9.058226149 | J41: ='Inputs|General'!P61 -> 8.508521235
C42: Energy efficient lights
C43: =C25 -> T5 (2 x 14 W) | F43: ='Inputs|General'!L71 -> 25722.15181 | G43: ='Inputs|General'!M71 -> 25305.59546 | H43: ='Inputs|General'!N71 -> 24895.78501 | I43: ='Inputs|General'!O71 -> 24492.61122 | J43: ='Inputs|General'!P71 -> 24095.96661
C44: =C26 -> T5 (2 x 24 W) | F44: ='Inputs|General'!L72 -> 900.6998036 | G44: ='Inputs|General'!M72 -> 886.1134568 | H44: ='Inputs|General'!N72 -> 871.763328 | I44: ='Inputs|General'!O72 -> 857.6455918 | J44: ='Inputs|General'!P72 -> 843.7564847
C45: =C27 -> Compact Fluoro 32W | F45: ='Inputs|General'!L74 -> 2542.450679 | G45: ='Inputs|General'!M74 -> 2526.206387 | H45: ='Inputs|General'!N74 -> 2510.065882 | I45: ='Inputs|General'!O74 -> 2494.028503 | J45: ='Inputs|General'!P74 -> 2478.093591
C46: =C28 -> Compact Fluoro 42W | F46: ='Inputs|General'!L75 -> 318.9205761 | G46: ='Inputs|General'!M75 -> 316.8829203 | H46: ='Inputs|General'!N75 -> 314.8582836 | I46: ='Inputs|General'!O75 -> 312.8465828 | J46: ='Inputs|General'!P75 -> 310.8477352
C47: =C29 -> LED 18W (incl. other standard Category P LED variants) | F47: ='Inputs|General'!L73 -> 22095.37922 | G47: ='Inputs|General'!M73 -> 25302.97291 | H47: ='Inputs|General'!N73 -> 28767.80241 | I47: ='Inputs|General'!O73 -> 32307.01627 | J47: ='Inputs|General'!P73 -> 35029.17995
C48: Major road lights (Category V)
C49: =C19 -> Sodium High Pressure 150 watt | F49: ='Inputs|General'!L49 -> 15665.21142 | G49: ='Inputs|General'!M49 -> 15393.78195 | H49: ='Inputs|General'!N49 -> 15127.05552 | I49: ='Inputs|General'!O49 -> 14864.95062 | J49: ='Inputs|General'!P49 -> 14607.38718
C50: =C20 -> Sodium High Pressure 250 watt | F50: ='Inputs|General'!L50 -> 4985.548503 | G50: ='Inputs|General'!M50 -> 4899.164429 | H50: ='Inputs|General'!N50 -> 4814.277123 | I50: ='Inputs|General'!O50 -> 4730.86065 | J50: ='Inputs|General'!P50 -> 4648.889526
C51: =C21 -> Sodium High Pressure 400 watt | F51: ='Inputs|General'!L60 -> 368.0606277 | G51: ='Inputs|General'!M60 -> 361.68328 | H51: ='Inputs|General'!N60 -> 355.4164319 | I51: ='Inputs|General'!O60 -> 349.2581688 | J51: ='Inputs|General'!P60 -> 343.2066093
C52: =C16 -> Mercury Vapour 250 watt | F52: ='Inputs|General'!L56 -> 53.14018234 | G52: ='Inputs|General'!M56 -> 37.85746538 | H52: ='Inputs|General'!N56 -> 22.57474842 | I52: ='Inputs|General'!O56 -> 7.466694967 | J52: ='Inputs|General'!P56 -> 0
C53: =C17 -> Mercury Vapour 400 watt | F53: ='Inputs|General'!L57 -> 70.11137467 | G53: ='Inputs|General'!M57 -> 49.8792591 | H53: ='Inputs|General'!N57 -> 29.64714353 | I53: ='Inputs|General'!O57 -> 9.640542869 | J53: ='Inputs|General'!P57 -> 0
C54: =C23 -> Metal Halide 150 watt | F54: ='Inputs|General'!L62 -> 66.489335 | G54: ='Inputs|General'!M62 -> 62.45438229 | H54: ='Inputs|General'!N62 -> 58.66429356 | I54: ='Inputs|General'!O62 -> 55.10420907 | J54: ='Inputs|General'!P62 -> 51.76017085
C55: =C24 -> Metal Halide 250 watt | F55: ='Inputs|General'!L63 -> 35.52169952 | G55: ='Inputs|General'!M63 -> 33.36603985 | H55: ='Inputs|General'!N63 -> 31.34119793 | I55: ='Inputs|General'!O63 -> 29.43923498 | J55: ='Inputs|General'!P63 -> 27.65269402
C56: Energy efficient lights
C57: =C30 -> L1 – LED light for major roads (Cat V) 70W (replacement of 150 HPS) | F57: ='Inputs|General'!L76 -> 721.5168074 | G57: ='Inputs|General'!M76 -> 837.8239192 | H57: ='Inputs|General'!N76 -> 962.6940971 | I57: ='Inputs|General'!O76 -> 1090.217515 | J57: ='Inputs|General'!P76 -> 1188.381171
C58: =C31 -> L2 – LED light for major roads (Cat V) 155W-162W (replacement of 250 HPS) | F58: ='Inputs|General'!L77 -> 196.4981944 | G58: ='Inputs|General'!M77 -> 228.1733227 | H58: ='Inputs|General'!N77 -> 262.1805201 | I58: ='Inputs|General'!O77 -> 296.9103019 | J58: ='Inputs|General'!P77 -> 323.6442339
C59: =C32 -> L4 – LED light for major roads (Cat V) 275W (replacement of 400 HPS) | F59: ='Inputs|General'!L78 -> 3.070284287 | G59: ='Inputs|General'!M78 -> 3.565208167 | H59: ='Inputs|General'!N78 -> 4.096570626 | I59: ='Inputs|General'!O78 -> 4.639223468 | J59: ='Inputs|General'!P78 -> 5.056941155
C60: Total | F60: =SUM(F38:F59) -> 78975.2921 | G60: =SUM(G38:G59) -> 80290.50591 | H60: 81888.06356 | I60: 83591.02484 | J60: 85053.43478
B62: End

Sheet Calc|O & M 2021-2026
A1: ='Inputs|O & M'!$A$3 -> Jemena | E1: color code | F1: input values | G1: AER FD | H1: formula | I1: JEN formula amendments
A3: Public Lighting O & M Costs | B3: Year | C3: ='Inputs|General'!$L3 -> FY2022 | Q3: Year | R3: ='Inputs|General'!$M3 -> FY2023 | AF3: Year | AG3: ='Inputs|General'!$N3 -> FY2024 | AU3: Year | AV3: ='Inputs|General'!$O3 -> FY2025 | BJ3: Year | BK3: ='Inputs|General'!$P3 -> FY2026
A4: ='Inputs|O & M'!C5 -> Real 2021 $
A6: Summary
A8: =$A$86 -> MV80 | D8: Avoided Costs - MV 80 O & M | H8: <- Replicate AER approach in Powercor's decision | S8: Avoided Costs - MV 80 O & M | W8: <- Replicate AER approach in Powercor's decision | AH8: Avoided Costs - MV 80 O & M | AL8: <- Replicate AER approach in Powercor's decision | AW8: Avoided Costs - MV 80 O & M | BA8: <- Replicate AER approach in Powercor's decision | BL8: Avoided Costs - MV 80 O & M | BP8: <- Replicate AER approach in Powercor's decision
A9: =$A$87 -> Bulk change & repairs | B9: =G107*C57+N107*C58 -> 26.64383672 | D9: Materials & labour - bulk lamp change | G9: =-((G89+G98)*C57+(N89+N98)*C58)*2 -> -23.38263934 | Q9: =V107*R57+AC107*R58 -> 26.75481177 | S9: Materials & labour - bulk lamp change | V9: =-((V89+V98)*R57+(AC89+AC98)*R58)*2 -> -23.47079301 | AF9: =AK107*AG57+AR107*AG58 -> 26.85749363 | AH9: Materials & labour - bulk lamp change | AK9: =-((AK89+AK98)*AG57+(AR89+AR98)*AG58)*2 -> -23.55235895 | AU9: =AZ107*AV57+BG107*AV58 -> 26.98177116 | AW9: Materials & labour - bulk lamp change | AZ9: =-((AZ89+AZ98)*AV57+(BG89+BG98)*AV58)*2 -> -23.65107953 | BJ9: =BO107*BK57+BV107*BK58 -> 27.1442326 | BL9: Materials & labour - bulk lamp change | BO9: =-((BO89+BO98)*BK57+(BV89+BV98)*BK58)*2 -> -23.78013172
A10: =A109 -> Dedicated poles - inspection | B10: =(G110*C57+N110*C58)*C60 -> 2.381966461 | D10: Materials & Labour - repair of faults | G10: =-((G93+G101+G103)*C57+(N93+N101+N103)*C58)/2 -> -4.811874854 | Q10: =(V110*R57+AC110*R58)*R60 -> 2.39606036 | S10: Materials & Labour - repair of faults | V10: =-((V93+V101+V103)*R57+(AC93+AC101+AC103)*R58)/2 -> -4.834226454 | AF10: =(AK110*AG57+AR110*AG58)*AG60 -> 2.409101019 | AH10: Materials & Labour - repair of faults | AK10: =-((AK93+AK101+AK103)*AG57+(AR93+AR101+AR103)*AG58)/2 -> -4.854907715 | AU10: =(AZ110*AV57+BG110*AV58)*AV60 -> 2.424884341 | AW10: Materials & Labour - repair of faults | AZ10: =-((AZ93+AZ101+AZ103)*AV57+(BG93+BG101+BG103)*AV58)/2 -> -4.879938582 | BJ10: =(BO110*BK57+BV110*BK58)*BK60 -> 2.445517043 | BL10: Materials & Labour - repair of faults | BO10: =-((BO93+BO101+BO103)*BK57+(BV93+BV101+BV103)*BK58)/2 -> -4.91266011
A11: Other costs | B11: =IF(C68=0,0,C66/C68) -> 2.80354471 | G11: =SUM(G9:G10) -> -28.19451419 | Q11: =IF(R68=0,0,R66/R68) -> 2.842733154 | V11: =SUM(V9:V10) -> -28.30501947 | AF11: =IF(AG68=0,0,AG66/AG68) -> 2.891254124 | AK11: =SUM(AK9:AK10) -> -28.40726666 | AU11: =IF(AV68=0,0,AV66/AV68) -> 2.949206974 | AZ11: =SUM(AZ9:AZ10) -> -28.53101811 | BJ11: =IF(BK68=0,0,BK66/BK68) -> 3.017761041 | BO11: =SUM(BO9:BO10) -> -28.69279183
A14: =$A$127 -> S-HP 150 | D14: Avoided Costs - S-HP 150 O & M | H14: <- Replicate AER approach in Powercor's decision | S14: Avoided Costs - S-HP 150 O & M | W14: <- Replicate AER approach in Powercor's decision | AH14: Avoided Costs - S-HP 150 O & M | AL14: <- Replicate AER approach in Powercor's decision | AW14: Avoided Costs - S-HP 150 O & M | BA14: <- Replicate AER approach in Powercor's decision | BL14: Avoided Costs - S-HP 150 O & M | BP14: <- Replicate AER approach in Powercor's decision
A15: =$A$128 -> Patrols and repairs | B15: =G144*E57+N144*E58 -> 85.49925142 | D15: Materials & labour - bulk lamp change | Q15: =V144*T57+AC144*T58 -> 85.88354155 | S15: Materials & labour - bulk lamp change | AF15: =AK144*AI57+AR144*AI58 -> 86.2391136 | AH15: Materials & labour - bulk lamp change | AU15: =AZ144*AX57+BG144*AX58 -> 86.66946826 | AW15: Materials & labour - bulk lamp change | BJ15: =BO144*BM57+BV144*BM58 -> 87.23204813 | BL15: Materials & labour - bulk lamp change
A16: =$A$10 -> Dedicated poles - inspection | B16: =B10 -> 2.381966461 | D16: Materials & Labour - repair of faults | G16: =-((G130+G137+G140)*E57+(N130+N137+N140)*E58)/2 -> -32.9926527 | Q16: =Q10 -> 2.39606036 | S16: Materials & Labour - repair of faults | V16: =-((V130+V137+V140)*T57+(AC130+AC137+AC140)*T58)/2 -> -33.13875133 | AF16: =AF10 -> 2.409101019 | AH16: Materials & Labour - repair of faults | AK16: =-((AK130+AK137+AK140)*AI57+(AR130+AR137+AR140)*AI58)/2 -> -33.27393198 | AU16: =AU10 -> 2.424884341 | AW16: Materials & Labour - repair of faults | AZ16: =-((AZ130+AZ137+AZ140)*AX57+(BG130+BG137+BG140)*AX58)/2 -> -33.43754333 | BJ16: =BJ10 -> 2.445517043 | BL16: Materials & Labour - repair of faults | BO16: =-((BO130+BO137+BO140)*BM57+(BV130+BV137+BV140)*BM58)/2 -> -33.65142379
A17: =$A$11 -> Other costs | B17: =B11 -> 2.80354471 | G17: =SUM(G15:G16) -> -32.9926527 | Q17: =Q11 -> 2.842733154 | V17: =SUM(V15:V16) -> -33.13875133 | AF17: =AF11 -> 2.891254124 | AK17: =SUM(AK15:AK16) -> -33.27393198 | AU17: =AU11 -> 2.949206974 | AZ17: =SUM(AZ15:AZ16) -> -33.43754333 | BJ17: =BJ11 -> 3.017761041 | BO17: =SUM(BO15:BO16) -> -33.65142379
A20: =$A$159 -> S-HP 250 | D20: Avoided Costs - S-HP 250 O & M | H20: <- Replicate AER approach in Powercor's decision | S20: Avoided Costs - S-HP 250 O & M | W20: <- Replicate AER approach in Powercor's decision | AH20: Avoided Costs - S-HP 250 O & M | AL20: <- Replicate AER approach in Powercor's decision | AW20: Avoided Costs - S-HP 250 O & M | BA20: <- Replicate AER approach in Powercor's decision | BL20: Avoided Costs - S-HP 250 O & M | BP20: <- Replicate AER approach in Powercor's decision
A21: =$A$160 -> Patrols and repairs | B21: =G176*G57+N176*G58 -> 86.94116236 | D21: Materials & labour - bulk lamp change | Q21: =V176*V57+AC176*V58 -> 87.32669495 | S21: Materials & labour - bulk lamp change | AF21: =AK176*AK57+AR176*AK58 -> 87.68341662 | AH21: Materials & labour - bulk lamp change | AU21: =AZ176*AZ57+BG176*AZ58 -> 88.11516267 | AW21: Materials & labour - bulk lamp change | BJ21: =BO176*BO57+BV176*BO58 -> 88.67956144 | BL21: Materials & labour - bulk lamp change
A22: =$A$10 -> Dedicated poles - inspection | B22: =B10 -> 2.381966461 | D22: Materials & Labour - repair of faults | G22: =-((G162+G169+G172)*G57+(N162+N169+N172)*G58)/2 -> -33.55175296 | Q22: =Q10 -> 2.39606036 | S22: Materials & Labour - repair of faults | V22: =-((V162+V169+V172)*V57+(AC162+AC169+AC172)*V58)/2 -> -33.6982371 | AF22: =AF10 -> 2.409101019 | AH22: Materials & Labour - repair of faults | AK22: =-((AK162+AK169+AK172)*AK57+(AR162+AR169+AR172)*AK58)/2 -> -33.83377445 | AU22: =AU10 -> 2.424884341 | AW22: Materials & Labour - repair of faults | AZ22: =-((AZ162+AZ169+AZ172)*AZ57+(BG162+BG169+BG172)*AZ58)/2 -> -33.99781752 | BJ22: =BJ10 -> 2.445517043 | BL22: Materials & Labour - repair of faults | BO22: =-((BO162+BO169+BO172)*BO57+(BV162+BV169+BV172)*BO58)/2 -> -34.21226235
A23: =$A$11 -> Other costs | B23: =B11 -> 2.80354471 | G23: =SUM(G21:G22) -> -33.55175296 | Q23: =Q11 -> 2.842733154 | V23: =SUM(V21:V22) -> -33.6982371 | AF23: =AF11 -> 2.891254124 | AK23: =SUM(AK21:AK22) -> -33.83377445 | AU23: =AU11 -> 2.949206974 | AZ23: =SUM(AZ21:AZ22) -> -33.99781752 | BJ23: =BJ11 -> 3.017761041 | BO23: =SUM(BO21:BO22) -> -34.21226235
A26: =$A$193 -> T5 (2 X 14W)
A27: =$A$194 -> Bulk change & repairs | B27: =$G$214*$I$57+$N$214*$I$58 -> 42.73584322 | Q27: =$V$214*$X$57+$AC$214*$X$58 -> 42.88279193 | AF27: =$AK$214*$AM$57+$AR$214*$AM$58 -> 43.01875914 | AU27: =$AZ$214*$BB$57+$BG$214*$BB$58 -> 43.18332246 | BJ27: =$BO$214*$BQ$57+$BV$214*$BQ$58 -> 43.3984474
A28: =$A$10 -> Dedicated poles - inspection | B28: =B10 -> 2.381966461 | Q28: =Q10 -> 2.39606036 | AF28: =AF10 -> 2.409101019 | AU28: =AU10 -> 2.424884341 | BJ28: =BJ10 -> 2.445517043
A29: =$A$11 -> Other costs | B29: =B11 -> 2.80354471 | Q29: =Q11 -> 2.842733154 | AF29: =AF11 -> 2.891254124 | AU29: =AU11 -> 2.949206974 | BJ29: =BJ11 -> 3.017761041
A32: =$A$231 -> LED 18W (incl. other standard Category P LED variants)
A33: =$A$194 -> Bulk change & repairs | B33: =G249*K57+N249*K58 -> 11.95375392 | Q33: =V249*Z57+AC249*Z58 -> 12.00301851 | AF33: =AK249*AO57+AR249*AO58 -> 12.04860154 | AU33: =AZ249*BD57+BG249*BD58 -> 12.10377142 | BJ33: =BO249*BS57+BV249*BS58 -> 12.17589209
A34: =$A$10 -> Dedicated poles - inspection | B34: =B10 -> 2.381966461 | Q34: =Q10 -> 2.39606036 | AF34: =AF10 -> 2.409101019 | AU34: =AU10 -> 2.424884341 | BJ34: =BJ10 -> 2.445517043
A35: =$A$11 -> Other costs | B35: =B11 -> 2.80354471 | Q35: =Q11 -> 2.842733154 | AF35: =AF11 -> 2.891254124 | AU35: =AU11 -> 2.949206974 | BJ35: =BJ11 -> 3.017761041
A38: =$A$264 -> LED 70W (L1)
A39: =$A$128 -> Patrols and repairs | B39: =G282*M57+N282*M58 -> 32.34976574 | Q39: =V282*AB57+AC282*AB58 -> 32.47350742 | AF39: =AK282*AQ57+AR282*AQ58 -> 32.58800186 | AU39: =AZ282*BF57+BG282*BF58 -> 32.72657635 | BJ39: =BO282*BU57+BV282*BU58 -> 32.90772744
A40: =$A$10 -> Dedicated poles - inspection | B40: =B$10 -> 2.381966461 | Q40: =Q$10 -> 2.39606036 | AF40: =AF$10 -> 2.409101019 | AU40: =AU$10 -> 2.424884341 | BJ40: =BJ$10 -> 2.445517043
A41: =$A$11 -> Other costs | B41: =B$11 -> 2.80354471 | Q41: =Q$11 -> 2.842733154 | AF41: =AF$11 -> 2.891254124 | AU41: =AU$11 -> 2.949206974 | BJ41: =BJ$11 -> 3.017761041
A44: =$A$297 -> LED 118W, 155W, 162W (L2)
A45: =$A$128 -> Patrols and repairs | B45: =G315*N57+N315*N58 -> 32.34976574 | Q45: =V315*AC57+AC315*AC58 -> 32.47350742 | AF45: =AK315*AR57+AR315*AR58 -> 32.58800186 | AU45: =AZ315*BG57+BG315*BG58 -> 32.72657635 | BJ45: =BO315*BV57+BV315*BV58 -> 32.90772744
A46: =$A$10 -> Dedicated poles - inspection | B46: =B$10 -> 2.381966461 | Q46: =Q$10 -> 2.39606036 | AF46: =AF$10 -> 2.409101019 | AU46: =AU$10 -> 2.424884341 | BJ46: =BJ$10 -> 2.445517043
A47: =$A$11 -> Other costs | B47: =B$11 -> 2.80354471 | Q47: =Q$11 -> 2.842733154 | AF47: =AF$11 -> 2.891254124 | AU47: =AU$11 -> 2.949206974 | BJ47: =BJ$11 -> 3.017761041
A50: =$A$330 -> LED 275W (L4)
A51: =$A$128 -> Patrols and repairs | B51: =G348*O57+N348*O58 -> 32.34976574 | Q51: =V348*AD57+AC348*AD58 -> 32.47350742 | AF51: =AK348*AS57+AR348*AS58 -> 32.58800186 | AU51: =AZ348*BH57+BG348*BH58 -> 32.72657635 | BJ51: =BO348*BW57+BV348*BW58 -> 32.90772744
A52: =$A$10 -> Dedicated poles - inspection | B52: =B$10 -> 2.381966461 | Q52: =Q$10 -> 2.39606036 | AF52: =AF$10 -> 2.409101019 | AU52: =AU$10 -> 2.424884341 | BJ52: =BJ$10 -> 2.445517043
A53: =$A$11 -> Other costs | B53: =B$11 -> 2.80354471 | Q53: =Q$11 -> 2.842733154 | AF53: =AF$11 -> 2.891254124 | AU53: =AU$11 -> 2.949206974 | BJ53: =BJ$11 -> 3.017761041
A56: ='Inputs|O & M'!A50 -> Location of selected public lighting assets within distributors' areas (%) | C56: =$A$86 -> MV80 | E56: =$A$127 -> S-HP 150 | G56: =$A$159 -> S-HP 250 | I56: =$A$193 -> T5 (2 X 14W) | K56: =$A$231 -> LED 18W (incl. other standard Category P LED variants) | M56: =$A$264 -> LED 70W (L1) | N56: =$A$297 -> LED 118W, 155W, 162W (L2) | O56: =$A$330 -> LED 275W (L4) | R56: =$A$86 -> MV80 | T56: =$A$127 -> S-HP 150 | V56: =$A$159 -> S-HP 250 | X56: =$A$193 -> T5 (2 X 14W) | Z56: =$A$231 -> LED 18W (incl. other standard Category P LED variants) | AB56: =$A$264 -> LED 70W (L1) | AC56: =$A$297 -> LED 118W, 155W, 162W (L2) | AD56: =$A$330 -> LED 275W (L4) | AG56: =$A$86 -> MV80 | AI56: =$A$127 -> S-HP 150 | AK56: =$A$159 -> S-HP 250 | AM56: =$A$193 -> T5 (2 X 14W) | AO56: =$A$231 -> LED 18W (incl. other standard Category P LED variants) | AQ56: =$A$264 -> LED 70W (L1) | AR56: =$A$297 -> LED 118W, 155W, 162W (L2) | AS56: =$A$330 -> LED 275W (L4) | AV56: =$A$86 -> MV80 | AX56: =$A$127 -> S-HP 150 | AZ56: =$A$159 -> S-HP 250 | BB56: =$A$193 -> T5 (2 X 14W) | BD56: =$A$231 -> LED 18W (incl. other standard Category P LED variants) | BF56: =$A$264 -> LED 70W (L1) | BG56: =$A$297 -> LED 118W, 155W, 162W (L2) | BH56: =$A$330 -> LED 275W (L4) | BK56: =$A$86 -> MV80 | BM56: =$A$127 -> S-HP 150 | BO56: =$A$159 -> S-HP 250 | BQ56: =$A$193 -> T5 (2 X 14W) | BS56: =$A$231 -> LED 18W (incl. other standard Category P LED variants) | BU56: =$A$264 -> LED 70W (L1) | BV56: =$A$297 -> LED 118W, 155W, 162W (L2) | BW56: =$A$330 -> LED 275W (L4)
